Workbook

Sheet VersionControl
F2: =MID(CELL("filename",D1),FIND("]",CELL("filename",D1))+1,256) -> VersionControl
F3: Tracks changes, provides core information, and a key to formatting.
D10: Quality Assurance and Version Control
F12: Project Name | G12: WRCCA decision making tool
F14: Analyst | G14: Chris Cheyney
F16: Reviewer | G16: Jonny Allen
F18: Purpose of workbook | G18: The workbook calculates measures of financial and social welfare rates of return for weather resilience schemes for Network Rail assets. This is to be used by the Network Rail route teams to prioritise and sift differen schemes.
F20: Version | G20: Timestamp | H20: Changes / Comments | O20: Reviewed?
F21: v0.1 | G21: 2017-11-16T13:27:00 | H21: Draft model compeleted, pre discussion with Jonny Allen 16/11/17 | O21: 0
F22: v0.2 | G22: 2017-11-21T16:30:00 | H22: 2080 weather event year added, explanations on input sheets | O22: 0
F23: v0.3 | G23: 2017-11-23T15:06:00 | H23: Hide blank rows on charts macro added, revenue growth rates chart added, years extended to 2170, all trains ubs&nubs factor, PDFH consistent passenger demand growth rates added | O23: 0
F24: v0.4 | G24: 2017-11-24T12:32:00 | H24: Changes post QA and reconciliation with DCF - see QA log | O24: 0
F25: v0.5 | G25: 2017-11-30T14:13:00 | H25: Iferrors to stop div/0 errors added on calc1, bcr calc formula fixed on calc5 | O25: 1
F26: v0.6 | G26: 2017-12-14T10:58:00 | H26: See QA log | O26: 0
F27: v0.7 | G27: 2017-12-15T14:52:00 | H27: See QA log | O27: 0
F28: v0.8 | G28: 2018-02-27T12:16:59.530 | H28: See QA log
D33: Key
F35: Title | H35: Title
F37: Input | H37: Input (changeable when sheet is locked)
F38: Locked Input | H38: Input (not changeable when sheet is locked)
F39: Comment | H39: Comment
F40: Calculation | H40: Calculation / Result
F41: Flow Through | H41: Data copied from one location to another
F42: Unit | H42: Unit
F44: 1 | H44: Boolean TRUE (value is 1)
F45: 0 | H45: Boolean FALSE (value is 0)
F47: 0 | H47: Error check (value is 0); contains conditional formatting
F48: 1 | H48: Error check (value is not 0); contains conditional formatting
F50: TRUE | H50: Conditional check (value is TRUE); contains conditional formatting
F51: FALSE | H51: Conditional check (value is FALSE); contains conditional formatting

Sheet User Inputs >
B2: =MID(CELL("filename",D1),FIND("]",CELL("filename",D1))+1,256) -> User Inputs >

Sheet Scheme Inputs
F2: =MID(CELL("filename",D1),FIND("]",CELL("filename",D1))+1,256) -> Scheme Inputs
F3: Users to enter weather event likelihood, anticipated impacts and scheme costs
J9: Unit | L9: Explanation | S9: Check
E10: Scheme Details
G12: Scheme name | S12: =NOT(ISTEXT(H12))*1 -> 1
G14: OP number | L14: Enter "N/A" if the scheme has no OP number | S14: =NOT(AND(H14>=100000, H14<=999999))*1 -> 1
G16: Route
G18: Date of Appraisal | J18: Date
G20: Appraiser name | L20: Name of the Network Rail member of staff completing this appraisal
G22: Appraiser email address
E25: Years
G27: Scheme opening year | J27: Year | L27: The first full year that the weather resiliance benefits take effect | S27: =NOT(AND(H27>2000, H27<2100, ISNUMBER(H27)))*1 -> 1
G29: Opening Control Period | H29: =INDEX('Appraisal inputs'!M80:CX80,1,MATCH('Scheme Inputs'!H27,'Appraisal inputs'!M68:CX68,0)) ->  | L29: Formula looks up the CP based on the scheme opening year
G30: Opening Control Period start | H30: =INDEX('Appraisal inputs'!$H$70:$H$77,MATCH('Scheme Inputs'!$H$29,'Appraisal inputs'!$J$70:$J$77,0)) ->  | L30: Formula looks up start of CP
G31: Opening Control Period end | H31: =INDEX('Appraisal inputs'!$I$70:$I$77,MATCH('Scheme Inputs'!$H$29,'Appraisal inputs'!$J$70:$J$77,0)) ->  | L31: Forumla looks up end of CP
G33: Scheme asset life | J33: Years | L33: The asset life of the weather resiliance element of the scheme. The last year of the model is 2170, so asset life should be reduced if this is exceeded (and an error shown to the right). | S33: =NOT(AND(H33>0, H27+H33<'GDP&inflation rates'!GG10, ISNUMBER(H33)))*1 -> 1
E35: Scheme Costs
G37: Scheme cost input price base | J37: Year | L37: Price base year for scheme capital costs entered below. Note, for example, that a scheme estimated in 2015Q3 prices should be entered as "2015" | S37: =NOT(AND(H37>2000, H37<'GDP&inflation rates'!DD10, ISNUMBER(H37)))*1 -> 1
G39: Mid-point year of scheme construction | J39: Year | L39: The middle year of scheme build. This will be used to discount and inflate costs | S39: =NOT(AND(H39<=H27, H39>2000, ISNUMBER(H39)))*1 -> 1
G41: Anticipated Final Cost - Public Sector (i.e. DfT/Network Rail) contributon (excluding risk/contingency and escalation) | J41: ="£m"&" "&$H$37&" prices" -> £m prices | L41: DfT/Network Rail contribution to the Anticipated Final Cost of the weather resiliance portion of the scheme | S41: =NOT(AND(H41>0, ISNUMBER(H41)))*1 -> 1
G42: Anticipated Final Cost - 3rd party contribution (excluding risk/contingency and escalation) | J42: ="£m"&" "&$H$37&" prices" -> £m prices | L42: 3rd party (non-government transport budget) contribution to the Anticipated Final Cost of the weather reslience component of the scheme | S42: =NOT(AND(H42>=0, ISNUMBER(H42)))*1 -> 1
G44: Grip Stage | H44: Grip Stage 1 (Project Definition) | L44: Enter estimate grip stage
G45: Contingency (Optimism bias applied) | H45: =INDEX('Appraisal inputs'!H103:H110, MATCH('Scheme Inputs'!H44, 'Appraisal inputs'!G103:G110, 0)) -> 0.64 | J45: % | L45: Looks up Webtag OB rate based on grip stage
G47: Capex estimate document name | J47: Name | L47: Document reference/name for the capex estimate
G50: Annual scheme maintenance costs | J50: ="£m"&" "&$H$37&" prices" -> £m prices | L50: Incremental annual asset maintenance cost associated with the weather resilience component of the scheme, for the input price base year | S50: =NOT(AND(H50>=0, ISNUMBER(H50)))*1 -> 1
E53: Weather event expected impact
G56: Weather impact input price base | J56: Year | L56: Price base year for the weather impacts input below | S56: =NOT(AND(H56>2000, H56<'GDP&inflation rates'!DD10, ISNUMBER(H56)))*1 -> 1
G58: Affected train service group 1 | H58: EA01 / North Trans Pennine | L58: Schedule 4 & 8 costs need to be entered by train service groups (as this impacts upon the level of associated benefit to rail users and non-users). Up to 5 different train services can be entered. For example, a scheme affecting the Bromsgrove corridor in Birmingham may split the schedule 8 costs between EJ03, EJ04 and EH01. The train service groups and TOCs can be seen in more detail in the 'Benefit per Revenue All Trains sheet'.
G59: Affected train service group 2 | H59: N/A
G60: Affected train service group 3 | H60: N/A
G61: Affected train service group 4 | H61: N/A
G62: Affected train service group 5 | H62: N/A
G64: Passenger demand growth rate | H64: London and South East | L64: Select a rail industry sector to return the appropriate demand growth rate for benefit and revenue extrapolation
G65: Average annual growth rate selected (over 20 years from scheme opening) | H65: =calc2!I77 -> 0.01678521085 | J65: % | L65: Formula returns average growth rate selected
G67: Input method | H67: Anticipated cost input | L67: Select the weather event input format you would like to use below. The anticipated cost input involves entering expected annual savings. The event based input involves inputting expected cost saving per weather event and event likelihoods across multiple types of event (eg 1/10 year storms and more severe 1/50 year storms).
G69: Schedule 4&8 estimate document name | J69: Name | L69: Document reference/name for the schedule 4&8 cost estimates
G70: Cost saving estimate document name | J70: Name | L70: Document reference/name for other cost saving estimates
G71: Weather likelihood document name | J71: Name | L71: Explanation of how the event likelihood estimates were produced
E75: ="Anticipated cost input "&IF(H67='Appraisal inputs'!G13,"(selected)", "(not selected)") -> Anticipated cost input (selected)
E77: The anticipated cost input method contains two inputs: - a weather event "frequency factor", representing the combined increase in both likelihood and severity of weather events in the future - expected annual cost savings from the weather resiliance scheme based on the current year's event likelihood and severity
F79: Weather event frequency
N80: Unit | P80: Explanation
I81: 2017 | J81: ='Appraisal inputs'!$H$19 -> 2040 | K81: ='Appraisal inputs'!$H$20 -> 2060 | L81: ='Appraisal inputs'!$H$21 -> 2080
H82: Weather event frequency factor | I82: 1 | N82: Index | P82: For each future year, enter a factor to represent the combined increase in frequency and severity of weather events (mitigated by the scheme) as a result of climate change. For example, if by 2080 the frequency of weather events is anticipated to double (relative to today's rate), and each single occurrence is anticipated to increase in severity/duration by a factor of 50%, then enter "3.0" (1.00 x 2.00 x 1.50)
F85: Without scheme expected annual cost (before growth & rail pricing impacts)
G87: Cost type | H87: Train service Group | I87: ='Appraisal inputs'!$H$18 -> 2018 | J87: ='Appraisal inputs'!$H$19 -> 2040 | K87: ='Appraisal inputs'!$H$20 -> 2060 | L87: ='Appraisal inputs'!$H$21 -> 2080 | P87: In the current year column, enter the expected annual cost without the scheme (based on the current year's likelihood and severity of weather events). Costs should be entered in the weather impact price base selected above. The future year columns will uprate this saving based on the weather event frequency factor entered above, and the calculation sheets within the model will uprate the costs for demand growth and the pricing of rail fares. For schedules 4 & 8, cost savings need to be entered by train service group (as this is used in the estimation of economic benefits). Leave the box blank is the train service group is "N/A".
G88: Schedule 8 | H88: =H58 -> EA01 / North Trans Pennine | J88: =$I88*J$82 -> 0 | K88: =$I88*K$82 -> 0 | L88: 0 | N88: ="£m"&" "&$H$56&" prices" -> £m prices
H89: =H59 -> N/A | J89: =$I89*J$82 -> 0 | K89: 0 | L89: 0 | N89: ="£m"&" "&$H$56&" prices" -> £m prices
H90: =H60 -> N/A | J90: 0 | K90: 0 | L90: 0 | N90: £m prices
H91: =H61 -> N/A | J91: 0 | K91: 0 | L91: 0 | N91: £m prices
H92: =H62 -> N/A | J92: 0 | K92: 0 | L92: 0 | N92: £m prices
G93: Schedule 4 | H93: =H58 -> EA01 / North Trans Pennine | J93: 0 | K93: 0 | L93: 0 | N93: £m prices
H94: =H59 -> N/A | J94: 0 | K94: 0 | L94: 0 | N94: £m prices
H95: =H60 -> N/A | J95: 0 | K95: 0 | L95: 0 | N95: £m prices
H96: =H61 -> N/A | J96: 0 | K96: 0 | L96: 0 | N96: £m prices
H97: =H62 -> N/A | J97: 0 | K97: 0 | L97: 0 | N97: £m prices
G98: Maintenance and repair | H98: All | J98: 0 | K98: 0 | L98: 0 | N98: £m prices
G99: Replacement rail/bus and refunds (excluding allowance for TOC profit) | H99: All | J99: 0 | K99: 0 | L99: 0 | N99: £m prices
G100: Other Network Rail costs | H100: All | J100: 0 | K100: 0 | L100: 0 | N100: £m prices
F103: With scheme expected annual cost (before growth & rail pricing impacts)
G105: Cost type | H105: Train service Group | I105: ='Appraisal inputs'!$H$18 -> 2018 | J105: ='Appraisal inputs'!$H$19 -> 2040 | K105: ='Appraisal inputs'!$H$20 -> 2060 | L105: ='Appraisal inputs'!$H$21 -> 2080 | P105: As above, but for the expected annual cost with the scheme. The model will then calculate cost savings.
G106: Schedule 8 | H106: =H58 -> EA01 / North Trans Pennine | J106: =$I106*J$82 -> 0 | K106: =$I106*K$82 -> 0 | L106: 0 | N106: ="£m"&" "&$H$56&" prices" -> £m prices
H107: =H59 -> N/A | J107: =$I107*J$82 -> 0 | K107: 0 | L107: 0 | N107: ="£m"&" "&$H$56&" prices" -> £m prices
H108: =H60 -> N/A | J108: 0 | K108: 0 | L108: 0 | N108: £m prices
H109: N/A | J109: 0 | K109: 0 | L109: 0 | N109: £m prices
H110: N/A | J110: 0 | K110: 0 | L110: 0 | N110: £m prices
G111: Schedule 4 | H111: =H58 -> EA01 / North Trans Pennine | J111: 0 | K111: 0 | L111: 0 | N111: £m prices
H112: =H59 -> N/A | J112: 0 | K112: 0 | L112: 0 | N112: £m prices
H113: =H60 -> N/A | J113: 0 | K113: 0 | L113: 0 | N113: £m prices
H114: N/A | J114: 0 | K114: 0 | L114: 0 | N114: £m prices
H115: N/A | J115: 0 | K115: 0 | L115: 0 | N115: £m prices
G116: Maintenance and repair | H116: All | J116: 0 | K116: 0 | L116: 0 | N116: £m prices
G117: Replacement rail/bus and refunds (excluding allowance for TOC profit) | H117: All | J117: 0 | K117: 0 | L117: 0 | N117: £m prices
G118: Other Network Rail costs | H118: All | J118: 0 | K118: 0 | L118: 0 | N118: £m prices
E121: ="Event based input "&IF(H67='Appraisal inputs'!G14,"(selected)", "(not selected)") -> Event based input (not selected)
E123: The event based input allows likelihood and anticipated cost per weather event to be input separately. Up to 10 different Weather Events of different likelihoods and costs can be input in the columns, rather than a single annual saving figure. This allows the differentiation between more frequent less severe and less frequent more severe weather events There are two key inputs for each weather event: - expected cost per weather event - likelihood in the current and future years
T125: Unit | V125: Explanation
I126: Event A | J126: Event B | K126: Event C | L126: Event B | M126: Event D | N126: Event E | O126: Event F | P126: Event G | Q126: Event H | R126: Event I
H127: Event Type | V127: Enter the type of weather event (eg flood, wind etc). If a column is not used, leave blank.
F129: =" Without scheme cost saved per weather event occuring in "&'Appraisal inputs'!$H$18 -> Without scheme cost saved per weather event occuring in 2018
G131: Cost type | H131: Train service Group
G132: Schedule 8 | H132: =H58 -> EA01 / North Trans Pennine | T132: ="£m"&" "&$H$56&" prices" -> £m prices | V132: For each event, input the expected cost without the scheme per weather event occurrence. Costs should be in the weather input price base, excluding excalation. The model will multiply this by the event likelihoods (entered below) and will uprate for inflation. For schedules 4 & 8, cost savings need to be entered by train service group (as this is used in the estimation of economic benefits). Leave the box blank is the train service group is "N/A". If a column is not used, leave blank.
H133: =H59 -> N/A | T133: ="£m"&" "&$H$56&" prices" -> £m prices
H134: =H60 -> N/A | T134: £m prices
H135: =H61 -> N/A | T135: £m prices
H136: =H62 -> N/A | T136: £m prices
G137: Schedule 4 | H137: =H58 -> EA01 / North Trans Pennine | T137: £m prices
H138: =H59 -> N/A | T138: £m prices
H139: =H60 -> N/A | T139: £m prices
H140: =H61 -> N/A | T140: £m prices
H141: =H62 -> N/A | T141: £m prices
G142: Maintenance and repair | H142: All | T142: £m prices
G143: Replacement rail/bus and refunds (excluding TOC profit) | H143: All | T143: £m prices
G144: Other Network Rail costs | H144: All | T144: £m prices
F146: ="With scheme cost saved per weather event occuring in "&'Appraisal inputs'!$H$18 -> With scheme cost saved per weather event occuring in 2018
G148: Cost type | H148: Train service Group
G149: Schedule 8 | H149: =H58 -> EA01 / North Trans Pennine | T149: ="£m"&" "&$H$56&" prices" -> £m prices | V149: For each event, input the expected cost with the scheme per weather event occurrence. Costs should be in the weather input price base, excluding excalation. The model will multiply this by the event likelihoods (entered below) and will uprate for inflation. For schedules 4 & 8, cost savings need to be entered by train service group (as this is used in the estimation of economic benefits). Leave the box blank is the train service group is "N/A". If a column is not used, leave blank.
H150: =H59 -> N/A | T150: ="£m"&" "&$H$56&" prices" -> £m prices
H151: =H60 -> N/A | T151: £m prices
H152: N/A | T152: £m prices
H153: N/A | T153: £m prices
G154: Schedule 4 | H154: =H58 -> EA01 / North Trans Pennine | T154: £m prices
H155: =H59 -> N/A | T155: £m prices
H156: =H60 -> N/A | T156: £m prices
H157: N/A | T157: £m prices
H158: N/A | T158: £m prices
G159: Maintenance and repair | H159: All | T159: £m prices
G160: Replacement rail/bus and refunds (excluding TOC profit) | H160: All | T160: £m prices
G161: Other Network Rail costs | H161: All | T161: £m prices
F163: Weather event likelihoods
H165: Likelihood (1 in X year event)
H166: ='Appraisal inputs'!$H$18 -> 2018 | T166: 1 in X year event | V166: For each weather event, enter the likelihood (1 in X year event) for the current year and future years. 5 events per year would be a 1 in 0.2 year event If a column is not used, leave blank.
H167: ='Appraisal inputs'!$H$19 -> 2040 | T167: 1 in X year event
H168: ='Appraisal inputs'!$H$20 -> 2060 | T168: 1 in X year event
H169: ='Appraisal inputs'!$H$21 -> 2080 | T169: 1 in X year event
E174: Input Check
G176: All Checks OK? | H176: =NOT(SUM(S12:S56, U88:U100, AA132:AA170)=0)*1 -> 1

Sheet Locked Inputs >
B2: =MID(CELL("filename",D1),FIND("]",CELL("filename",D1))+1,256) -> Locked Inputs >

Sheet Appraisal inputs
F2: =MID(CELL("filename",D1),FIND("]",CELL("filename",D1))+1,256) -> Appraisal inputs
F3: ="Enter sheet description for "&MID(CELL("filename",D1),FIND("]",CELL("filename",D1))+1,256) -> Enter sheet description for Appraisal inputs
F10: Weather event input methods
G12: Weather event input method
G13: Anticipated cost input | J13: Name
G14: Event based input | J14: Name
F16: Years
G18: Current Year | H18: =YEAR(TODAY()) -> 2018 | J18: Year
G19: Weather event forecast year 1 | H19: 2040 | J19: Year
G20: Weather event forecast year 2 | H20: 2060 | J20: Year
G21: Weather event forecast year 3 | H21: 2080 | J21: Year
F23: Demand cap
G25: Demand cap period | H25: 20
F27: Price base
G29: Results price base | H29: 2010 | J29: Year
F31: RPI +1% begins
G33: End of current parliament | H33: 2022 | J33: Year
F35: Discounting
G37: Discount base year | H37: 2010 | J37: Year | M37: Source: WebTAG (July 2017 databook, Table A1.1.1) & HM Treasury Green Book
G38: Rate 1 | H38: 0.035 | J38: % | M38: Source: WebTAG (July 2017 databook, Table A1.1.1) & HM Treasury Green Book
G39: Rate 2 | H39: 0.03 | J39: % | M39: Source: WebTAG (July 2017 databook, Table A1.1.1) & HM Treasury Green Book
G40: Rate 3 | H40: 0.025 | J40: %
G41: Rate 4 | H41: 0.02 | J41: %
G42: Rate 5 | H42: 0.015 | J42: %
G43: Rate 6 | H43: 0.01 | J43: %
G44: Rate 2 begins, yrs from appraisal year | H44: 31 | J44: Year | M44: Source: WebTAG (July 2017 databook, Table A1.1.1) & HM Treasury Green Book
G45: Rate 3 begins, yrs from appraisal year | H45: 76 | J45: Year
G46: Rate 4 begins, yrs from appraisal year | H46: 126 | J46: Year
G47: Rate 5 begins, yrs from appraisal year | H47: 201 | J47: Year
G48: Rate 6 begins, yrs from appraisal year | H48: 301 | J48: Year
F50: Unit of account
G52: Market prices conversion - Indirect Taxation effect | H52: 0.19 | J52: % | M52: Source: WebTAG (July 2017 databook, Table A.1.3.1)
F54: Routes
G56: Routes
G57: Anglia
G58: LNE&EM
G59: LNW
G60: Scotland
G61: Sout East
G62: Wales
G63: Wessex
G64: Western
G65: N/A
F67: Control Periods
L68: Year | M68: 2000 | N68: 2001 | O68: 2002 | P68: 2003 | Q68: 2004 | R68: 2005 | S68: 2006 | T68: 2007 | U68: 2008 | V68: 2009 | W68: 2010 | X68: 2011 | Y68: 2012 | Z68: 2013 | AA68: 2014 | AB68: 2015 | AC68: 2016 | AD68: 2017 | AE68: 2018 | AF68: 2019 | AG68: 2020 | AH68: 2021 | AI68: 2022 | AJ68: 2023 | AK68: 2024 | AL68: 2025 | AM68: 2026 | AN68: 2027 | AO68: 2028 | AP68: 2029 | AQ68: 2030 | AR68: 2031 | AS68: 2032 | AT68: 2033 | AU68: 2034 | AV68: 2035 | AW68: 2036 | AX68: 2037 | AY68: 2038 | AZ68: 2039 | BA68: 2040 | BB68: 2041 | BC68: 2042 | BD68: 2043 | BE68: 2044 | BF68: 2045 | BG68: 2046 | BH68: 2047 | BI68: 2048 | BJ68: 2049 | BK68: 2050 | BL68: 2051 | BM68: 2052 | BN68: 2053 | BO68: 2054 | BP68: 2055 | BQ68: 2056 | BR68: 2057 | BS68: 2058 | BT68: 2059 | BU68: 2060 | BV68: 2061 | BW68: 2062 | BX68: 2063 | BY68: 2064 | BZ68: 2065 | CA68: 2066 | CB68: 2067 | CC68: 2068 | CD68: 2069 | CE68: 2070 | CF68: 2071 | CG68: 2072 | CH68: 2073 | CI68: 2074 | CJ68: 2075 | CK68: 2076 | CL68: 2077 | CM68: 2078 | CN68: 2079 | CO68: 2080 | CP68: 2081 | CQ68: 2082 | CR68: 2083 | CS68: 2084 | CT68: 2085 | CU68: 2086 | CV68: 2087 | CW68: 2088 | CX68: 2089
G69: Control Period | H69: Start yr | I69: End yr | J69: Control Period (Cp formatting)
G70: N/A | H70: N/A | I70: N/A | J70: N/A
G71: 2 | H71: 2001 | I71: 2003 | J71: ="CP"&G71 -> CP2 | L71: CP Mask | M71: =AND(M$68>=$H71, M$68<=$I71) -> FALSE | N71: TRUE | O71: TRUE | P71: TRUE | Q71: FALSE | R71: FALSE | S71: FALSE | T71: FALSE | U71: FALSE | V71: FALSE | W71: =AND(W$68>=$H71, W$68<=$I71) -> FALSE | X71: FALSE | Y71: FALSE | Z71: FALSE | AA71: FALSE | AB71: FALSE | AC71: FALSE | AD71: FALSE | AE71: FALSE | AF71: FALSE | AG71: =AND(AG$68>=$H71, AG$68<=$I71) -> FALSE | AH71: FALSE | AI71: FALSE | AJ71: FALSE | AK71: FALSE | AL71: FALSE | AM71: FALSE | AN71: FALSE | AO71: FALSE | AP71: FALSE | AQ71: =AND(AQ$68>=$H71, AQ$68<=$I71) -> FALSE | AR71: FALSE | AS71: FALSE | AT71: FALSE | AU71: FALSE | AV71: FALSE | AW71: FALSE | AX71: FALSE | AY71: FALSE | AZ71: FALSE | BA71: =AND(BA$68>=$H71, BA$68<=$I71) -> FALSE | BB71: FALSE | BC71: FALSE | BD71: FALSE | BE71: FALSE | BF71: FALSE | BG71: FALSE | BH71: FALSE | BI71: FALSE | BJ71: FALSE | BK71: =AND(BK$68>=$H71, BK$68<=$I71) -> FALSE | BL71: FALSE | BM71: FALSE | BN71: FALSE | BO71: FALSE | BP71: FALSE | BQ71: FALSE | BR71: FALSE | BS71: FALSE | BT71: FALSE | BU71: =AND(BU$68>=$H71, BU$68<=$I71) -> FALSE | BV71: FALSE | BW71: FALSE | BX71: FALSE | BY71: FALSE | BZ71: FALSE | CA71: FALSE | CB71: FALSE | CC71: FALSE | CD71: FALSE | CE71: =AND(CE$68>=$H71, CE$68<=$I71) -> FALSE | CF71: FALSE | CG71: FALSE | CH71: FALSE | CI71: FALSE | CJ71: FALSE | CK71: FALSE | CL71: FALSE | CM71: FALSE | CN71: FALSE | CO71: =AND(CO$68>=$H71, CO$68<=$I71) -> FALSE | CP71: FALSE | CQ71: FALSE | CR71: FALSE | CS71: FALSE | CT71: FALSE | CU71: FALSE | CV71: FALSE | CW71: FALSE | CX71: FALSE
G72: 3 | H72: 2004 | I72: 2008 | J72: ="CP"&G72 -> CP3 | L72: CP Mask | M72: FALSE | N72: FALSE | O72: FALSE | P72: FALSE | Q72: TRUE | R72: TRUE | S72: TRUE | T72: TRUE | U72: TRUE | V72: FALSE | W72: FALSE | X72: FALSE | Y72: FALSE | Z72: FALSE | AA72: FALSE | AB72: FALSE | AC72: FALSE | AD72: FALSE | AE72: FALSE | AF72: FALSE | AG72: FALSE | AH72: FALSE | AI72: FALSE | AJ72: FALSE | AK72: FALSE | AL72: FALSE | AM72: FALSE | AN72: FALSE | AO72: FALSE | AP72: FALSE | AQ72: FALSE | AR72: FALSE | AS72: FALSE | AT72: FALSE | AU72: FALSE | AV72: FALSE | AW72: FALSE | AX72: FALSE | AY72: FALSE | AZ72: FALSE | BA72: FALSE | BB72: FALSE | BC72: FALSE | BD72: FALSE | BE72: FALSE | BF72: FALSE | BG72: FALSE | BH72: FALSE | BI72: FALSE | BJ72: FALSE | BK72: FALSE | BL72: FALSE | BM72: FALSE | BN72: FALSE | BO72: FALSE | BP72: FALSE | BQ72: FALSE | BR72: FALSE | BS72: FALSE | BT72: FALSE | BU72: FALSE | BV72: FALSE | BW72: FALSE | BX72: FALSE | BY72: FALSE | BZ72: FALSE | CA72: FALSE | CB72: FALSE | CC72: FALSE | CD72: FALSE | CE72: FALSE | CF72: FALSE | CG72: FALSE | CH72: FALSE | CI72: FALSE | CJ72: FALSE | CK72: FALSE | CL72: FALSE | CM72: FALSE | CN72: FALSE | CO72: FALSE | CP72: FALSE | CQ72: FALSE | CR72: FALSE | CS72: FALSE | CT72: FALSE | CU72: FALSE | CV72: FALSE | CW72: FALSE | CX72: FALSE
G73: 4 | H73: 2009 | I73: 2013 | J73: CP4 | L73: CP Mask | M73: FALSE | N73: FALSE | O73: FALSE | P73: FALSE | Q73: FALSE | R73: FALSE | S73: FALSE | T73: FALSE | U73: FALSE | V73: TRUE | W73: TRUE | X73: TRUE | Y73: TRUE | Z73: TRUE | AA73: FALSE | AB73: FALSE | AC73: FALSE | AD73: FALSE | AE73: FALSE | AF73: FALSE | AG73: FALSE | AH73: FALSE | AI73: FALSE | AJ73: FALSE | AK73: FALSE | AL73: FALSE | AM73: FALSE | AN73: FALSE | AO73: FALSE | AP73: FALSE | AQ73: FALSE | AR73: FALSE | AS73: FALSE | AT73: FALSE | AU73: FALSE | AV73: FALSE | AW73: FALSE | AX73: FALSE | AY73: FALSE | AZ73: FALSE | BA73: FALSE | BB73: FALSE | BC73: FALSE | BD73: FALSE | BE73: FALSE | BF73: FALSE | BG73: FALSE | BH73: FALSE | BI73: FALSE | BJ73: FALSE | BK73: FALSE | BL73: FALSE | BM73: FALSE | BN73: FALSE | BO73: FALSE | BP73: FALSE | BQ73: FALSE | BR73: FALSE | BS73: FALSE | BT73: FALSE | BU73: FALSE | BV73: FALSE | BW73: FALSE | BX73: FALSE | BY73: FALSE | BZ73: FALSE | CA73: FALSE | CB73: FALSE | CC73: FALSE | CD73: FALSE | CE73: FALSE | CF73: FALSE | CG73: FALSE | CH73: FALSE | CI73: FALSE | CJ73: FALSE | CK73: FALSE | CL73: FALSE | CM73: FALSE | CN73: FALSE | CO73: FALSE | CP73: FALSE | CQ73: FALSE | CR73: FALSE | CS73: FALSE | CT73: FALSE | CU73: FALSE | CV73: FALSE | CW73: FALSE | CX73: FALSE
G74: 5 | H74: 2014 | I74: 2018 | J74: CP5 | L74: CP Mask | M74: FALSE | N74: FALSE | O74: FALSE | P74: FALSE | Q74: FALSE | R74: FALSE | S74: FALSE | T74: FALSE | U74: FALSE | V74: FALSE | W74: FALSE | X74: FALSE | Y74: FALSE | Z74: FALSE | AA74: TRUE | AB74: TRUE | AC74: TRUE | AD74: TRUE | AE74: TRUE | AF74: FALSE | AG74: FALSE | AH74: FALSE | AI74: FALSE | AJ74: FALSE | AK74: FALSE | AL74: FALSE | AM74: FALSE | AN74: FALSE | AO74: FALSE | AP74: FALSE | AQ74: FALSE | AR74: FALSE | AS74: FALSE | AT74: FALSE | AU74: FALSE | AV74: FALSE | AW74: FALSE | AX74: FALSE | AY74: FALSE | AZ74: FALSE | BA74: FALSE | BB74: FALSE | BC74: FALSE | BD74: FALSE | BE74: FALSE | BF74: FALSE | BG74: FALSE | BH74: FALSE | BI74: FALSE | BJ74: FALSE | BK74: FALSE | BL74: FALSE | BM74: FALSE | BN74: FALSE | BO74: FALSE | BP74: FALSE | BQ74: FALSE | BR74: FALSE | BS74: FALSE | BT74: FALSE | BU74: FALSE | BV74: FALSE | BW74: FALSE | BX74: FALSE | BY74: FALSE | BZ74: FALSE | CA74: FALSE | CB74: FALSE | CC74: FALSE | CD74: FALSE | CE74: FALSE | CF74: FALSE | CG74: FALSE | CH74: FALSE | CI74: FALSE | CJ74: FALSE | CK74: FALSE | CL74: FALSE | CM74: FALSE | CN74: FALSE | CO74: FALSE | CP74: FALSE | CQ74: FALSE | CR74: FALSE | CS74: FALSE | CT74: FALSE | CU74: FALSE | CV74: FALSE | CW74: FALSE | CX74: FALSE
G75: 6 | H75: 2019 | I75: 2023 | J75: CP6 | L75: CP Mask | M75: FALSE | N75: FALSE | O75: FALSE | P75: FALSE | Q75: FALSE | R75: FALSE | S75: FALSE | T75: FALSE | U75: FALSE | V75: FALSE | W75: FALSE | X75: FALSE | Y75: FALSE | Z75: FALSE | AA75: FALSE | AB75: FALSE | AC75: FALSE | AD75: FALSE | AE75: FALSE | AF75: TRUE | AG75: TRUE | AH75: TRUE | AI75: TRUE | AJ75: TRUE | AK75: FALSE | AL75: FALSE | AM75: FALSE | AN75: FALSE | AO75: FALSE | AP75: FALSE | AQ75: FALSE | AR75: FALSE | AS75: FALSE | AT75: FALSE | AU75: FALSE | AV75: FALSE | AW75: FALSE | AX75: FALSE | AY75: FALSE | AZ75: FALSE | BA75: FALSE | BB75: FALSE | BC75: FALSE | BD75: FALSE | BE75: FALSE | BF75: FALSE | BG75: FALSE | BH75: FALSE | BI75: FALSE | BJ75: FALSE | BK75: FALSE | BL75: FALSE | BM75: FALSE | BN75: FALSE | BO75: FALSE | BP75: FALSE | BQ75: FALSE | BR75: FALSE | BS75: FALSE | BT75: FALSE | BU75: FALSE | BV75: FALSE | BW75: FALSE | BX75: FALSE | BY75: FALSE | BZ75: FALSE | CA75: FALSE | CB75: FALSE | CC75: FALSE | CD75: FALSE | CE75: FALSE | CF75: FALSE | CG75: FALSE | CH75: FALSE | CI75: FALSE | CJ75: FALSE | CK75: FALSE | CL75: FALSE | CM75: FALSE | CN75: FALSE | CO75: FALSE | CP75: FALSE | CQ75: FALSE | CR75: FALSE | CS75: FALSE | CT75: FALSE | CU75: FALSE | CV75: FALSE | CW75: FALSE | CX75: FALSE
G76: 7 | H76: 2024 | I76: 2028 | J76: CP7 | L76: CP Mask | M76: FALSE | N76: FALSE | O76: FALSE | P76: FALSE | Q76: FALSE | R76: FALSE | S76: FALSE | T76: FALSE | U76: FALSE | V76: FALSE | W76: FALSE | X76: FALSE | Y76: FALSE | Z76: FALSE | AA76: FALSE | AB76: FALSE | AC76: FALSE | AD76: FALSE | AE76: FALSE | AF76: FALSE | AG76: FALSE | AH76: FALSE | AI76: FALSE | AJ76: FALSE | AK76: TRUE | AL76: TRUE | AM76: TRUE | AN76: TRUE | AO76: TRUE | AP76: FALSE | AQ76: FALSE | AR76: FALSE | AS76: FALSE | AT76: FALSE | AU76: FALSE | AV76: FALSE | AW76: FALSE | AX76: FALSE | AY76: FALSE | AZ76: FALSE | BA76: FALSE | BB76: FALSE | BC76: FALSE | BD76: FALSE | BE76: FALSE | BF76: FALSE | BG76: FALSE | BH76: FALSE | BI76: FALSE | BJ76: FALSE | BK76: FALSE | BL76: FALSE | BM76: FALSE | BN76: FALSE | BO76: FALSE | BP76: FALSE | BQ76: FALSE | BR76: FALSE | BS76: FALSE | BT76: FALSE | BU76: FALSE | BV76: FALSE | BW76: FALSE | BX76: FALSE | BY76: FALSE | BZ76: FALSE | CA76: FALSE | CB76: FALSE | CC76: FALSE | CD76: FALSE | CE76: FALSE | CF76: FALSE | CG76: FALSE | CH76: FALSE | CI76: FALSE | CJ76: FALSE | CK76: FALSE | CL76: FALSE | CM76: FALSE | CN76: FALSE | CO76: FALSE | CP76: FALSE | CQ76: FALSE | CR76: FALSE | CS76: FALSE | CT76: FALSE | CU76: FALSE | CV76: FALSE | CW76: FALSE | CX76: FALSE
G77: 8 | H77: 2029 | I77: 2033 | J77: CP8 | L77: CP Mask | M77: FALSE | N77: FALSE | O77: FALSE | P77: FALSE | Q77: FALSE | R77: FALSE | S77: FALSE | T77: FALSE | U77: FALSE | V77: FALSE | W77: FALSE | X77: FALSE | Y77: FALSE | Z77: FALSE | AA77: FALSE | AB77: FALSE | AC77: FALSE | AD77: FALSE | AE77: FALSE | AF77: FALSE | AG77: FALSE | AH77: FALSE | AI77: FALSE | AJ77: FALSE | AK77: FALSE | AL77: FALSE | AM77: FALSE | AN77: FALSE | AO77: FALSE | AP77: TRUE | AQ77: TRUE | AR77: TRUE | AS77: TRUE | AT77: TRUE | AU77: FALSE | AV77: FALSE | AW77: FALSE | AX77: FALSE | AY77: FALSE | AZ77: FALSE | BA77: FALSE | BB77: FALSE | BC77: FALSE | BD77: FALSE | BE77: FALSE | BF77: FALSE | BG77: FALSE | BH77: FALSE | BI77: FALSE | BJ77: FALSE | BK77: FALSE | BL77: FALSE | BM77: FALSE | BN77: FALSE | BO77: FALSE | BP77: FALSE | BQ77: FALSE | BR77: FALSE | BS77: FALSE | BT77: FALSE | BU77: FALSE | BV77: FALSE | BW77: FALSE | BX77: FALSE | BY77: FALSE | BZ77: FALSE | CA77: FALSE | CB77: FALSE | CC77: FALSE | CD77: FALSE | CE77: FALSE | CF77: FALSE | CG77: FALSE | CH77: FALSE | CI77: FALSE | CJ77: FALSE | CK77: FALSE | CL77: FALSE | CM77: FALSE | CN77: FALSE | CO77: FALSE | CP77: FALSE | CQ77: FALSE | CR77: FALSE | CS77: FALSE | CT77: FALSE | CU77: FALSE | CV77: FALSE | CW77: FALSE | CX77: FALSE
L78: Control period, N/A=0 | M78: =M71*$G$71+M72*$G$72+M73*$G$73+M74*$G$74+M75*$G$75+M76*$G$76+M77*$G$77 -> 0 | N78: 2 | O78: 2 | P78: 2 | Q78: 3 | R78: 3 | S78: 3 | T78: 3 | U78: 3 | V78: 4 | W78: 4 | X78: 4 | Y78: 4 | Z78: 4 | AA78: 5 | AB78: 5 | AC78: 5 | AD78: 5 | AE78: 5 | AF78: 6 | AG78: 6 | AH78: 6 | AI78: 6 | AJ78: 6 | AK78: 7 | AL78: 7 | AM78: 7 | AN78: 7 | AO78: 7 | AP78: 8 | AQ78: 8 | AR78: 8 | AS78: =AS71*$G$71+AS72*$G$72+AS73*$G$73+AS74*$G$74+AS75*$G$75+AS76*$G$76+AS77*$G$77 -> 8 | AT78: 8 | AU78: 0 | AV78: 0 | AW78: 0 | AX78: 0 | AY78: 0 | AZ78: 0 | BA78: 0 | BB78: 0 | BC78: 0 | BD78: 0 | BE78: 0 | BF78: 0 | BG78: 0 | BH78: 0 | BI78: 0 | BJ78: 0 | BK78: 0 | BL78: 0 | BM78: 0 | BN78: 0 | BO78: 0 | BP78: 0 | BQ78: 0 | BR78: 0 | BS78: 0 | BT78: 0 | BU78: 0 | BV78: 0 | BW78: 0 | BX78: 0 | BY78: =BY71*$G$71+BY72*$G$72+BY73*$G$73+BY74*$G$74+BY75*$G$75+BY76*$G$76+BY77*$G$77 -> 0 | BZ78: =BZ71*$G$71+BZ72*$G$72+BZ73*$G$73+BZ74*$G$74+BZ75*$G$75+BZ76*$G$76+BZ77*$G$77 -> 0 | CA78: 0 | CB78: 0 | CC78: 0 | CD78: 0 | CE78: 0 | CF78: 0 | CG78: 0 | CH78: 0 | CI78: 0 | CJ78: 0 | CK78: 0 | CL78: 0 | CM78: 0 | CN78: 0 | CO78: 0 | CP78: 0 | CQ78: 0 | CR78: 0 | CS78: 0 | CT78: 0 | CU78: 0 | CV78: 0 | CW78: 0 | CX78: 0
L79: Control period | M79: =IF(M78=0, "N/A", M78) -> N/A | N79: =IF(N78=0, "N/A", N78) -> 2 | O79: 2 | P79: 2 | Q79: 3 | R79: 3 | S79: 3 | T79: 3 | U79: 3 | V79: 4 | W79: 4 | X79: 4 | Y79: 4 | Z79: 4 | AA79: 5 | AB79: 5 | AC79: 5 | AD79: 5 | AE79: 5 | AF79: 6 | AG79: 6 | AH79: 6 | AI79: 6 | AJ79: 6 | AK79: 7 | AL79: 7 | AM79: 7 | AN79: 7 | AO79: 7 | AP79: 8 | AQ79: 8 | AR79: 8 | AS79: 8 | AT79: 8 | AU79: N/A | AV79: N/A | AW79: N/A | AX79: N/A | AY79: N/A | AZ79: N/A | BA79: N/A | BB79: N/A | BC79: N/A | BD79: N/A | BE79: N/A | BF79: N/A | BG79: N/A | BH79: N/A | BI79: N/A | BJ79: N/A | BK79: N/A | BL79: N/A | BM79: N/A | BN79: N/A | BO79: N/A | BP79: N/A | BQ79: N/A | BR79: N/A | BS79: N/A | BT79: N/A | BU79: N/A | BV79: N/A | BW79: N/A | BX79: N/A | BY79: N/A | BZ79: =IF(BZ78=0, "N/A", BZ78) -> N/A | CA79: N/A | CB79: N/A | CC79: N/A | CD79: N/A | CE79: N/A | CF79: N/A | CG79: N/A | CH79: N/A | CI79: N/A | CJ79: N/A | CK79: N/A | CL79: N/A | CM79: N/A | CN79: N/A | CO79: N/A | CP79: N/A | CQ79: N/A | CR79: N/A | CS79: N/A | CT79: N/A | CU79: N/A | CV79: N/A | CW79: N/A | CX79: N/A
L80: Control period CP formatting | M80: =IF(M78=0, M79, "CP"&M79) -> N/A | N80: =IF(N78=0, N79, "CP"&N79) -> CP2 | O80: CP2 | P80: CP2 | Q80: CP3 | R80: CP3 | S80: CP3 | T80: CP3 | U80: CP3 | V80: CP4 | W80: CP4 | X80: CP4 | Y80: CP4 | Z80: CP4 | AA80: CP5 | AB80: CP5 | AC80: CP5 | AD80: CP5 | AE80: CP5 | AF80: CP6 | AG80: CP6 | AH80: CP6 | AI80: CP6 | AJ80: CP6 | AK80: CP7 | AL80: CP7 | AM80: CP7 | AN80: CP7 | AO80: CP7 | AP80: CP8 | AQ80: CP8 | AR80: CP8 | AS80: CP8 | AT80: CP8 | AU80: N/A | AV80: N/A | AW80: N/A | AX80: N/A | AY80: N/A | AZ80: N/A | BA80: N/A | BB80: N/A | BC80: N/A | BD80: N/A | BE80: N/A | BF80: N/A | BG80: N/A | BH80: N/A | BI80: N/A | BJ80: N/A | BK80: N/A | BL80: N/A | BM80: N/A | BN80: N/A | BO80: N/A | BP80: N/A | BQ80: N/A | BR80: N/A | BS80: N/A | BT80: N/A | BU80: N/A | BV80: N/A | BW80: N/A | BX80: N/A | BY80: N/A | BZ80: =IF(BZ78=0, BZ79, "CP"&BZ79) -> N/A | CA80: N/A | CB80: N/A | CC80: N/A | CD80: N/A | CE80: N/A | CF80: N/A | CG80: N/A | CH80: N/A | CI80: N/A | CJ80: N/A | CK80: N/A | CL80: N/A | CM80: N/A | CN80: N/A | CO80: N/A | CP80: N/A | CQ80: N/A | CR80: N/A | CS80: N/A | CT80: N/A | CU80: N/A | CV80: N/A | CW80: N/A | CX80: N/A
F81: VfM categories
G83: Value for money categories | H83: BCR lower bound | I83: Upper bound
G84: Very High | H84: 4 | I84: N/A
G85: High | H85: 2 | I85: 4
G86: Medium | H86: 1.5 | I86: 2
G87: Low | H87: 1 | I87: 1.5
G88: Poor | H88: 0 | I88: 1
G89: Very Poor | H89: N/A | I89: 0
F91: Indirect tax affect
G93: Indirect tax as % of revenue | H93: 0.17 | J93: %
F96: TOC profit margin
G98: TOC profit margin | H98: 0.08 | J98: %
F100: Grip stage and OB
G102: Grip Stage | H102: OB (%)
G103: Grip Stage 1 (Project Definition) | H103: 0.64
G104: Grip Stage 2 (Pre-Feasibility) | H104: 0.64
G105: Grip Stage 3 (Option Selection) | H105: 0.18
G106: Grip Stage 4 (Single Option Refinement) | H106: 0.09
G107: Grip Stage 5 (Design Development) | H107: 0.04
G108: Grip Stage 6 (Construction) | H108: 0
G109: Grip Stage 7 | H109: 0
G110: Grip Stage 8 | H110: 0

Sheet GDP&inflation rates
F2: =MID(CELL("filename",D1),FIND("]",CELL("filename",D1))+1,256) -> GDP&inflation rates
F3: GDP growth and inflation input
R10: Year | S10: 2000 | T10: 2001 | U10: 2002 | V10: 2003 | W10: 2004 | X10: 2005 | Y10: 2006 | Z10: 2007 | AA10: 2008 | AB10: 2009 | AC10: 2010 | AD10: 2011 | AE10: 2012 | AF10: 2013 | AG10: 2014 | AH10: 2015 | AI10: 2016 | AJ10: 2017 | AK10: 2018 | AL10: 2019 | AM10: 2020 | AN10: 2021 | AO10: 2022 | AP10: 2023 | AQ10: 2024 | AR10: 2025 | AS10: 2026 | AT10: 2027 | AU10: 2028 | AV10: 2029 | AW10: 2030 | AX10: 2031 | AY10: 2032 | AZ10: 2033 | BA10: 2034 | BB10: 2035 | BC10: 2036 | BD10: 2037 | BE10: 2038 | BF10: 2039 | BG10: 2040 | BH10: 2041 | BI10: 2042 | BJ10: 2043 | BK10: 2044 | BL10: 2045 | BM10: 2046 | BN10: 2047 | BO10: 2048 | BP10: 2049 | BQ10: 2050 | BR10: 2051 | BS10: 2052 | BT10: 2053 | BU10: 2054 | BV10: 2055 | BW10: 2056 | BX10: 2057 | BY10: 2058 | BZ10: 2059 | CA10: 2060 | CB10: 2061 | CC10: 2062 | CD10: 2063 | CE10: 2064 | CF10: 2065 | CG10: 2066 | CH10: 2067 | CI10: 2068 | CJ10: 2069 | CK10: 2070 | CL10: 2071 | CM10: 2072 | CN10: 2073 | CO10: 2074 | CP10: 2075 | CQ10: 2076 | CR10: 2077 | CS10: 2078 | CT10: 2079 | CU10: 2080 | CV10: 2081 | CW10: 2082 | CX10: 2083 | CY10: 2084 | CZ10: 2085 | DA10: 2086 | DB10: 2087 | DC10: 2088 | DD10: 2089 | DE10: 2090 | DF10: 2091 | DG10: 2092 | DH10: 2093 | DI10: 2094 | DJ10: 2095 | DK10: 2096 | DL10: 2097 | DM10: 2098 | DN10: 2099 | DO10: 2100 | DP10: 2101 | DQ10: 2102 | DR10: 2103 | DS10: 2104 | DT10: 2105 | DU10: 2106 | DV10: 2107 | DW10: 2108 | DX10: 2109 | DY10: 2110 | DZ10: 2111 | EA10: 2112 | EB10: 2113 | EC10: 2114 | ED10: 2115 | EE10: 2116 | EF10: 2117 | EG10: 2118 | EH10: 2119 | EI10: 2120 | EJ10: 2121 | EK10: 2122 | EL10: 2123 | EM10: 2124 | EN10: 2125 | EO10: 2126 | EP10: 2127 | EQ10: 2128 | ER10: 2129 | ES10: 2130 | ET10: 2131 | EU10: 2132 | EV10: 2133 | EW10: 2134 | EX10: 2135 | EY10: 2136 | EZ10: 2137 | FA10: 2138 | FB10: 2139 | FC10: 2140 | FD10: 2141 | FE10: 2142 | FF10: 2143 | FG10: 2144 | FH10: 2145 | FI10: 2146 | FJ10: 2147 | FK10: 2148 | FL10: 2149 | FM10: 2150 | FN10: 2151 | FO10: 2152 | FP10: 2153 | FQ10: 2154 | FR10: 2155 | FS10: 2156 | FT10: 2157 | FU10: 2158 | FV10: 2159 | FW10: 2160 | FX10: 2161 | FY10: 2162 | FZ10: 2163 | GA10: 2164 | GB10: 2165 | GC10: 2166 | GD10: 2167 | GE10: 2168 | GF10: 2169 | GG10: 2170
D12: Source: July 2017 version of WebTAG databook, Annual Parameters (for 2010 onwards). | H12: Growth in real GDP per person. VoT (work) growth | J12: % | S12: 0.0339 | T12: 0.0233 | U12: 0.0196 | V12: 0.03 | W12: 0.0199 | X12: 0.0218 | Y12: 0.0181 | Z12: 0.0173 | AA12: -0.0144 | AB12: -0.05 | AC12: 0.01104774738 | AD12: 0.006660620136 | AE12: 0.006452321402 | AF12: 0.01274071572 | AG12: 0.02286885929 | AH12: 0.01388729445 | AI12: 0.009715415559 | AJ12: 0.01300589426 | AK12: 0.008529896183 | AL12: 0.0107184896 | AM12: 0.01239006129 | AN12: 0.01366889635 | AO12: 0.0155085696 | AP12: 0.0160409852 | AQ12: 0.0166627027 | AR12: 0.01765457651 | AS12: 0.0184099875 | AT12: 0.01867641327 | AU12: 0.01863785901 | AV12: 0.01815767112 | AW12: 0.017925744 | AX12: 0.01787300407 | AY12: 0.01789735724 | AZ12: 0.01797563316 | BA12: 0.01814659998 | BB12: 0.01836964208 | BC12: 0.01858805698 | BD12: 0.01895223134 | BE12: 0.0197115253 | BF12: 0.02019287982 | BG12: 0.02057516278 | BH12: 0.02056359199 | BI12: 0.02039130667 | BJ12: 0.02015710675 | BK12: 0.02002229263 | BL12: 0.01993540881 | BM12: 0.0194846327 | BN12: 0.019206629 | BO12: 0.01908015683 | BP12: 0.01905879712 | BQ12: 0.01916943997 | BR12: 0.01931172594 | BS12: 0.01987741933 | BT12: 0.02014881051 | BU12: 0.02017441028 | BV12: 0.02011951862 | BW12: 0.01988421225 | BX12: 0.01974136053 | BY12: 0.01975938683 | BZ12: 0.01987856914 | CA12: 0.02036235671 | CB12: 0.02059479395 | CC12: 0.0207253974 | CD12: 0.02075336223 | CE12: 0.02064025722 | CF12: 0.02051960759 | CG12: 0.02029206187 | CH12: 0.02019899358 | CI12: 0.0201638309 | CJ12: 0.02012629116 | CK12: 0.02008991654 | CL12: 0.02005580664 | CM12: 0.02002550829 | CN12: 0.02000023553 | CO12: 0.01998077806 | CP12: 0.01996735194 | CQ12: 0.01995946541 | CR12: 0.01995726176 | CS12: 0.01996006301 | CT12: 0.01996734624 | CU12: 0.0199781428 | CV12: 0.01999132208 | CW12: 0.02000653162 | CX12: 0.02002246686 | CY12: 0.02003795122 | CZ12: 0.02005199195 | DA12: 0.02006413956 | DB12: 0.02007376497 | DC12: 0.02008095923 | DD12: 0.02008547549 | DE12: 0.02008547549 | DF12: 0.02008547549 | DG12: 0.02008547549 | DH12: 0.02008547549 | DI12: 0.02008547549 | DJ12: 0.02008547549 | DK12: 0.02008547549 | DL12: 0.02008547549 | DM12: 0.02008547549 | DN12: 0.02008547549 | DO12: 0.02008547549 | DP12: 0.02008547549 | DQ12: 0.02008547549 | DR12: 0.02008547549 | DS12: 0.02008547549 | DT12: 0.02008547549 | DU12: 0.02008547549 | DV12: 0.02008547549 | DW12: 0.02008547549 | DX12: 0.02008547549 | DY12: 0.02008547549 | DZ12: 0.02008547549 | EA12: 0.02008547549 | EB12: 0.02008547549 | EC12: 0.02008547549 | ED12: 0.02008547549 | EE12: 0.02008547549 | EF12: 0.02008547549 | EG12: 0.02008547549 | EH12: 0.02008547549 | EI12: 0.02008547549 | EJ12: 0.02008547549 | EK12: 0.02008547549 | EL12: 0.02008547549 | EM12: 0.02008547549 | EN12: 0.02008547549 | EO12: 0.02008547549 | EP12: 0.02008547549 | EQ12: 0.02008547549 | ER12: 0.02008547549 | ES12: 0.02008547549 | ET12: 0.02008547549 | EU12: 0.02008547549 | EV12: 0.02008547549 | EW12: 0.02008547549 | EX12: 0.02008547549 | EY12: 0.02008547549 | EZ12: 0.02008547549 | FA12: 0.02008547549 | FB12: 0.02008547549 | FC12: 0.02008547549 | FD12: 0.02008547549 | FE12: 0.02008547549 | FF12: 0.02008547549 | FG12: 0.02008547549 | FH12: 0.02008547549 | FI12: 0.02008547549 | FJ12: 0.02008547549 | FK12: 0.02008547549 | FL12: 0.02008547549 | FM12: 0.02008547549 | FN12: 0.02008547549 | FO12: 0.02008547549 | FP12: 0.02008547549 | FQ12: 0.02008547549 | FR12: 0.02008547549 | FS12: 0.02008547549 | FT12: 0.02008547549 | FU12: 0.02008547549 | FV12: 0.02008547549 | FW12: 0.02008547549 | FX12: 0.02008547549 | FY12: 0.02008547549 | FZ12: 0.02008547549 | GA12: 0.02008547549 | GB12: 0.02008547549 | GC12: 0.02008547549 | GD12: 0.02008547549 | GE12: 0.02008547549 | GF12: 0.02008547549 | GG12: 0.02008547549
D14: Source: Year to September. Historic data are from ONS (see Appraisal template data / ONS historic RPI data folder, ref Table 37). 2010 onwards: July 2017 version of WebTAG data book Table A5.3.1. | H14: RPI Growth | J14: % | S14: 0.033 | T14: 0.017 | U14: 0.017 | V14: 0.028 | W14: 0.031 | X14: 0.027 | Y14: 0.036 | Z14: 0.039 | AA14: 0.05 | AB14: -0.014 | AC14: 0.04962922911 | AD14: 0.04798174927 | AE14: 0.03089779151 | AF14: 0.02884779129 | AG14: 0.01959745763 | AH14: 0.01077922078 | AI14: 0.02142490042 | AJ14: 0.039 | AK14: 0.034 | AL14: 0.031 | AM14: 0.031 | AN14: 0.032 | AO14: 0.0315 | AP14: 0.031 | AQ14: 0.0305 | AR14: 0.03 | AS14: 0.03 | AT14: 0.03 | AU14: 0.03 | AV14: 0.03 | AW14: 0.03 | AX14: 0.03 | AY14: 0.03 | AZ14: 0.03 | BA14: 0.03 | BB14: 0.03 | BC14: 0.03 | BD14: 0.03 | BE14: 0.03 | BF14: 0.03 | BG14: 0.03 | BH14: 0.03 | BI14: 0.03 | BJ14: 0.03 | BK14: 0.03 | BL14: 0.03 | BM14: 0.03 | BN14: 0.03 | BO14: 0.03 | BP14: 0.03 | BQ14: 0.03 | BR14: 0.03 | BS14: 0.03 | BT14: 0.03 | BU14: 0.03 | BV14: 0.03 | BW14: 0.03 | BX14: 0.03 | BY14: 0.03 | BZ14: 0.03 | CA14: 0.03 | CB14: 0.03 | CC14: 0.03 | CD14: 0.03 | CE14: 0.03 | CF14: 0.03 | CG14: 0.03 | CH14: 0.03 | CI14: 0.03 | CJ14: 0.03 | CK14: 0.03 | CL14: 0.03 | CM14: 0.03 | CN14: 0.03 | CO14: 0.03 | CP14: 0.03 | CQ14: 0.03 | CR14: 0.03 | CS14: 0.03 | CT14: 0.03 | CU14: 0.03 | CV14: 0.03 | CW14: 0.03 | CX14: 0.03 | CY14: 0.03 | CZ14: 0.03 | DA14: 0.03 | DB14: 0.03 | DC14: 0.03 | DD14: 0.03 | DE14: 0.03 | DF14: 0.03 | DG14: 0.03 | DH14: 0.03 | DI14: 0.03 | DJ14: 0.03 | DK14: 0.03 | DL14: 0.03 | DM14: 0.03 | DN14: 0.03 | DO14: 0.03 | DP14: 0.03 | DQ14: 0.03 | DR14: 0.03 | DS14: 0.03 | DT14: 0.03 | DU14: 0.03 | DV14: 0.03 | DW14: 0.03 | DX14: 0.03 | DY14: 0.03 | DZ14: 0.03 | EA14: 0.03 | EB14: 0.03 | EC14: 0.03 | ED14: 0.03 | EE14: 0.03 | EF14: 0.03 | EG14: 0.03 | EH14: 0.03 | EI14: 0.03 | EJ14: 0.03 | EK14: 0.03 | EL14: 0.03 | EM14: 0.03 | EN14: 0.03 | EO14: 0.03 | EP14: 0.03 | EQ14: 0.03 | ER14: 0.03 | ES14: 0.03 | ET14: 0.03 | EU14: 0.03 | EV14: 0.03 | EW14: 0.03 | EX14: 0.03 | EY14: 0.03 | EZ14: 0.03 | FA14: 0.03 | FB14: 0.03 | FC14: 0.03 | FD14: 0.03 | FE14: 0.03 | FF14: 0.03 | FG14: 0.03 | FH14: 0.03 | FI14: 0.03 | FJ14: 0.03 | FK14: 0.03 | FL14: 0.03 | FM14: 0.03 | FN14: 0.03 | FO14: 0.03 | FP14: 0.03 | FQ14: 0.03 | FR14: 0.03 | FS14: 0.03 | FT14: 0.03 | FU14: 0.03 | FV14: 0.03 | FW14: 0.03 | FX14: 0.03 | FY14: 0.03 | FZ14: 0.03 | GA14: 0.03 | GB14: 0.03 | GC14: 0.03 | GD14: 0.03 | GE14: 0.03 | GF14: 0.03 | GG14: 0.03
D16: Source: DfT advice is to use GDP deflators for price adjustments. Data for 2000 to 2009 are for financial year (see Appraisal template data/HMT historic GDP deflators folder). Data from 2010 onwards are from July 2017 WebTAG databook Table A5.3.1. | H16: GDP deflator at market prices | J16: % | S16: 0.0071 | T16: 0.0272 | U16: 0.0232 | V16: 0.0194 | W16: 0.0276 | X16: 0.0182 | Y16: 0.0287 | Z16: 0.0252 | AA16: 0.0282 | AB16: 0.0274 | AC16: 0.01828862597 | AD16: 0.01388681724 | AE16: 0.0209980326 | AF16: 0.01649246534 | AG16: 0.01468827447 | AH16: 0.006854549601 | AI16: 0.02021348987 | AJ16: 0.01628963873 | AK16: 0.01563488794 | AL16: 0.01659650138 | AM16: 0.01883299951 | AN16: 0.01917658269 | AO16: 0.02013243702 | AP16: 0.02108829134 | AQ16: 0.02204414567 | AR16: 0.023 | AS16: 0.023 | AT16: 0.023 | AU16: 0.023 | AV16: 0.023 | AW16: 0.023 | AX16: 0.023 | AY16: 0.023 | AZ16: 0.023 | BA16: 0.023 | BB16: 0.023 | BC16: 0.023 | BD16: 0.023 | BE16: 0.023 | BF16: 0.023 | BG16: 0.023 | BH16: 0.023 | BI16: 0.023 | BJ16: 0.023 | BK16: 0.023 | BL16: 0.023 | BM16: 0.023 | BN16: 0.023 | BO16: 0.023 | BP16: 0.023 | BQ16: 0.023 | BR16: 0.023 | BS16: 0.023 | BT16: 0.023 | BU16: 0.023 | BV16: 0.023 | BW16: 0.023 | BX16: 0.023 | BY16: 0.023 | BZ16: 0.023 | CA16: 0.023 | CB16: 0.023 | CC16: 0.023 | CD16: 0.023 | CE16: 0.023 | CF16: 0.023 | CG16: 0.023 | CH16: 0.023 | CI16: 0.023 | CJ16: 0.023 | CK16: 0.023 | CL16: 0.023 | CM16: 0.023 | CN16: 0.023 | CO16: 0.023 | CP16: 0.023 | CQ16: 0.023 | CR16: 0.023 | CS16: 0.023 | CT16: 0.023 | CU16: 0.023 | CV16: 0.023 | CW16: 0.023 | CX16: 0.023 | CY16: 0.023 | CZ16: 0.023 | DA16: 0.023 | DB16: 0.023 | DC16: 0.023 | DD16: 0.023 | DE16: 0.023 | DF16: 0.023 | DG16: 0.023 | DH16: 0.023 | DI16: 0.023 | DJ16: 0.023 | DK16: 0.023 | DL16: 0.023 | DM16: 0.023 | DN16: 0.023 | DO16: 0.023 | DP16: 0.023 | DQ16: 0.023 | DR16: 0.023 | DS16: 0.023 | DT16: 0.023 | DU16: 0.023 | DV16: 0.023 | DW16: 0.023 | DX16: 0.023 | DY16: 0.023 | DZ16: 0.023 | EA16: 0.023 | EB16: 0.023 | EC16: 0.023 | ED16: 0.023 | EE16: 0.023 | EF16: 0.023 | EG16: 0.023 | EH16: 0.023 | EI16: 0.023 | EJ16: 0.023 | EK16: 0.023 | EL16: 0.023 | EM16: 0.023 | EN16: 0.023 | EO16: 0.023 | EP16: 0.023 | EQ16: 0.023 | ER16: 0.023 | ES16: 0.023 | ET16: 0.023 | EU16: 0.023 | EV16: 0.023 | EW16: 0.023 | EX16: 0.023 | EY16: 0.023 | EZ16: 0.023 | FA16: 0.023 | FB16: 0.023 | FC16: 0.023 | FD16: 0.023 | FE16: 0.023 | FF16: 0.023 | FG16: 0.023 | FH16: 0.023 | FI16: 0.023 | FJ16: 0.023 | FK16: 0.023 | FL16: 0.023 | FM16: 0.023 | FN16: 0.023 | FO16: 0.023 | FP16: 0.023 | FQ16: 0.023 | FR16: 0.023 | FS16: 0.023 | FT16: 0.023 | FU16: 0.023 | FV16: 0.023 | FW16: 0.023 | FX16: 0.023 | FY16: 0.023 | FZ16: 0.023 | GA16: 0.023 | GB16: 0.023 | GC16: 0.023 | GD16: 0.023 | GE16: 0.023 | GF16: 0.023 | GG16: 0.023

Sheet Demand growth rates
F2: =MID(CELL("filename",D1),FIND("]",CELL("filename",D1))+1,256) -> Demand growth rates
F3: Demand growth rate input. Future forecast from PDFH forecast, historic revenue growth
L10: Year | M10: ='GDP&inflation rates'!S10 -> 2000 | N10: 2001 | O10: 2002 | P10: 2003 | Q10: 2004 | R10: 2005 | S10: 2006 | T10: 2007 | U10: 2008 | V10: 2009 | W10: 2010 | X10: 2011 | Y10: 2012 | Z10: 2013 | AA10: 2014 | AB10: 2015 | AC10: 2016 | AD10: 2017 | AE10: 2018 | AF10: 2019 | AG10: 2020 | AH10: 2021 | AI10: 2022 | AJ10: 2023 | AK10: 2024 | AL10: 2025 | AM10: 2026 | AN10: 2027 | AO10: 2028 | AP10: 2029 | AQ10: 2030 | AR10: 2031 | AS10: 2032 | AT10: 2033 | AU10: 2034 | AV10: 2035 | AW10: 2036 | AX10: 2037 | AY10: 2038 | AZ10: 2039 | BA10: 2040 | BB10: 2041 | BC10: 2042 | BD10: 2043 | BE10: 2044 | BF10: 2045 | BG10: 2046 | BH10: 2047 | BI10: 2048 | BJ10: 2049 | BK10: 2050 | BL10: 2051 | BM10: 2052 | BN10: 2053 | BO10: 2054 | BP10: 2055 | BQ10: 2056 | BR10: 2057 | BS10: 2058 | BT10: 2059 | BU10: 2060 | BV10: 2061 | BW10: 2062 | BX10: 2063 | BY10: 2064 | BZ10: 2065 | CA10: 2066 | CB10: 2067 | CC10: 2068 | CD10: 2069 | CE10: 2070 | CF10: 2071 | CG10: 2072 | CH10: 2073 | CI10: 2074 | CJ10: 2075 | CK10: 2076 | CL10: 2077 | CM10: 2078 | CN10: 2079 | CO10: 2080 | CP10: 2081 | CQ10: 2082 | CR10: 2083 | CS10: 2084 | CT10: 2085 | CU10: 2086 | CV10: 2087 | CW10: 2088 | CX10: 2089 | CY10: 2090 | CZ10: 2091 | DA10: 2092 | DB10: 2093 | DC10: 2094 | DD10: 2095 | DE10: 2096 | DF10: 2097 | DG10: 2098 | DH10: 2099 | DI10: 2100 | DJ10: 2101 | DK10: 2102 | DL10: 2103 | DM10: 2104 | DN10: 2105 | DO10: 2106 | DP10: 2107 | DQ10: 2108 | DR10: 2109 | DS10: 2110 | DT10: 2111 | DU10: 2112 | DV10: 2113 | DW10: 2114 | DX10: 2115 | DY10: 2116 | DZ10: 2117 | EA10: 2118 | EB10: 2119 | EC10: 2120 | ED10: 2121 | EE10: 2122 | EF10: 2123 | EG10: 2124 | EH10: 2125 | EI10: 2126 | EJ10: 2127 | EK10: 2128 | EL10: 2129 | EM10: 2130 | EN10: 2131 | EO10: 2132 | EP10: 2133 | EQ10: 2134 | ER10: 2135 | ES10: 2136 | ET10: 2137 | EU10: 2138 | EV10: 2139 | EW10: 2140 | EX10: 2141 | EY10: 2142 | EZ10: 2143 | FA10: 2144 | FB10: 2145 | FC10: 2146 | FD10: 2147 | FE10: 2148 | FF10: 2149 | FG10: 2150 | FH10: 2151 | FI10: 2152 | FJ10: 2153 | FK10: 2154 | FL10: 2155 | FM10: 2156 | FN10: 2157 | FO10: 2158 | FP10: 2159 | FQ10: 2160 | FR10: 2161 | FS10: 2162 | FT10: 2163 | FU10: 2164 | FV10: 2165 | FW10: 2166 | FX10: 2167 | FY10: 2168 | FZ10: 2169 | GA10: 2170
G13: First year of demand forecast | H13: 2017 | J13: year
G15: Pax km growth forecast (OBR central Dec 2016 incl enhancements, PDFH 5.1)
E17: Source: NR PDFH model: \\RSHQ-SR1-F03\FGroups\PandR\Economics and Strategic Analysis\Demand Forecasting\Initial Industry Plan 2016 & Demand Forecasting\Short-Medium Term PDFH Forecast Model\Comparison of Forecasts | G17: London and South East | J17: % | AD17: 0.02215309478 | AE17: 0.01998455652 | AF17: 0.02664847933 | AG17: 0.04476961538 | AH17: 0.08769318459 | AI17: 0.03047774554 | AJ17: 0.02199089086 | AK17: 0.009867785173 | AL17: 0.01156749772 | AM17: 0.01173280169 | AN17: 0.008200328481 | AO17: =$AN17 -> 0.008200328481 | AP17: =$AN17 -> 0.008200328481 | AQ17: 0.008200328481 | AR17: 0.008200328481 | AS17: 0.008200328481 | AT17: 0.008200328481 | AU17: 0.008200328481 | AV17: 0.008200328481 | AW17: 0.008200328481 | AX17: 0.008200328481 | AY17: 0.008200328481 | AZ17: 0.008200328481 | BA17: 0.008200328481 | BB17: 0.008200328481 | BC17: 0.008200328481 | BD17: 0.008200328481 | BE17: 0.008200328481 | BF17: 0.008200328481 | BG17: 0.008200328481 | BH17: 0.008200328481 | BI17: 0.008200328481 | BJ17: 0.008200328481 | BK17: 0.008200328481 | BL17: 0.008200328481 | BM17: 0.008200328481 | BN17: 0.008200328481 | BO17: 0.008200328481 | BP17: 0.008200328481 | BQ17: 0.008200328481 | BR17: 0.008200328481 | BS17: 0.008200328481 | BT17: 0.008200328481 | BU17: 0.008200328481 | BV17: 0.008200328481 | BW17: 0.008200328481 | BX17: 0.008200328481 | BY17: 0.008200328481 | BZ17: 0.008200328481 | CA17: 0.008200328481 | CB17: 0.008200328481 | CC17: 0.008200328481 | CD17: 0.008200328481 | CE17: 0.008200328481 | CF17: 0.008200328481 | CG17: 0.008200328481 | CH17: 0.008200328481 | CI17: 0.008200328481 | CJ17: 0.008200328481 | CK17: 0.008200328481 | CL17: 0.008200328481 | CM17: 0.008200328481 | CN17: 0.008200328481 | CO17: 0.008200328481 | CP17: 0.008200328481 | CQ17: 0.008200328481 | CR17: 0.008200328481 | CS17: 0.008200328481 | CT17: 0.008200328481 | CU17: 0.008200328481 | CV17: 0.008200328481 | CW17: 0.008200328481 | CX17: 0.008200328481 | CY17: 0.008200328481 | CZ17: 0.008200328481 | DA17: 0.008200328481 | DB17: =$AN17 -> 0.008200328481 | DC17: 0.008200328481 | DD17: 0.008200328481 | DE17: 0.008200328481 | DF17: 0.008200328481 | DG17: 0.008200328481 | DH17: 0.008200328481 | DI17: 0.008200328481 | DJ17: 0.008200328481 | DK17: 0.008200328481 | DL17: 0.008200328481 | DM17: 0.008200328481 | DN17: 0.008200328481 | DO17: 0.008200328481 | DP17: 0.008200328481 | DQ17: 0.008200328481 | DR17: 0.008200328481 | DS17: 0.008200328481 | DT17: 0.008200328481 | DU17: 0.008200328481 | DV17: 0.008200328481 | DW17: 0.008200328481 | DX17: 0.008200328481 | DY17: 0.008200328481 | DZ17: 0.008200328481 | EA17: 0.008200328481 | EB17: 0.008200328481 | EC17: 0.008200328481 | ED17: 0.008200328481 | EE17: 0.008200328481 | EF17: 0.008200328481 | EG17: 0.008200328481 | EH17: 0.008200328481 | EI17: 0.008200328481 | EJ17: 0.008200328481 | EK17: 0.008200328481 | EL17: 0.008200328481 | EM17: 0.008200328481 | EN17: 0.008200328481 | EO17: 0.008200328481 | EP17: 0.008200328481 | EQ17: 0.008200328481 | ER17: 0.008200328481 | ES17: 0.008200328481 | ET17: 0.008200328481 | EU17: 0.008200328481 | EV17: 0.008200328481 | EW17: 0.008200328481 | EX17: 0.008200328481 | EY17: 0.008200328481 | EZ17: 0.008200328481 | FA17: 0.008200328481 | FB17: 0.008200328481 | FC17: 0.008200328481 | FD17: 0.008200328481 | FE17: 0.008200328481 | FF17: 0.008200328481 | FG17: 0.008200328481 | FH17: 0.008200328481 | FI17: 0.008200328481 | FJ17: 0.008200328481 | FK17: 0.008200328481 | FL17: 0.008200328481 | FM17: 0.008200328481 | FN17: =$AN17 -> 0.008200328481 | FO17: 0.008200328481 | FP17: 0.008200328481 | FQ17: 0.008200328481 | FR17: 0.008200328481 | FS17: 0.008200328481 | FT17: 0.008200328481 | FU17: 0.008200328481 | FV17: 0.008200328481 | FW17: 0.008200328481 | FX17: 0.008200328481 | FY17: 0.008200328481 | FZ17: 0.008200328481 | GA17: 0.008200328481
G18: Long Distance | J18: % | AD18: 0.02287998342 | AE18: 0.02034186271 | AF18: 0.05099992948 | AG18: 0.06263426014 | AH18: 0.02783682849 | AI18: 0.03238272626 | AJ18: 0.01335592711 | AK18: 0.01252188845 | AL18: 0.01798919423 | AM18: 0.0114119778 | AN18: 0.008104046522 | AO18: =$AN18 -> 0.008104046522 | AP18: 0.008104046522 | AQ18: 0.008104046522 | AR18: 0.008104046522 | AS18: 0.008104046522 | AT18: 0.008104046522 | AU18: 0.008104046522 | AV18: 0.008104046522 | AW18: 0.008104046522 | AX18: 0.008104046522 | AY18: 0.008104046522 | AZ18: 0.008104046522 | BA18: 0.008104046522 | BB18: 0.008104046522 | BC18: 0.008104046522 | BD18: 0.008104046522 | BE18: 0.008104046522 | BF18: 0.008104046522 | BG18: 0.008104046522 | BH18: 0.008104046522 | BI18: 0.008104046522 | BJ18: 0.008104046522 | BK18: 0.008104046522 | BL18: 0.008104046522 | BM18: 0.008104046522 | BN18: 0.008104046522 | BO18: 0.008104046522 | BP18: 0.008104046522 | BQ18: 0.008104046522 | BR18: 0.008104046522 | BS18: 0.008104046522 | BT18: 0.008104046522 | BU18: 0.008104046522 | BV18: 0.008104046522 | BW18: 0.008104046522 | BX18: 0.008104046522 | BY18: 0.008104046522 | BZ18: 0.008104046522 | CA18: 0.008104046522 | CB18: 0.008104046522 | CC18: 0.008104046522 | CD18: 0.008104046522 | CE18: 0.008104046522 | CF18: 0.008104046522 | CG18: 0.008104046522 | CH18: 0.008104046522 | CI18: 0.008104046522 | CJ18: 0.008104046522 | CK18: 0.008104046522 | CL18: 0.008104046522 | CM18: 0.008104046522 | CN18: 0.008104046522 | CO18: 0.008104046522 | CP18: 0.008104046522 | CQ18: 0.008104046522 | CR18: 0.008104046522 | CS18: 0.008104046522 | CT18: 0.008104046522 | CU18: 0.008104046522 | CV18: 0.008104046522 | CW18: 0.008104046522 | CX18: 0.008104046522 | CY18: 0.008104046522 | CZ18: 0.008104046522 | DA18: 0.008104046522 | DB18: 0.008104046522 | DC18: 0.008104046522 | DD18: 0.008104046522 | DE18: 0.008104046522 | DF18: 0.008104046522 | DG18: 0.008104046522 | DH18: 0.008104046522 | DI18: 0.008104046522 | DJ18: 0.008104046522 | DK18: 0.008104046522 | DL18: 0.008104046522 | DM18: 0.008104046522 | DN18: 0.008104046522 | DO18: 0.008104046522 | DP18: 0.008104046522 | DQ18: 0.008104046522 | DR18: 0.008104046522 | DS18: 0.008104046522 | DT18: 0.008104046522 | DU18: 0.008104046522 | DV18: 0.008104046522 | DW18: 0.008104046522 | DX18: 0.008104046522 | DY18: 0.008104046522 | DZ18: 0.008104046522 | EA18: 0.008104046522 | EB18: 0.008104046522 | EC18: 0.008104046522 | ED18: 0.008104046522 | EE18: 0.008104046522 | EF18: 0.008104046522 | EG18: 0.008104046522 | EH18: 0.008104046522 | EI18: 0.008104046522 | EJ18: 0.008104046522 | EK18: 0.008104046522 | EL18: 0.008104046522 | EM18: 0.008104046522 | EN18: 0.008104046522 | EO18: 0.008104046522 | EP18: 0.008104046522 | EQ18: 0.008104046522 | ER18: 0.008104046522 | ES18: 0.008104046522 | ET18: 0.008104046522 | EU18: 0.008104046522 | EV18: 0.008104046522 | EW18: 0.008104046522 | EX18: 0.008104046522 | EY18: 0.008104046522 | EZ18: 0.008104046522 | FA18: 0.008104046522 | FB18: 0.008104046522 | FC18: 0.008104046522 | FD18: 0.008104046522 | FE18: 0.008104046522 | FF18: 0.008104046522 | FG18: 0.008104046522 | FH18: 0.008104046522 | FI18: 0.008104046522 | FJ18: 0.008104046522 | FK18: 0.008104046522 | FL18: 0.008104046522 | FM18: 0.008104046522 | FN18: 0.008104046522 | FO18: 0.008104046522 | FP18: 0.008104046522 | FQ18: 0.008104046522 | FR18: 0.008104046522 | FS18: 0.008104046522 | FT18: 0.008104046522 | FU18: 0.008104046522 | FV18: 0.008104046522 | FW18: 0.008104046522 | FX18: 0.008104046522 | FY18: 0.008104046522 | FZ18: 0.008104046522 | GA18: 0.008104046522
G19: Regional (excl ScotRail) | J19: % | AD19: 0.0149761702 | AE19: 0.01600739297 | AF19: 0.01931989941 | AG19: 0.05795500233 | AH19: 0.01869162008 | AI19: 0.01377421631 | AJ19: 0.005726572564 | AK19: 0.005890283452 | AL19: 0.006214531409 | AM19: 0.04080334713 | AN19: 0.0152187594 | AO19: 0.0152187594 | AP19: =$AN19 -> 0.0152187594 | AQ19: 0.0152187594 | AR19: 0.0152187594 | AS19: 0.0152187594 | AT19: 0.0152187594 | AU19: 0.0152187594 | AV19: 0.0152187594 | AW19: 0.0152187594 | AX19: 0.0152187594 | AY19: 0.0152187594 | AZ19: 0.0152187594 | BA19: 0.0152187594 | BB19: 0.0152187594 | BC19: 0.0152187594 | BD19: 0.0152187594 | BE19: 0.0152187594 | BF19: 0.0152187594 | BG19: 0.0152187594 | BH19: 0.0152187594 | BI19: 0.0152187594 | BJ19: 0.0152187594 | BK19: 0.0152187594 | BL19: 0.0152187594 | BM19: 0.0152187594 | BN19: 0.0152187594 | BO19: 0.0152187594 | BP19: 0.0152187594 | BQ19: 0.0152187594 | BR19: 0.0152187594 | BS19: 0.0152187594 | BT19: 0.0152187594 | BU19: 0.0152187594 | BV19: 0.0152187594 | BW19: 0.0152187594 | BX19: 0.0152187594 | BY19: 0.0152187594 | BZ19: 0.0152187594 | CA19: 0.0152187594 | CB19: 0.0152187594 | CC19: 0.0152187594 | CD19: 0.0152187594 | CE19: 0.0152187594 | CF19: 0.0152187594 | CG19: 0.0152187594 | CH19: 0.0152187594 | CI19: 0.0152187594 | CJ19: 0.0152187594 | CK19: 0.0152187594 | CL19: 0.0152187594 | CM19: 0.0152187594 | CN19: 0.0152187594 | CO19: 0.0152187594 | CP19: 0.0152187594 | CQ19: 0.0152187594 | CR19: 0.0152187594 | CS19: 0.0152187594 | CT19: 0.0152187594 | CU19: 0.0152187594 | CV19: 0.0152187594 | CW19: 0.0152187594 | CX19: 0.0152187594 | CY19: 0.0152187594 | CZ19: 0.0152187594 | DA19: 0.0152187594 | DB19: 0.0152187594 | DC19: 0.0152187594 | DD19: 0.0152187594 | DE19: 0.0152187594 | DF19: 0.0152187594 | DG19: 0.0152187594 | DH19: 0.0152187594 | DI19: 0.0152187594 | DJ19: 0.0152187594 | DK19: 0.0152187594 | DL19: 0.0152187594 | DM19: 0.0152187594 | DN19: 0.0152187594 | DO19: 0.0152187594 | DP19: 0.0152187594 | DQ19: 0.0152187594 | DR19: 0.0152187594 | DS19: 0.0152187594 | DT19: 0.0152187594 | DU19: 0.0152187594 | DV19: 0.0152187594 | DW19: 0.0152187594 | DX19: 0.0152187594 | DY19: 0.0152187594 | DZ19: 0.0152187594 | EA19: 0.0152187594 | EB19: 0.0152187594 | EC19: 0.0152187594 | ED19: 0.0152187594 | EE19: 0.0152187594 | EF19: 0.0152187594 | EG19: 0.0152187594 | EH19: 0.0152187594 | EI19: 0.0152187594 | EJ19: 0.0152187594 | EK19: 0.0152187594 | EL19: 0.0152187594 | EM19: 0.0152187594 | EN19: 0.0152187594 | EO19: 0.0152187594 | EP19: 0.0152187594 | EQ19: 0.0152187594 | ER19: 0.0152187594 | ES19: 0.0152187594 | ET19: 0.0152187594 | EU19: 0.0152187594 | EV19: 0.0152187594 | EW19: 0.0152187594 | EX19: 0.0152187594 | EY19: 0.0152187594 | EZ19: 0.0152187594 | FA19: 0.0152187594 | FB19: 0.0152187594 | FC19: 0.0152187594 | FD19: 0.0152187594 | FE19: 0.0152187594 | FF19: 0.0152187594 | FG19: 0.0152187594 | FH19: 0.0152187594 | FI19: 0.0152187594 | FJ19: 0.0152187594 | FK19: 0.0152187594 | FL19: 0.0152187594 | FM19: 0.0152187594 | FN19: 0.0152187594 | FO19: 0.0152187594 | FP19: 0.0152187594 | FQ19: 0.0152187594 | FR19: 0.0152187594 | FS19: 0.0152187594 | FT19: 0.0152187594 | FU19: 0.0152187594 | FV19: 0.0152187594 | FW19: 0.0152187594 | FX19: 0.0152187594 | FY19: 0.0152187594 | FZ19: 0.0152187594 | GA19: 0.0152187594
G20: ScotRail | J20: % | AD20: 0.01442764967 | AE20: 0.0154627707 | AF20: 0.01850335986 | AG20: 0.0175622174 | AH20: 0.008122417594 | AI20: 0.005034400058 | AJ20: 0.005335834289 | AK20: 0.00552529427 | AL20: 0.005880601097 | AM20: 0.006281766286 | AN20: 0.006494974782 | AO20: 0.006494974782 | AP20: 0.006494974782 | AQ20: 0.006494974782 | AR20: 0.006494974782 | AS20: 0.006494974782 | AT20: 0.006494974782 | AU20: 0.006494974782 | AV20: 0.006494974782 | AW20: 0.006494974782 | AX20: 0.006494974782 | AY20: 0.006494974782 | AZ20: 0.006494974782 | BA20: 0.006494974782 | BB20: 0.006494974782 | BC20: 0.006494974782 | BD20: 0.006494974782 | BE20: 0.006494974782 | BF20: 0.006494974782 | BG20: 0.006494974782 | BH20: 0.006494974782 | BI20: 0.006494974782 | BJ20: 0.006494974782 | BK20: 0.006494974782 | BL20: 0.006494974782 | BM20: 0.006494974782 | BN20: 0.006494974782 | BO20: 0.006494974782 | BP20: 0.006494974782 | BQ20: 0.006494974782 | BR20: 0.006494974782 | BS20: 0.006494974782 | BT20: 0.006494974782 | BU20: 0.006494974782 | BV20: 0.006494974782 | BW20: 0.006494974782 | BX20: 0.006494974782 | BY20: 0.006494974782 | BZ20: 0.006494974782 | CA20: 0.006494974782 | CB20: 0.006494974782 | CC20: 0.006494974782 | CD20: 0.006494974782 | CE20: 0.006494974782 | CF20: 0.006494974782 | CG20: 0.006494974782 | CH20: 0.006494974782 | CI20: 0.006494974782 | CJ20: 0.006494974782 | CK20: 0.006494974782 | CL20: 0.006494974782 | CM20: 0.006494974782 | CN20: 0.006494974782 | CO20: 0.006494974782 | CP20: 0.006494974782 | CQ20: 0.006494974782 | CR20: 0.006494974782 | CS20: 0.006494974782 | CT20: 0.006494974782 | CU20: 0.006494974782 | CV20: 0.006494974782 | CW20: 0.006494974782 | CX20: 0.006494974782 | CY20: 0.006494974782 | CZ20: 0.006494974782 | DA20: 0.006494974782 | DB20: 0.006494974782 | DC20: 0.006494974782 | DD20: 0.006494974782 | DE20: 0.006494974782 | DF20: 0.006494974782 | DG20: 0.006494974782 | DH20: 0.006494974782 | DI20: 0.006494974782 | DJ20: 0.006494974782 | DK20: 0.006494974782 | DL20: 0.006494974782 | DM20: 0.006494974782 | DN20: 0.006494974782 | DO20: 0.006494974782 | DP20: 0.006494974782 | DQ20: 0.006494974782 | DR20: 0.006494974782 | DS20: 0.006494974782 | DT20: 0.006494974782 | DU20: 0.006494974782 | DV20: 0.006494974782 | DW20: 0.006494974782 | DX20: 0.006494974782 | DY20: 0.006494974782 | DZ20: 0.006494974782 | EA20: 0.006494974782 | EB20: 0.006494974782 | EC20: 0.006494974782 | ED20: 0.006494974782 | EE20: 0.006494974782 | EF20: 0.006494974782 | EG20: 0.006494974782 | EH20: 0.006494974782 | EI20: 0.006494974782 | EJ20: 0.006494974782 | EK20: 0.006494974782 | EL20: 0.006494974782 | EM20: 0.006494974782 | EN20: 0.006494974782 | EO20: 0.006494974782 | EP20: 0.006494974782 | EQ20: 0.006494974782 | ER20: 0.006494974782 | ES20: 0.006494974782 | ET20: 0.006494974782 | EU20: 0.006494974782 | EV20: 0.006494974782 | EW20: 0.006494974782 | EX20: 0.006494974782 | EY20: 0.006494974782 | EZ20: 0.006494974782 | FA20: 0.006494974782 | FB20: 0.006494974782 | FC20: 0.006494974782 | FD20: 0.006494974782 | FE20: 0.006494974782 | FF20: 0.006494974782 | FG20: 0.006494974782 | FH20: 0.006494974782 | FI20: 0.006494974782 | FJ20: 0.006494974782 | FK20: 0.006494974782 | FL20: 0.006494974782 | FM20: =$AN20 -> 0.006494974782 | FN20: 0.006494974782 | FO20: 0.006494974782 | FP20: 0.006494974782 | FQ20: 0.006494974782 | FR20: 0.006494974782 | FS20: 0.006494974782 | FT20: 0.006494974782 | FU20: 0.006494974782 | FV20: 0.006494974782 | FW20: 0.006494974782 | FX20: 0.006494974782 | FY20: 0.006494974782 | FZ20: 0.006494974782 | GA20: 0.006494974782
G23: Historic revenue
E25: source: ORR data portal 14/12/2017. regional and scotland, not separated, so assumed the same. End calendar year of financial year taken as year | G25: London and South East | J25: £m | M25: 1647 | N25: 1732 | O25: 1803 | P25: 1848 | Q25: 1932 | R25: 2059 | S25: 2197 | T25: 2437 | U25: 2717 | V25: 2963 | W25: 3046 | X25: 3264 | Y25: 3602 | Z25: 3888 | AA25: 4180 | AB25: 4486 | AC25: 4676 | AD25: 4725
G26: Long Distance | J26: £m | M26: 1160 | N26: 1109 | O26: 1221 | P26: 1279 | Q26: 1384 | R26: 1465 | S26: 1609 | T26: 1842 | U26: 2036 | V26: 2168 | W26: 2216 | X26: 2366 | Y26: 2533 | Z26: 2652 | AA26: 2779 | AB26: 2975 | AC26: 3128 | AD26: 3250
G27: Regional exc ScotRail | J27: £m | M27: 560 | N27: 572 | O27: 523 | P27: 535 | Q27: 585 | R27: 634 | S27: 687 | T27: 733 | U27: 801 | V27: 872 | W27: 916 | X27: 990 | Y27: 1094 | Z27: 1167 | AA27: 1244 | AB27: 1342 | AC27: 1409 | AD27: 1466
G28: Scotrail | J28: £m | M28: 560 | N28: 572 | O28: 523 | P28: 535 | Q28: 585 | R28: 634 | S28: 687 | T28: 733 | U28: 801 | V28: 872 | W28: 916 | X28: 990 | Y28: 1094 | Z28: 1167 | AA28: 1244 | AB28: 1342 | AC28: 1409 | AD28: 1466
E32: Source: webtag databook v1.8.2, 2100 rate extrapolated | G32: Population growth rate | J32: % | M32: 0.3437029262 | N32: 0.385320135 | O32: 0.4274863397 | P32: 0.4564925538 | Q32: 0.5260183746 | R32: 0.772138301 | S32: 0.684948513 | T32: 0.8088500027 | U32: 0.823071441 | V32: 0.7063622747 | W32: 0.8014712378 | X32: 0.8374827715 | Y32: 0.6635053117 | Z32: 0.6289930147 | AA32: 0.7660785234 | AB32: 0.794466599 | AC32: 0.8264475503 | AD32: 0.69773096 | AE32: 0.69195593 | AF32: 0.66319755 | AG32: 0.64528526 | AH32: 0.62627562 | AI32: 0.62162835 | AJ32: 0.61440838 | AK32: 0.60382336 | AL32: 0.59071144 | AM32: 0.57523287 | AN32: 0.55927454 | AO32: 0.54378119 | AP32: 0.52805416 | AQ32: 0.51239529 | AR32: 0.49715156 | AS32: 0.48241453 | AT32: 0.46856395 | AU32: 0.45572679 | AV32: 0.44416963 | AW32: 0.43403642 | AX32: 0.42523466 | AY32: 0.41756081 | AZ32: 0.4108529 | BA32: 0.40502559 | BB32: 0.39997955 | BC32: 0.39540813 | BD32: 0.39115461 | BE32: 0.38681235 | BF32: 0.38220833 | BG32: 0.37723194 | BH32: 0.371861 | BI32: 0.36611144 | BJ32: 0.36008845 | BK32: 0.35382261 | BL32: 0.34750261 | BM32: 0.34125713 | BN32: 0.33517289 | BO32: 0.32945402 | BP32: 0.32418675 | BQ32: 0.3194459 | BR32: 0.31537743 | BS32: 0.31197 | BT32: 0.30931325 | BU32: 0.30744796 | BV32: 0.30650811 | BW32: 0.30645376 | BX32: 0.30728903 | BY32: 0.30891383 | BZ32: 0.31120356 | CA32: 0.31407713 | CB32: 0.31736744 | CC32: 0.32092321 | CD32: 0.32461493 | CE32: 0.32819233 | CF32: 0.33154723 | CG32: 0.33452743 | CH32: 0.33701344 | CI32: 0.3389275 | CJ32: 0.34024829 | CK32: 0.34102414 | CL32: 0.34124093 | CM32: 0.34096535 | CN32: 0.34024885 | CO32: 0.33918674 | CP32: 0.33789026 | CQ32: 0.3363941 | CR32: 0.3348266 | CS32: 0.3333035 | CT32: 0.33192244 | CU32: 0.33072762 | CV32: 0.3297809 | CW32: 0.32907331 | CX32: 0.32862912 | CY32: 0.32846422 | CZ32: 0.32847074 | DA32: 0.32870854 | DB32: 0.32904402 | DC32: 0.32945793 | DD32: 0.32987428 | DE32: 0.33025066 | DF32: 0.33054756 | DG32: 0.33069292 | DH32: 0.33066002 | DI32: 0.33034341 | DJ32: 0.33034341 | DK32: 0.33034341 | DL32: 0.33034341 | DM32: 0.33034341 | DN32: 0.33034341 | DO32: 0.33034341 | DP32: 0.33034341 | DQ32: 0.33034341 | DR32: 0.33034341 | DS32: 0.33034341 | DT32: 0.33034341 | DU32: 0.33034341 | DV32: 0.33034341 | DW32: 0.33034341 | DX32: 0.33034341 | DY32: 0.33034341 | DZ32: 0.33034341 | EA32: 0.33034341 | EB32: 0.33034341 | EC32: 0.33034341 | ED32: 0.33034341 | EE32: 0.33034341 | EF32: 0.33034341 | EG32: 0.33034341 | EH32: 0.33034341 | EI32: 0.33034341 | EJ32: 0.33034341 | EK32: 0.33034341 | EL32: 0.33034341 | EM32: 0.33034341 | EN32: 0.33034341 | EO32: 0.33034341 | EP32: 0.33034341 | EQ32: 0.33034341 | ER32: 0.33034341 | ES32: 0.33034341 | ET32: 0.33034341 | EU32: 0.33034341 | EV32: 0.33034341 | EW32: 0.33034341 | EX32: 0.33034341 | EY32: 0.33034341 | EZ32: 0.33034341 | FA32: 0.33034341 | FB32: 0.33034341 | FC32: 0.33034341 | FD32: 0.33034341 | FE32: 0.33034341 | FF32: 0.33034341 | FG32: 0.33034341 | FH32: 0.33034341 | FI32: 0.33034341 | FJ32: 0.33034341 | FK32: 0.33034341 | FL32: 0.33034341 | FM32: 0.33034341 | FN32: 0.33034341 | FO32: 0.33034341 | FP32: 0.33034341 | FQ32: 0.33034341 | FR32: 0.33034341 | FS32: 0.33034341 | FT32: 0.33034341 | FU32: 0.33034341 | FV32: 0.33034341 | FW32: 0.33034341 | FX32: 0.33034341 | FY32: 0.33034341 | FZ32: 0.33034341 | GA32: 0.33034341

Sheet Benefit per Revenue
F2: To WRaCCA Team
F3: This sheet holds "scaling factors" to estimate the value of User & Non-User Disbenefits per £1 of revenue (Schedule 4+8) impact
G9: This sheet provides a list of factors to enable the value of socio-economic impacts (i.e. disbenefits to Users & Non-Users) to be estimated from the combined Schedule 4 / 8 impact of extreme & adverse weather events.
G11: For example, an adverse weather event resulting in a (Schdule 4 + Schedule 8) payment of £10,000 to Transpennine Express in respect of service code EA01 would generate socio-economic disbenefits valued at £10,000 * 2.0 = £20,000
G15: TOC | H15: TOC Code | I15: Service Code | J15: Description | K15: Services | M15: Combined | N15: Ratio UBs & NUBs : £
M16: N/A | N16: 0
G17: Transpennine Express | H17: EA | I17: EA01 | J17: North Trans Pennine | K17: All Trains | M17: =I17&" / "&J17 -> EA01 / North Trans Pennine | N17: 2.006699744
G18: Transpennine Express | H18: EA | I18: EA02 | J18: South Trans Pennine | K18: All Trains | M18: =I18&" / "&J18 -> EA02 / South Trans Pennine | N18: 1.640415963
G19: Transpennine Express | H19: EA | I19: EA07 | J19: Preston - Scotland | K19: All Trains | M19: EA07 / Preston - Scotland | N19: 0.8635640889
G20: Abellio Greater Anglia | H20: EB | I20: EB02 | J20: Southend & Southminster | K20: Off-Peak | M20: EB02 / Southend & Southminster | N20: 1.572283165
G21: Abellio Greater Anglia | H21: EB | I21: EB02 | J21: Southend & Southminster | K21: Peak | M21: EB02 / Southend & Southminster | N21: 1.455266591
G22: Abellio Greater Anglia | H22: EB | I22: EB03 | J22: Great Eastern Outers | K22: Off-Peak | M22: EB03 / Great Eastern Outers | N22: 1.301714755
G23: Abellio Greater Anglia | H23: EB | I23: EB03 | J23: Great Eastern Outers | K23: Peak | M23: EB03 / Great Eastern Outers | N23: 1.263326952
G24: Abellio Greater Anglia | H24: EB | I24: EB04 | J24: Anglia Inter City | K24: Off-Peak | M24: EB04 / Anglia Inter City | N24: 1.034350721
G25: Abellio Greater Anglia | H25: EB | I25: EB04 | J25: Anglia Inter City | K25: Peak | M25: EB04 / Anglia Inter City | N25: 1.23003358
G26: Abellio Greater Anglia | H26: EB | I26: EB05 | J26: Anglia Locals | K26: All Trains | M26: EB05 / Anglia Locals | N26: 2.441248162
G27: Abellio Greater Anglia | H27: EB | I27: EB06 | J27: West Anglia Outers | K27: Off-Peak | M27: EB06 / West Anglia Outers | N27: 1.019332448
G28: Abellio Greater Anglia | H28: EB | I28: EB06 | J28: West Anglia Outers | K28: Peak | M28: EB06 / West Anglia Outers | N28: 1.043841194
G29: Abellio Greater Anglia | H29: EB | I29: EB07 | J29: West Anglia Inners | K29: Off-Peak | M29: EB07 / West Anglia Inners | N29: 5.560390572
G30: Abellio Greater Anglia | H30: EB | I30: EB07 | J30: West Anglia Inners | K30: Peak | M30: EB07 / West Anglia Inners | N30: 5.300437335
G31: Grand Central | H31: EC | I31: EC01 | J31: Kings x - Sunderland | K31: All Trains | M31: EC01 / Kings x - Sunderland | N31: 1.565413544
G32: Grand Central | H32: EC | I32: EC02 | J32: Kings x - Bradford | K32: All Trains | M32: EC02 / Kings x - Bradford | N32: 1.687718529
G33: Northern Rail | H33: ED | I33: ED01 | J33: Tyne, Tees & Wear | K33: All Trains | M33: ED01 / Tyne, Tees & Wear | N33: 3.767594182
G34: Northern Rail | H34: ED | I34: ED02 | J34: Lancashire & Cumbria | K34: All Trains | M34: ED02 / Lancashire & Cumbria | N34: 2.999649881
G35: Northern Rail | H35: ED | I35: ED04 | J35: West & North Yorkshire Inter Urban | K35: All Trains | M35: ED04 / West & North Yorkshire Inter Urban | N35: 3.793195643
G36: Northern Rail | H36: ED | I36: ED05 | J36: West & North Yorkshire Local | K36: All Trains | M36: ED05 / West & North Yorkshire Local | N36: 2.766997642
G37: Northern Rail | H37: ED | I37: ED06 | J37: South & East Yorkshire Inter Urban | K37: All Trains | M37: ED06 / South & East Yorkshire Inter Urban | N37: 3.206421617
G38: Northern Rail | H38: ED | I38: ED07 | J38: South & East Yorkshire Local | K38: All Trains | M38: ED07 / South & East Yorkshire Local | N38: 3.444004563
G39: Northern Rail | H39: ED | I39: ED08 | J39: North Manchester | K39: Off-Peak | M39: ED08 / North Manchester | N39: 3.348870459
G40: Northern Rail | H40: ED | I40: ED08 | J40: North Manchester | K40: Peak | M40: ED08 / North Manchester | N40: 3.368201237
G41: Northern Rail | H41: ED | I41: ED09 | J41: Merseyrail City Lines | K41: All Trains | M41: ED09 / Merseyrail City Lines | N41: 2.64946565
G42: Northern Rail | H42: ED | I42: ED10 | J42: South Manchester | K42: Off-Peak | M42: ED10 / South Manchester | N42: 2.957039882
G43: Northern Rail | H43: ED | I43: ED10 | J43: South Manchester | K43: Peak | M43: ED10 / South Manchester | N43: 3.030063478
G44: Northern Rail | H44: ED | I44: ED11 | J44: Lancashire & Cumbria Inter Urban | K44: All Trains | M44: ED11 / Lancashire & Cumbria Inter Urban | N44: 2.645907723
G45: Heathrow Connect | H45: EE | I45: EE01 | J45: Heathrow Local Service | K45: Off-Peak | M45: EE01 / Heathrow Local Service | N45: 1.204914635
G46: Heathrow Connect | H46: EE | I46: EE01 | J46: Heathrow Local Service | K46: Peak | M46: EE01 / Heathrow Local Service | N46: 1.204914635
G47: Heathrow Connect | H47: EE | I47: EE02 | J47: Hayes & Harlington Shuttle | K47: All Trains | M47: EE02 / Hayes & Harlington Shuttle | N47: 1.204914635
G48: Great Western Railway | H48: EF | I48: EF01 | J48: London - Bristol | K48: All Trains | M48: EF01 / London - Bristol | N48: 0.8690899967
G49: Great Western Railway | H49: EF | I49: EF02 | J49: London - South Wales | K49: All Trains | M49: EF02 / London - South Wales | N49: 0.8877982967
G50: Great Western Railway | H50: EF | I50: EF03 | J50: London - Cotswolds | K50: All Trains | M50: EF03 / London - Cotswolds | N50: 1.07559349
G51: Great Western Railway | H51: EF | I51: EF04 | J51: London - West Of England | K51: All Trains | M51: EF04 / London - West Of England | N51: 1.040008797
G52: Great Western Railway | H52: EF | I52: EF05 | J52: Outer Thames Valley - London | K52: Off-Peak | M52: EF05 / Outer Thames Valley - London | N52: 1.61261981
G53: Great Western Railway | H53: EF | I53: EF05 | J53: Outer Thames Valley - London | K53: Peak | M53: EF05 / Outer Thames Valley - London | N53: 1.838520982
G54: Great Western Railway | H54: EF | I54: EF06 | J54: Inner Thames Valley - London | K54: Off-Peak | M54: EF06 / Inner Thames Valley - London | N54: 2.361622572
G55: Great Western Railway | H55: EF | I55: EF06 | J55: Inner Thames Valley - London | K55: Peak | M55: EF06 / Inner Thames Valley - London | N55: 2.823354867
G56: Great Western Railway | H56: EF | I56: EF07 | J56: Reading & Oxford Suburban | K56: All Trains | M56: EF07 / Reading & Oxford Suburban | N56: 2.711492894
G57: Great Western Railway | H57: EF | I57: EF08 | J57: Thames Valley Branches | K57: All Trains | M57: EF08 / Thames Valley Branches | N57: 5.88753509
G58: Great Western Railway | H58: EF | I58: EF09 | J58: North Downs | K58: All Trains | M58: EF09 / North Downs | N58: 2.040206892
G59: Great Western Railway | H59: EF | I59: EF10 | J59: Bristol Suburban | K59: All Trains | M59: EF10 / Bristol Suburban | N59: 2.622518065
G60: Great Western Railway | H60: EF | I60: EF11 | J60: Devon | K60: All Trains | M60: EF11 / Devon | N60: 3.612794371
G61: Great Western Railway | H61: EF | I61: EF12 | J61: Plymouth & Cornwall | K61: All Trains | M61: EF12 / Plymouth & Cornwall | N61: 4.074238723
G62: Great Western Railway | H62: EF | I62: EF13 | J62: South Wales - South Coast | K62: All Trains | M62: EF13 / South Wales - South Coast | N62: 2.067342146
G63: CrossCountry | H63: EH | I63: EH01 | J63: CrossCountry Inter City | K63: All Trains | M63: EH01 / CrossCountry Inter City | N63: 1.23354161
G64: CrossCountry | H64: EH | I64: EH02 | J64: CrossCountry Local & Provincial | K64: All Trains | M64: EH02 / CrossCountry Local & Provincial | N64: 1.725584087
G65: London Midland | H65: EJ | I65: EJ01 | J65: West Midlands - Snow Hill | K65: Off-Peak | M65: EJ01 / West Midlands - Snow Hill | N65: 3.61252454
G66: London Midland | H66: EJ | I66: EJ01 | J66: West Midlands - Snow Hill | K66: Peak | M66: EJ01 / West Midlands - Snow Hill | N66: 4.125135598
G67: London Midland | H67: EJ | I67: EJ02 | J67: Trent Valley | K67: All Trains | M67: EJ02 / Trent Valley | N67: 2.172127319
G68: London Midland | H68: EJ | I68: EJ03 | J68: West Midlands - New Street (Local) | K68: Off-Peak | M68: EJ03 / West Midlands - New Street (Local) | N68: 2.987410773
G69: London Midland | H69: EJ | I69: EJ03 | J69: West Midlands - New Street (Local) | K69: Peak | M69: EJ03 / West Midlands - New Street (Local) | N69: 3.375610179
G70: London Midland | H70: EJ | I70: EJ04 | J70: West Midlands Inter Urban | K70: All Trains | M70: EJ04 / West Midlands Inter Urban | N70: 1.949223085
G71: London Midland | H71: EJ | I71: EJ05 | J71: WCML : London - Northampton | K71: Off-Peak | M71: EJ05 / WCML : London - Northampton | N71: 1.227227158
G72: London Midland | H72: EJ | I72: EJ05 | J72: WCML : London - Northampton | K72: Peak | M72: EJ05 / WCML : London - Northampton | N72: 1.488912387
G73: London Midland | H73: EJ | I73: EJ06 | J73: WCML : Branches | K73: All Trains | M73: EJ06 / WCML : Branches | N73: 4.261137384
G74: LOROL | H74: EK | I74: EK01 | J74: Orbitals | K74: Off-Peak | M74: EK01 / Orbitals | N74: 6.96342502
G75: LOROL | H75: EK | I75: EK01 | J75: Orbitals | K75: Peak | M75: EK01 / Orbitals | N75: 7.857803246
G76: LOROL | H76: EK | I76: EK02 | J76: London - Watford (D.C Lines) | K76: Off-Peak | M76: EK02 / London - Watford (D.C Lines) | N76: 6.878151738
G77: LOROL | H77: EK | I77: EK02 | J77: London - Watford (D.C Lines) | K77: Peak | M77: EK02 / London - Watford (D.C Lines) | N77: 7.749716779
G78: LOROL | H78: EK | I78: EK03 | J78: East London Lines | K78: Off-Peak | M78: EK03 / East London Lines | N78: 5.559380698
G79: LOROL | H79: EK | I79: EK03 | J79: East London Lines | K79: Peak | M79: EK03 / East London Lines | N79: 6.382429315
G80: LOROL | H80: EK | I80: EK04 | J80: ARL West Anglia | K80: Off-Peak | M80: EK04 / ARL West Anglia | N80: 3.742229371
G81: LOROL | H81: EK | I81: EK04 | J81: ARL West Anglia | K81: Peak | M81: EK04 / ARL West Anglia | N81: 3.930142124
G82: LOROL | H82: EK | I82: EK05 | J82: Romford – Upminster | K82: All Trains | M82: =I82&" / "&J82 -> EK05 / Romford – Upminster | N82: 6.473133869
G83: East Midlands Trains | H83: EM | I83: EM01 | J83: East Midlands Local | K83: All Trains | M83: EM01 / East Midlands Local | N83: 3.595094792
G84: East Midlands Trains | H84: EM | I84: EM02 | J84: East Midlands Regional | K84: All Trains | M84: EM02 / East Midlands Regional | N84: 2.865242663
G85: East Midlands Trains | H85: EM | I85: EM03 | J85: Liverpool - Norwich | K85: All Trains | M85: EM03 / Liverpool - Norwich | N85: 1.614358599
G86: East Midlands Trains | H86: EM | I86: EM04 | J86: East Midlands Inter City | K86: All Trains | M86: EM04 / East Midlands Inter City | N86: 0.871237378
G87: East Midlands Trains | H87: EM | I87: EM05 | J87: East Midlands Inter Urban | K87: All Trains | M87: EM05 / East Midlands Inter Urban | N87: 1.024114795
G88: Caladonian Sleeper (SERCO) | H88: ES | I88: ES01 | J88: Sleepers | K88: All Trains | M88: ES01 / Sleepers | N88: 0.6124003215
G89: Thameslink | H89: ET | I89: ET01 | J89: Bedford Mainline | K89: Off-Peak | M89: ET01 / Bedford Mainline | N89: 1.20670905
G90: Thameslink | H90: ET | I90: ET01 | J90: Bedford Mainline | K90: Peak | M90: ET01 / Bedford Mainline | N90: 1.260213743
G91: Thameslink | H91: ET | I91: ET02 | J91: Brighton Mainline | K91: Off-Peak | M91: ET02 / Brighton Mainline | N91: 1.090683144
G92: Thameslink | H92: ET | I92: ET02 | J92: Brighton Mainline | K92: Peak | M92: ET02 / Brighton Mainline | N92: 1.112805079
G93: Thameslink | H93: ET | I93: ET03 | J93: South London | K93: Off-Peak | M93: ET03 / South London | N93: 3.29812738
G94: Thameslink | H94: ET | I94: ET03 | J94: South London | K94: Peak | M94: ET03 / South London | N94: 2.878833745
G95: Thameslink | H95: ET | I95: ET04 | J95: Northern Inners | K95: Off-Peak | M95: ET04 / Northern Inners | N95: 2.477685742
G96: Thameslink | H96: ET | I96: ET04 | J96: Northern Inners | K96: Peak | M96: ET04 / Northern Inners | N96: 2.514635236
G97: Thameslink | H97: ET | I97: ET05 | J97: Northern Outers | K97: Off-Peak | M97: ET05 / Northern Outers | N97: 1.262038734
G98: Thameslink | H98: ET | I98: ET05 | J98: Northern Outers | K98: Peak | M98: ET05 / Northern Outers | N98: 1.274703486
G99: Thameslink | H99: ET | I99: ET06 | J99: Thameslink Kent Inner | K99: Off-Peak | M99: ET06 / Thameslink Kent Inner | N99: 1.689587066
G100: Thameslink | H100: ET | I100: ET06 | J100: Thameslink Kent Inner | K100: Peak | M100: ET06 / Thameslink Kent Inner | N100: 1.689587066
G101: Thameslink | H101: ET | I101: ET07 | J101: SN Coastway (Non-London) | K101: All Trains | M101: ET07 / SN Coastway (Non-London) | N101: 0.6742794313
G102: Thameslink | H102: ET | I102: ET08 | J102: SN Mainline | K102: Off-Peak | M102: ET08 / SN Mainline | N102: 1.27928544
G103: Thameslink | H103: ET | I103: ET08 | J103: SN Mainline | K103: Peak | M103: ET08 / SN Mainline | N103: 1.227341836
G104: Thameslink | H104: ET | I104: ET09 | J104: SN South London Metro | K104: Off-Peak | M104: ET09 / SN South London Metro | N104: 4.664207293
G105: Thameslink | H105: ET | I105: ET09 | J105: SN South London Metro | K105: Peak | M105: ET09 / SN South London Metro | N105: 2.162193044
G106: Thameslink | H106: ET | I106: ET10 | J106: SN West London Line | K106: Off-Peak | M106: ET10 / SN West London Line | N106: 2.198905857
G107: Thameslink | H107: ET | I107: ET10 | J107: SN West London Line | K107: Peak | M107: ET10 / SN West London Line | N107: 2.285111612
G108: Thameslink | H108: ET | I108: ET11 | J108: Gatwick Express | K108: Off-Peak | M108: ET11 / Gatwick Express | N108: 0.6557866018
G109: Thameslink | H109: ET | I109: ET11 | J109: Gatwick Express | K109: Peak | M109: ET11 / Gatwick Express | N109: 0.6607809132
G110: MTR Crossrail | H110: EX | I110: EX01 | J110: Crossrail East | K110: Off-Peak | M110: EX01 / Crossrail East | N110: 3.427062347
G111: MTR Crossrail | H111: EX | I111: EX01 | J111: Crossrail East | K111: Peak | M111: EX01 / Crossrail East | N111: 3.227175036
G112: ScotRail | H112: HA | I112: HA01 | J112: Express | K112: All Trains | M112: HA01 / Express | N112: 1.569766196
G113: ScotRail | H113: HA | I113: HA02 | J113: East Coast Suburban | K113: All Trains | M113: HA02 / East Coast Suburban | N113: 2.498000971
G114: ScotRail | H114: HA | I114: HA03 | J114: South West Rural | K114: All Trains | M114: HA03 / South West Rural | N114: 3.031908233
G115: ScotRail | H115: HA | I115: HA04 | J115: Highland Rural | K115: All Trains | M115: HA04 / Highland Rural | N115: 2.73977812
G116: ScotRail | H116: HA | I116: HA06 | J116: Strathclyde Electric | K116: Off-Peak | M116: HA06 / Strathclyde Electric | N116: 2.772513662
G117: ScotRail | H117: HA | I117: HA06 | J117: Strathclyde Electric | K117: Peak | M117: HA06 / Strathclyde Electric | N117: 2.954247253
G118: ScotRail | H118: HA | I118: HA07 | J118: Strathclyde Pte Diesel | K118: All Trains | M118: HA07 / Strathclyde Pte Diesel | N118: 3.141742368
G119: Virgin Trains East Coast | H119: HB | I119: HB01 | J119: ANGLO - SCOTTISH | K119: All Trains | M119: HB01 / ANGLO - SCOTTISH | N119: 1.023765486
G120: Virgin Trains East Coast | H120: HB | I120: HB02 | J120: WEST YORKSHIRE | K120: All Trains | M120: HB02 / WEST YORKSHIRE | N120: 0.9675456473
G121: Virgin Trains East Coast | H121: HB | I121: HB04 | J121: WEST YORKHIRE (Kings X - Bradford / Hull) | K121: All Trains | M121: HB04 / WEST YORKHIRE (Kings X - Bradford / Hull) | N121: 0.9821829908
G122: Virgin Trains East Coast | H122: HB | I122: HB05 | J122: ANGLO - SCOT (Aberdeen / Inverness) | K122: All Trains | M122: HB05 / ANGLO - SCOT (Aberdeen / Inverness) | N122: 1.297103117
G123: Merseyrail | H123: HE | I123: HE01 | J123: Northern Lines | K123: All Trains | M123: HE01 / Northern Lines | N123: 5.391403422
G124: Merseyrail | H124: HE | I124: HE02 | J124: Wirral Lines | K124: All Trains | M124: HE02 / Wirral Lines | N124: 4.360133333
G125: Virgin Trains West Coast | H125: HF | I125: HF01 | J125: London Euston - Birmingham/Wolverhampton | K125: All Trains | M125: HF01 / London Euston - Birmingham/Wolverhampton | N125: 0.8124821642
G126: Virgin Trains West Coast | H126: HF | I126: HF02 | J126: London Euston - North Wales | K126: All Trains | M126: HF02 / London Euston - North Wales | N126: 1.002275604
G127: Virgin Trains West Coast | H127: HF | I127: HF03 | J127: London Euston - Manchester | K127: All Trains | M127: HF03 / London Euston - Manchester | N127: 0.8163438129
G128: Virgin Trains West Coast | H128: HF | I128: HF04 | J128: London Euston - Liverpool | K128: All Trains | M128: HF04 / London Euston - Liverpool | N128: 0.8219398526
G129: Virgin Trains West Coast | H129: HF | I129: HF06 | J129: London Euston - Carlisle/Scotland | K129: All Trains | M129: HF06 / London Euston - Carlisle/Scotland | N129: 0.9574740361
G130: Virgin Trains West Coast | H130: HF | I130: HF08 | J130: London - Scotland via West Midlands | K130: All Trains | M130: HF08 / London - Scotland via West Midlands | N130: 1.379909241
G131: Arriva Trains Wales | H131: HL | I131: HL02 | J131: South, West & Central Wales | K131: All Trains | M131: HL02 / South, West & Central Wales | N131: 3.248622992
G132: Arriva Trains Wales | H132: HL | I132: HL03 | J132: Wales to England | K132: All Trains | M132: HL03 / Wales to England | N132: 1.966330698
G133: Arriva Trains Wales | H133: HL | I133: HL04 | J133: Cambrian | K133: All Trains | M133: HL04 / Cambrian | N133: 2.871981453
G134: Arriva Trains Wales | H134: HL | I134: HL05 | J134: Cardiff Valleys | K134: Off-Peak | M134: HL05 / Cardiff Valleys | N134: 3.076835218
G135: Arriva Trains Wales | H135: HL | I135: HL05 | J135: Cardiff Valleys | K135: Peak | M135: HL05 / Cardiff Valleys | N135: 3.307888097
G136: Arriva Trains Wales | H136: HL | I136: HL06 | J136: Marches | K136: All Trains | M136: HL06 / Marches | N136: 2.441252045
G137: Arriva Trains Wales | H137: HL | I137: HL07 | J137: North Wales Rural | K137: All Trains | M137: HL07 / North Wales Rural | N137: 6.003407573
G138: Arriva Trains Wales | H138: HL | I138: HL08 | J138: Inter Urban North Wales | K138: All Trains | M138: HL08 / Inter Urban North Wales | N138: 2.525356403
G139: Heathrow Express | H139: HM | I139: HM01 | J139: Heathrow Express | K139: All Trains | M139: HM01 / Heathrow Express | N139: 1.204914635
G140: Chiltern Railways | H140: HO | I140: HO01 | J140: Met | K140: Off-Peak | M140: HO01 / Met | N140: 3.713633621
G141: Chiltern Railways | H141: HO | I141: HO01 | J141: Met | K141: Peak | M141: HO01 / Met | N141: 3.741272783
G142: Chiltern Railways | H142: HO | I142: HO02 | J142: Birmingham | K142: Off-Peak | M142: HO02 / Birmingham | N142: 2.750526993
G143: Chiltern Railways | H143: HO | I143: HO02 | J143: Birmingham | K143: Peak | M143: HO02 / Birmingham | N143: 2.787530342
G144: Chiltern Railways | H144: HO | I144: HO03 | J144: Joint | K144: Off-Peak | M144: HO03 / Joint | N144: 2.547624867
G145: Chiltern Railways | H145: HO | I145: HO03 | J145: Joint | K145: Peak | M145: HO03 / Joint | N145: 2.619180979
G146: Chiltern Railways | H146: HO | I146: HO04 | J146: Oxford | K146: Off-Peak | M146: =I146&" / "&J146 -> HO04 / Oxford | N146: 0.3794128977
G147: Chiltern Railways | H147: HO | I147: HO04 | J147: Oxford | K147: Peak | M147: HO04 / Oxford | N147: 0.4780070557
G148: c2c | H148: HT | I148: HT01 | J148: London-Southend/Shoeburyness (HT02op) | K148: Off-Peak | M148: HT01 / London-Southend/Shoeburyness (HT02op) | N148: 2.342887884
G149: c2c | H149: HT | I149: HT01 | J149: London-Southend/Shoeburyness (HT02op) | K149: Peak | M149: HT01 / London-Southend/Shoeburyness (HT02op) | N149: 2.311903375
G150: Southeastern | H150: HU | I150: HU01 | J150: Kent Mainline (Off Peak) | K150: All Trains | M150: HU01 / Kent Mainline (Off Peak) | N150: 3.852685646
G151: Southeastern | H151: HU | I151: HU03 | J151: Kent Rural | K151: All Trains | M151: HU03 / Kent Rural | N151: 3.704075693
G152: Southeastern | H152: HU | I152: HU04 | J152: Kent Mainline (Peak) | K152: All Trains | M152: HU04 / Kent Mainline (Peak) | N152: 4.3011142
G153: Southeastern | H153: HU | I153: HU06 | J153: Kent High Speed (Peak) | K153: All Trains | M153: HU06 / Kent High Speed (Peak) | N153: 2.985088558
G154: Southeastern | H154: HU | I154: HU07 | J154: Kent High Speed (Off Peak) | K154: All Trains | M154: HU07 / Kent High Speed (Off Peak) | N154: 2.603507434
G155: South West Trains | H155: HY | I155: HY01 | J155: Main Suburban | K155: Off-Peak | M155: HY01 / Main Suburban | N155: 2.674303118
G156: South West Trains | H156: HY | I156: HY01 | J156: Main Suburban | K156: Peak | M156: HY01 / Main Suburban | N156: 2.728878512
G157: South West Trains | H157: HY | I157: HY02 | J157: South Hampshire Locals | K157: All Trains | M157: HY02 / South Hampshire Locals | N157: 2.520625427
G158: South West Trains | H158: HY | I158: HY03 | J158: Waterloo - West England | K158: Off-Peak | M158: HY03 / Waterloo - West England | N158: 1.256378209
G159: South West Trains | H159: HY | I159: HY03 | J159: Waterloo - West England | K159: Peak | M159: HY03 / Waterloo - West England | N159: 1.333266086
G160: South West Trains | H160: HY | I160: HY04 | J160: Waterloo - Farnham / Alton | K160: Off-Peak | M160: HY04 / Waterloo - Farnham / Alton | N160: 1.96440506
G161: South West Trains | H161: HY | I161: HY04 | J161: Waterloo - Farnham / Alton | K161: Peak | M161: HY04 / Waterloo - Farnham / Alton | N161: 1.786054204
G162: South West Trains | H162: HY | I162: HY05 | J162: Windsor Inners | K162: Off-Peak | M162: HY05 / Windsor Inners | N162: 3.298352
G163: South West Trains | H163: HY | I163: HY05 | J163: Windsor Inners | K163: Peak | M163: HY05 / Windsor Inners | N163: 3.408815842
G164: South West Trains | H164: HY | I164: HY06 | J164: Windsor Outers | K164: Off-Peak | M164: HY06 / Windsor Outers | N164: 2.352212604
G165: South West Trains | H165: HY | I165: HY06 | J165: Windsor Outers | K165: Peak | M165: HY06 / Windsor Outers | N165: 2.470052235
G166: South West Trains | H166: HY | I166: HY07 | J166: Waterloo - Portsmouth | K166: Off-Peak | M166: HY07 / Waterloo - Portsmouth | N166: 1.343854343
G167: South West Trains | H167: HY | I167: HY07 | J167: Waterloo - Portsmouth | K167: Peak | M167: HY07 / Waterloo - Portsmouth | N167: 1.412654548
G168: South West Trains | H168: HY | I168: HY08 | J168: Waterloo - Weymouth | K168: Off-Peak | M168: HY08 / Waterloo - Weymouth | N168: 1.364107009
G169: South West Trains | H169: HY | I169: HY08 | J169: Waterloo - Weymouth | K169: Peak | M169: HY08 / Waterloo - Weymouth | N169: 1.477244135
G170: Hull Trains | H170: PF | I170: PF01 | J170: Kings Cross - Hull | K170: All Trains | M170: PF01 / Kings Cross - Hull | N170: 1.383927238
G171: DB Regio Tyne & Wear Metro | H171: PG | I171: PG01 | J171: Metro | K171: All Trains | M171: PG01 / Metro | N171: 0.3448486317

Sheet Benefit per Revenue all trains
F2: To WRaCCA Team
F3: Converts peak and off peak factors to all train factors
G9: This sheet provides a list of factors to enable the value of socio-economic impacts (i.e. disbenefits to Users & Non-Users) to be estimated from the combined Schedule 4 / 8 impact of extreme & adverse weather events.
G11: For example, an adverse weather event resulting in a (Schdule 4 + Schedule 8) payment of £10,000 to Transpennine Express in respect of service code EA01 would generate socio-economic disbenefits valued at £10,000 * 2.0 = £20,000
G13: Peak:off peak ratio | H13: 0.3333333333
G15: TOC | H15: TOC Code | I15: Service Code | J15: Description | L15: Combined | M15: Ratio UBs & NUBs : £
L16: N/A | M16: 0
G17: Transpennine Express | H17: EA | I17: EA01 | J17: North Trans Pennine | L17: =I17&" / "&J17&"" -> EA01 / North Trans Pennine | M17: =SUMIFS('Benefit per Revenue'!$N$17:$N$171,'Benefit per Revenue'!$M$17:$M$171, 'Benefit per Revenue all trains'!L17, 'Benefit per Revenue'!$K$17:$K$171, "All trains")+$H$13*SUMIFS('Benefit per Revenue'!$N$17:$N$171,'Benefit per Revenue'!$M$17:$M$171, 'Benefit per Revenue all trains'!L17, 'Benefit per Revenue'!$K$17:$K$171, "Peak")+(1-$H$13)*SUMIFS('Benefit per Revenue'!$N$17:$N$171,'Benefit per Revenue'!$M$17:$M$171, 'Benefit per Revenue all trains'!L17, 'Benefit per Revenue'!$K$17:$K$171, "Off-Peak") -> 2.006699744
G18: Transpennine Express | H18: EA | I18: EA02 | J18: South Trans Pennine | L18: EA02 / South Trans Pennine | M18: =SUMIFS('Benefit per Revenue'!$N$17:$N$171,'Benefit per Revenue'!$M$17:$M$171, 'Benefit per Revenue all trains'!L18, 'Benefit per Revenue'!$K$17:$K$171, "All trains")+$H$13*SUMIFS('Benefit per Revenue'!$N$17:$N$171,'Benefit per Revenue'!$M$17:$M$171, 'Benefit per Revenue all trains'!L18, 'Benefit per Revenue'!$K$17:$K$171, "Peak")+(1-$H$13)*SUMIFS('Benefit per Revenue'!$N$17:$N$171,'Benefit per Revenue'!$M$17:$M$171, 'Benefit per Revenue all trains'!L18, 'Benefit per Revenue'!$K$17:$K$171, "Off-Peak") -> 1.640415963
G19: Transpennine Express | H19: EA | I19: EA07 | J19: Preston - Scotland | L19: EA07 / Preston - Scotland | M19: =SUMIFS('Benefit per Revenue'!$N$17:$N$171,'Benefit per Revenue'!$M$17:$M$171, 'Benefit per Revenue all trains'!L19, 'Benefit per Revenue'!$K$17:$K$171, "All trains")+$H$13*SUMIFS('Benefit per Revenue'!$N$17:$N$171,'Benefit per Revenue'!$M$17:$M$171, 'Benefit per Revenue all trains'!L19, 'Benefit per Revenue'!$K$17:$K$171, "Peak")+(1-$H$13)*SUMIFS('Benefit per Revenue'!$N$17:$N$171,'Benefit per Revenue'!$M$17:$M$171, 'Benefit per Revenue all trains'!L19, 'Benefit per Revenue'!$K$17:$K$171, "Off-Peak") -> 0.8635640889
G20: Abellio Greater Anglia | H20: EB | I20: EB02 | J20: Southend & Southminster | L20: EB02 / Southend & Southminster | M20: =SUMIFS('Benefit per Revenue'!$N$17:$N$171,'Benefit per Revenue'!$M$17:$M$171, 'Benefit per Revenue all trains'!L20, 'Benefit per Revenue'!$K$17:$K$171, "All trains")+$H$13*SUMIFS('Benefit per Revenue'!$N$17:$N$171,'Benefit per Revenue'!$M$17:$M$171, 'Benefit per Revenue all trains'!L20, 'Benefit per Revenue'!$K$17:$K$171, "Peak")+(1-$H$13)*SUMIFS('Benefit per Revenue'!$N$17:$N$171,'Benefit per Revenue'!$M$17:$M$171, 'Benefit per Revenue all trains'!L20, 'Benefit per Revenue'!$K$17:$K$171, "Off-Peak") -> 1.53327764
G21: Abellio Greater Anglia | H21: EB | I21: EB03 | J21: Great Eastern Outers | L21: EB03 / Great Eastern Outers | M21: =SUMIFS('Benefit per Revenue'!$N$17:$N$171,'Benefit per Revenue'!$M$17:$M$171, 'Benefit per Revenue all trains'!L21, 'Benefit per Revenue'!$K$17:$K$171, "All trains")+$H$13*SUMIFS('Benefit per Revenue'!$N$17:$N$171,'Benefit per Revenue'!$M$17:$M$171, 'Benefit per Revenue all trains'!L21, 'Benefit per Revenue'!$K$17:$K$171, "Peak")+(1-$H$13)*SUMIFS('Benefit per Revenue'!$N$17:$N$171,'Benefit per Revenue'!$M$17:$M$171, 'Benefit per Revenue all trains'!L21, 'Benefit per Revenue'!$K$17:$K$171, "Off-Peak") -> 1.288918821
G22: Abellio Greater Anglia | H22: EB | I22: EB04 | J22: Anglia Inter City | L22: EB04 / Anglia Inter City | M22: =SUMIFS('Benefit per Revenue'!$N$17:$N$171,'Benefit per Revenue'!$M$17:$M$171, 'Benefit per Revenue all trains'!L22, 'Benefit per Revenue'!$K$17:$K$171, "All trains")+$H$13*SUMIFS('Benefit per Revenue'!$N$17:$N$171,'Benefit per Revenue'!$M$17:$M$171, 'Benefit per Revenue all trains'!L22, 'Benefit per Revenue'!$K$17:$K$171, "Peak")+(1-$H$13)*SUMIFS('Benefit per Revenue'!$N$17:$N$171,'Benefit per Revenue'!$M$17:$M$171, 'Benefit per Revenue all trains'!L22, 'Benefit per Revenue'!$K$17:$K$171, "Off-Peak") -> 1.099578341
G23: Abellio Greater Anglia | H23: EB | I23: EB05 | J23: Anglia Locals | L23: EB05 / Anglia Locals | M23: =SUMIFS('Benefit per Revenue'!$N$17:$N$171,'Benefit per Revenue'!$M$17:$M$171, 'Benefit per Revenue all trains'!L23, 'Benefit per Revenue'!$K$17:$K$171, "All trains")+$H$13*SUMIFS('Benefit per Revenue'!$N$17:$N$171,'Benefit per Revenue'!$M$17:$M$171, 'Benefit per Revenue all trains'!L23, 'Benefit per Revenue'!$K$17:$K$171, "Peak")+(1-$H$13)*SUMIFS('Benefit per Revenue'!$N$17:$N$171,'Benefit per Revenue'!$M$17:$M$171, 'Benefit per Revenue all trains'!L23, 'Benefit per Revenue'!$K$17:$K$171, "Off-Peak") -> 2.441248162
G24: Abellio Greater Anglia | H24: EB | I24: EB06 | J24: West Anglia Outers | L24: EB06 / West Anglia Outers | M24: =SUMIFS('Benefit per Revenue'!$N$17:$N$171,'Benefit per Revenue'!$M$17:$M$171, 'Benefit per Revenue all trains'!L24, 'Benefit per Revenue'!$K$17:$K$171, "All trains")+$H$13*SUMIFS('Benefit per Revenue'!$N$17:$N$171,'Benefit per Revenue'!$M$17:$M$171, 'Benefit per Revenue all trains'!L24, 'Benefit per Revenue'!$K$17:$K$171, "Peak")+(1-$H$13)*SUMIFS('Benefit per Revenue'!$N$17:$N$171,'Benefit per Revenue'!$M$17:$M$171, 'Benefit per Revenue all trains'!L24, 'Benefit per Revenue'!$K$17:$K$171, "Off-Peak") -> 1.02750203
G25: Abellio Greater Anglia | H25: EB | I25: EB07 | J25: West Anglia Inners | L25: EB07 / West Anglia Inners | M25: =SUMIFS('Benefit per Revenue'!$N$17:$N$171,'Benefit per Revenue'!$M$17:$M$171, 'Benefit per Revenue all trains'!L25, 'Benefit per Revenue'!$K$17:$K$171, "All trains")+$H$13*SUMIFS('Benefit per Revenue'!$N$17:$N$171,'Benefit per Revenue'!$M$17:$M$171, 'Benefit per Revenue all trains'!L25, 'Benefit per Revenue'!$K$17:$K$171, "Peak")+(1-$H$13)*SUMIFS('Benefit per Revenue'!$N$17:$N$171,'Benefit per Revenue'!$M$17:$M$171, 'Benefit per Revenue all trains'!L25, 'Benefit per Revenue'!$K$17:$K$171, "Off-Peak") -> 5.473739493
G26: Grand Central | H26: EC | I26: EC01 | J26: Kings x - Sunderland | L26: EC01 / Kings x - Sunderland | M26: =SUMIFS('Benefit per Revenue'!$N$17:$N$171,'Benefit per Revenue'!$M$17:$M$171, 'Benefit per Revenue all trains'!L26, 'Benefit per Revenue'!$K$17:$K$171, "All trains")+$H$13*SUMIFS('Benefit per Revenue'!$N$17:$N$171,'Benefit per Revenue'!$M$17:$M$171, 'Benefit per Revenue all trains'!L26, 'Benefit per Revenue'!$K$17:$K$171, "Peak")+(1-$H$13)*SUMIFS('Benefit per Revenue'!$N$17:$N$171,'Benefit per Revenue'!$M$17:$M$171, 'Benefit per Revenue all trains'!L26, 'Benefit per Revenue'!$K$17:$K$171, "Off-Peak") -> 1.565413544
G27: Grand Central | H27: EC | I27: EC02 | J27: Kings x - Bradford | L27: EC02 / Kings x - Bradford | M27: =SUMIFS('Benefit per Revenue'!$N$17:$N$171,'Benefit per Revenue'!$M$17:$M$171, 'Benefit per Revenue all trains'!L27, 'Benefit per Revenue'!$K$17:$K$171, "All trains")+$H$13*SUMIFS('Benefit per Revenue'!$N$17:$N$171,'Benefit per Revenue'!$M$17:$M$171, 'Benefit per Revenue all trains'!L27, 'Benefit per Revenue'!$K$17:$K$171, "Peak")+(1-$H$13)*SUMIFS('Benefit per Revenue'!$N$17:$N$171,'Benefit per Revenue'!$M$17:$M$171, 'Benefit per Revenue all trains'!L27, 'Benefit per Revenue'!$K$17:$K$171, "Off-Peak") -> 1.687718529
G28: Northern Rail | H28: ED | I28: ED01 | J28: Tyne, Tees & Wear | L28: ED01 / Tyne, Tees & Wear | M28: =SUMIFS('Benefit per Revenue'!$N$17:$N$171,'Benefit per Revenue'!$M$17:$M$171, 'Benefit per Revenue all trains'!L28, 'Benefit per Revenue'!$K$17:$K$171, "All trains")+$H$13*SUMIFS('Benefit per Revenue'!$N$17:$N$171,'Benefit per Revenue'!$M$17:$M$171, 'Benefit per Revenue all trains'!L28, 'Benefit per Revenue'!$K$17:$K$171, "Peak")+(1-$H$13)*SUMIFS('Benefit per Revenue'!$N$17:$N$171,'Benefit per Revenue'!$M$17:$M$171, 'Benefit per Revenue all trains'!L28, 'Benefit per Revenue'!$K$17:$K$171, "Off-Peak") -> 3.767594182
G29: Northern Rail | H29: ED | I29: ED02 | J29: Lancashire & Cumbria | L29: ED02 / Lancashire & Cumbria | M29: =SUMIFS('Benefit per Revenue'!$N$17:$N$171,'Benefit per Revenue'!$M$17:$M$171, 'Benefit per Revenue all trains'!L29, 'Benefit per Revenue'!$K$17:$K$171, "All trains")+$H$13*SUMIFS('Benefit per Revenue'!$N$17:$N$171,'Benefit per Revenue'!$M$17:$M$171, 'Benefit per Revenue all trains'!L29, 'Benefit per Revenue'!$K$17:$K$171, "Peak")+(1-$H$13)*SUMIFS('Benefit per Revenue'!$N$17:$N$171,'Benefit per Revenue'!$M$17:$M$171, 'Benefit per Revenue all trains'!L29, 'Benefit per Revenue'!$K$17:$K$171, "Off-Peak") -> 2.999649881
G30: Northern Rail | H30: ED | I30: ED04 | J30: West & North Yorkshire Inter Urban | L30: ED04 / West & North Yorkshire Inter Urban | M30: =SUMIFS('Benefit per Revenue'!$N$17:$N$171,'Benefit per Revenue'!$M$17:$M$171, 'Benefit per Revenue all trains'!L30, 'Benefit per Revenue'!$K$17:$K$171, "All trains")+$H$13*SUMIFS('Benefit per Revenue'!$N$17:$N$171,'Benefit per Revenue'!$M$17:$M$171, 'Benefit per Revenue all trains'!L30, 'Benefit per Revenue'!$K$17:$K$171, "Peak")+(1-$H$13)*SUMIFS('Benefit per Revenue'!$N$17:$N$171,'Benefit per Revenue'!$M$17:$M$171, 'Benefit per Revenue all trains'!L30, 'Benefit per Revenue'!$K$17:$K$171, "Off-Peak") -> 3.793195643
G31: Northern Rail | H31: ED | I31: ED05 | J31: West & North Yorkshire Local | L31: ED05 / West & North Yorkshire Local | M31: =SUMIFS('Benefit per Revenue'!$N$17:$N$171,'Benefit per Revenue'!$M$17:$M$171, 'Benefit per Revenue all trains'!L31, 'Benefit per Revenue'!$K$17:$K$171, "All trains")+$H$13*SUMIFS('Benefit per Revenue'!$N$17:$N$171,'Benefit per Revenue'!$M$17:$M$171, 'Benefit per Revenue all trains'!L31, 'Benefit per Revenue'!$K$17:$K$171, "Peak")+(1-$H$13)*SUMIFS('Benefit per Revenue'!$N$17:$N$171,'Benefit per Revenue'!$M$17:$M$171, 'Benefit per Revenue all trains'!L31, 'Benefit per Revenue'!$K$17:$K$171, "Off-Peak") -> 2.766997642
G32: Northern Rail | H32: ED | I32: ED06 | J32: South & East Yorkshire Inter Urban | L32: ED06 / South & East Yorkshire Inter Urban | M32: =SUMIFS('Benefit per Revenue'!$N$17:$N$171,'Benefit per Revenue'!$M$17:$M$171, 'Benefit per Revenue all trains'!L32, 'Benefit per Revenue'!$K$17:$K$171, "All trains")+$H$13*SUMIFS('Benefit per Revenue'!$N$17:$N$171,'Benefit per Revenue'!$M$17:$M$171, 'Benefit per Revenue all trains'!L32, 'Benefit per Revenue'!$K$17:$K$171, "Peak")+(1-$H$13)*SUMIFS('Benefit per Revenue'!$N$17:$N$171,'Benefit per Revenue'!$M$17:$M$171, 'Benefit per Revenue all trains'!L32, 'Benefit per Revenue'!$K$17:$K$171, "Off-Peak") -> 3.206421617
G33: Northern Rail | H33: ED | I33: ED07 | J33: South & East Yorkshire Local | L33: ED07 / South & East Yorkshire Local | M33: =SUMIFS('Benefit per Revenue'!$N$17:$N$171,'Benefit per Revenue'!$M$17:$M$171, 'Benefit per Revenue all trains'!L33, 'Benefit per Revenue'!$K$17:$K$171, "All trains")+$H$13*SUMIFS('Benefit per Revenue'!$N$17:$N$171,'Benefit per Revenue'!$M$17:$M$171, 'Benefit per Revenue all trains'!L33, 'Benefit per Revenue'!$K$17:$K$171, "Peak")+(1-$H$13)*SUMIFS('Benefit per Revenue'!$N$17:$N$171,'Benefit per Revenue'!$M$17:$M$171, 'Benefit per Revenue all trains'!L33, 'Benefit per Revenue'!$K$17:$K$171, "Off-Peak") -> 3.444004563
G34: Northern Rail | H34: ED | I34: ED08 | J34: North Manchester | L34: ED08 / North Manchester | M34: =SUMIFS('Benefit per Revenue'!$N$17:$N$171,'Benefit per Revenue'!$M$17:$M$171, 'Benefit per Revenue all trains'!L34, 'Benefit per Revenue'!$K$17:$K$171, "All trains")+$H$13*SUMIFS('Benefit per Revenue'!$N$17:$N$171,'Benefit per Revenue'!$M$17:$M$171, 'Benefit per Revenue all trains'!L34, 'Benefit per Revenue'!$K$17:$K$171, "Peak")+(1-$H$13)*SUMIFS('Benefit per Revenue'!$N$17:$N$171,'Benefit per Revenue'!$M$17:$M$171, 'Benefit per Revenue all trains'!L34, 'Benefit per Revenue'!$K$17:$K$171, "Off-Peak") -> 3.355314052
G35: Northern Rail | H35: ED | I35: ED09 | J35: Merseyrail City Lines | L35: ED09 / Merseyrail City Lines | M35: =SUMIFS('Benefit per Revenue'!$N$17:$N$171,'Benefit per Revenue'!$M$17:$M$171, 'Benefit per Revenue all trains'!L35, 'Benefit per Revenue'!$K$17:$K$171, "All trains")+$H$13*SUMIFS('Benefit per Revenue'!$N$17:$N$171,'Benefit per Revenue'!$M$17:$M$171, 'Benefit per Revenue all trains'!L35, 'Benefit per Revenue'!$K$17:$K$171, "Peak")+(1-$H$13)*SUMIFS('Benefit per Revenue'!$N$17:$N$171,'Benefit per Revenue'!$M$17:$M$171, 'Benefit per Revenue all trains'!L35, 'Benefit per Revenue'!$K$17:$K$171, "Off-Peak") -> 2.64946565
G36: Northern Rail | H36: ED | I36: ED10 | J36: South Manchester | L36: ED10 / South Manchester | M36: =SUMIFS('Benefit per Revenue'!$N$17:$N$171,'Benefit per Revenue'!$M$17:$M$171, 'Benefit per Revenue all trains'!L36, 'Benefit per Revenue'!$K$17:$K$171, "All trains")+$H$13*SUMIFS('Benefit per Revenue'!$N$17:$N$171,'Benefit per Revenue'!$M$17:$M$171, 'Benefit per Revenue all trains'!L36, 'Benefit per Revenue'!$K$17:$K$171, "Peak")+(1-$H$13)*SUMIFS('Benefit per Revenue'!$N$17:$N$171,'Benefit per Revenue'!$M$17:$M$171, 'Benefit per Revenue all trains'!L36, 'Benefit per Revenue'!$K$17:$K$171, "Off-Peak") -> 2.981381081
G37: Northern Rail | H37: ED | I37: ED11 | J37: Lancashire & Cumbria Inter Urban | L37: ED11 / Lancashire & Cumbria Inter Urban | M37: =SUMIFS('Benefit per Revenue'!$N$17:$N$171,'Benefit per Revenue'!$M$17:$M$171, 'Benefit per Revenue all trains'!L37, 'Benefit per Revenue'!$K$17:$K$171, "All trains")+$H$13*SUMIFS('Benefit per Revenue'!$N$17:$N$171,'Benefit per Revenue'!$M$17:$M$171, 'Benefit per Revenue all trains'!L37, 'Benefit per Revenue'!$K$17:$K$171, "Peak")+(1-$H$13)*SUMIFS('Benefit per Revenue'!$N$17:$N$171,'Benefit per Revenue'!$M$17:$M$171, 'Benefit per Revenue all trains'!L37, 'Benefit per Revenue'!$K$17:$K$171, "Off-Peak") -> 2.645907723
G38: Heathrow Connect | H38: EE | I38: EE01 | J38: Heathrow Local Service | L38: EE01 / Heathrow Local Service | M38: =SUMIFS('Benefit per Revenue'!$N$17:$N$171,'Benefit per Revenue'!$M$17:$M$171, 'Benefit per Revenue all trains'!L38, 'Benefit per Revenue'!$K$17:$K$171, "All trains")+$H$13*SUMIFS('Benefit per Revenue'!$N$17:$N$171,'Benefit per Revenue'!$M$17:$M$171, 'Benefit per Revenue all trains'!L38, 'Benefit per Revenue'!$K$17:$K$171, "Peak")+(1-$H$13)*SUMIFS('Benefit per Revenue'!$N$17:$N$171,'Benefit per Revenue'!$M$17:$M$171, 'Benefit per Revenue all trains'!L38, 'Benefit per Revenue'!$K$17:$K$171, "Off-Peak") -> 1.204914635
G39: Heathrow Connect | H39: EE | I39: EE02 | J39: Hayes & Harlington Shuttle | L39: EE02 / Hayes & Harlington Shuttle | M39: =SUMIFS('Benefit per Revenue'!$N$17:$N$171,'Benefit per Revenue'!$M$17:$M$171, 'Benefit per Revenue all trains'!L39, 'Benefit per Revenue'!$K$17:$K$171, "All trains")+$H$13*SUMIFS('Benefit per Revenue'!$N$17:$N$171,'Benefit per Revenue'!$M$17:$M$171, 'Benefit per Revenue all trains'!L39, 'Benefit per Revenue'!$K$17:$K$171, "Peak")+(1-$H$13)*SUMIFS('Benefit per Revenue'!$N$17:$N$171,'Benefit per Revenue'!$M$17:$M$171, 'Benefit per Revenue all trains'!L39, 'Benefit per Revenue'!$K$17:$K$171, "Off-Peak") -> 1.204914635
G40: Great Western Railway | H40: EF | I40: EF01 | J40: London - Bristol | L40: EF01 / London - Bristol | M40: =SUMIFS('Benefit per Revenue'!$N$17:$N$171,'Benefit per Revenue'!$M$17:$M$171, 'Benefit per Revenue all trains'!L40, 'Benefit per Revenue'!$K$17:$K$171, "All trains")+$H$13*SUMIFS('Benefit per Revenue'!$N$17:$N$171,'Benefit per Revenue'!$M$17:$M$171, 'Benefit per Revenue all trains'!L40, 'Benefit per Revenue'!$K$17:$K$171, "Peak")+(1-$H$13)*SUMIFS('Benefit per Revenue'!$N$17:$N$171,'Benefit per Revenue'!$M$17:$M$171, 'Benefit per Revenue all trains'!L40, 'Benefit per Revenue'!$K$17:$K$171, "Off-Peak") -> 0.8690899967
G41: Great Western Railway | H41: EF | I41: EF02 | J41: London - South Wales | L41: EF02 / London - South Wales | M41: =SUMIFS('Benefit per Revenue'!$N$17:$N$171,'Benefit per Revenue'!$M$17:$M$171, 'Benefit per Revenue all trains'!L41, 'Benefit per Revenue'!$K$17:$K$171, "All trains")+$H$13*SUMIFS('Benefit per Revenue'!$N$17:$N$171,'Benefit per Revenue'!$M$17:$M$171, 'Benefit per Revenue all trains'!L41, 'Benefit per Revenue'!$K$17:$K$171, "Peak")+(1-$H$13)*SUMIFS('Benefit per Revenue'!$N$17:$N$171,'Benefit per Revenue'!$M$17:$M$171, 'Benefit per Revenue all trains'!L41, 'Benefit per Revenue'!$K$17:$K$171, "Off-Peak") -> 0.8877982967
G42: Great Western Railway | H42: EF | I42: EF03 | J42: London - Cotswolds | L42: EF03 / London - Cotswolds | M42: =SUMIFS('Benefit per Revenue'!$N$17:$N$171,'Benefit per Revenue'!$M$17:$M$171, 'Benefit per Revenue all trains'!L42, 'Benefit per Revenue'!$K$17:$K$171, "All trains")+$H$13*SUMIFS('Benefit per Revenue'!$N$17:$N$171,'Benefit per Revenue'!$M$17:$M$171, 'Benefit per Revenue all trains'!L42, 'Benefit per Revenue'!$K$17:$K$171, "Peak")+(1-$H$13)*SUMIFS('Benefit per Revenue'!$N$17:$N$171,'Benefit per Revenue'!$M$17:$M$171, 'Benefit per Revenue all trains'!L42, 'Benefit per Revenue'!$K$17:$K$171, "Off-Peak") -> 1.07559349
G43: Great Western Railway | H43: EF | I43: EF04 | J43: London - West Of England | L43: EF04 / London - West Of England | M43: =SUMIFS('Benefit per Revenue'!$N$17:$N$171,'Benefit per Revenue'!$M$17:$M$171, 'Benefit per Revenue all trains'!L43, 'Benefit per Revenue'!$K$17:$K$171, "All trains")+$H$13*SUMIFS('Benefit per Revenue'!$N$17:$N$171,'Benefit per Revenue'!$M$17:$M$171, 'Benefit per Revenue all trains'!L43, 'Benefit per Revenue'!$K$17:$K$171, "Peak")+(1-$H$13)*SUMIFS('Benefit per Revenue'!$N$17:$N$171,'Benefit per Revenue'!$M$17:$M$171, 'Benefit per Revenue all trains'!L43, 'Benefit per Revenue'!$K$17:$K$171, "Off-Peak") -> 1.040008797
G44: Great Western Railway | H44: EF | I44: EF05 | J44: Outer Thames Valley - London | L44: EF05 / Outer Thames Valley - London | M44: =SUMIFS('Benefit per Revenue'!$N$17:$N$171,'Benefit per Revenue'!$M$17:$M$171, 'Benefit per Revenue all trains'!L44, 'Benefit per Revenue'!$K$17:$K$171, "All trains")+$H$13*SUMIFS('Benefit per Revenue'!$N$17:$N$171,'Benefit per Revenue'!$M$17:$M$171, 'Benefit per Revenue all trains'!L44, 'Benefit per Revenue'!$K$17:$K$171, "Peak")+(1-$H$13)*SUMIFS('Benefit per Revenue'!$N$17:$N$171,'Benefit per Revenue'!$M$17:$M$171, 'Benefit per Revenue all trains'!L44, 'Benefit per Revenue'!$K$17:$K$171, "Off-Peak") -> 1.6879202
G45: Great Western Railway | H45: EF | I45: EF06 | J45: Inner Thames Valley - London | L45: EF06 / Inner Thames Valley - London | M45: =SUMIFS('Benefit per Revenue'!$N$17:$N$171,'Benefit per Revenue'!$M$17:$M$171, 'Benefit per Revenue all trains'!L45, 'Benefit per Revenue'!$K$17:$K$171, "All trains")+$H$13*SUMIFS('Benefit per Revenue'!$N$17:$N$171,'Benefit per Revenue'!$M$17:$M$171, 'Benefit per Revenue all trains'!L45, 'Benefit per Revenue'!$K$17:$K$171, "Peak")+(1-$H$13)*SUMIFS('Benefit per Revenue'!$N$17:$N$171,'Benefit per Revenue'!$M$17:$M$171, 'Benefit per Revenue all trains'!L45, 'Benefit per Revenue'!$K$17:$K$171, "Off-Peak") -> 2.515533337
G46: Great Western Railway | H46: EF | I46: EF07 | J46: Reading & Oxford Suburban | L46: EF07 / Reading & Oxford Suburban | M46: =SUMIFS('Benefit per Revenue'!$N$17:$N$171,'Benefit per Revenue'!$M$17:$M$171, 'Benefit per Revenue all trains'!L46, 'Benefit per Revenue'!$K$17:$K$171, "All trains")+$H$13*SUMIFS('Benefit per Revenue'!$N$17:$N$171,'Benefit per Revenue'!$M$17:$M$171, 'Benefit per Revenue all trains'!L46, 'Benefit per Revenue'!$K$17:$K$171, "Peak")+(1-$H$13)*SUMIFS('Benefit per Revenue'!$N$17:$N$171,'Benefit per Revenue'!$M$17:$M$171, 'Benefit per Revenue all trains'!L46, 'Benefit per Revenue'!$K$17:$K$171, "Off-Peak") -> 2.711492894
G47: Great Western Railway | H47: EF | I47: EF08 | J47: Thames Valley Branches | L47: EF08 / Thames Valley Branches | M47: =SUMIFS('Benefit per Revenue'!$N$17:$N$171,'Benefit per Revenue'!$M$17:$M$171, 'Benefit per Revenue all trains'!L47, 'Benefit per Revenue'!$K$17:$K$171, "All trains")+$H$13*SUMIFS('Benefit per Revenue'!$N$17:$N$171,'Benefit per Revenue'!$M$17:$M$171, 'Benefit per Revenue all trains'!L47, 'Benefit per Revenue'!$K$17:$K$171, "Peak")+(1-$H$13)*SUMIFS('Benefit per Revenue'!$N$17:$N$171,'Benefit per Revenue'!$M$17:$M$171, 'Benefit per Revenue all trains'!L47, 'Benefit per Revenue'!$K$17:$K$171, "Off-Peak") -> 5.88753509
G48: Great Western Railway | H48: EF | I48: EF09 | J48: North Downs | L48: EF09 / North Downs | M48: =SUMIFS('Benefit per Revenue'!$N$17:$N$171,'Benefit per Revenue'!$M$17:$M$171, 'Benefit per Revenue all trains'!L48, 'Benefit per Revenue'!$K$17:$K$171, "All trains")+$H$13*SUMIFS('Benefit per Revenue'!$N$17:$N$171,'Benefit per Revenue'!$M$17:$M$171, 'Benefit per Revenue all trains'!L48, 'Benefit per Revenue'!$K$17:$K$171, "Peak")+(1-$H$13)*SUMIFS('Benefit per Revenue'!$N$17:$N$171,'Benefit per Revenue'!$M$17:$M$171, 'Benefit per Revenue all trains'!L48, 'Benefit per Revenue'!$K$17:$K$171, "Off-Peak") -> 2.040206892
G49: Great Western Railway | H49: EF | I49: EF10 | J49: Bristol Suburban | L49: =I49&" / "&J49&"" -> EF10 / Bristol Suburban | M49: =SUMIFS('Benefit per Revenue'!$N$17:$N$171,'Benefit per Revenue'!$M$17:$M$171, 'Benefit per Revenue all trains'!L49, 'Benefit per Revenue'!$K$17:$K$171, "All trains")+$H$13*SUMIFS('Benefit per Revenue'!$N$17:$N$171,'Benefit per Revenue'!$M$17:$M$171, 'Benefit per Revenue all trains'!L49, 'Benefit per Revenue'!$K$17:$K$171, "Peak")+(1-$H$13)*SUMIFS('Benefit per Revenue'!$N$17:$N$171,'Benefit per Revenue'!$M$17:$M$171, 'Benefit per Revenue all trains'!L49, 'Benefit per Revenue'!$K$17:$K$171, "Off-Peak") -> 2.622518065
G50: Great Western Railway | H50: EF | I50: EF11 | J50: Devon | L50: EF11 / Devon | M50: =SUMIFS('Benefit per Revenue'!$N$17:$N$171,'Benefit per Revenue'!$M$17:$M$171, 'Benefit per Revenue all trains'!L50, 'Benefit per Revenue'!$K$17:$K$171, "All trains")+$H$13*SUMIFS('Benefit per Revenue'!$N$17:$N$171,'Benefit per Revenue'!$M$17:$M$171, 'Benefit per Revenue all trains'!L50, 'Benefit per Revenue'!$K$17:$K$171, "Peak")+(1-$H$13)*SUMIFS('Benefit per Revenue'!$N$17:$N$171,'Benefit per Revenue'!$M$17:$M$171, 'Benefit per Revenue all trains'!L50, 'Benefit per Revenue'!$K$17:$K$171, "Off-Peak") -> 3.612794371
G51: Great Western Railway | H51: EF | I51: EF12 | J51: Plymouth & Cornwall | L51: EF12 / Plymouth & Cornwall | M51: =SUMIFS('Benefit per Revenue'!$N$17:$N$171,'Benefit per Revenue'!$M$17:$M$171, 'Benefit per Revenue all trains'!L51, 'Benefit per Revenue'!$K$17:$K$171, "All trains")+$H$13*SUMIFS('Benefit per Revenue'!$N$17:$N$171,'Benefit per Revenue'!$M$17:$M$171, 'Benefit per Revenue all trains'!L51, 'Benefit per Revenue'!$K$17:$K$171, "Peak")+(1-$H$13)*SUMIFS('Benefit per Revenue'!$N$17:$N$171,'Benefit per Revenue'!$M$17:$M$171, 'Benefit per Revenue all trains'!L51, 'Benefit per Revenue'!$K$17:$K$171, "Off-Peak") -> 4.074238723
G52: Great Western Railway | H52: EF | I52: EF13 | J52: South Wales - South Coast | L52: EF13 / South Wales - South Coast | M52: =SUMIFS('Benefit per Revenue'!$N$17:$N$171,'Benefit per Revenue'!$M$17:$M$171, 'Benefit per Revenue all trains'!L52, 'Benefit per Revenue'!$K$17:$K$171, "All trains")+$H$13*SUMIFS('Benefit per Revenue'!$N$17:$N$171,'Benefit per Revenue'!$M$17:$M$171, 'Benefit per Revenue all trains'!L52, 'Benefit per Revenue'!$K$17:$K$171, "Peak")+(1-$H$13)*SUMIFS('Benefit per Revenue'!$N$17:$N$171,'Benefit per Revenue'!$M$17:$M$171, 'Benefit per Revenue all trains'!L52, 'Benefit per Revenue'!$K$17:$K$171, "Off-Peak") -> 2.067342146
G53: CrossCountry | H53: EH | I53: EH01 | J53: CrossCountry Inter City | L53: EH01 / CrossCountry Inter City | M53: =SUMIFS('Benefit per Revenue'!$N$17:$N$171,'Benefit per Revenue'!$M$17:$M$171, 'Benefit per Revenue all trains'!L53, 'Benefit per Revenue'!$K$17:$K$171, "All trains")+$H$13*SUMIFS('Benefit per Revenue'!$N$17:$N$171,'Benefit per Revenue'!$M$17:$M$171, 'Benefit per Revenue all trains'!L53, 'Benefit per Revenue'!$K$17:$K$171, "Peak")+(1-$H$13)*SUMIFS('Benefit per Revenue'!$N$17:$N$171,'Benefit per Revenue'!$M$17:$M$171, 'Benefit per Revenue all trains'!L53, 'Benefit per Revenue'!$K$17:$K$171, "Off-Peak") -> 1.23354161
G54: CrossCountry | H54: EH | I54: EH02 | J54: CrossCountry Local & Provincial | L54: EH02 / CrossCountry Local & Provincial | M54: =SUMIFS('Benefit per Revenue'!$N$17:$N$171,'Benefit per Revenue'!$M$17:$M$171, 'Benefit per Revenue all trains'!L54, 'Benefit per Revenue'!$K$17:$K$171, "All trains")+$H$13*SUMIFS('Benefit per Revenue'!$N$17:$N$171,'Benefit per Revenue'!$M$17:$M$171, 'Benefit per Revenue all trains'!L54, 'Benefit per Revenue'!$K$17:$K$171, "Peak")+(1-$H$13)*SUMIFS('Benefit per Revenue'!$N$17:$N$171,'Benefit per Revenue'!$M$17:$M$171, 'Benefit per Revenue all trains'!L54, 'Benefit per Revenue'!$K$17:$K$171, "Off-Peak") -> 1.725584087
G55: London Midland | H55: EJ | I55: EJ01 | J55: West Midlands - Snow Hill | L55: EJ01 / West Midlands - Snow Hill | M55: =SUMIFS('Benefit per Revenue'!$N$17:$N$171,'Benefit per Revenue'!$M$17:$M$171, 'Benefit per Revenue all trains'!L55, 'Benefit per Revenue'!$K$17:$K$171, "All trains")+$H$13*SUMIFS('Benefit per Revenue'!$N$17:$N$171,'Benefit per Revenue'!$M$17:$M$171, 'Benefit per Revenue all trains'!L55, 'Benefit per Revenue'!$K$17:$K$171, "Peak")+(1-$H$13)*SUMIFS('Benefit per Revenue'!$N$17:$N$171,'Benefit per Revenue'!$M$17:$M$171, 'Benefit per Revenue all trains'!L55, 'Benefit per Revenue'!$K$17:$K$171, "Off-Peak") -> 3.783394893
G56: London Midland | H56: EJ | I56: EJ02 | J56: Trent Valley | L56: EJ02 / Trent Valley | M56: =SUMIFS('Benefit per Revenue'!$N$17:$N$171,'Benefit per Revenue'!$M$17:$M$171, 'Benefit per Revenue all trains'!L56, 'Benefit per Revenue'!$K$17:$K$171, "All trains")+$H$13*SUMIFS('Benefit per Revenue'!$N$17:$N$171,'Benefit per Revenue'!$M$17:$M$171, 'Benefit per Revenue all trains'!L56, 'Benefit per Revenue'!$K$17:$K$171, "Peak")+(1-$H$13)*SUMIFS('Benefit per Revenue'!$N$17:$N$171,'Benefit per Revenue'!$M$17:$M$171, 'Benefit per Revenue all trains'!L56, 'Benefit per Revenue'!$K$17:$K$171, "Off-Peak") -> 2.172127319
G57: London Midland | H57: EJ | I57: EJ03 | J57: West Midlands - New Street (Local) | L57: EJ03 / West Midlands - New Street (Local) | M57: =SUMIFS('Benefit per Revenue'!$N$17:$N$171,'Benefit per Revenue'!$M$17:$M$171, 'Benefit per Revenue all trains'!L57, 'Benefit per Revenue'!$K$17:$K$171, "All trains")+$H$13*SUMIFS('Benefit per Revenue'!$N$17:$N$171,'Benefit per Revenue'!$M$17:$M$171, 'Benefit per Revenue all trains'!L57, 'Benefit per Revenue'!$K$17:$K$171, "Peak")+(1-$H$13)*SUMIFS('Benefit per Revenue'!$N$17:$N$171,'Benefit per Revenue'!$M$17:$M$171, 'Benefit per Revenue all trains'!L57, 'Benefit per Revenue'!$K$17:$K$171, "Off-Peak") -> 3.116810575
G58: London Midland | H58: EJ | I58: EJ04 | J58: West Midlands Inter Urban | L58: EJ04 / West Midlands Inter Urban | M58: =SUMIFS('Benefit per Revenue'!$N$17:$N$171,'Benefit per Revenue'!$M$17:$M$171, 'Benefit per Revenue all trains'!L58, 'Benefit per Revenue'!$K$17:$K$171, "All trains")+$H$13*SUMIFS('Benefit per Revenue'!$N$17:$N$171,'Benefit per Revenue'!$M$17:$M$171, 'Benefit per Revenue all trains'!L58, 'Benefit per Revenue'!$K$17:$K$171, "Peak")+(1-$H$13)*SUMIFS('Benefit per Revenue'!$N$17:$N$171,'Benefit per Revenue'!$M$17:$M$171, 'Benefit per Revenue all trains'!L58, 'Benefit per Revenue'!$K$17:$K$171, "Off-Peak") -> 1.949223085
G59: London Midland | H59: EJ | I59: EJ05 | J59: WCML : London - Northampton | L59: EJ05 / WCML : London - Northampton | M59: =SUMIFS('Benefit per Revenue'!$N$17:$N$171,'Benefit per Revenue'!$M$17:$M$171, 'Benefit per Revenue all trains'!L59, 'Benefit per Revenue'!$K$17:$K$171, "All trains")+$H$13*SUMIFS('Benefit per Revenue'!$N$17:$N$171,'Benefit per Revenue'!$M$17:$M$171, 'Benefit per Revenue all trains'!L59, 'Benefit per Revenue'!$K$17:$K$171, "Peak")+(1-$H$13)*SUMIFS('Benefit per Revenue'!$N$17:$N$171,'Benefit per Revenue'!$M$17:$M$171, 'Benefit per Revenue all trains'!L59, 'Benefit per Revenue'!$K$17:$K$171, "Off-Peak") -> 1.314455568
G60: London Midland | H60: EJ | I60: EJ06 | J60: WCML : Branches | L60: EJ06 / WCML : Branches | M60: =SUMIFS('Benefit per Revenue'!$N$17:$N$171,'Benefit per Revenue'!$M$17:$M$171, 'Benefit per Revenue all trains'!L60, 'Benefit per Revenue'!$K$17:$K$171, "All trains")+$H$13*SUMIFS('Benefit per Revenue'!$N$17:$N$171,'Benefit per Revenue'!$M$17:$M$171, 'Benefit per Revenue all trains'!L60, 'Benefit per Revenue'!$K$17:$K$171, "Peak")+(1-$H$13)*SUMIFS('Benefit per Revenue'!$N$17:$N$171,'Benefit per Revenue'!$M$17:$M$171, 'Benefit per Revenue all trains'!L60, 'Benefit per Revenue'!$K$17:$K$171, "Off-Peak") -> 4.261137384
G61: LOROL | H61: EK | I61: EK01 | J61: Orbitals | L61: EK01 / Orbitals | M61: =SUMIFS('Benefit per Revenue'!$N$17:$N$171,'Benefit per Revenue'!$M$17:$M$171, 'Benefit per Revenue all trains'!L61, 'Benefit per Revenue'!$K$17:$K$171, "All trains")+$H$13*SUMIFS('Benefit per Revenue'!$N$17:$N$171,'Benefit per Revenue'!$M$17:$M$171, 'Benefit per Revenue all trains'!L61, 'Benefit per Revenue'!$K$17:$K$171, "Peak")+(1-$H$13)*SUMIFS('Benefit per Revenue'!$N$17:$N$171,'Benefit per Revenue'!$M$17:$M$171, 'Benefit per Revenue all trains'!L61, 'Benefit per Revenue'!$K$17:$K$171, "Off-Peak") -> 7.261551095
G62: LOROL | H62: EK | I62: EK02 | J62: London - Watford (D.C Lines) | L62: EK02 / London - Watford (D.C Lines) | M62: =SUMIFS('Benefit per Revenue'!$N$17:$N$171,'Benefit per Revenue'!$M$17:$M$171, 'Benefit per Revenue all trains'!L62, 'Benefit per Revenue'!$K$17:$K$171, "All trains")+$H$13*SUMIFS('Benefit per Revenue'!$N$17:$N$171,'Benefit per Revenue'!$M$17:$M$171, 'Benefit per Revenue all trains'!L62, 'Benefit per Revenue'!$K$17:$K$171, "Peak")+(1-$H$13)*SUMIFS('Benefit per Revenue'!$N$17:$N$171,'Benefit per Revenue'!$M$17:$M$171, 'Benefit per Revenue all trains'!L62, 'Benefit per Revenue'!$K$17:$K$171, "Off-Peak") -> 7.168673418
G63: LOROL | H63: EK | I63: EK03 | J63: East London Lines | L63: EK03 / East London Lines | M63: =SUMIFS('Benefit per Revenue'!$N$17:$N$171,'Benefit per Revenue'!$M$17:$M$171, 'Benefit per Revenue all trains'!L63, 'Benefit per Revenue'!$K$17:$K$171, "All trains")+$H$13*SUMIFS('Benefit per Revenue'!$N$17:$N$171,'Benefit per Revenue'!$M$17:$M$171, 'Benefit per Revenue all trains'!L63, 'Benefit per Revenue'!$K$17:$K$171, "Peak")+(1-$H$13)*SUMIFS('Benefit per Revenue'!$N$17:$N$171,'Benefit per Revenue'!$M$17:$M$171, 'Benefit per Revenue all trains'!L63, 'Benefit per Revenue'!$K$17:$K$171, "Off-Peak") -> 5.833730237
G64: LOROL | H64: EK | I64: EK04 | J64: ARL West Anglia | L64: EK04 / ARL West Anglia | M64: =SUMIFS('Benefit per Revenue'!$N$17:$N$171,'Benefit per Revenue'!$M$17:$M$171, 'Benefit per Revenue all trains'!L64, 'Benefit per Revenue'!$K$17:$K$171, "All trains")+$H$13*SUMIFS('Benefit per Revenue'!$N$17:$N$171,'Benefit per Revenue'!$M$17:$M$171, 'Benefit per Revenue all trains'!L64, 'Benefit per Revenue'!$K$17:$K$171, "Peak")+(1-$H$13)*SUMIFS('Benefit per Revenue'!$N$17:$N$171,'Benefit per Revenue'!$M$17:$M$171, 'Benefit per Revenue all trains'!L64, 'Benefit per Revenue'!$K$17:$K$171, "Off-Peak") -> 3.804866955
G65: LOROL | H65: EK | I65: EK05 | J65: Romford – Upminster | L65: EK05 / Romford – Upminster | M65: =SUMIFS('Benefit per Revenue'!$N$17:$N$171,'Benefit per Revenue'!$M$17:$M$171, 'Benefit per Revenue all trains'!L65, 'Benefit per Revenue'!$K$17:$K$171, "All trains")+$H$13*SUMIFS('Benefit per Revenue'!$N$17:$N$171,'Benefit per Revenue'!$M$17:$M$171, 'Benefit per Revenue all trains'!L65, 'Benefit per Revenue'!$K$17:$K$171, "Peak")+(1-$H$13)*SUMIFS('Benefit per Revenue'!$N$17:$N$171,'Benefit per Revenue'!$M$17:$M$171, 'Benefit per Revenue all trains'!L65, 'Benefit per Revenue'!$K$17:$K$171, "Off-Peak") -> 6.473133869
G66: East Midlands Trains | H66: EM | I66: EM01 | J66: East Midlands Local | L66: EM01 / East Midlands Local | M66: =SUMIFS('Benefit per Revenue'!$N$17:$N$171,'Benefit per Revenue'!$M$17:$M$171, 'Benefit per Revenue all trains'!L66, 'Benefit per Revenue'!$K$17:$K$171, "All trains")+$H$13*SUMIFS('Benefit per Revenue'!$N$17:$N$171,'Benefit per Revenue'!$M$17:$M$171, 'Benefit per Revenue all trains'!L66, 'Benefit per Revenue'!$K$17:$K$171, "Peak")+(1-$H$13)*SUMIFS('Benefit per Revenue'!$N$17:$N$171,'Benefit per Revenue'!$M$17:$M$171, 'Benefit per Revenue all trains'!L66, 'Benefit per Revenue'!$K$17:$K$171, "Off-Peak") -> 3.595094792
G67: East Midlands Trains | H67: EM | I67: EM02 | J67: East Midlands Regional | L67: EM02 / East Midlands Regional | M67: =SUMIFS('Benefit per Revenue'!$N$17:$N$171,'Benefit per Revenue'!$M$17:$M$171, 'Benefit per Revenue all trains'!L67, 'Benefit per Revenue'!$K$17:$K$171, "All trains")+$H$13*SUMIFS('Benefit per Revenue'!$N$17:$N$171,'Benefit per Revenue'!$M$17:$M$171, 'Benefit per Revenue all trains'!L67, 'Benefit per Revenue'!$K$17:$K$171, "Peak")+(1-$H$13)*SUMIFS('Benefit per Revenue'!$N$17:$N$171,'Benefit per Revenue'!$M$17:$M$171, 'Benefit per Revenue all trains'!L67, 'Benefit per Revenue'!$K$17:$K$171, "Off-Peak") -> 2.865242663
G68: East Midlands Trains | H68: EM | I68: EM03 | J68: Liverpool - Norwich | L68: EM03 / Liverpool - Norwich | M68: =SUMIFS('Benefit per Revenue'!$N$17:$N$171,'Benefit per Revenue'!$M$17:$M$171, 'Benefit per Revenue all trains'!L68, 'Benefit per Revenue'!$K$17:$K$171, "All trains")+$H$13*SUMIFS('Benefit per Revenue'!$N$17:$N$171,'Benefit per Revenue'!$M$17:$M$171, 'Benefit per Revenue all trains'!L68, 'Benefit per Revenue'!$K$17:$K$171, "Peak")+(1-$H$13)*SUMIFS('Benefit per Revenue'!$N$17:$N$171,'Benefit per Revenue'!$M$17:$M$171, 'Benefit per Revenue all trains'!L68, 'Benefit per Revenue'!$K$17:$K$171, "Off-Peak") -> 1.614358599
G69: East Midlands Trains | H69: EM | I69: EM04 | J69: East Midlands Inter City | L69: EM04 / East Midlands Inter City | M69: =SUMIFS('Benefit per Revenue'!$N$17:$N$171,'Benefit per Revenue'!$M$17:$M$171, 'Benefit per Revenue all trains'!L69, 'Benefit per Revenue'!$K$17:$K$171, "All trains")+$H$13*SUMIFS('Benefit per Revenue'!$N$17:$N$171,'Benefit per Revenue'!$M$17:$M$171, 'Benefit per Revenue all trains'!L69, 'Benefit per Revenue'!$K$17:$K$171, "Peak")+(1-$H$13)*SUMIFS('Benefit per Revenue'!$N$17:$N$171,'Benefit per Revenue'!$M$17:$M$171, 'Benefit per Revenue all trains'!L69, 'Benefit per Revenue'!$K$17:$K$171, "Off-Peak") -> 0.871237378
G70: East Midlands Trains | H70: EM | I70: EM05 | J70: East Midlands Inter Urban | L70: EM05 / East Midlands Inter Urban | M70: =SUMIFS('Benefit per Revenue'!$N$17:$N$171,'Benefit per Revenue'!$M$17:$M$171, 'Benefit per Revenue all trains'!L70, 'Benefit per Revenue'!$K$17:$K$171, "All trains")+$H$13*SUMIFS('Benefit per Revenue'!$N$17:$N$171,'Benefit per Revenue'!$M$17:$M$171, 'Benefit per Revenue all trains'!L70, 'Benefit per Revenue'!$K$17:$K$171, "Peak")+(1-$H$13)*SUMIFS('Benefit per Revenue'!$N$17:$N$171,'Benefit per Revenue'!$M$17:$M$171, 'Benefit per Revenue all trains'!L70, 'Benefit per Revenue'!$K$17:$K$171, "Off-Peak") -> 1.024114795
G71: Caladonian Sleeper (SERCO) | H71: ES | I71: ES01 | J71: Sleepers | L71: ES01 / Sleepers | M71: =SUMIFS('Benefit per Revenue'!$N$17:$N$171,'Benefit per Revenue'!$M$17:$M$171, 'Benefit per Revenue all trains'!L71, 'Benefit per Revenue'!$K$17:$K$171, "All trains")+$H$13*SUMIFS('Benefit per Revenue'!$N$17:$N$171,'Benefit per Revenue'!$M$17:$M$171, 'Benefit per Revenue all trains'!L71, 'Benefit per Revenue'!$K$17:$K$171, "Peak")+(1-$H$13)*SUMIFS('Benefit per Revenue'!$N$17:$N$171,'Benefit per Revenue'!$M$17:$M$171, 'Benefit per Revenue all trains'!L71, 'Benefit per Revenue'!$K$17:$K$171, "Off-Peak") -> 0.6124003215
G72: Thameslink | H72: ET | I72: ET01 | J72: Bedford Mainline | L72: ET01 / Bedford Mainline | M72: =SUMIFS('Benefit per Revenue'!$N$17:$N$171,'Benefit per Revenue'!$M$17:$M$171, 'Benefit per Revenue all trains'!L72, 'Benefit per Revenue'!$K$17:$K$171, "All trains")+$H$13*SUMIFS('Benefit per Revenue'!$N$17:$N$171,'Benefit per Revenue'!$M$17:$M$171, 'Benefit per Revenue all trains'!L72, 'Benefit per Revenue'!$K$17:$K$171, "Peak")+(1-$H$13)*SUMIFS('Benefit per Revenue'!$N$17:$N$171,'Benefit per Revenue'!$M$17:$M$171, 'Benefit per Revenue all trains'!L72, 'Benefit per Revenue'!$K$17:$K$171, "Off-Peak") -> 1.224543948
G73: Thameslink | H73: ET | I73: ET02 | J73: Brighton Mainline | L73: ET02 / Brighton Mainline | M73: =SUMIFS('Benefit per Revenue'!$N$17:$N$171,'Benefit per Revenue'!$M$17:$M$171, 'Benefit per Revenue all trains'!L73, 'Benefit per Revenue'!$K$17:$K$171, "All trains")+$H$13*SUMIFS('Benefit per Revenue'!$N$17:$N$171,'Benefit per Revenue'!$M$17:$M$171, 'Benefit per Revenue all trains'!L73, 'Benefit per Revenue'!$K$17:$K$171, "Peak")+(1-$H$13)*SUMIFS('Benefit per Revenue'!$N$17:$N$171,'Benefit per Revenue'!$M$17:$M$171, 'Benefit per Revenue all trains'!L73, 'Benefit per Revenue'!$K$17:$K$171, "Off-Peak") -> 1.098057122
G74: Thameslink | H74: ET | I74: ET03 | J74: South London | L74: ET03 / South London | M74: =SUMIFS('Benefit per Revenue'!$N$17:$N$171,'Benefit per Revenue'!$M$17:$M$171, 'Benefit per Revenue all trains'!L74, 'Benefit per Revenue'!$K$17:$K$171, "All trains")+$H$13*SUMIFS('Benefit per Revenue'!$N$17:$N$171,'Benefit per Revenue'!$M$17:$M$171, 'Benefit per Revenue all trains'!L74, 'Benefit per Revenue'!$K$17:$K$171, "Peak")+(1-$H$13)*SUMIFS('Benefit per Revenue'!$N$17:$N$171,'Benefit per Revenue'!$M$17:$M$171, 'Benefit per Revenue all trains'!L74, 'Benefit per Revenue'!$K$17:$K$171, "Off-Peak") -> 3.158362835
G75: Thameslink | H75: ET | I75: ET04 | J75: Northern Inners | L75: ET04 / Northern Inners | M75: =SUMIFS('Benefit per Revenue'!$N$17:$N$171,'Benefit per Revenue'!$M$17:$M$171, 'Benefit per Revenue all trains'!L75, 'Benefit per Revenue'!$K$17:$K$171, "All trains")+$H$13*SUMIFS('Benefit per Revenue'!$N$17:$N$171,'Benefit per Revenue'!$M$17:$M$171, 'Benefit per Revenue all trains'!L75, 'Benefit per Revenue'!$K$17:$K$171, "Peak")+(1-$H$13)*SUMIFS('Benefit per Revenue'!$N$17:$N$171,'Benefit per Revenue'!$M$17:$M$171, 'Benefit per Revenue all trains'!L75, 'Benefit per Revenue'!$K$17:$K$171, "Off-Peak") -> 2.49000224
G76: Thameslink | H76: ET | I76: ET05 | J76: Northern Outers | L76: ET05 / Northern Outers | M76: =SUMIFS('Benefit per Revenue'!$N$17:$N$171,'Benefit per Revenue'!$M$17:$M$171, 'Benefit per Revenue all trains'!L76, 'Benefit per Revenue'!$K$17:$K$171, "All trains")+$H$13*SUMIFS('Benefit per Revenue'!$N$17:$N$171,'Benefit per Revenue'!$M$17:$M$171, 'Benefit per Revenue all trains'!L76, 'Benefit per Revenue'!$K$17:$K$171, "Peak")+(1-$H$13)*SUMIFS('Benefit per Revenue'!$N$17:$N$171,'Benefit per Revenue'!$M$17:$M$171, 'Benefit per Revenue all trains'!L76, 'Benefit per Revenue'!$K$17:$K$171, "Off-Peak") -> 1.266260318
G77: Thameslink | H77: ET | I77: ET06 | J77: Thameslink Kent Inner | L77: ET06 / Thameslink Kent Inner | M77: =SUMIFS('Benefit per Revenue'!$N$17:$N$171,'Benefit per Revenue'!$M$17:$M$171, 'Benefit per Revenue all trains'!L77, 'Benefit per Revenue'!$K$17:$K$171, "All trains")+$H$13*SUMIFS('Benefit per Revenue'!$N$17:$N$171,'Benefit per Revenue'!$M$17:$M$171, 'Benefit per Revenue all trains'!L77, 'Benefit per Revenue'!$K$17:$K$171, "Peak")+(1-$H$13)*SUMIFS('Benefit per Revenue'!$N$17:$N$171,'Benefit per Revenue'!$M$17:$M$171, 'Benefit per Revenue all trains'!L77, 'Benefit per Revenue'!$K$17:$K$171, "Off-Peak") -> 1.689587066
G78: Thameslink | H78: ET | I78: ET07 | J78: SN Coastway (Non-London) | L78: ET07 / SN Coastway (Non-London) | M78: =SUMIFS('Benefit per Revenue'!$N$17:$N$171,'Benefit per Revenue'!$M$17:$M$171, 'Benefit per Revenue all trains'!L78, 'Benefit per Revenue'!$K$17:$K$171, "All trains")+$H$13*SUMIFS('Benefit per Revenue'!$N$17:$N$171,'Benefit per Revenue'!$M$17:$M$171, 'Benefit per Revenue all trains'!L78, 'Benefit per Revenue'!$K$17:$K$171, "Peak")+(1-$H$13)*SUMIFS('Benefit per Revenue'!$N$17:$N$171,'Benefit per Revenue'!$M$17:$M$171, 'Benefit per Revenue all trains'!L78, 'Benefit per Revenue'!$K$17:$K$171, "Off-Peak") -> 0.6742794313
G79: Thameslink | H79: ET | I79: ET08 | J79: SN Mainline | L79: ET08 / SN Mainline | M79: =SUMIFS('Benefit per Revenue'!$N$17:$N$171,'Benefit per Revenue'!$M$17:$M$171, 'Benefit per Revenue all trains'!L79, 'Benefit per Revenue'!$K$17:$K$171, "All trains")+$H$13*SUMIFS('Benefit per Revenue'!$N$17:$N$171,'Benefit per Revenue'!$M$17:$M$171, 'Benefit per Revenue all trains'!L79, 'Benefit per Revenue'!$K$17:$K$171, "Peak")+(1-$H$13)*SUMIFS('Benefit per Revenue'!$N$17:$N$171,'Benefit per Revenue'!$M$17:$M$171, 'Benefit per Revenue all trains'!L79, 'Benefit per Revenue'!$K$17:$K$171, "Off-Peak") -> 1.261970905
G80: Thameslink | H80: ET | I80: ET09 | J80: SN South London Metro | L80: ET09 / SN South London Metro | M80: =SUMIFS('Benefit per Revenue'!$N$17:$N$171,'Benefit per Revenue'!$M$17:$M$171, 'Benefit per Revenue all trains'!L80, 'Benefit per Revenue'!$K$17:$K$171, "All trains")+$H$13*SUMIFS('Benefit per Revenue'!$N$17:$N$171,'Benefit per Revenue'!$M$17:$M$171, 'Benefit per Revenue all trains'!L80, 'Benefit per Revenue'!$K$17:$K$171, "Peak")+(1-$H$13)*SUMIFS('Benefit per Revenue'!$N$17:$N$171,'Benefit per Revenue'!$M$17:$M$171, 'Benefit per Revenue all trains'!L80, 'Benefit per Revenue'!$K$17:$K$171, "Off-Peak") -> 3.830202543
G81: Thameslink | H81: ET | I81: ET10 | J81: SN West London Line | L81: =I81&" / "&J81&"" -> ET10 / SN West London Line | M81: =SUMIFS('Benefit per Revenue'!$N$17:$N$171,'Benefit per Revenue'!$M$17:$M$171, 'Benefit per Revenue all trains'!L81, 'Benefit per Revenue'!$K$17:$K$171, "All trains")+$H$13*SUMIFS('Benefit per Revenue'!$N$17:$N$171,'Benefit per Revenue'!$M$17:$M$171, 'Benefit per Revenue all trains'!L81, 'Benefit per Revenue'!$K$17:$K$171, "Peak")+(1-$H$13)*SUMIFS('Benefit per Revenue'!$N$17:$N$171,'Benefit per Revenue'!$M$17:$M$171, 'Benefit per Revenue all trains'!L81, 'Benefit per Revenue'!$K$17:$K$171, "Off-Peak") -> 2.227641109
G82: Thameslink | H82: ET | I82: ET11 | J82: Gatwick Express | L82: ET11 / Gatwick Express | M82: =SUMIFS('Benefit per Revenue'!$N$17:$N$171,'Benefit per Revenue'!$M$17:$M$171, 'Benefit per Revenue all trains'!L82, 'Benefit per Revenue'!$K$17:$K$171, "All trains")+$H$13*SUMIFS('Benefit per Revenue'!$N$17:$N$171,'Benefit per Revenue'!$M$17:$M$171, 'Benefit per Revenue all trains'!L82, 'Benefit per Revenue'!$K$17:$K$171, "Peak")+(1-$H$13)*SUMIFS('Benefit per Revenue'!$N$17:$N$171,'Benefit per Revenue'!$M$17:$M$171, 'Benefit per Revenue all trains'!L82, 'Benefit per Revenue'!$K$17:$K$171, "Off-Peak") -> 0.6574513722
G83: MTR Crossrail | H83: EX | I83: EX01 | J83: Crossrail East | L83: EX01 / Crossrail East | M83: =SUMIFS('Benefit per Revenue'!$N$17:$N$171,'Benefit per Revenue'!$M$17:$M$171, 'Benefit per Revenue all trains'!L83, 'Benefit per Revenue'!$K$17:$K$171, "All trains")+$H$13*SUMIFS('Benefit per Revenue'!$N$17:$N$171,'Benefit per Revenue'!$M$17:$M$171, 'Benefit per Revenue all trains'!L83, 'Benefit per Revenue'!$K$17:$K$171, "Peak")+(1-$H$13)*SUMIFS('Benefit per Revenue'!$N$17:$N$171,'Benefit per Revenue'!$M$17:$M$171, 'Benefit per Revenue all trains'!L83, 'Benefit per Revenue'!$K$17:$K$171, "Off-Peak") -> 3.360433243
G84: ScotRail | H84: HA | I84: HA01 | J84: Express | L84: HA01 / Express | M84: =SUMIFS('Benefit per Revenue'!$N$17:$N$171,'Benefit per Revenue'!$M$17:$M$171, 'Benefit per Revenue all trains'!L84, 'Benefit per Revenue'!$K$17:$K$171, "All trains")+$H$13*SUMIFS('Benefit per Revenue'!$N$17:$N$171,'Benefit per Revenue'!$M$17:$M$171, 'Benefit per Revenue all trains'!L84, 'Benefit per Revenue'!$K$17:$K$171, "Peak")+(1-$H$13)*SUMIFS('Benefit per Revenue'!$N$17:$N$171,'Benefit per Revenue'!$M$17:$M$171, 'Benefit per Revenue all trains'!L84, 'Benefit per Revenue'!$K$17:$K$171, "Off-Peak") -> 1.569766196
G85: ScotRail | H85: HA | I85: HA02 | J85: East Coast Suburban | L85: HA02 / East Coast Suburban | M85: =SUMIFS('Benefit per Revenue'!$N$17:$N$171,'Benefit per Revenue'!$M$17:$M$171, 'Benefit per Revenue all trains'!L85, 'Benefit per Revenue'!$K$17:$K$171, "All trains")+$H$13*SUMIFS('Benefit per Revenue'!$N$17:$N$171,'Benefit per Revenue'!$M$17:$M$171, 'Benefit per Revenue all trains'!L85, 'Benefit per Revenue'!$K$17:$K$171, "Peak")+(1-$H$13)*SUMIFS('Benefit per Revenue'!$N$17:$N$171,'Benefit per Revenue'!$M$17:$M$171, 'Benefit per Revenue all trains'!L85, 'Benefit per Revenue'!$K$17:$K$171, "Off-Peak") -> 2.498000971
G86: ScotRail | H86: HA | I86: HA03 | J86: South West Rural | L86: HA03 / South West Rural | M86: =SUMIFS('Benefit per Revenue'!$N$17:$N$171,'Benefit per Revenue'!$M$17:$M$171, 'Benefit per Revenue all trains'!L86, 'Benefit per Revenue'!$K$17:$K$171, "All trains")+$H$13*SUMIFS('Benefit per Revenue'!$N$17:$N$171,'Benefit per Revenue'!$M$17:$M$171, 'Benefit per Revenue all trains'!L86, 'Benefit per Revenue'!$K$17:$K$171, "Peak")+(1-$H$13)*SUMIFS('Benefit per Revenue'!$N$17:$N$171,'Benefit per Revenue'!$M$17:$M$171, 'Benefit per Revenue all trains'!L86, 'Benefit per Revenue'!$K$17:$K$171, "Off-Peak") -> 3.031908233
G87: ScotRail | H87: HA | I87: HA04 | J87: Highland Rural | L87: HA04 / Highland Rural | M87: =SUMIFS('Benefit per Revenue'!$N$17:$N$171,'Benefit per Revenue'!$M$17:$M$171, 'Benefit per Revenue all trains'!L87, 'Benefit per Revenue'!$K$17:$K$171, "All trains")+$H$13*SUMIFS('Benefit per Revenue'!$N$17:$N$171,'Benefit per Revenue'!$M$17:$M$171, 'Benefit per Revenue all trains'!L87, 'Benefit per Revenue'!$K$17:$K$171, "Peak")+(1-$H$13)*SUMIFS('Benefit per Revenue'!$N$17:$N$171,'Benefit per Revenue'!$M$17:$M$171, 'Benefit per Revenue all trains'!L87, 'Benefit per Revenue'!$K$17:$K$171, "Off-Peak") -> 2.73977812
G88: ScotRail | H88: HA | I88: HA06 | J88: Strathclyde Electric | L88: HA06 / Strathclyde Electric | M88: =SUMIFS('Benefit per Revenue'!$N$17:$N$171,'Benefit per Revenue'!$M$17:$M$171, 'Benefit per Revenue all trains'!L88, 'Benefit per Revenue'!$K$17:$K$171, "All trains")+$H$13*SUMIFS('Benefit per Revenue'!$N$17:$N$171,'Benefit per Revenue'!$M$17:$M$171, 'Benefit per Revenue all trains'!L88, 'Benefit per Revenue'!$K$17:$K$171, "Peak")+(1-$H$13)*SUMIFS('Benefit per Revenue'!$N$17:$N$171,'Benefit per Revenue'!$M$17:$M$171, 'Benefit per Revenue all trains'!L88, 'Benefit per Revenue'!$K$17:$K$171, "Off-Peak") -> 2.833091526
G89: ScotRail | H89: HA | I89: HA07 | J89: Strathclyde Pte Diesel | L89: HA07 / Strathclyde Pte Diesel | M89: =SUMIFS('Benefit per Revenue'!$N$17:$N$171,'Benefit per Revenue'!$M$17:$M$171, 'Benefit per Revenue all trains'!L89, 'Benefit per Revenue'!$K$17:$K$171, "All trains")+$H$13*SUMIFS('Benefit per Revenue'!$N$17:$N$171,'Benefit per Revenue'!$M$17:$M$171, 'Benefit per Revenue all trains'!L89, 'Benefit per Revenue'!$K$17:$K$171, "Peak")+(1-$H$13)*SUMIFS('Benefit per Revenue'!$N$17:$N$171,'Benefit per Revenue'!$M$17:$M$171, 'Benefit per Revenue all trains'!L89, 'Benefit per Revenue'!$K$17:$K$171, "Off-Peak") -> 3.141742368
G90: Virgin Trains East Coast | H90: HB | I90: HB01 | J90: ANGLO - SCOTTISH | L90: HB01 / ANGLO - SCOTTISH | M90: =SUMIFS('Benefit per Revenue'!$N$17:$N$171,'Benefit per Revenue'!$M$17:$M$171, 'Benefit per Revenue all trains'!L90, 'Benefit per Revenue'!$K$17:$K$171, "All trains")+$H$13*SUMIFS('Benefit per Revenue'!$N$17:$N$171,'Benefit per Revenue'!$M$17:$M$171, 'Benefit per Revenue all trains'!L90, 'Benefit per Revenue'!$K$17:$K$171, "Peak")+(1-$H$13)*SUMIFS('Benefit per Revenue'!$N$17:$N$171,'Benefit per Revenue'!$M$17:$M$171, 'Benefit per Revenue all trains'!L90, 'Benefit per Revenue'!$K$17:$K$171, "Off-Peak") -> 1.023765486
G91: Virgin Trains East Coast | H91: HB | I91: HB02 | J91: WEST YORKSHIRE | L91: HB02 / WEST YORKSHIRE | M91: =SUMIFS('Benefit per Revenue'!$N$17:$N$171,'Benefit per Revenue'!$M$17:$M$171, 'Benefit per Revenue all trains'!L91, 'Benefit per Revenue'!$K$17:$K$171, "All trains")+$H$13*SUMIFS('Benefit per Revenue'!$N$17:$N$171,'Benefit per Revenue'!$M$17:$M$171, 'Benefit per Revenue all trains'!L91, 'Benefit per Revenue'!$K$17:$K$171, "Peak")+(1-$H$13)*SUMIFS('Benefit per Revenue'!$N$17:$N$171,'Benefit per Revenue'!$M$17:$M$171, 'Benefit per Revenue all trains'!L91, 'Benefit per Revenue'!$K$17:$K$171, "Off-Peak") -> 0.9675456473
G92: Virgin Trains East Coast | H92: HB | I92: HB04 | J92: WEST YORKHIRE (Kings X - Bradford / Hull) | L92: HB04 / WEST YORKHIRE (Kings X - Bradford / Hull) | M92: =SUMIFS('Benefit per Revenue'!$N$17:$N$171,'Benefit per Revenue'!$M$17:$M$171, 'Benefit per Revenue all trains'!L92, 'Benefit per Revenue'!$K$17:$K$171, "All trains")+$H$13*SUMIFS('Benefit per Revenue'!$N$17:$N$171,'Benefit per Revenue'!$M$17:$M$171, 'Benefit per Revenue all trains'!L92, 'Benefit per Revenue'!$K$17:$K$171, "Peak")+(1-$H$13)*SUMIFS('Benefit per Revenue'!$N$17:$N$171,'Benefit per Revenue'!$M$17:$M$171, 'Benefit per Revenue all trains'!L92, 'Benefit per Revenue'!$K$17:$K$171, "Off-Peak") -> 0.9821829908
G93: Virgin Trains East Coast | H93: HB | I93: HB05 | J93: ANGLO - SCOT (Aberdeen / Inverness) | L93: HB05 / ANGLO - SCOT (Aberdeen / Inverness) | M93: =SUMIFS('Benefit per Revenue'!$N$17:$N$171,'Benefit per Revenue'!$M$17:$M$171, 'Benefit per Revenue all trains'!L93, 'Benefit per Revenue'!$K$17:$K$171, "All trains")+$H$13*SUMIFS('Benefit per Revenue'!$N$17:$N$171,'Benefit per Revenue'!$M$17:$M$171, 'Benefit per Revenue all trains'!L93, 'Benefit per Revenue'!$K$17:$K$171, "Peak")+(1-$H$13)*SUMIFS('Benefit per Revenue'!$N$17:$N$171,'Benefit per Revenue'!$M$17:$M$171, 'Benefit per Revenue all trains'!L93, 'Benefit per Revenue'!$K$17:$K$171, "Off-Peak") -> 1.297103117
G94: Merseyrail | H94: HE | I94: HE01 | J94: Northern Lines | L94: HE01 / Northern Lines | M94: =SUMIFS('Benefit per Revenue'!$N$17:$N$171,'Benefit per Revenue'!$M$17:$M$171, 'Benefit per Revenue all trains'!L94, 'Benefit per Revenue'!$K$17:$K$171, "All trains")+$H$13*SUMIFS('Benefit per Revenue'!$N$17:$N$171,'Benefit per Revenue'!$M$17:$M$171, 'Benefit per Revenue all trains'!L94, 'Benefit per Revenue'!$K$17:$K$171, "Peak")+(1-$H$13)*SUMIFS('Benefit per Revenue'!$N$17:$N$171,'Benefit per Revenue'!$M$17:$M$171, 'Benefit per Revenue all trains'!L94, 'Benefit per Revenue'!$K$17:$K$171, "Off-Peak") -> 5.391403422
G95: Merseyrail | H95: HE | I95: HE02 | J95: Wirral Lines | L95: HE02 / Wirral Lines | M95: =SUMIFS('Benefit per Revenue'!$N$17:$N$171,'Benefit per Revenue'!$M$17:$M$171, 'Benefit per Revenue all trains'!L95, 'Benefit per Revenue'!$K$17:$K$171, "All trains")+$H$13*SUMIFS('Benefit per Revenue'!$N$17:$N$171,'Benefit per Revenue'!$M$17:$M$171, 'Benefit per Revenue all trains'!L95, 'Benefit per Revenue'!$K$17:$K$171, "Peak")+(1-$H$13)*SUMIFS('Benefit per Revenue'!$N$17:$N$171,'Benefit per Revenue'!$M$17:$M$171, 'Benefit per Revenue all trains'!L95, 'Benefit per Revenue'!$K$17:$K$171, "Off-Peak") -> 4.360133333
G96: Virgin Trains West Coast | H96: HF | I96: HF01 | J96: London Euston - Birmingham/Wolverhampton | L96: HF01 / London Euston - Birmingham/Wolverhampton | M96: =SUMIFS('Benefit per Revenue'!$N$17:$N$171,'Benefit per Revenue'!$M$17:$M$171, 'Benefit per Revenue all trains'!L96, 'Benefit per Revenue'!$K$17:$K$171, "All trains")+$H$13*SUMIFS('Benefit per Revenue'!$N$17:$N$171,'Benefit per Revenue'!$M$17:$M$171, 'Benefit per Revenue all trains'!L96, 'Benefit per Revenue'!$K$17:$K$171, "Peak")+(1-$H$13)*SUMIFS('Benefit per Revenue'!$N$17:$N$171,'Benefit per Revenue'!$M$17:$M$171, 'Benefit per Revenue all trains'!L96, 'Benefit per Revenue'!$K$17:$K$171, "Off-Peak") -> 0.8124821642
G97: Virgin Trains West Coast | H97: HF | I97: HF02 | J97: London Euston - North Wales | L97: HF02 / London Euston - North Wales | M97: =SUMIFS('Benefit per Revenue'!$N$17:$N$171,'Benefit per Revenue'!$M$17:$M$171, 'Benefit per Revenue all trains'!L97, 'Benefit per Revenue'!$K$17:$K$171, "All trains")+$H$13*SUMIFS('Benefit per Revenue'!$N$17:$N$171,'Benefit per Revenue'!$M$17:$M$171, 'Benefit per Revenue all trains'!L97, 'Benefit per Revenue'!$K$17:$K$171, "Peak")+(1-$H$13)*SUMIFS('Benefit per Revenue'!$N$17:$N$171,'Benefit per Revenue'!$M$17:$M$171, 'Benefit per Revenue all trains'!L97, 'Benefit per Revenue'!$K$17:$K$171, "Off-Peak") -> 1.002275604
G98: Virgin Trains West Coast | H98: HF | I98: HF03 | J98: London Euston - Manchester | L98: HF03 / London Euston - Manchester | M98: =SUMIFS('Benefit per Revenue'!$N$17:$N$171,'Benefit per Revenue'!$M$17:$M$171, 'Benefit per Revenue all trains'!L98, 'Benefit per Revenue'!$K$17:$K$171, "All trains")+$H$13*SUMIFS('Benefit per Revenue'!$N$17:$N$171,'Benefit per Revenue'!$M$17:$M$171, 'Benefit per Revenue all trains'!L98, 'Benefit per Revenue'!$K$17:$K$171, "Peak")+(1-$H$13)*SUMIFS('Benefit per Revenue'!$N$17:$N$171,'Benefit per Revenue'!$M$17:$M$171, 'Benefit per Revenue all trains'!L98, 'Benefit per Revenue'!$K$17:$K$171, "Off-Peak") -> 0.8163438129
G99: Virgin Trains West Coast | H99: HF | I99: HF04 | J99: London Euston - Liverpool | L99: HF04 / London Euston - Liverpool | M99: =SUMIFS('Benefit per Revenue'!$N$17:$N$171,'Benefit per Revenue'!$M$17:$M$171, 'Benefit per Revenue all trains'!L99, 'Benefit per Revenue'!$K$17:$K$171, "All trains")+$H$13*SUMIFS('Benefit per Revenue'!$N$17:$N$171,'Benefit per Revenue'!$M$17:$M$171, 'Benefit per Revenue all trains'!L99, 'Benefit per Revenue'!$K$17:$K$171, "Peak")+(1-$H$13)*SUMIFS('Benefit per Revenue'!$N$17:$N$171,'Benefit per Revenue'!$M$17:$M$171, 'Benefit per Revenue all trains'!L99, 'Benefit per Revenue'!$K$17:$K$171, "Off-Peak") -> 0.8219398526
G100: Virgin Trains West Coast | H100: HF | I100: HF06 | J100: London Euston - Carlisle/Scotland | L100: HF06 / London Euston - Carlisle/Scotland | M100: =SUMIFS('Benefit per Revenue'!$N$17:$N$171,'Benefit per Revenue'!$M$17:$M$171, 'Benefit per Revenue all trains'!L100, 'Benefit per Revenue'!$K$17:$K$171, "All trains")+$H$13*SUMIFS('Benefit per Revenue'!$N$17:$N$171,'Benefit per Revenue'!$M$17:$M$171, 'Benefit per Revenue all trains'!L100, 'Benefit per Revenue'!$K$17:$K$171, "Peak")+(1-$H$13)*SUMIFS('Benefit per Revenue'!$N$17:$N$171,'Benefit per Revenue'!$M$17:$M$171, 'Benefit per Revenue all trains'!L100, 'Benefit per Revenue'!$K$17:$K$171, "Off-Peak") -> 0.9574740361
G101: Virgin Trains West Coast | H101: HF | I101: HF08 | J101: London - Scotland via West Midlands | L101: HF08 / London - Scotland via West Midlands | M101: =SUMIFS('Benefit per Revenue'!$N$17:$N$171,'Benefit per Revenue'!$M$17:$M$171, 'Benefit per Revenue all trains'!L101, 'Benefit per Revenue'!$K$17:$K$171, "All trains")+$H$13*SUMIFS('Benefit per Revenue'!$N$17:$N$171,'Benefit per Revenue'!$M$17:$M$171, 'Benefit per Revenue all trains'!L101, 'Benefit per Revenue'!$K$17:$K$171, "Peak")+(1-$H$13)*SUMIFS('Benefit per Revenue'!$N$17:$N$171,'Benefit per Revenue'!$M$17:$M$171, 'Benefit per Revenue all trains'!L101, 'Benefit per Revenue'!$K$17:$K$171, "Off-Peak") -> 1.379909241
G102: Arriva Trains Wales | H102: HL | I102: HL02 | J102: South, West & Central Wales | L102: HL02 / South, West & Central Wales | M102: =SUMIFS('Benefit per Revenue'!$N$17:$N$171,'Benefit per Revenue'!$M$17:$M$171, 'Benefit per Revenue all trains'!L102, 'Benefit per Revenue'!$K$17:$K$171, "All trains")+$H$13*SUMIFS('Benefit per Revenue'!$N$17:$N$171,'Benefit per Revenue'!$M$17:$M$171, 'Benefit per Revenue all trains'!L102, 'Benefit per Revenue'!$K$17:$K$171, "Peak")+(1-$H$13)*SUMIFS('Benefit per Revenue'!$N$17:$N$171,'Benefit per Revenue'!$M$17:$M$171, 'Benefit per Revenue all trains'!L102, 'Benefit per Revenue'!$K$17:$K$171, "Off-Peak") -> 3.248622992
G103: Arriva Trains Wales | H103: HL | I103: HL03 | J103: Wales to England | L103: HL03 / Wales to England | M103: =SUMIFS('Benefit per Revenue'!$N$17:$N$171,'Benefit per Revenue'!$M$17:$M$171, 'Benefit per Revenue all trains'!L103, 'Benefit per Revenue'!$K$17:$K$171, "All trains")+$H$13*SUMIFS('Benefit per Revenue'!$N$17:$N$171,'Benefit per Revenue'!$M$17:$M$171, 'Benefit per Revenue all trains'!L103, 'Benefit per Revenue'!$K$17:$K$171, "Peak")+(1-$H$13)*SUMIFS('Benefit per Revenue'!$N$17:$N$171,'Benefit per Revenue'!$M$17:$M$171, 'Benefit per Revenue all trains'!L103, 'Benefit per Revenue'!$K$17:$K$171, "Off-Peak") -> 1.966330698
G104: Arriva Trains Wales | H104: HL | I104: HL04 | J104: Cambrian | L104: HL04 / Cambrian | M104: =SUMIFS('Benefit per Revenue'!$N$17:$N$171,'Benefit per Revenue'!$M$17:$M$171, 'Benefit per Revenue all trains'!L104, 'Benefit per Revenue'!$K$17:$K$171, "All trains")+$H$13*SUMIFS('Benefit per Revenue'!$N$17:$N$171,'Benefit per Revenue'!$M$17:$M$171, 'Benefit per Revenue all trains'!L104, 'Benefit per Revenue'!$K$17:$K$171, "Peak")+(1-$H$13)*SUMIFS('Benefit per Revenue'!$N$17:$N$171,'Benefit per Revenue'!$M$17:$M$171, 'Benefit per Revenue all trains'!L104, 'Benefit per Revenue'!$K$17:$K$171, "Off-Peak") -> 2.871981453
G105: Arriva Trains Wales | H105: HL | I105: HL05 | J105: Cardiff Valleys | L105: HL05 / Cardiff Valleys | M105: =SUMIFS('Benefit per Revenue'!$N$17:$N$171,'Benefit per Revenue'!$M$17:$M$171, 'Benefit per Revenue all trains'!L105, 'Benefit per Revenue'!$K$17:$K$171, "All trains")+$H$13*SUMIFS('Benefit per Revenue'!$N$17:$N$171,'Benefit per Revenue'!$M$17:$M$171, 'Benefit per Revenue all trains'!L105, 'Benefit per Revenue'!$K$17:$K$171, "Peak")+(1-$H$13)*SUMIFS('Benefit per Revenue'!$N$17:$N$171,'Benefit per Revenue'!$M$17:$M$171, 'Benefit per Revenue all trains'!L105, 'Benefit per Revenue'!$K$17:$K$171, "Off-Peak") -> 3.153852844
G106: Arriva Trains Wales | H106: HL | I106: HL06 | J106: Marches | L106: HL06 / Marches | M106: =SUMIFS('Benefit per Revenue'!$N$17:$N$171,'Benefit per Revenue'!$M$17:$M$171, 'Benefit per Revenue all trains'!L106, 'Benefit per Revenue'!$K$17:$K$171, "All trains")+$H$13*SUMIFS('Benefit per Revenue'!$N$17:$N$171,'Benefit per Revenue'!$M$17:$M$171, 'Benefit per Revenue all trains'!L106, 'Benefit per Revenue'!$K$17:$K$171, "Peak")+(1-$H$13)*SUMIFS('Benefit per Revenue'!$N$17:$N$171,'Benefit per Revenue'!$M$17:$M$171, 'Benefit per Revenue all trains'!L106, 'Benefit per Revenue'!$K$17:$K$171, "Off-Peak") -> 2.441252045
G107: Arriva Trains Wales | H107: HL | I107: HL07 | J107: North Wales Rural | L107: HL07 / North Wales Rural | M107: =SUMIFS('Benefit per Revenue'!$N$17:$N$171,'Benefit per Revenue'!$M$17:$M$171, 'Benefit per Revenue all trains'!L107, 'Benefit per Revenue'!$K$17:$K$171, "All trains")+$H$13*SUMIFS('Benefit per Revenue'!$N$17:$N$171,'Benefit per Revenue'!$M$17:$M$171, 'Benefit per Revenue all trains'!L107, 'Benefit per Revenue'!$K$17:$K$171, "Peak")+(1-$H$13)*SUMIFS('Benefit per Revenue'!$N$17:$N$171,'Benefit per Revenue'!$M$17:$M$171, 'Benefit per Revenue all trains'!L107, 'Benefit per Revenue'!$K$17:$K$171, "Off-Peak") -> 6.003407573
G108: Arriva Trains Wales | H108: HL | I108: HL08 | J108: Inter Urban North Wales | L108: HL08 / Inter Urban North Wales | M108: =SUMIFS('Benefit per Revenue'!$N$17:$N$171,'Benefit per Revenue'!$M$17:$M$171, 'Benefit per Revenue all trains'!L108, 'Benefit per Revenue'!$K$17:$K$171, "All trains")+$H$13*SUMIFS('Benefit per Revenue'!$N$17:$N$171,'Benefit per Revenue'!$M$17:$M$171, 'Benefit per Revenue all trains'!L108, 'Benefit per Revenue'!$K$17:$K$171, "Peak")+(1-$H$13)*SUMIFS('Benefit per Revenue'!$N$17:$N$171,'Benefit per Revenue'!$M$17:$M$171, 'Benefit per Revenue all trains'!L108, 'Benefit per Revenue'!$K$17:$K$171, "Off-Peak") -> 2.525356403
G109: Heathrow Express | H109: HM | I109: HM01 | J109: Heathrow Express | L109: HM01 / Heathrow Express | M109: =SUMIFS('Benefit per Revenue'!$N$17:$N$171,'Benefit per Revenue'!$M$17:$M$171, 'Benefit per Revenue all trains'!L109, 'Benefit per Revenue'!$K$17:$K$171, "All trains")+$H$13*SUMIFS('Benefit per Revenue'!$N$17:$N$171,'Benefit per Revenue'!$M$17:$M$171, 'Benefit per Revenue all trains'!L109, 'Benefit per Revenue'!$K$17:$K$171, "Peak")+(1-$H$13)*SUMIFS('Benefit per Revenue'!$N$17:$N$171,'Benefit per Revenue'!$M$17:$M$171, 'Benefit per Revenue all trains'!L109, 'Benefit per Revenue'!$K$17:$K$171, "Off-Peak") -> 1.204914635
G110: Chiltern Railways | H110: HO | I110: HO01 | J110: Met | L110: HO01 / Met | M110: =SUMIFS('Benefit per Revenue'!$N$17:$N$171,'Benefit per Revenue'!$M$17:$M$171, 'Benefit per Revenue all trains'!L110, 'Benefit per Revenue'!$K$17:$K$171, "All trains")+$H$13*SUMIFS('Benefit per Revenue'!$N$17:$N$171,'Benefit per Revenue'!$M$17:$M$171, 'Benefit per Revenue all trains'!L110, 'Benefit per Revenue'!$K$17:$K$171, "Peak")+(1-$H$13)*SUMIFS('Benefit per Revenue'!$N$17:$N$171,'Benefit per Revenue'!$M$17:$M$171, 'Benefit per Revenue all trains'!L110, 'Benefit per Revenue'!$K$17:$K$171, "Off-Peak") -> 3.722846675
G111: Chiltern Railways | H111: HO | I111: HO02 | J111: Birmingham | L111: HO02 / Birmingham | M111: =SUMIFS('Benefit per Revenue'!$N$17:$N$171,'Benefit per Revenue'!$M$17:$M$171, 'Benefit per Revenue all trains'!L111, 'Benefit per Revenue'!$K$17:$K$171, "All trains")+$H$13*SUMIFS('Benefit per Revenue'!$N$17:$N$171,'Benefit per Revenue'!$M$17:$M$171, 'Benefit per Revenue all trains'!L111, 'Benefit per Revenue'!$K$17:$K$171, "Peak")+(1-$H$13)*SUMIFS('Benefit per Revenue'!$N$17:$N$171,'Benefit per Revenue'!$M$17:$M$171, 'Benefit per Revenue all trains'!L111, 'Benefit per Revenue'!$K$17:$K$171, "Off-Peak") -> 2.762861443
G112: Chiltern Railways | H112: HO | I112: HO03 | J112: Joint | L112: HO03 / Joint | M112: =SUMIFS('Benefit per Revenue'!$N$17:$N$171,'Benefit per Revenue'!$M$17:$M$171, 'Benefit per Revenue all trains'!L112, 'Benefit per Revenue'!$K$17:$K$171, "All trains")+$H$13*SUMIFS('Benefit per Revenue'!$N$17:$N$171,'Benefit per Revenue'!$M$17:$M$171, 'Benefit per Revenue all trains'!L112, 'Benefit per Revenue'!$K$17:$K$171, "Peak")+(1-$H$13)*SUMIFS('Benefit per Revenue'!$N$17:$N$171,'Benefit per Revenue'!$M$17:$M$171, 'Benefit per Revenue all trains'!L112, 'Benefit per Revenue'!$K$17:$K$171, "Off-Peak") -> 2.571476904
G113: Chiltern Railways | H113: HO | I113: HO04 | J113: Oxford | L113: =I113&" / "&J113&"" -> HO04 / Oxford | M113: =SUMIFS('Benefit per Revenue'!$N$17:$N$171,'Benefit per Revenue'!$M$17:$M$171, 'Benefit per Revenue all trains'!L113, 'Benefit per Revenue'!$K$17:$K$171, "All trains")+$H$13*SUMIFS('Benefit per Revenue'!$N$17:$N$171,'Benefit per Revenue'!$M$17:$M$171, 'Benefit per Revenue all trains'!L113, 'Benefit per Revenue'!$K$17:$K$171, "Peak")+(1-$H$13)*SUMIFS('Benefit per Revenue'!$N$17:$N$171,'Benefit per Revenue'!$M$17:$M$171, 'Benefit per Revenue all trains'!L113, 'Benefit per Revenue'!$K$17:$K$171, "Off-Peak") -> 0.4122776171
G114: c2c | H114: HT | I114: HT01 | J114: London-Southend/Shoeburyness (HT02op) | L114: HT01 / London-Southend/Shoeburyness (HT02op) | M114: =SUMIFS('Benefit per Revenue'!$N$17:$N$171,'Benefit per Revenue'!$M$17:$M$171, 'Benefit per Revenue all trains'!L114, 'Benefit per Revenue'!$K$17:$K$171, "All trains")+$H$13*SUMIFS('Benefit per Revenue'!$N$17:$N$171,'Benefit per Revenue'!$M$17:$M$171, 'Benefit per Revenue all trains'!L114, 'Benefit per Revenue'!$K$17:$K$171, "Peak")+(1-$H$13)*SUMIFS('Benefit per Revenue'!$N$17:$N$171,'Benefit per Revenue'!$M$17:$M$171, 'Benefit per Revenue all trains'!L114, 'Benefit per Revenue'!$K$17:$K$171, "Off-Peak") -> 2.332559715
G115: Southeastern | H115: HU | I115: HU01 | J115: Kent Mainline (Off Peak) | L115: HU01 / Kent Mainline (Off Peak) | M115: =SUMIFS('Benefit per Revenue'!$N$17:$N$171,'Benefit per Revenue'!$M$17:$M$171, 'Benefit per Revenue all trains'!L115, 'Benefit per Revenue'!$K$17:$K$171, "All trains")+$H$13*SUMIFS('Benefit per Revenue'!$N$17:$N$171,'Benefit per Revenue'!$M$17:$M$171, 'Benefit per Revenue all trains'!L115, 'Benefit per Revenue'!$K$17:$K$171, "Peak")+(1-$H$13)*SUMIFS('Benefit per Revenue'!$N$17:$N$171,'Benefit per Revenue'!$M$17:$M$171, 'Benefit per Revenue all trains'!L115, 'Benefit per Revenue'!$K$17:$K$171, "Off-Peak") -> 3.852685646
G116: Southeastern | H116: HU | I116: HU03 | J116: Kent Rural | L116: HU03 / Kent Rural | M116: =SUMIFS('Benefit per Revenue'!$N$17:$N$171,'Benefit per Revenue'!$M$17:$M$171, 'Benefit per Revenue all trains'!L116, 'Benefit per Revenue'!$K$17:$K$171, "All trains")+$H$13*SUMIFS('Benefit per Revenue'!$N$17:$N$171,'Benefit per Revenue'!$M$17:$M$171, 'Benefit per Revenue all trains'!L116, 'Benefit per Revenue'!$K$17:$K$171, "Peak")+(1-$H$13)*SUMIFS('Benefit per Revenue'!$N$17:$N$171,'Benefit per Revenue'!$M$17:$M$171, 'Benefit per Revenue all trains'!L116, 'Benefit per Revenue'!$K$17:$K$171, "Off-Peak") -> 3.704075693
G117: Southeastern | H117: HU | I117: HU04 | J117: Kent Mainline (Peak) | L117: HU04 / Kent Mainline (Peak) | M117: =SUMIFS('Benefit per Revenue'!$N$17:$N$171,'Benefit per Revenue'!$M$17:$M$171, 'Benefit per Revenue all trains'!L117, 'Benefit per Revenue'!$K$17:$K$171, "All trains")+$H$13*SUMIFS('Benefit per Revenue'!$N$17:$N$171,'Benefit per Revenue'!$M$17:$M$171, 'Benefit per Revenue all trains'!L117, 'Benefit per Revenue'!$K$17:$K$171, "Peak")+(1-$H$13)*SUMIFS('Benefit per Revenue'!$N$17:$N$171,'Benefit per Revenue'!$M$17:$M$171, 'Benefit per Revenue all trains'!L117, 'Benefit per Revenue'!$K$17:$K$171, "Off-Peak") -> 4.3011142
G118: Southeastern | H118: HU | I118: HU06 | J118: Kent High Speed (Peak) | L118: HU06 / Kent High Speed (Peak) | M118: =SUMIFS('Benefit per Revenue'!$N$17:$N$171,'Benefit per Revenue'!$M$17:$M$171, 'Benefit per Revenue all trains'!L118, 'Benefit per Revenue'!$K$17:$K$171, "All trains")+$H$13*SUMIFS('Benefit per Revenue'!$N$17:$N$171,'Benefit per Revenue'!$M$17:$M$171, 'Benefit per Revenue all trains'!L118, 'Benefit per Revenue'!$K$17:$K$171, "Peak")+(1-$H$13)*SUMIFS('Benefit per Revenue'!$N$17:$N$171,'Benefit per Revenue'!$M$17:$M$171, 'Benefit per Revenue all trains'!L118, 'Benefit per Revenue'!$K$17:$K$171, "Off-Peak") -> 2.985088558
G119: Southeastern | H119: HU | I119: HU07 | J119: Kent High Speed (Off Peak) | L119: HU07 / Kent High Speed (Off Peak) | M119: =SUMIFS('Benefit per Revenue'!$N$17:$N$171,'Benefit per Revenue'!$M$17:$M$171, 'Benefit per Revenue all trains'!L119, 'Benefit per Revenue'!$K$17:$K$171, "All trains")+$H$13*SUMIFS('Benefit per Revenue'!$N$17:$N$171,'Benefit per Revenue'!$M$17:$M$171, 'Benefit per Revenue all trains'!L119, 'Benefit per Revenue'!$K$17:$K$171, "Peak")+(1-$H$13)*SUMIFS('Benefit per Revenue'!$N$17:$N$171,'Benefit per Revenue'!$M$17:$M$171, 'Benefit per Revenue all trains'!L119, 'Benefit per Revenue'!$K$17:$K$171, "Off-Peak") -> 2.603507434
G120: South West Trains | H120: HY | I120: HY01 | J120: Main Suburban | L120: HY01 / Main Suburban | M120: =SUMIFS('Benefit per Revenue'!$N$17:$N$171,'Benefit per Revenue'!$M$17:$M$171, 'Benefit per Revenue all trains'!L120, 'Benefit per Revenue'!$K$17:$K$171, "All trains")+$H$13*SUMIFS('Benefit per Revenue'!$N$17:$N$171,'Benefit per Revenue'!$M$17:$M$171, 'Benefit per Revenue all trains'!L120, 'Benefit per Revenue'!$K$17:$K$171, "Peak")+(1-$H$13)*SUMIFS('Benefit per Revenue'!$N$17:$N$171,'Benefit per Revenue'!$M$17:$M$171, 'Benefit per Revenue all trains'!L120, 'Benefit per Revenue'!$K$17:$K$171, "Off-Peak") -> 2.692494916
G121: South West Trains | H121: HY | I121: HY02 | J121: South Hampshire Locals | L121: HY02 / South Hampshire Locals | M121: =SUMIFS('Benefit per Revenue'!$N$17:$N$171,'Benefit per Revenue'!$M$17:$M$171, 'Benefit per Revenue all trains'!L121, 'Benefit per Revenue'!$K$17:$K$171, "All trains")+$H$13*SUMIFS('Benefit per Revenue'!$N$17:$N$171,'Benefit per Revenue'!$M$17:$M$171, 'Benefit per Revenue all trains'!L121, 'Benefit per Revenue'!$K$17:$K$171, "Peak")+(1-$H$13)*SUMIFS('Benefit per Revenue'!$N$17:$N$171,'Benefit per Revenue'!$M$17:$M$171, 'Benefit per Revenue all trains'!L121, 'Benefit per Revenue'!$K$17:$K$171, "Off-Peak") -> 2.520625427
G122: South West Trains | H122: HY | I122: HY03 | J122: Waterloo - West England | L122: HY03 / Waterloo - West England | M122: =SUMIFS('Benefit per Revenue'!$N$17:$N$171,'Benefit per Revenue'!$M$17:$M$171, 'Benefit per Revenue all trains'!L122, 'Benefit per Revenue'!$K$17:$K$171, "All trains")+$H$13*SUMIFS('Benefit per Revenue'!$N$17:$N$171,'Benefit per Revenue'!$M$17:$M$171, 'Benefit per Revenue all trains'!L122, 'Benefit per Revenue'!$K$17:$K$171, "Peak")+(1-$H$13)*SUMIFS('Benefit per Revenue'!$N$17:$N$171,'Benefit per Revenue'!$M$17:$M$171, 'Benefit per Revenue all trains'!L122, 'Benefit per Revenue'!$K$17:$K$171, "Off-Peak") -> 1.282007502
G123: South West Trains | H123: HY | I123: HY04 | J123: Waterloo - Farnham / Alton | L123: HY04 / Waterloo - Farnham / Alton | M123: =SUMIFS('Benefit per Revenue'!$N$17:$N$171,'Benefit per Revenue'!$M$17:$M$171, 'Benefit per Revenue all trains'!L123, 'Benefit per Revenue'!$K$17:$K$171, "All trains")+$H$13*SUMIFS('Benefit per Revenue'!$N$17:$N$171,'Benefit per Revenue'!$M$17:$M$171, 'Benefit per Revenue all trains'!L123, 'Benefit per Revenue'!$K$17:$K$171, "Peak")+(1-$H$13)*SUMIFS('Benefit per Revenue'!$N$17:$N$171,'Benefit per Revenue'!$M$17:$M$171, 'Benefit per Revenue all trains'!L123, 'Benefit per Revenue'!$K$17:$K$171, "Off-Peak") -> 1.904954775
G124: South West Trains | H124: HY | I124: HY05 | J124: Windsor Inners | L124: HY05 / Windsor Inners | M124: =SUMIFS('Benefit per Revenue'!$N$17:$N$171,'Benefit per Revenue'!$M$17:$M$171, 'Benefit per Revenue all trains'!L124, 'Benefit per Revenue'!$K$17:$K$171, "All trains")+$H$13*SUMIFS('Benefit per Revenue'!$N$17:$N$171,'Benefit per Revenue'!$M$17:$M$171, 'Benefit per Revenue all trains'!L124, 'Benefit per Revenue'!$K$17:$K$171, "Peak")+(1-$H$13)*SUMIFS('Benefit per Revenue'!$N$17:$N$171,'Benefit per Revenue'!$M$17:$M$171, 'Benefit per Revenue all trains'!L124, 'Benefit per Revenue'!$K$17:$K$171, "Off-Peak") -> 3.335173281
G125: South West Trains | H125: HY | I125: HY06 | J125: Windsor Outers | L125: HY06 / Windsor Outers | M125: =SUMIFS('Benefit per Revenue'!$N$17:$N$171,'Benefit per Revenue'!$M$17:$M$171, 'Benefit per Revenue all trains'!L125, 'Benefit per Revenue'!$K$17:$K$171, "All trains")+$H$13*SUMIFS('Benefit per Revenue'!$N$17:$N$171,'Benefit per Revenue'!$M$17:$M$171, 'Benefit per Revenue all trains'!L125, 'Benefit per Revenue'!$K$17:$K$171, "Peak")+(1-$H$13)*SUMIFS('Benefit per Revenue'!$N$17:$N$171,'Benefit per Revenue'!$M$17:$M$171, 'Benefit per Revenue all trains'!L125, 'Benefit per Revenue'!$K$17:$K$171, "Off-Peak") -> 2.391492481
G126: South West Trains | H126: HY | I126: HY07 | J126: Waterloo - Portsmouth | L126: HY07 / Waterloo - Portsmouth | M126: =SUMIFS('Benefit per Revenue'!$N$17:$N$171,'Benefit per Revenue'!$M$17:$M$171, 'Benefit per Revenue all trains'!L126, 'Benefit per Revenue'!$K$17:$K$171, "All trains")+$H$13*SUMIFS('Benefit per Revenue'!$N$17:$N$171,'Benefit per Revenue'!$M$17:$M$171, 'Benefit per Revenue all trains'!L126, 'Benefit per Revenue'!$K$17:$K$171, "Peak")+(1-$H$13)*SUMIFS('Benefit per Revenue'!$N$17:$N$171,'Benefit per Revenue'!$M$17:$M$171, 'Benefit per Revenue all trains'!L126, 'Benefit per Revenue'!$K$17:$K$171, "Off-Peak") -> 1.366787745
G127: South West Trains | H127: HY | I127: HY08 | J127: Waterloo - Weymouth | L127: HY08 / Waterloo - Weymouth | M127: =SUMIFS('Benefit per Revenue'!$N$17:$N$171,'Benefit per Revenue'!$M$17:$M$171, 'Benefit per Revenue all trains'!L127, 'Benefit per Revenue'!$K$17:$K$171, "All trains")+$H$13*SUMIFS('Benefit per Revenue'!$N$17:$N$171,'Benefit per Revenue'!$M$17:$M$171, 'Benefit per Revenue all trains'!L127, 'Benefit per Revenue'!$K$17:$K$171, "Peak")+(1-$H$13)*SUMIFS('Benefit per Revenue'!$N$17:$N$171,'Benefit per Revenue'!$M$17:$M$171, 'Benefit per Revenue all trains'!L127, 'Benefit per Revenue'!$K$17:$K$171, "Off-Peak") -> 1.401819385
G128: Hull Trains | H128: PF | I128: PF01 | J128: Kings Cross - Hull | L128: PF01 / Kings Cross - Hull | M128: =SUMIFS('Benefit per Revenue'!$N$17:$N$171,'Benefit per Revenue'!$M$17:$M$171, 'Benefit per Revenue all trains'!L128, 'Benefit per Revenue'!$K$17:$K$171, "All trains")+$H$13*SUMIFS('Benefit per Revenue'!$N$17:$N$171,'Benefit per Revenue'!$M$17:$M$171, 'Benefit per Revenue all trains'!L128, 'Benefit per Revenue'!$K$17:$K$171, "Peak")+(1-$H$13)*SUMIFS('Benefit per Revenue'!$N$17:$N$171,'Benefit per Revenue'!$M$17:$M$171, 'Benefit per Revenue all trains'!L128, 'Benefit per Revenue'!$K$17:$K$171, "Off-Peak") -> 1.383927238
G129: DB Regio Tyne & Wear Metro | H129: PG | I129: PG01 | J129: Metro | L129: PG01 / Metro | M129: =SUMIFS('Benefit per Revenue'!$N$17:$N$171,'Benefit per Revenue'!$M$17:$M$171, 'Benefit per Revenue all trains'!L129, 'Benefit per Revenue'!$K$17:$K$171, "All trains")+$H$13*SUMIFS('Benefit per Revenue'!$N$17:$N$171,'Benefit per Revenue'!$M$17:$M$171, 'Benefit per Revenue all trains'!L129, 'Benefit per Revenue'!$K$17:$K$171, "Peak")+(1-$H$13)*SUMIFS('Benefit per Revenue'!$N$17:$N$171,'Benefit per Revenue'!$M$17:$M$171, 'Benefit per Revenue all trains'!L129, 'Benefit per Revenue'!$K$17:$K$171, "Off-Peak") -> 0.3448486317

Sheet Calculations >
B2: =MID(CELL("filename",D1),FIND("]",CELL("filename",D1))+1,256) -> Calculations >

Sheet calc1
F2: =MID(CELL("filename",D1),FIND("]",CELL("filename",D1))+1,256) -> calc1
F3: Creates cost savings, growth rates between weather event forecast years
F10: Years
H12: ='Appraisal inputs'!G18 -> Current Year | I12: ='Appraisal inputs'!H18 -> 2018 | K12: Year
H13: ='Appraisal inputs'!G19 -> Weather event forecast year 1 | I13: ='Appraisal inputs'!H19 -> 2040 | K13: Year
H14: ='Appraisal inputs'!G20 -> Weather event forecast year 2 | I14: ='Appraisal inputs'!H20 -> 2060 | K14: Year
F17: ='Appraisal inputs'!G12 -> Weather event input method
H19: ='Appraisal inputs'!G13 -> Anticipated cost input | I19: ='Scheme Inputs'!H67=calc1!H19 -> TRUE | K19: TRUE/FALSE
F21: Anticipated cost input
G23: Expected annual saving
I25: Train service Group | J25: ='Scheme Inputs'!$I87 -> 2018 | K25: ='Scheme Inputs'!J87 -> 2040 | L25: ='Scheme Inputs'!K87 -> 2060 | M25: ='Scheme Inputs'!L87 -> 2080 | N25: Current Year-Forecast Year 1 annual increase | O25: Forecast Year 1-Forecast Year 2 annual increase | P25: Forecast Year 2-Forecast Year 3 annual increase
H26: Schedule 8 | I26: ='Scheme Inputs'!H88 -> EA01 / North Trans Pennine | J26: ='Scheme Inputs'!I88-'Scheme Inputs'!I106 -> 0 | K26: ='Scheme Inputs'!J88-'Scheme Inputs'!J106 -> 0 | L26: ='Scheme Inputs'!K88-'Scheme Inputs'!K106 -> 0 | M26: ='Scheme Inputs'!L88-'Scheme Inputs'!L106 -> 0 | N26: =(K26-J26)/(K$25-J$25) -> 0 | O26: 0 | P26: 0 | R26: ="£m"&" "&'Scheme Inputs'!$H$56&" prices" -> £m prices
I27: ='Scheme Inputs'!H89 -> N/A | J27: ='Scheme Inputs'!I89-'Scheme Inputs'!I107 -> 0 | K27: ='Scheme Inputs'!J89-'Scheme Inputs'!J107 -> 0 | L27: ='Scheme Inputs'!K89-'Scheme Inputs'!K107 -> 0 | M27: ='Scheme Inputs'!L89-'Scheme Inputs'!L107 -> 0 | N27: 0 | O27: 0 | P27: 0 | R27: ="£m"&" "&'Scheme Inputs'!$H$56&" prices" -> £m prices
I28: ='Scheme Inputs'!H90 -> N/A | J28: ='Scheme Inputs'!I90-'Scheme Inputs'!I108 -> 0 | K28: ='Scheme Inputs'!J90-'Scheme Inputs'!J108 -> 0 | L28: ='Scheme Inputs'!K90-'Scheme Inputs'!K108 -> 0 | M28: ='Scheme Inputs'!L90-'Scheme Inputs'!L108 -> 0 | N28: 0 | O28: 0 | P28: 0 | R28: ="£m"&" "&'Scheme Inputs'!$H$56&" prices" -> £m prices
I29: ='Scheme Inputs'!H91 -> N/A | J29: ='Scheme Inputs'!I91-'Scheme Inputs'!I109 -> 0 | K29: ='Scheme Inputs'!J91-'Scheme Inputs'!J109 -> 0 | L29: ='Scheme Inputs'!K91-'Scheme Inputs'!K109 -> 0 | M29: ='Scheme Inputs'!L91-'Scheme Inputs'!L109 -> 0 | N29: 0 | O29: 0 | P29: 0 | R29: ="£m"&" "&'Scheme Inputs'!$H$56&" prices" -> £m prices
I30: ='Scheme Inputs'!H92 -> N/A | J30: ='Scheme Inputs'!I92-'Scheme Inputs'!I110 -> 0 | K30: ='Scheme Inputs'!J92-'Scheme Inputs'!J110 -> 0 | L30: ='Scheme Inputs'!K92-'Scheme Inputs'!K110 -> 0 | M30: ='Scheme Inputs'!L92-'Scheme Inputs'!L110 -> 0 | N30: 0 | O30: 0 | P30: 0 | R30: ="£m"&" "&'Scheme Inputs'!$H$56&" prices" -> £m prices
H32: Schedule 4 | I32: ='Scheme Inputs'!H93 -> EA01 / North Trans Pennine | J32: ='Scheme Inputs'!I93-'Scheme Inputs'!I111 -> 0 | K32: ='Scheme Inputs'!J93-'Scheme Inputs'!J111 -> 0 | L32: ='Scheme Inputs'!K93-'Scheme Inputs'!K111 -> 0 | M32: ='Scheme Inputs'!L93-'Scheme Inputs'!L111 -> 0 | N32: =(K32-J32)/(K$25-J$25) -> 0 | O32: 0 | P32: 0 | R32: ="£m"&" "&'Scheme Inputs'!$H$56&" prices" -> £m prices
I33: ='Scheme Inputs'!H94 -> N/A | J33: ='Scheme Inputs'!I94-'Scheme Inputs'!I112 -> 0 | K33: ='Scheme Inputs'!J94-'Scheme Inputs'!J112 -> 0 | L33: ='Scheme Inputs'!K94-'Scheme Inputs'!K112 -> 0 | M33: ='Scheme Inputs'!L94-'Scheme Inputs'!L112 -> 0 | N33: 0 | O33: 0 | P33: 0 | R33: ="£m"&" "&'Scheme Inputs'!$H$56&" prices" -> £m prices
I34: ='Scheme Inputs'!H95 -> N/A | J34: ='Scheme Inputs'!I95-'Scheme Inputs'!I113 -> 0 | K34: ='Scheme Inputs'!J95-'Scheme Inputs'!J113 -> 0 | L34: ='Scheme Inputs'!K95-'Scheme Inputs'!K113 -> 0 | M34: ='Scheme Inputs'!L95-'Scheme Inputs'!L113 -> 0 | N34: 0 | O34: 0 | P34: 0 | R34: ="£m"&" "&'Scheme Inputs'!$H$56&" prices" -> £m prices
I35: ='Scheme Inputs'!H96 -> N/A | J35: ='Scheme Inputs'!I96-'Scheme Inputs'!I114 -> 0 | K35: ='Scheme Inputs'!J96-'Scheme Inputs'!J114 -> 0 | L35: ='Scheme Inputs'!K96-'Scheme Inputs'!K114 -> 0 | M35: ='Scheme Inputs'!L96-'Scheme Inputs'!L114 -> 0 | N35: 0 | O35: 0 | P35: 0 | R35: ="£m"&" "&'Scheme Inputs'!$H$56&" prices" -> £m prices
I36: ='Scheme Inputs'!H97 -> N/A | J36: ='Scheme Inputs'!I97-'Scheme Inputs'!I115 -> 0 | K36: ='Scheme Inputs'!J97-'Scheme Inputs'!J115 -> 0 | L36: ='Scheme Inputs'!K97-'Scheme Inputs'!K115 -> 0 | M36: ='Scheme Inputs'!L97-'Scheme Inputs'!L115 -> 0 | N36: 0 | O36: 0 | P36: 0 | R36: ="£m"&" "&'Scheme Inputs'!$H$56&" prices" -> £m prices
H38: Schedule 8 | I38: Total | J38: =SUM(J26:J30) -> 0 | K38: =SUM(K26:K30) -> 0 | L38: 0 | M38: 0 | N38: 0 | O38: 0 | P38: 0 | R38: ="£m"&" "&'Scheme Inputs'!$H$56&" prices" -> £m prices
H39: Schedule 4 | I39: Total | J39: =SUM(J32:J36) -> 0 | K39: =SUM(K32:K36) -> 0 | L39: 0 | M39: 0 | N39: 0 | O39: 0 | P39: 0 | R39: ="£m"&" "&'Scheme Inputs'!$H$56&" prices" -> £m prices
H40: Maintenance and repair | I40: ='Scheme Inputs'!H142 -> All | J40: ='Scheme Inputs'!I98-'Scheme Inputs'!I116 -> 0 | K40: ='Scheme Inputs'!J98-'Scheme Inputs'!J116 -> 0 | L40: ='Scheme Inputs'!K98-'Scheme Inputs'!K116 -> 0 | M40: ='Scheme Inputs'!L98-'Scheme Inputs'!L116 -> 0 | N40: =(K40-J40)/(K$25-J$25) -> 0 | O40: 0 | P40: 0 | R40: ="£m"&" "&'Scheme Inputs'!$H$56&" prices" -> £m prices
H41: Replacement rail/bus and refunds (excluding TOC profit) | I41: ='Scheme Inputs'!H143 -> All | J41: ='Scheme Inputs'!I99-'Scheme Inputs'!I117 -> 0 | K41: ='Scheme Inputs'!J99-'Scheme Inputs'!J117 -> 0 | L41: ='Scheme Inputs'!K99-'Scheme Inputs'!K117 -> 0 | M41: ='Scheme Inputs'!L99-'Scheme Inputs'!L117 -> 0 | N41: 0 | O41: 0 | P41: 0 | R41: ="£m"&" "&'Scheme Inputs'!$H$56&" prices" -> £m prices
H42: Other Network Rail costs | I42: ='Scheme Inputs'!H144 -> All | J42: ='Scheme Inputs'!I100-'Scheme Inputs'!I118 -> 0 | K42: ='Scheme Inputs'!J100-'Scheme Inputs'!J118 -> 0 | L42: ='Scheme Inputs'!K100-'Scheme Inputs'!K118 -> 0 | M42: ='Scheme Inputs'!L100-'Scheme Inputs'!L118 -> 0 | N42: 0 | O42: 0 | P42: 0 | R42: ="£m"&" "&'Scheme Inputs'!$H$56&" prices" -> £m prices
F44: Event based input
J47: Event A | K47: Event B | L47: Event C | M47: Event B | N47: Event D | O47: Event E | P47: Event F | Q47: Event G | R47: Event H | S47: Event I
H49: Cost saved per weather event | I49: Train service Group
H50: Schedule 8 | I50: ='Scheme Inputs'!H132 -> EA01 / North Trans Pennine | J50: ='Scheme Inputs'!I132-'Scheme Inputs'!I149 -> 0 | K50: ='Scheme Inputs'!J132-'Scheme Inputs'!J149 -> 0 | L50: ='Scheme Inputs'!K132-'Scheme Inputs'!K149 -> 0 | M50: ='Scheme Inputs'!L132-'Scheme Inputs'!L149 -> 0 | N50: ='Scheme Inputs'!M132-'Scheme Inputs'!M149 -> 0 | O50: ='Scheme Inputs'!N132-'Scheme Inputs'!N149 -> 0 | P50: ='Scheme Inputs'!O132-'Scheme Inputs'!O149 -> 0 | Q50: ='Scheme Inputs'!P132-'Scheme Inputs'!P149 -> 0 | R50: ='Scheme Inputs'!Q132-'Scheme Inputs'!Q149 -> 0 | S50: ='Scheme Inputs'!R132-'Scheme Inputs'!R149 -> 0 | U50: ="£m"&" "&'Scheme Inputs'!$H$56&" prices" -> £m prices
I51: ='Scheme Inputs'!H133 -> N/A | J51: ='Scheme Inputs'!I133-'Scheme Inputs'!I150 -> 0 | K51: ='Scheme Inputs'!J133-'Scheme Inputs'!J150 -> 0 | L51: ='Scheme Inputs'!K133-'Scheme Inputs'!K150 -> 0 | M51: ='Scheme Inputs'!L133-'Scheme Inputs'!L150 -> 0 | N51: ='Scheme Inputs'!M133-'Scheme Inputs'!M150 -> 0 | O51: ='Scheme Inputs'!N133-'Scheme Inputs'!N150 -> 0 | P51: ='Scheme Inputs'!O133-'Scheme Inputs'!O150 -> 0 | Q51: ='Scheme Inputs'!P133-'Scheme Inputs'!P150 -> 0 | R51: ='Scheme Inputs'!Q133-'Scheme Inputs'!Q150 -> 0 | S51: ='Scheme Inputs'!R133-'Scheme Inputs'!R150 -> 0 | U51: ="£m"&" "&'Scheme Inputs'!$H$56&" prices" -> £m prices
I52: ='Scheme Inputs'!H134 -> N/A | J52: ='Scheme Inputs'!I134-'Scheme Inputs'!I151 -> 0 | K52: ='Scheme Inputs'!J134-'Scheme Inputs'!J151 -> 0 | L52: ='Scheme Inputs'!K134-'Scheme Inputs'!K151 -> 0 | M52: ='Scheme Inputs'!L134-'Scheme Inputs'!L151 -> 0 | N52: ='Scheme Inputs'!M134-'Scheme Inputs'!M151 -> 0 | O52: ='Scheme Inputs'!N134-'Scheme Inputs'!N151 -> 0 | P52: ='Scheme Inputs'!O134-'Scheme Inputs'!O151 -> 0 | Q52: ='Scheme Inputs'!P134-'Scheme Inputs'!P151 -> 0 | R52: ='Scheme Inputs'!Q134-'Scheme Inputs'!Q151 -> 0 | S52: ='Scheme Inputs'!R134-'Scheme Inputs'!R151 -> 0 | U52: ="£m"&" "&'Scheme Inputs'!$H$56&" prices" -> £m prices
I53: ='Scheme Inputs'!H135 -> N/A | J53: ='Scheme Inputs'!I135-'Scheme Inputs'!I152 -> 0 | K53: ='Scheme Inputs'!J135-'Scheme Inputs'!J152 -> 0 | L53: ='Scheme Inputs'!K135-'Scheme Inputs'!K152 -> 0 | M53: ='Scheme Inputs'!L135-'Scheme Inputs'!L152 -> 0 | N53: ='Scheme Inputs'!M135-'Scheme Inputs'!M152 -> 0 | O53: ='Scheme Inputs'!N135-'Scheme Inputs'!N152 -> 0 | P53: ='Scheme Inputs'!O135-'Scheme Inputs'!O152 -> 0 | Q53: ='Scheme Inputs'!P135-'Scheme Inputs'!P152 -> 0 | R53: ='Scheme Inputs'!Q135-'Scheme Inputs'!Q152 -> 0 | S53: ='Scheme Inputs'!R135-'Scheme Inputs'!R152 -> 0 | U53: ="£m"&" "&'Scheme Inputs'!$H$56&" prices" -> £m prices
I54: ='Scheme Inputs'!H136 -> N/A | J54: ='Scheme Inputs'!I136-'Scheme Inputs'!I153 -> 0 | K54: ='Scheme Inputs'!J136-'Scheme Inputs'!J153 -> 0 | L54: ='Scheme Inputs'!K136-'Scheme Inputs'!K153 -> 0 | M54: ='Scheme Inputs'!L136-'Scheme Inputs'!L153 -> 0 | N54: ='Scheme Inputs'!M136-'Scheme Inputs'!M153 -> 0 | O54: ='Scheme Inputs'!N136-'Scheme Inputs'!N153 -> 0 | P54: ='Scheme Inputs'!O136-'Scheme Inputs'!O153 -> 0 | Q54: ='Scheme Inputs'!P136-'Scheme Inputs'!P153 -> 0 | R54: ='Scheme Inputs'!Q136-'Scheme Inputs'!Q153 -> 0 | S54: ='Scheme Inputs'!R136-'Scheme Inputs'!R153 -> 0 | U54: ="£m"&" "&'Scheme Inputs'!$H$56&" prices" -> £m prices
H56: Schedule 4 | I56: ='Scheme Inputs'!H137 -> EA01 / North Trans Pennine | J56: ='Scheme Inputs'!I137-'Scheme Inputs'!I154 -> 0 | K56: ='Scheme Inputs'!J137-'Scheme Inputs'!J154 -> 0 | L56: ='Scheme Inputs'!K137-'Scheme Inputs'!K154 -> 0 | M56: ='Scheme Inputs'!L137-'Scheme Inputs'!L154 -> 0 | N56: ='Scheme Inputs'!M137-'Scheme Inputs'!M154 -> 0 | O56: ='Scheme Inputs'!N137-'Scheme Inputs'!N154 -> 0 | P56: ='Scheme Inputs'!O137-'Scheme Inputs'!O154 -> 0 | Q56: ='Scheme Inputs'!P137-'Scheme Inputs'!P154 -> 0 | R56: ='Scheme Inputs'!Q137-'Scheme Inputs'!Q154 -> 0 | S56: ='Scheme Inputs'!R137-'Scheme Inputs'!R154 -> 0 | U56: ="£m"&" "&'Scheme Inputs'!$H$56&" prices" -> £m prices
I57: ='Scheme Inputs'!H138 -> N/A | J57: ='Scheme Inputs'!I138-'Scheme Inputs'!I155 -> 0 | K57: ='Scheme Inputs'!J138-'Scheme Inputs'!J155 -> 0 | L57: ='Scheme Inputs'!K138-'Scheme Inputs'!K155 -> 0 | M57: ='Scheme Inputs'!L138-'Scheme Inputs'!L155 -> 0 | N57: ='Scheme Inputs'!M138-'Scheme Inputs'!M155 -> 0 | O57: ='Scheme Inputs'!N138-'Scheme Inputs'!N155 -> 0 | P57: ='Scheme Inputs'!O138-'Scheme Inputs'!O155 -> 0 | Q57: ='Scheme Inputs'!P138-'Scheme Inputs'!P155 -> 0 | R57: ='Scheme Inputs'!Q138-'Scheme Inputs'!Q155 -> 0 | S57: ='Scheme Inputs'!R138-'Scheme Inputs'!R155 -> 0 | U57: ="£m"&" "&'Scheme Inputs'!$H$56&" prices" -> £m prices
I58: ='Scheme Inputs'!H139 -> N/A | J58: ='Scheme Inputs'!I139-'Scheme Inputs'!I156 -> 0 | K58: ='Scheme Inputs'!J139-'Scheme Inputs'!J156 -> 0 | L58: ='Scheme Inputs'!K139-'Scheme Inputs'!K156 -> 0 | M58: ='Scheme Inputs'!L139-'Scheme Inputs'!L156 -> 0 | N58: ='Scheme Inputs'!M139-'Scheme Inputs'!M156 -> 0 | O58: ='Scheme Inputs'!N139-'Scheme Inputs'!N156 -> 0 | P58: ='Scheme Inputs'!O139-'Scheme Inputs'!O156 -> 0 | Q58: ='Scheme Inputs'!P139-'Scheme Inputs'!P156 -> 0 | R58: ='Scheme Inputs'!Q139-'Scheme Inputs'!Q156 -> 0 | S58: ='Scheme Inputs'!R139-'Scheme Inputs'!R156 -> 0 | U58: ="£m"&" "&'Scheme Inputs'!$H$56&" prices" -> £m prices
I59: ='Scheme Inputs'!H140 -> N/A | J59: ='Scheme Inputs'!I140-'Scheme Inputs'!I157 -> 0 | K59: ='Scheme Inputs'!J140-'Scheme Inputs'!J157 -> 0 | L59: ='Scheme Inputs'!K140-'Scheme Inputs'!K157 -> 0 | M59: ='Scheme Inputs'!L140-'Scheme Inputs'!L157 -> 0 | N59: ='Scheme Inputs'!M140-'Scheme Inputs'!M157 -> 0 | O59: ='Scheme Inputs'!N140-'Scheme Inputs'!N157 -> 0 | P59: ='Scheme Inputs'!O140-'Scheme Inputs'!O157 -> 0 | Q59: ='Scheme Inputs'!P140-'Scheme Inputs'!P157 -> 0 | R59: ='Scheme Inputs'!Q140-'Scheme Inputs'!Q157 -> 0 | S59: ='Scheme Inputs'!R140-'Scheme Inputs'!R157 -> 0 | U59: ="£m"&" "&'Scheme Inputs'!$H$56&" prices" -> £m prices
I60: ='Scheme Inputs'!H141 -> N/A | J60: ='Scheme Inputs'!I141-'Scheme Inputs'!I158 -> 0 | K60: ='Scheme Inputs'!J141-'Scheme Inputs'!J158 -> 0 | L60: ='Scheme Inputs'!K141-'Scheme Inputs'!K158 -> 0 | M60: ='Scheme Inputs'!L141-'Scheme Inputs'!L158 -> 0 | N60: ='Scheme Inputs'!M141-'Scheme Inputs'!M158 -> 0 | O60: ='Scheme Inputs'!N141-'Scheme Inputs'!N158 -> 0 | P60: ='Scheme Inputs'!O141-'Scheme Inputs'!O158 -> 0 | Q60: ='Scheme Inputs'!P141-'Scheme Inputs'!P158 -> 0 | R60: ='Scheme Inputs'!Q141-'Scheme Inputs'!Q158 -> 0 | S60: ='Scheme Inputs'!R141-'Scheme Inputs'!R158 -> 0 | U60: ="£m"&" "&'Scheme Inputs'!$H$56&" prices" -> £m prices
H62: Schedule 8 | I62: Total | J62: =SUM(J50:J54) -> 0 | K62: 0 | L62: 0 | M62: 0 | N62: 0 | O62: 0 | P62: 0 | Q62: 0 | R62: 0 | S62: 0 | U62: ="£m"&" "&'Scheme Inputs'!$H$56&" prices" -> £m prices
H63: Schedule 4 | I63: Total | J63: =SUM(J56:J60) -> 0 | K63: 0 | L63: 0 | M63: 0 | N63: 0 | O63: 0 | P63: 0 | Q63: 0 | R63: 0 | S63: 0 | U63: ="£m"&" "&'Scheme Inputs'!$H$56&" prices" -> £m prices
H64: Maintenance and repair | I64: ='Scheme Inputs'!H142 -> All | J64: ='Scheme Inputs'!I142-'Scheme Inputs'!I159 -> 0 | K64: ='Scheme Inputs'!J142-'Scheme Inputs'!J159 -> 0 | L64: ='Scheme Inputs'!K142-'Scheme Inputs'!K159 -> 0 | M64: ='Scheme Inputs'!L142-'Scheme Inputs'!L159 -> 0 | N64: ='Scheme Inputs'!M142-'Scheme Inputs'!M159 -> 0 | O64: ='Scheme Inputs'!N142-'Scheme Inputs'!N159 -> 0 | P64: ='Scheme Inputs'!O142-'Scheme Inputs'!O159 -> 0 | Q64: ='Scheme Inputs'!P142-'Scheme Inputs'!P159 -> 0 | R64: ='Scheme Inputs'!Q142-'Scheme Inputs'!Q159 -> 0 | S64: ='Scheme Inputs'!R142-'Scheme Inputs'!R159 -> 0 | U64: ="£m"&" "&'Scheme Inputs'!$H$56&" prices" -> £m prices
H65: Replacement rail/bus and refunds (excluding TOC profit) | I65: ='Scheme Inputs'!H143 -> All | J65: ='Scheme Inputs'!I143-'Scheme Inputs'!I160 -> 0 | K65: ='Scheme Inputs'!J143-'Scheme Inputs'!J160 -> 0 | L65: ='Scheme Inputs'!K143-'Scheme Inputs'!K160 -> 0 | M65: ='Scheme Inputs'!L143-'Scheme Inputs'!L160 -> 0 | N65: ='Scheme Inputs'!M143-'Scheme Inputs'!M160 -> 0 | O65: ='Scheme Inputs'!N143-'Scheme Inputs'!N160 -> 0 | P65: ='Scheme Inputs'!O143-'Scheme Inputs'!O160 -> 0 | Q65: ='Scheme Inputs'!P143-'Scheme Inputs'!P160 -> 0 | R65: ='Scheme Inputs'!Q143-'Scheme Inputs'!Q160 -> 0 | S65: ='Scheme Inputs'!R143-'Scheme Inputs'!R160 -> 0 | U65: ="£m"&" "&'Scheme Inputs'!$H$56&" prices" -> £m prices
H66: Other Network Rail costs | I66: ='Scheme Inputs'!H144 -> All | J66: ='Scheme Inputs'!I144-'Scheme Inputs'!I161 -> 0 | K66: ='Scheme Inputs'!J144-'Scheme Inputs'!J161 -> 0 | L66: ='Scheme Inputs'!K144-'Scheme Inputs'!K161 -> 0 | M66: ='Scheme Inputs'!L144-'Scheme Inputs'!L161 -> 0 | N66: ='Scheme Inputs'!M144-'Scheme Inputs'!M161 -> 0 | O66: ='Scheme Inputs'!N144-'Scheme Inputs'!N161 -> 0 | P66: ='Scheme Inputs'!O144-'Scheme Inputs'!O161 -> 0 | Q66: ='Scheme Inputs'!P144-'Scheme Inputs'!P161 -> 0 | R66: ='Scheme Inputs'!Q144-'Scheme Inputs'!Q161 -> 0 | S66: ='Scheme Inputs'!R144-'Scheme Inputs'!R161 -> 0 | U66: ="£m"&" "&'Scheme Inputs'!$H$56&" prices" -> £m prices
I68: Likelihood
I69: ='Appraisal inputs'!$H$18 -> 2018 | J69: ='Scheme Inputs'!I166 -> 0 | K69: ='Scheme Inputs'!J166 -> 0 | L69: ='Scheme Inputs'!K166 -> 0 | M69: ='Scheme Inputs'!L166 -> 0 | N69: ='Scheme Inputs'!M166 -> 0 | O69: ='Scheme Inputs'!N166 -> 0 | P69: ='Scheme Inputs'!O166 -> 0 | Q69: ='Scheme Inputs'!P166 -> 0 | R69: ='Scheme Inputs'!Q166 -> 0 | S69: ='Scheme Inputs'!R166 -> 0 | U69: 1 in X year event
I70: ='Appraisal inputs'!$H$19 -> 2040 | J70: ='Scheme Inputs'!I167 -> 0 | K70: ='Scheme Inputs'!J167 -> 0 | L70: ='Scheme Inputs'!K167 -> 0 | M70: ='Scheme Inputs'!L167 -> 0 | N70: ='Scheme Inputs'!M167 -> 0 | O70: ='Scheme Inputs'!N167 -> 0 | P70: ='Scheme Inputs'!O167 -> 0 | Q70: ='Scheme Inputs'!P167 -> 0 | R70: ='Scheme Inputs'!Q167 -> 0 | S70: ='Scheme Inputs'!R167 -> 0 | U70: 1 in X year event
I71: ='Appraisal inputs'!$H$20 -> 2060 | J71: ='Scheme Inputs'!I168 -> 0 | K71: ='Scheme Inputs'!J168 -> 0 | L71: ='Scheme Inputs'!K168 -> 0 | M71: ='Scheme Inputs'!L168 -> 0 | N71: ='Scheme Inputs'!M168 -> 0 | O71: ='Scheme Inputs'!N168 -> 0 | P71: ='Scheme Inputs'!O168 -> 0 | Q71: ='Scheme Inputs'!P168 -> 0 | R71: ='Scheme Inputs'!Q168 -> 0 | S71: ='Scheme Inputs'!R168 -> 0 | U71: 1 in X year event
I72: ='Appraisal inputs'!$H$21 -> 2080 | J72: ='Scheme Inputs'!I169 -> 0 | K72: ='Scheme Inputs'!J169 -> 0 | L72: ='Scheme Inputs'!K169 -> 0 | M72: ='Scheme Inputs'!L169 -> 0 | N72: ='Scheme Inputs'!M169 -> 0 | O72: ='Scheme Inputs'!N169 -> 0 | P72: ='Scheme Inputs'!O169 -> 0 | Q72: ='Scheme Inputs'!P169 -> 0 | R72: ='Scheme Inputs'!Q169 -> 0 | S72: ='Scheme Inputs'!R169 -> 0 | U72: 1 in X year event
G74: Expected Annual saving
J76: Event A | K76: Event B | L76: Event C | M76: Event B | N76: Event D | O76: Event E | P76: Event F | Q76: Event G | R76: Event H | S76: Event I
I78: =I69 -> 2018
H79: Schedule 8 | I79: ='Scheme Inputs'!H132 -> EA01 / North Trans Pennine | J79: =IFERROR(1/INDEX(J$69:J$72, MATCH($I$78, $I$69:$I$72, 0))*J50, 0) -> 0 | K79: =IFERROR(1/INDEX(K$69:K$72, MATCH($I$78, $I$69:$I$72, 0))*K50, 0) -> 0 | L79: 0 | M79: 0 | N79: 0 | O79: 0 | P79: 0 | Q79: 0 | R79: 0 | S79: 0 | U79: ="£m"&" "&'Scheme Inputs'!$H$56&" prices" -> £m prices
I80: ='Scheme Inputs'!H133 -> N/A | J80: =IFERROR(1/INDEX(J$69:J$72, MATCH($I$78, $I$69:$I$72, 0))*J51, 0) -> 0 | K80: =IFERROR(1/INDEX(K$69:K$72, MATCH($I$78, $I$69:$I$72, 0))*K51, 0) -> 0 | L80: 0 | M80: 0 | N80: 0 | O80: 0 | P80: 0 | Q80: 0 | R80: 0 | S80: 0 | U80: ="£m"&" "&'Scheme Inputs'!$H$56&" prices" -> £m prices
I81: ='Scheme Inputs'!H134 -> N/A | J81: =IFERROR(1/INDEX(J$69:J$72, MATCH($I$78, $I$69:$I$72, 0))*J52, 0) -> 0 | K81: 0 | L81: 0 | M81: 0 | N81: 0 | O81: 0 | P81: 0 | Q81: 0 | R81: 0 | S81: 0 | U81: ="£m"&" "&'Scheme Inputs'!$H$56&" prices" -> £m prices
I82: ='Scheme Inputs'!H135 -> N/A | J82: =IFERROR(1/INDEX(J$69:J$72, MATCH($I$78, $I$69:$I$72, 0))*J53, 0) -> 0 | K82: 0 | L82: 0 | M82: 0 | N82: 0 | O82: 0 | P82: 0 | Q82: 0 | R82: 0 | S82: 0 | U82: ="£m"&" "&'Scheme Inputs'!$H$56&" prices" -> £m prices
I83: ='Scheme Inputs'!H136 -> N/A | J83: =IFERROR(1/INDEX(J$69:J$72, MATCH($I$78, $I$69:$I$72, 0))*J54, 0) -> 0 | K83: 0 | L83: 0 | M83: 0 | N83: 0 | O83: 0 | P83: 0 | Q83: 0 | R83: 0 | S83: 0 | U83: ="£m"&" "&'Scheme Inputs'!$H$56&" prices" -> £m prices
H84: Schedule 4 | I84: ='Scheme Inputs'!H132 -> EA01 / North Trans Pennine | J84: =IFERROR(1/INDEX(J$69:J$72, MATCH($I$78, $I$69:$I$72, 0))*J56, 0) -> 0 | K84: =IFERROR(1/INDEX(K$69:K$72, MATCH($I$78, $I$69:$I$72, 0))*K56, 0) -> 0 | L84: 0 | M84: 0 | N84: 0 | O84: 0 | P84: 0 | Q84: 0 | R84: 0 | S84: 0 | U84: ="£m"&" "&'Scheme Inputs'!$H$56&" prices" -> £m prices
I85: ='Scheme Inputs'!H133 -> N/A | J85: =IFERROR(1/INDEX(J$69:J$72, MATCH($I$78, $I$69:$I$72, 0))*J57, 0) -> 0 | K85: =IFERROR(1/INDEX(K$69:K$72, MATCH($I$78, $I$69:$I$72, 0))*K57, 0) -> 0 | L85: 0 | M85: 0 | N85: 0 | O85: 0 | P85: 0 | Q85: 0 | R85: 0 | S85: 0 | U85: ="£m"&" "&'Scheme Inputs'!$H$56&" prices" -> £m prices
I86: ='Scheme Inputs'!H134 -> N/A | J86: =IFERROR(1/INDEX(J$69:J$72, MATCH($I$78, $I$69:$I$72, 0))*J58, 0) -> 0 | K86: 0 | L86: 0 | M86: 0 | N86: 0 | O86: 0 | P86: 0 | Q86: 0 | R86: 0 | S86: 0 | U86: ="£m"&" "&'Scheme Inputs'!$H$56&" prices" -> £m prices
I87: ='Scheme Inputs'!H135 -> N/A | J87: =IFERROR(1/INDEX(J$69:J$72, MATCH($I$78, $I$69:$I$72, 0))*J59, 0) -> 0 | K87: 0 | L87: 0 | M87: 0 | N87: 0 | O87: 0 | P87: 0 | Q87: 0 | R87: 0 | S87: 0 | U87: ="£m"&" "&'Scheme Inputs'!$H$56&" prices" -> £m prices
I88: ='Scheme Inputs'!H136 -> N/A | J88: =IFERROR(1/INDEX(J$69:J$72, MATCH($I$78, $I$69:$I$72, 0))*J60, 0) -> 0 | K88: 0 | L88: 0 | M88: 0 | N88: 0 | O88: 0 | P88: 0 | Q88: 0 | R88: 0 | S88: 0 | U88: ="£m"&" "&'Scheme Inputs'!$H$56&" prices" -> £m prices
I89: Schedule 8 | J89: =IFERROR(1/INDEX(J$69:J$72, MATCH($I$78, $I$69:$I$72, 0))*J62, 0) -> 0 | K89: 0 | L89: 0 | M89: 0 | N89: 0 | O89: 0 | P89: 0 | Q89: 0 | R89: 0 | S89: 0 | U89: ="£m"&" "&'Scheme Inputs'!$H$56&" prices" -> £m prices
I90: Schedule 4 | J90: =IFERROR(1/INDEX(J$69:J$72, MATCH($I$78, $I$69:$I$72, 0))*J63, 0) -> 0 | K90: 0 | L90: 0 | M90: 0 | N90: 0 | O90: 0 | P90: 0 | Q90: 0 | R90: 0 | S90: 0 | U90: ="£m"&" "&'Scheme Inputs'!$H$56&" prices" -> £m prices
I91: Maintenance and repair | J91: =IFERROR(1/INDEX(J$69:J$72, MATCH($I$78, $I$69:$I$72, 0))*J64, 0) -> 0 | K91: 0 | L91: 0 | M91: 0 | N91: 0 | O91: 0 | P91: 0 | Q91: 0 | R91: 0 | S91: 0 | U91: ="£m"&" "&'Scheme Inputs'!$H$56&" prices" -> £m prices
I92: Replacement rail/bus and refunds (excluding TOC profit) | J92: =IFERROR(1/INDEX(J$69:J$72, MATCH($I$78, $I$69:$I$72, 0))*J65, 0) -> 0 | K92: 0 | L92: 0 | M92: 0 | N92: 0 | O92: 0 | P92: 0 | Q92: 0 | R92: 0 | S92: 0 | U92: ="£m"&" "&'Scheme Inputs'!$H$56&" prices" -> £m prices
I93: Other Network Rail costs | J93: =IFERROR(1/INDEX(J$69:J$72, MATCH($I$78, $I$69:$I$72, 0))*J66, 0) -> 0 | K93: 0 | L93: 0 | M93: 0 | N93: 0 | O93: 0 | P93: 0 | Q93: 0 | R93: 0 | S93: 0 | U93: ="£m"&" "&'Scheme Inputs'!$H$56&" prices" -> £m prices
I95: =I70 -> 2040
I96: Schedule 8 | J96: =IFERROR(1/INDEX(J$69:J$72, MATCH($I$95, $I$69:$I$72, 0))*J62, 0) -> 0 | K96: 0 | L96: 0 | M96: 0 | N96: 0 | O96: 0 | P96: 0 | Q96: 0 | R96: 0 | S96: 0 | U96: ="£m"&" "&'Scheme Inputs'!$H$56&" prices" -> £m prices
I97: Schedule 4 | J97: =IFERROR(1/INDEX(J$69:J$72, MATCH($I$95, $I$69:$I$72, 0))*J63, 0) -> 0 | K97: 0 | L97: 0 | M97: 0 | N97: 0 | O97: 0 | P97: 0 | Q97: 0 | R97: 0 | S97: 0 | U97: ="£m"&" "&'Scheme Inputs'!$H$56&" prices" -> £m prices
I98: Maintenance and repair | J98: =IFERROR(1/INDEX(J$69:J$72, MATCH($I$95, $I$69:$I$72, 0))*J64, 0) -> 0 | K98: 0 | L98: 0 | M98: 0 | N98: 0 | O98: 0 | P98: 0 | Q98: 0 | R98: 0 | S98: 0 | U98: ="£m"&" "&'Scheme Inputs'!$H$56&" prices" -> £m prices
I99: Replacement rail/bus and refunds (excluding TOC profit) | J99: =IFERROR(1/INDEX(J$69:J$72, MATCH($I$95, $I$69:$I$72, 0))*J65, 0) -> 0 | K99: 0 | L99: 0 | M99: 0 | N99: 0 | O99: 0 | P99: 0 | Q99: 0 | R99: 0 | S99: 0 | U99: ="£m"&" "&'Scheme Inputs'!$H$56&" prices" -> £m prices
I100: Other Network Rail costs | J100: =IFERROR(1/INDEX(J$69:J$72, MATCH($I$95, $I$69:$I$72, 0))*J66, 0) -> 0 | K100: 0 | L100: 0 | M100: 0 | N100: 0 | O100: 0 | P100: 0 | Q100: 0 | R100: 0 | S100: 0 | U100: ="£m"&" "&'Scheme Inputs'!$H$56&" prices" -> £m prices
I102: =I71 -> 2060
I103: Schedule 8 | J103: =IFERROR(1/INDEX(J$69:J$72, MATCH($I$102, $I$69:$I$72, 0))*J62, 0) -> 0 | K103: 0 | L103: 0 | M103: 0 | N103: 0 | O103: 0 | P103: 0 | Q103: 0 | R103: 0 | S103: 0 | U103: ="£m"&" "&'Scheme Inputs'!$H$56&" prices" -> £m prices
I104: Schedule 4 | J104: =IFERROR(1/INDEX(J$69:J$72, MATCH($I$102, $I$69:$I$72, 0))*J63, 0) -> 0 | K104: 0 | L104: 0 | M104: 0 | N104: 0 | O104: 0 | P104: 0 | Q104: 0 | R104: 0 | S104: 0 | U104: ="£m"&" "&'Scheme Inputs'!$H$56&" prices" -> £m prices
I105: Maintenance and repair | J105: =IFERROR(1/INDEX(J$69:J$72, MATCH($I$102, $I$69:$I$72, 0))*J64, 0) -> 0 | K105: 0 | L105: 0 | M105: 0 | N105: 0 | O105: 0 | P105: 0 | Q105: 0 | R105: 0 | S105: 0 | U105: ="£m"&" "&'Scheme Inputs'!$H$56&" prices" -> £m prices
I106: Replacement rail/bus and refunds (excluding TOC profit) | J106: =IFERROR(1/INDEX(J$69:J$72, MATCH($I$102, $I$69:$I$72, 0))*J65, 0) -> 0 | K106: 0 | L106: 0 | M106: 0 | N106: 0 | O106: 0 | P106: 0 | Q106: 0 | R106: 0 | S106: 0 | U106: ="£m"&" "&'Scheme Inputs'!$H$56&" prices" -> £m prices
I107: Other Network Rail costs | J107: =IFERROR(1/INDEX(J$69:J$72, MATCH($I$102, $I$69:$I$72, 0))*J66, 0) -> 0 | K107: 0 | L107: 0 | M107: 0 | N107: 0 | O107: 0 | P107: 0 | Q107: 0 | R107: 0 | S107: 0 | U107: ="£m"&" "&'Scheme Inputs'!$H$56&" prices" -> £m prices
I109: =I72 -> 2080
I110: Schedule 8 | J110: =IFERROR(1/INDEX(J$69:J$72, MATCH($I$109, $I$69:$I$72, 0))*J62, 0) -> 0 | K110: 0 | L110: 0 | M110: 0 | N110: 0 | O110: 0 | P110: 0 | Q110: 0 | R110: 0 | S110: 0 | U110: ="£m"&" "&'Scheme Inputs'!$H$56&" prices" -> £m prices
I111: Schedule 4 | J111: =IFERROR(1/INDEX(J$69:J$72, MATCH($I$109, $I$69:$I$72, 0))*J63, 0) -> 0 | K111: 0 | L111: 0 | M111: 0 | N111: 0 | O111: 0 | P111: 0 | Q111: 0 | R111: 0 | S111: 0 | U111: ="£m"&" "&'Scheme Inputs'!$H$56&" prices" -> £m prices
I112: Maintenance and repair | J112: =IFERROR(1/INDEX(J$69:J$72, MATCH($I$109, $I$69:$I$72, 0))*J64, 0) -> 0 | K112: 0 | L112: 0 | M112: 0 | N112: 0 | O112: 0 | P112: 0 | Q112: 0 | R112: 0 | S112: 0 | U112: ="£m"&" "&'Scheme Inputs'!$H$56&" prices" -> £m prices
I113: Replacement rail/bus and refunds (excluding TOC profit) | J113: =IFERROR(1/INDEX(J$69:J$72, MATCH($I$109, $I$69:$I$72, 0))*J65, 0) -> 0 | K113: 0 | L113: 0 | M113: 0 | N113: 0 | O113: 0 | P113: 0 | Q113: 0 | R113: 0 | S113: 0 | U113: ="£m"&" "&'Scheme Inputs'!$H$56&" prices" -> £m prices
I114: Other Network Rail costs | J114: =IFERROR(1/INDEX(J$69:J$72, MATCH($I$109, $I$69:$I$72, 0))*J66, 0) -> 0 | K114: 0 | L114: 0 | M114: 0 | N114: 0 | O114: 0 | P114: 0 | Q114: 0 | R114: 0 | S114: 0 | U114: ="£m"&" "&'Scheme Inputs'!$H$56&" prices" -> £m prices
I116: Current Year-Forecast Year 1 annual increase
I117: Schedule 8 | J117: =(J96-J89)/($I$95-$I$78) -> 0 | K117: 0 | L117: 0 | M117: 0 | N117: 0 | O117: 0 | P117: 0 | Q117: 0 | R117: 0 | S117: 0 | U117: ="£m"&" "&'Scheme Inputs'!$H$56&" prices" -> £m prices
I118: Schedule 4 | J118: =(J97-J90)/($I$95-$I$78) -> 0 | K118: 0 | L118: 0 | M118: 0 | N118: 0 | O118: 0 | P118: 0 | Q118: 0 | R118: 0 | S118: 0 | U118: ="£m"&" "&'Scheme Inputs'!$H$56&" prices" -> £m prices
I119: Maintenance and repair | J119: =(J98-J91)/($I$95-$I$78) -> 0 | K119: 0 | L119: 0 | M119: 0 | N119: 0 | O119: 0 | P119: 0 | Q119: 0 | R119: 0 | S119: 0 | U119: ="£m"&" "&'Scheme Inputs'!$H$56&" prices" -> £m prices
I120: Replacement rail/bus and refunds (excluding TOC profit) | J120: =(J99-J92)/($I$95-$I$78) -> 0 | K120: 0 | L120: 0 | M120: 0 | N120: 0 | O120: 0 | P120: 0 | Q120: 0 | R120: 0 | S120: 0 | U120: ="£m"&" "&'Scheme Inputs'!$H$56&" prices" -> £m prices
I121: Other Network Rail costs | J121: =(J100-J93)/($I$95-$I$78) -> 0 | K121: 0 | L121: 0 | M121: 0 | N121: 0 | O121: 0 | P121: 0 | Q121: 0 | R121: 0 | S121: 0 | U121: ="£m"&" "&'Scheme Inputs'!$H$56&" prices" -> £m prices
I123: Forecast Year 1-Forecast Year 2 annual increase
I124: Schedule 8 | J124: =(J103-J96)/($I$102-$I$95) -> 0 | K124: 0 | L124: 0 | M124: 0 | N124: 0 | O124: 0 | P124: 0 | Q124: 0 | R124: 0 | S124: 0 | U124: ="£m"&" "&'Scheme Inputs'!$H$56&" prices" -> £m prices
I125: Schedule 4 | J125: =(J104-J97)/($I$102-$I$95) -> 0 | K125: 0 | L125: 0 | M125: 0 | N125: 0 | O125: 0 | P125: 0 | Q125: 0 | R125: 0 | S125: 0 | U125: ="£m"&" "&'Scheme Inputs'!$H$56&" prices" -> £m prices
I126: Maintenance and repair | J126: =(J105-J98)/($I$102-$I$95) -> 0 | K126: 0 | L126: 0 | M126: 0 | N126: 0 | O126: 0 | P126: 0 | Q126: 0 | R126: 0 | S126: 0 | U126: ="£m"&" "&'Scheme Inputs'!$H$56&" prices" -> £m prices
I127: Replacement rail/bus and refunds (excluding TOC profit) | J127: =(J106-J99)/($I$102-$I$95) -> 0 | K127: 0 | L127: 0 | M127: 0 | N127: 0 | O127: 0 | P127: 0 | Q127: 0 | R127: 0 | S127: 0 | U127: ="£m"&" "&'Scheme Inputs'!$H$56&" prices" -> £m prices
I128: Other Network Rail costs | J128: =(J107-J100)/($I$102-$I$95) -> 0 | K128: 0 | L128: 0 | M128: 0 | N128: 0 | O128: 0 | P128: 0 | Q128: 0 | R128: 0 | S128: 0 | U128: ="£m"&" "&'Scheme Inputs'!$H$56&" prices" -> £m prices
I130: Forecast Year 2-Forecast Year 3 annual increase
I131: Schedule 8 | J131: =(J110-J103)/($I$109-$I$102) -> 0 | K131: 0 | L131: 0 | M131: 0 | N131: 0 | O131: 0 | P131: 0 | Q131: 0 | R131: 0 | S131: 0 | U131: ="£m"&" "&'Scheme Inputs'!$H$56&" prices" -> £m prices
I132: Schedule 4 | J132: =(J111-J104)/($I$109-$I$102) -> 0 | K132: 0 | L132: 0 | M132: 0 | N132: 0 | O132: 0 | P132: 0 | Q132: 0 | R132: 0 | S132: 0 | U132: ="£m"&" "&'Scheme Inputs'!$H$56&" prices" -> £m prices
I133: Maintenance and repair | J133: =(J112-J105)/($I$109-$I$102) -> 0 | K133: 0 | L133: 0 | M133: 0 | N133: 0 | O133: 0 | P133: 0 | Q133: 0 | R133: 0 | S133: 0 | U133: ="£m"&" "&'Scheme Inputs'!$H$56&" prices" -> £m prices
I134: Replacement rail/bus and refunds (excluding TOC profit) | J134: =(J113-J106)/($I$109-$I$102) -> 0 | K134: 0 | L134: 0 | M134: 0 | N134: 0 | O134: 0 | P134: 0 | Q134: 0 | R134: 0 | S134: 0 | U134: ="£m"&" "&'Scheme Inputs'!$H$56&" prices" -> £m prices
I135: Other Network Rail costs | J135: =(J114-J107)/($I$109-$I$102) -> 0 | K135: 0 | L135: 0 | M135: 0 | N135: 0 | O135: 0 | P135: 0 | Q135: 0 | R135: 0 | S135: 0 | U135: ="£m"&" "&'Scheme Inputs'!$H$56&" prices" -> £m prices
G137: Expect Annual saving - total across all Events
J139: ='Appraisal inputs'!H18 -> 2018 | K139: ='Appraisal inputs'!H19 -> 2040 | L139: ='Appraisal inputs'!H20 -> 2060 | M139: ='Appraisal inputs'!H21 -> 2080 | N139: Current Year-Forecast Year 1 annual increase | O139: Forecast Year 1-Forecast Year 2 annual increase | P139: Forecast Year 2-Forecast Year 3 annual increase
I140: Schedule 8 | J140: =SUM(J89:S89) -> 0 | K140: =SUM(J96:S96) -> 0 | L140: =SUM(J103:S103) -> 0 | M140: =SUM(J110:S110) -> 0 | N140: =SUM(J117:S117) -> 0 | O140: =SUM(J124:S124) -> 0 | P140: =SUM(J131:S131) -> 0 | T140: ="£m"&" "&'Scheme Inputs'!$H$56&" prices" -> £m prices
I141: Schedule 4 | J141: =SUM(J90:S90) -> 0 | K141: =SUM(J97:S97) -> 0 | L141: =SUM(J104:S104) -> 0 | M141: =SUM(J111:S111) -> 0 | N141: =SUM(J118:S118) -> 0 | O141: =SUM(J125:S125) -> 0 | P141: =SUM(J132:S132) -> 0 | T141: ="£m"&" "&'Scheme Inputs'!$H$56&" prices" -> £m prices
I142: Maintenance and repair | J142: =SUM(J91:S91) -> 0 | K142: =SUM(J98:S98) -> 0 | L142: =SUM(J105:S105) -> 0 | M142: =SUM(J112:S112) -> 0 | N142: =SUM(J119:S119) -> 0 | O142: =SUM(J126:S126) -> 0 | P142: =SUM(J133:S133) -> 0 | T142: ="£m"&" "&'Scheme Inputs'!$H$56&" prices" -> £m prices
I143: Replacement rail/bus and refunds (excluding TOC profit) | J143: =SUM(J92:S92) -> 0 | K143: =SUM(J99:S99) -> 0 | L143: =SUM(J106:S106) -> 0 | M143: =SUM(J113:S113) -> 0 | N143: =SUM(J120:S120) -> 0 | O143: =SUM(J127:S127) -> 0 | P143: =SUM(J134:S134) -> 0 | T143: ="£m"&" "&'Scheme Inputs'!$H$56&" prices" -> £m prices
I144: Other Network Rail costs | J144: =SUM(J93:S93) -> 0 | K144: =SUM(J100:S100) -> 0 | L144: =SUM(J107:S107) -> 0 | M144: =SUM(J114:S114) -> 0 | N144: =SUM(J121:S121) -> 0 | O144: =SUM(J128:S128) -> 0 | P144: =SUM(J135:S135) -> 0 | T144: ="£m"&" "&'Scheme Inputs'!$H$56&" prices" -> £m prices
G147: Weather input selected
H149: Expected Annual saving
J151: =NOT($I$19)*J25+$I$19*J139 -> 2018 | K151: =NOT($I$19)*K25+$I$19*K139 -> 2040 | L151: =NOT($I$19)*L25+$I$19*L139 -> 2060 | M151: =NOT($I$19)*M25+$I$19*M139 -> 2080 | N151: Current Year-Forecast Year 1 annual increase | O151: Forecast Year 1-Forecast Year 2 annual increase | P151: Forecast Year 2-Forecast Year 3 annual increase
I152: Schedule 8 | J152: =$I$19*J38+NOT($I$19)*J140 -> 0 | K152: 0 | L152: 0 | M152: 0 | N152: 0 | O152: 0 | P152: 0 | T152: ="£m"&" "&'Scheme Inputs'!$H$56&" prices" -> £m prices
I153: Schedule 4 | J153: 0 | K153: 0 | L153: 0 | M153: 0 | N153: 0 | O153: 0 | P153: 0 | T153: ="£m"&" "&'Scheme Inputs'!$H$56&" prices" -> £m prices
I154: Maintenance and repair | J154: 0 | K154: 0 | L154: 0 | M154: 0 | N154: 0 | O154: 0 | P154: 0 | T154: ="£m"&" "&'Scheme Inputs'!$H$56&" prices" -> £m prices
I155: Replacement rail/bus and refunds (excluding TOC profit) | J155: 0 | K155: 0 | L155: 0 | M155: 0 | N155: 0 | O155: 0 | P155: 0 | T155: ="£m"&" "&'Scheme Inputs'!$H$56&" prices" -> £m prices
I156: Other Network Rail costs | J156: 0 | K156: 0 | L156: 0 | M156: 0 | N156: 0 | O156: 0 | P156: 0 | T156: ="£m"&" "&'Scheme Inputs'!$H$56&" prices" -> £m prices
G159: Schedule 4&8 costs by service group
I160: Cost by weather input selected | J160: % of total
H161: ='Scheme Inputs'!H88 -> EA01 / North Trans Pennine | I161: =$I$19*(J26+J32)+NOT($I$19)*(SUM(J79:S79)+SUM(J84:S84)) -> 0 | J161: =I161/$I$166 -> 
H162: ='Scheme Inputs'!H89 -> N/A | I162: =$I$19*(J27+J33)+NOT($I$19)*(SUM(J80:S80)+SUM(J85:S85)) -> 0
H163: ='Scheme Inputs'!H90 -> N/A | I163: 0
H164: ='Scheme Inputs'!H91 -> N/A | I164: 0
H165: ='Scheme Inputs'!H92 -> N/A | I165: 0
H166: Total | I166: =$I$19*(J38+J39)+NOT($I$19)*(SUM(J89:S89)+SUM(J90:S90)) -> 0

Sheet calc2
F2: =MID(CELL("filename",D1),FIND("]",CELL("filename",D1))+1,256) -> calc2
F3: Turns inflation, growth and discount rate inputs into time series
R10: Year | S10: ='GDP&inflation rates'!S10 -> 2000 | T10: ='GDP&inflation rates'!T10 -> 2001 | U10: ='GDP&inflation rates'!U10 -> 2002 | V10: ='GDP&inflation rates'!V10 -> 2003 | W10: ='GDP&inflation rates'!W10 -> 2004 | X10: ='GDP&inflation rates'!X10 -> 2005 | Y10: ='GDP&inflation rates'!Y10 -> 2006 | Z10: ='GDP&inflation rates'!Z10 -> 2007 | AA10: ='GDP&inflation rates'!AA10 -> 2008 | AB10: ='GDP&inflation rates'!AB10 -> 2009 | AC10: ='GDP&inflation rates'!AC10 -> 2010 | AD10: ='GDP&inflation rates'!AD10 -> 2011 | AE10: ='GDP&inflation rates'!AE10 -> 2012 | AF10: ='GDP&inflation rates'!AF10 -> 2013 | AG10: ='GDP&inflation rates'!AG10 -> 2014 | AH10: ='GDP&inflation rates'!AH10 -> 2015 | AI10: ='GDP&inflation rates'!AI10 -> 2016 | AJ10: ='GDP&inflation rates'!AJ10 -> 2017 | AK10: ='GDP&inflation rates'!AK10 -> 2018 | AL10: ='GDP&inflation rates'!AL10 -> 2019 | AM10: ='GDP&inflation rates'!AM10 -> 2020 | AN10: ='GDP&inflation rates'!AN10 -> 2021 | AO10: ='GDP&inflation rates'!AO10 -> 2022 | AP10: ='GDP&inflation rates'!AP10 -> 2023 | AQ10: ='GDP&inflation rates'!AQ10 -> 2024 | AR10: ='GDP&inflation rates'!AR10 -> 2025 | AS10: ='GDP&inflation rates'!AS10 -> 2026 | AT10: ='GDP&inflation rates'!AT10 -> 2027 | AU10: ='GDP&inflation rates'!AU10 -> 2028 | AV10: ='GDP&inflation rates'!AV10 -> 2029 | AW10: ='GDP&inflation rates'!AW10 -> 2030 | AX10: ='GDP&inflation rates'!AX10 -> 2031 | AY10: ='GDP&inflation rates'!AY10 -> 2032 | AZ10: ='GDP&inflation rates'!AZ10 -> 2033 | BA10: ='GDP&inflation rates'!BA10 -> 2034 | BB10: ='GDP&inflation rates'!BB10 -> 2035 | BC10: ='GDP&inflation rates'!BC10 -> 2036 | BD10: ='GDP&inflation rates'!BD10 -> 2037 | BE10: ='GDP&inflation rates'!BE10 -> 2038 | BF10: ='GDP&inflation rates'!BF10 -> 2039 | BG10: ='GDP&inflation rates'!BG10 -> 2040 | BH10: ='GDP&inflation rates'!BH10 -> 2041 | BI10: ='GDP&inflation rates'!BI10 -> 2042 | BJ10: ='GDP&inflation rates'!BJ10 -> 2043 | BK10: ='GDP&inflation rates'!BK10 -> 2044 | BL10: ='GDP&inflation rates'!BL10 -> 2045 | BM10: ='GDP&inflation rates'!BM10 -> 2046 | BN10: ='GDP&inflation rates'!BN10 -> 2047 | BO10: ='GDP&inflation rates'!BO10 -> 2048 | BP10: ='GDP&inflation rates'!BP10 -> 2049 | BQ10: ='GDP&inflation rates'!BQ10 -> 2050 | BR10: ='GDP&inflation rates'!BR10 -> 2051 | BS10: ='GDP&inflation rates'!BS10 -> 2052 | BT10: ='GDP&inflation rates'!BT10 -> 2053 | BU10: ='GDP&inflation rates'!BU10 -> 2054 | BV10: ='GDP&inflation rates'!BV10 -> 2055 | BW10: ='GDP&inflation rates'!BW10 -> 2056 | BX10: ='GDP&inflation rates'!BX10 -> 2057 | BY10: ='GDP&inflation rates'!BY10 -> 2058 | BZ10: ='GDP&inflation rates'!BZ10 -> 2059 | CA10: ='GDP&inflation rates'!CA10 -> 2060 | CB10: ='GDP&inflation rates'!CB10 -> 2061 | CC10: ='GDP&inflation rates'!CC10 -> 2062 | CD10: ='GDP&inflation rates'!CD10 -> 2063 | CE10: ='GDP&inflation rates'!CE10 -> 2064 | CF10: ='GDP&inflation rates'!CF10 -> 2065 | CG10: ='GDP&inflation rates'!CG10 -> 2066 | CH10: ='GDP&inflation rates'!CH10 -> 2067 | CI10: ='GDP&inflation rates'!CI10 -> 2068 | CJ10: ='GDP&inflation rates'!CJ10 -> 2069 | CK10: ='GDP&inflation rates'!CK10 -> 2070 | CL10: ='GDP&inflation rates'!CL10 -> 2071 | CM10: ='GDP&inflation rates'!CM10 -> 2072 | CN10: ='GDP&inflation rates'!CN10 -> 2073 | CO10: ='GDP&inflation rates'!CO10 -> 2074 | CP10: ='GDP&inflation rates'!CP10 -> 2075 | CQ10: ='GDP&inflation rates'!CQ10 -> 2076 | CR10: ='GDP&inflation rates'!CR10 -> 2077 | CS10: ='GDP&inflation rates'!CS10 -> 2078 | CT10: ='GDP&inflation rates'!CT10 -> 2079 | CU10: ='GDP&inflation rates'!CU10 -> 2080 | CV10: ='GDP&inflation rates'!CV10 -> 2081 | CW10: ='GDP&inflation rates'!CW10 -> 2082 | CX10: ='GDP&inflation rates'!CX10 -> 2083 | CY10: ='GDP&inflation rates'!CY10 -> 2084 | CZ10: ='GDP&inflation rates'!CZ10 -> 2085 | DA10: ='GDP&inflation rates'!DA10 -> 2086 | DB10: ='GDP&inflation rates'!DB10 -> 2087 | DC10: ='GDP&inflation rates'!DC10 -> 2088 | DD10: ='GDP&inflation rates'!DD10 -> 2089 | DE10: ='GDP&inflation rates'!DE10 -> 2090 | DF10: ='GDP&inflation rates'!DF10 -> 2091 | DG10: ='GDP&inflation rates'!DG10 -> 2092 | DH10: ='GDP&inflation rates'!DH10 -> 2093 | DI10: ='GDP&inflation rates'!DI10 -> 2094 | DJ10: ='GDP&inflation rates'!DJ10 -> 2095 | DK10: ='GDP&inflation rates'!DK10 -> 2096 | DL10: ='GDP&inflation rates'!DL10 -> 2097 | DM10: ='GDP&inflation rates'!DM10 -> 2098 | DN10: ='GDP&inflation rates'!DN10 -> 2099 | DO10: ='GDP&inflation rates'!DO10 -> 2100 | DP10: ='GDP&inflation rates'!DP10 -> 2101 | DQ10: ='GDP&inflation rates'!DQ10 -> 2102 | DR10: ='GDP&inflation rates'!DR10 -> 2103 | DS10: ='GDP&inflation rates'!DS10 -> 2104 | DT10: ='GDP&inflation rates'!DT10 -> 2105 | DU10: ='GDP&inflation rates'!DU10 -> 2106 | DV10: ='GDP&inflation rates'!DV10 -> 2107 | DW10: ='GDP&inflation rates'!DW10 -> 2108 | DX10: ='GDP&inflation rates'!DX10 -> 2109 | DY10: ='GDP&inflation rates'!DY10 -> 2110 | DZ10: ='GDP&inflation rates'!DZ10 -> 2111 | EA10: ='GDP&inflation rates'!EA10 -> 2112 | EB10: ='GDP&inflation rates'!EB10 -> 2113 | EC10: ='GDP&inflation rates'!EC10 -> 2114 | ED10: ='GDP&inflation rates'!ED10 -> 2115 | EE10: ='GDP&inflation rates'!EE10 -> 2116 | EF10: ='GDP&inflation rates'!EF10 -> 2117 | EG10: ='GDP&inflation rates'!EG10 -> 2118 | EH10: ='GDP&inflation rates'!EH10 -> 2119 | EI10: ='GDP&inflation rates'!EI10 -> 2120 | EJ10: ='GDP&inflation rates'!EJ10 -> 2121 | EK10: ='GDP&inflation rates'!EK10 -> 2122 | EL10: ='GDP&inflation rates'!EL10 -> 2123 | EM10: ='GDP&inflation rates'!EM10 -> 2124 | EN10: ='GDP&inflation rates'!EN10 -> 2125 | EO10: ='GDP&inflation rates'!EO10 -> 2126 | EP10: ='GDP&inflation rates'!EP10 -> 2127 | EQ10: ='GDP&inflation rates'!EQ10 -> 2128 | ER10: ='GDP&inflation rates'!ER10 -> 2129 | ES10: ='GDP&inflation rates'!ES10 -> 2130 | ET10: ='GDP&inflation rates'!ET10 -> 2131 | EU10: ='GDP&inflation rates'!EU10 -> 2132 | EV10: ='GDP&inflation rates'!EV10 -> 2133 | EW10: ='GDP&inflation rates'!EW10 -> 2134 | EX10: ='GDP&inflation rates'!EX10 -> 2135 | EY10: ='GDP&inflation rates'!EY10 -> 2136 | EZ10: ='GDP&inflation rates'!EZ10 -> 2137 | FA10: ='GDP&inflation rates'!FA10 -> 2138 | FB10: ='GDP&inflation rates'!FB10 -> 2139 | FC10: ='GDP&inflation rates'!FC10 -> 2140 | FD10: ='GDP&inflation rates'!FD10 -> 2141 | FE10: ='GDP&inflation rates'!FE10 -> 2142 | FF10: ='GDP&inflation rates'!FF10 -> 2143 | FG10: ='GDP&inflation rates'!FG10 -> 2144 | FH10: ='GDP&inflation rates'!FH10 -> 2145 | FI10: ='GDP&inflation rates'!FI10 -> 2146 | FJ10: ='GDP&inflation rates'!FJ10 -> 2147 | FK10: ='GDP&inflation rates'!FK10 -> 2148 | FL10: ='GDP&inflation rates'!FL10 -> 2149 | FM10: ='GDP&inflation rates'!FM10 -> 2150 | FN10: ='GDP&inflation rates'!FN10 -> 2151 | FO10: ='GDP&inflation rates'!FO10 -> 2152 | FP10: ='GDP&inflation rates'!FP10 -> 2153 | FQ10: ='GDP&inflation rates'!FQ10 -> 2154 | FR10: ='GDP&inflation rates'!FR10 -> 2155 | FS10: ='GDP&inflation rates'!FS10 -> 2156 | FT10: ='GDP&inflation rates'!FT10 -> 2157 | FU10: ='GDP&inflation rates'!FU10 -> 2158 | FV10: ='GDP&inflation rates'!FV10 -> 2159 | FW10: ='GDP&inflation rates'!FW10 -> 2160 | FX10: ='GDP&inflation rates'!FX10 -> 2161 | FY10: ='GDP&inflation rates'!FY10 -> 2162 | FZ10: ='GDP&inflation rates'!FZ10 -> 2163 | GA10: ='GDP&inflation rates'!GA10 -> 2164 | GB10: ='GDP&inflation rates'!GB10 -> 2165 | GC10: ='GDP&inflation rates'!GC10 -> 2166 | GD10: ='GDP&inflation rates'!GD10 -> 2167 | GE10: ='GDP&inflation rates'!GE10 -> 2168 | GF10: ='GDP&inflation rates'!GF10 -> 2169 | GG10: ='GDP&inflation rates'!GG10 -> 2170
F12: Section | H12: Variable name | I12: Coefficient variable | K12: Unit | R12: Corkscrew coefficient | S12: Time series variable
F15: Price bases
H17: Weather Impact Input (WI) price base | I17: ='Scheme Inputs'!H56 -> 0 | K17: Year
H19: Results price base | I19: ='Appraisal inputs'!H29 -> 2010 | K19: Year
F22: Indices
G24: VoT growth
H26: GDP/head growth rate | K26: % | S26: =1+'GDP&inflation rates'!S12 -> 1.0339 | T26: =1+'GDP&inflation rates'!T12 -> 1.0233 | U26: =1+'GDP&inflation rates'!U12 -> 1.0196 | V26: =1+'GDP&inflation rates'!V12 -> 1.03 | W26: =1+'GDP&inflation rates'!W12 -> 1.0199 | X26: =1+'GDP&inflation rates'!X12 -> 1.0218 | Y26: =1+'GDP&inflation rates'!Y12 -> 1.0181 | Z26: =1+'GDP&inflation rates'!Z12 -> 1.0173 | AA26: =1+'GDP&inflation rates'!AA12 -> 0.9856 | AB26: =1+'GDP&inflation rates'!AB12 -> 0.95 | AC26: =1+'GDP&inflation rates'!AC12 -> 1.011047747 | AD26: =1+'GDP&inflation rates'!AD12 -> 1.00666062 | AE26: =1+'GDP&inflation rates'!AE12 -> 1.006452321 | AF26: =1+'GDP&inflation rates'!AF12 -> 1.012740716 | AG26: =1+'GDP&inflation rates'!AG12 -> 1.022868859 | AH26: =1+'GDP&inflation rates'!AH12 -> 1.013887294 | AI26: =1+'GDP&inflation rates'!AI12 -> 1.009715416 | AJ26: =1+'GDP&inflation rates'!AJ12 -> 1.013005894 | AK26: =1+'GDP&inflation rates'!AK12 -> 1.008529896 | AL26: =1+'GDP&inflation rates'!AL12 -> 1.01071849 | AM26: =1+'GDP&inflation rates'!AM12 -> 1.012390061 | AN26: =1+'GDP&inflation rates'!AN12 -> 1.013668896 | AO26: =1+'GDP&inflation rates'!AO12 -> 1.01550857 | AP26: =1+'GDP&inflation rates'!AP12 -> 1.016040985 | AQ26: =1+'GDP&inflation rates'!AQ12 -> 1.016662703 | AR26: =1+'GDP&inflation rates'!AR12 -> 1.017654577 | AS26: =1+'GDP&inflation rates'!AS12 -> 1.018409988 | AT26: =1+'GDP&inflation rates'!AT12 -> 1.018676413 | AU26: =1+'GDP&inflation rates'!AU12 -> 1.018637859 | AV26: =1+'GDP&inflation rates'!AV12 -> 1.018157671 | AW26: =1+'GDP&inflation rates'!AW12 -> 1.017925744 | AX26: =1+'GDP&inflation rates'!AX12 -> 1.017873004 | AY26: =1+'GDP&inflation rates'!AY12 -> 1.017897357 | AZ26: =1+'GDP&inflation rates'!AZ12 -> 1.017975633 | BA26: =1+'GDP&inflation rates'!BA12 -> 1.0181466 | BB26: =1+'GDP&inflation rates'!BB12 -> 1.018369642 | BC26: =1+'GDP&inflation rates'!BC12 -> 1.018588057 | BD26: =1+'GDP&inflation rates'!BD12 -> 1.018952231 | BE26: =1+'GDP&inflation rates'!BE12 -> 1.019711525 | BF26: =1+'GDP&inflation rates'!BF12 -> 1.02019288 | BG26: =1+'GDP&inflation rates'!BG12 -> 1.020575163 | BH26: =1+'GDP&inflation rates'!BH12 -> 1.020563592 | BI26: =1+'GDP&inflation rates'!BI12 -> 1.020391307 | BJ26: =1+'GDP&inflation rates'!BJ12 -> 1.020157107 | BK26: =1+'GDP&inflation rates'!BK12 -> 1.020022293 | BL26: =1+'GDP&inflation rates'!BL12 -> 1.019935409 | BM26: =1+'GDP&inflation rates'!BM12 -> 1.019484633 | BN26: =1+'GDP&inflation rates'!BN12 -> 1.019206629 | BO26: =1+'GDP&inflation rates'!BO12 -> 1.019080157 | BP26: =1+'GDP&inflation rates'!BP12 -> 1.019058797 | BQ26: =1+'GDP&inflation rates'!BQ12 -> 1.01916944 | BR26: =1+'GDP&inflation rates'!BR12 -> 1.019311726 | BS26: =1+'GDP&inflation rates'!BS12 -> 1.019877419 | BT26: =1+'GDP&inflation rates'!BT12 -> 1.020148811 | BU26: =1+'GDP&inflation rates'!BU12 -> 1.02017441 | BV26: =1+'GDP&inflation rates'!BV12 -> 1.020119519 | BW26: =1+'GDP&inflation rates'!BW12 -> 1.019884212 | BX26: =1+'GDP&inflation rates'!BX12 -> 1.019741361 | BY26: =1+'GDP&inflation rates'!BY12 -> 1.019759387 | BZ26: =1+'GDP&inflation rates'!BZ12 -> 1.019878569 | CA26: =1+'GDP&inflation rates'!CA12 -> 1.020362357 | CB26: =1+'GDP&inflation rates'!CB12 -> 1.020594794 | CC26: =1+'GDP&inflation rates'!CC12 -> 1.020725397 | CD26: =1+'GDP&inflation rates'!CD12 -> 1.020753362 | CE26: =1+'GDP&inflation rates'!CE12 -> 1.020640257 | CF26: =1+'GDP&inflation rates'!CF12 -> 1.020519608 | CG26: =1+'GDP&inflation rates'!CG12 -> 1.020292062 | CH26: =1+'GDP&inflation rates'!CH12 -> 1.020198994 | CI26: =1+'GDP&inflation rates'!CI12 -> 1.020163831 | CJ26: =1+'GDP&inflation rates'!CJ12 -> 1.020126291 | CK26: =1+'GDP&inflation rates'!CK12 -> 1.020089917 | CL26: =1+'GDP&inflation rates'!CL12 -> 1.020055807 | CM26: =1+'GDP&inflation rates'!CM12 -> 1.020025508 | CN26: =1+'GDP&inflation rates'!CN12 -> 1.020000236 | CO26: =1+'GDP&inflation rates'!CO12 -> 1.019980778 | CP26: =1+'GDP&inflation rates'!CP12 -> 1.019967352 | CQ26: =1+'GDP&inflation rates'!CQ12 -> 1.019959465 | CR26: =1+'GDP&inflation rates'!CR12 -> 1.019957262 | CS26: =1+'GDP&inflation rates'!CS12 -> 1.019960063 | CT26: =1+'GDP&inflation rates'!CT12 -> 1.019967346 | CU26: =1+'GDP&inflation rates'!CU12 -> 1.019978143 | CV26: =1+'GDP&inflation rates'!CV12 -> 1.019991322 | CW26: =1+'GDP&inflation rates'!CW12 -> 1.020006532 | CX26: =1+'GDP&inflation rates'!CX12 -> 1.020022467 | CY26: =1+'GDP&inflation rates'!CY12 -> 1.020037951 | CZ26: =1+'GDP&inflation rates'!CZ12 -> 1.020051992 | DA26: =1+'GDP&inflation rates'!DA12 -> 1.02006414 | DB26: =1+'GDP&inflation rates'!DB12 -> 1.020073765 | DC26: =1+'GDP&inflation rates'!DC12 -> 1.020080959 | DD26: =1+'GDP&inflation rates'!DD12 -> 1.020085475 | DE26: =1+'GDP&inflation rates'!DE12 -> 1.020085475 | DF26: =1+'GDP&inflation rates'!DF12 -> 1.020085475 | DG26: =1+'GDP&inflation rates'!DG12 -> 1.020085475 | DH26: =1+'GDP&inflation rates'!DH12 -> 1.020085475 | DI26: =1+'GDP&inflation rates'!DI12 -> 1.020085475 | DJ26: =1+'GDP&inflation rates'!DJ12 -> 1.020085475 | DK26: =1+'GDP&inflation rates'!DK12 -> 1.020085475 | DL26: =1+'GDP&inflation rates'!DL12 -> 1.020085475 | DM26: =1+'GDP&inflation rates'!DM12 -> 1.020085475 | DN26: =1+'GDP&inflation rates'!DN12 -> 1.020085475 | DO26: =1+'GDP&inflation rates'!DO12 -> 1.020085475 | DP26: =1+'GDP&inflation rates'!DP12 -> 1.020085475 | DQ26: =1+'GDP&inflation rates'!DQ12 -> 1.020085475 | DR26: =1+'GDP&inflation rates'!DR12 -> 1.020085475 | DS26: =1+'GDP&inflation rates'!DS12 -> 1.020085475 | DT26: =1+'GDP&inflation rates'!DT12 -> 1.020085475 | DU26: =1+'GDP&inflation rates'!DU12 -> 1.020085475 | DV26: =1+'GDP&inflation rates'!DV12 -> 1.020085475 | DW26: =1+'GDP&inflation rates'!DW12 -> 1.020085475 | DX26: =1+'GDP&inflation rates'!DX12 -> 1.020085475 | DY26: =1+'GDP&inflation rates'!DY12 -> 1.020085475 | DZ26: =1+'GDP&inflation rates'!DZ12 -> 1.020085475 | EA26: =1+'GDP&inflation rates'!EA12 -> 1.020085475 | EB26: =1+'GDP&inflation rates'!EB12 -> 1.020085475 | EC26: =1+'GDP&inflation rates'!EC12 -> 1.020085475 | ED26: =1+'GDP&inflation rates'!ED12 -> 1.020085475 | EE26: =1+'GDP&inflation rates'!EE12 -> 1.020085475 | EF26: =1+'GDP&inflation rates'!EF12 -> 1.020085475 | EG26: =1+'GDP&inflation rates'!EG12 -> 1.020085475 | EH26: =1+'GDP&inflation rates'!EH12 -> 1.020085475 | EI26: =1+'GDP&inflation rates'!EI12 -> 1.020085475 | EJ26: =1+'GDP&inflation rates'!EJ12 -> 1.020085475 | EK26: =1+'GDP&inflation rates'!EK12 -> 1.020085475 | EL26: =1+'GDP&inflation rates'!EL12 -> 1.020085475 | EM26: =1+'GDP&inflation rates'!EM12 -> 1.020085475 | EN26: =1+'GDP&inflation rates'!EN12 -> 1.020085475 | EO26: =1+'GDP&inflation rates'!EO12 -> 1.020085475 | EP26: =1+'GDP&inflation rates'!EP12 -> 1.020085475 | EQ26: =1+'GDP&inflation rates'!EQ12 -> 1.020085475 | ER26: =1+'GDP&inflation rates'!ER12 -> 1.020085475 | ES26: =1+'GDP&inflation rates'!ES12 -> 1.020085475 | ET26: =1+'GDP&inflation rates'!ET12 -> 1.020085475 | EU26: =1+'GDP&inflation rates'!EU12 -> 1.020085475 | EV26: =1+'GDP&inflation rates'!EV12 -> 1.020085475 | EW26: =1+'GDP&inflation rates'!EW12 -> 1.020085475 | EX26: =1+'GDP&inflation rates'!EX12 -> 1.020085475 | EY26: =1+'GDP&inflation rates'!EY12 -> 1.020085475 | EZ26: =1+'GDP&inflation rates'!EZ12 -> 1.020085475 | FA26: =1+'GDP&inflation rates'!FA12 -> 1.020085475 | FB26: =1+'GDP&inflation rates'!FB12 -> 1.020085475 | FC26: =1+'GDP&inflation rates'!FC12 -> 1.020085475 | FD26: =1+'GDP&inflation rates'!FD12 -> 1.020085475 | FE26: =1+'GDP&inflation rates'!FE12 -> 1.020085475 | FF26: =1+'GDP&inflation rates'!FF12 -> 1.020085475 | FG26: =1+'GDP&inflation rates'!FG12 -> 1.020085475 | FH26: =1+'GDP&inflation rates'!FH12 -> 1.020085475 | FI26: =1+'GDP&inflation rates'!FI12 -> 1.020085475 | FJ26: =1+'GDP&inflation rates'!FJ12 -> 1.020085475 | FK26: =1+'GDP&inflation rates'!FK12 -> 1.020085475 | FL26: =1+'GDP&inflation rates'!FL12 -> 1.020085475 | FM26: =1+'GDP&inflation rates'!FM12 -> 1.020085475 | FN26: =1+'GDP&inflation rates'!FN12 -> 1.020085475 | FO26: =1+'GDP&inflation rates'!FO12 -> 1.020085475 | FP26: =1+'GDP&inflation rates'!FP12 -> 1.020085475 | FQ26: =1+'GDP&inflation rates'!FQ12 -> 1.020085475 | FR26: =1+'GDP&inflation rates'!FR12 -> 1.020085475 | FS26: =1+'GDP&inflation rates'!FS12 -> 1.020085475 | FT26: =1+'GDP&inflation rates'!FT12 -> 1.020085475 | FU26: =1+'GDP&inflation rates'!FU12 -> 1.020085475 | FV26: =1+'GDP&inflation rates'!FV12 -> 1.020085475 | FW26: =1+'GDP&inflation rates'!FW12 -> 1.020085475 | FX26: =1+'GDP&inflation rates'!FX12 -> 1.020085475 | FY26: =1+'GDP&inflation rates'!FY12 -> 1.020085475 | FZ26: =1+'GDP&inflation rates'!FZ12 -> 1.020085475 | GA26: =1+'GDP&inflation rates'!GA12 -> 1.020085475 | GB26: =1+'GDP&inflation rates'!GB12 -> 1.020085475 | GC26: =1+'GDP&inflation rates'!GC12 -> 1.020085475 | GD26: =1+'GDP&inflation rates'!GD12 -> 1.020085475 | GE26: =1+'GDP&inflation rates'!GE12 -> 1.020085475 | GF26: =1+'GDP&inflation rates'!GF12 -> 1.020085475 | GG26: =1+'GDP&inflation rates'!GG12 -> 1.020085475
H27: GDP/head index | K27: index | R27: 1 | S27: =R27*S26 -> 1.0339 | T27: =S27*T26 -> 1.05798987 | U27: =T27*U26 -> 1.078726471 | V27: 1.111088266 | W27: 1.133198922 | X27: 1.157902659 | Y27: 1.178860697 | Z27: 1.199254987 | AA27: 1.181985715 | AB27: 1.122886429 | AC27: 1.135291795 | AD27: 1.142853542 | AE27: 1.150227601 | AF27: 1.164882323 | AG27: 1.191521853 | AH27: 1.208068868 | AI27: 1.219805759 | AJ27: 1.235670424 | AK27: 1.246210564 | AL27: 1.259568059 | AM27: 1.275174185 | AN27: 1.292604409 | AO27: 1.312650854 | AP27: 1.333707067 | AQ27: 1.355930231 | AR27: 1.379868605 | AS27: 1.405271969 | AT27: 1.431517409 | AU27: 1.458197829 | AV27: 1.484675305 | AW27: 1.511289215 | AX27: 1.538300493 | AY27: 1.565832007 | AZ27: 1.593978828 | BA27: 1.622904125 | BB27: 1.652716292 | BC27: =BB27*BC26 -> 1.683437077 | BD27: =BC27*BD26 -> 1.715341966 | BE27: 1.749153973 | BF27: 1.784474429 | BG27: 1.82119028 | BH27: 1.858640494 | BI27: 1.896540603 | BJ27: 1.934769374 | BK27: 1.973507893 | BL27: 2.012850579 | BM27: 2.052070233 | BN27: 2.091483585 | BO27: 2.13138942 | BP27: 2.172011138 | BQ27: 2.213647376 | BR27: 2.256396727 | BS27: 2.301248071 | BT27: 2.347615482 | BU27: 2.39497724 | BV27: 2.443163029 | BW27: 2.491743402 | BX27: 2.540933806 | BY27: 2.5911411 | BZ27: 2.642649278 | CA27: 2.696459845 | CB27: 2.75199288 | CC27: 2.809029026 | CD27: 2.867325823 | CE27: 2.926508166 | CF27: 2.986558965 | CG27: 3.047162404 | CH27: 3.108712018 | CI27: 3.171395561 | CJ27: 3.235223992 | CK27: 3.300219372 | CL27: 3.366407933 | CM27: 3.433821963 | CN27: 3.502499211 | CO27: 3.572481871 | CP27: 3.643814873 | CQ27: 3.71654347 | CR27: 3.790715501 | CS27: 3.866378422 | CT27: 3.943579738 | CU27: 4.022365137 | CV27: 4.102777534 | CW27: 4.184859883 | CX27: 4.268651101 | CY27: 4.354186124 | CZ27: 4.441496229 | DA27: 4.530611029 | DB27: 4.62155745 | DC27: 4.714362757 | DD27: 4.809052974 | DE27: =DD27*DE26 -> 4.90564509 | DF27: =DE27*DF26 -> 5.004177304 | DG27: =DF27*DG26 -> 5.104688585 | DH27: =DG27*DH26 -> 5.207218682 | DI27: =DH27*DI26 -> 5.311808145 | DJ27: =DI27*DJ26 -> 5.418498338 | DK27: =DJ27*DK26 -> 5.527331453 | DL27: =DK27*DL26 -> 5.638350533 | DM27: =DL27*DM26 -> 5.751599485 | DN27: =DM27*DN26 -> 5.867123095 | DO27: =DN27*DO26 -> 5.984967052 | DP27: =DO27*DP26 -> 6.105177962 | DQ27: =DP27*DQ26 -> 6.227803364 | DR27: =DQ27*DR26 -> 6.352891756 | DS27: =DR27*DS26 -> 6.480492607 | DT27: =DS27*DT26 -> 6.610656383 | DU27: =DT27*DU26 -> 6.743434559 | DV27: =DU27*DV26 -> 6.878879649 | DW27: =DV27*DW26 -> 7.017045217 | DX27: =DW27*DX26 -> 7.157985907 | DY27: =DX27*DY26 -> 7.301757458 | DZ27: =DY27*DZ26 -> 7.448416728 | EA27: =DZ27*EA26 -> 7.59802172 | EB27: =EA27*EB26 -> 7.750631599 | EC27: =EB27*EC26 -> 7.90630672 | ED27: =EC27*ED26 -> 8.06510865 | EE27: =ED27*EE26 -> 8.227100192 | EF27: =EE27*EF26 -> 8.392345411 | EG27: =EF27*EG26 -> 8.560909659 | EH27: =EG27*EH26 -> 8.7328596 | EI27: =EH27*EI26 -> 8.908263237 | EJ27: =EI27*EJ26 -> 9.08718994 | EK27: =EJ27*EK26 -> 9.269710471 | EL27: =EK27*EL26 -> 9.455897014 | EM27: =EL27*EM26 -> 9.645823201 | EN27: =EM27*EN26 -> 9.839564147 | EO27: =EN27*EO26 -> 10.03719647 | EP27: =EO27*EP26 -> 10.23879833 | EQ27: =EP27*EQ26 -> 10.44444947 | ER27: =EQ27*ER26 -> 10.6542312 | ES27: =ER27*ES26 -> 10.8682265 | ET27: =ES27*ET26 -> 11.08652 | EU27: =ET27*EU26 -> 11.30919802 | EV27: =EU27*EV26 -> 11.53634864 | EW27: =EV27*EW26 -> 11.76806169 | EX27: =EW27*EX26 -> 12.00442881 | EY27: =EX27*EY26 -> 12.24554347 | EZ27: =EY27*EZ26 -> 12.49150103 | FA27: =EZ27*FA26 -> 12.74239877 | FB27: =FA27*FB26 -> 12.99833591 | FC27: =FB27*FC26 -> 13.25941366 | FD27: =FC27*FD26 -> 13.52573529 | FE27: =FD27*FE26 -> 13.79740612 | FF27: =FE27*FF26 -> 14.07453358 | FG27: =FF27*FG26 -> 14.35722728 | FH27: =FG27*FH26 -> 14.64559901 | FI27: =FH27*FI26 -> 14.93976283 | FJ27: =FI27*FJ26 -> 15.23983507 | FK27: =FJ27*FK26 -> 15.54593441 | FL27: =FK27*FL26 -> 15.85818189 | FM27: =FL27*FM26 -> 16.17670102 | FN27: =FM27*FN26 -> 16.50161775 | FO27: =FN27*FO26 -> 16.83306059 | FP27: =FO27*FP26 -> 17.17116061 | FQ27: =FP27*FQ26 -> 17.51605154 | FR27: =FQ27*FR26 -> 17.86786976 | FS27: =FR27*FS26 -> 18.22675442 | FT27: =FS27*FT26 -> 18.59284745 | FU27: =FT27*FU26 -> 18.96629363 | FV27: =FU27*FV26 -> 19.34724066 | FW27: =FV27*FW26 -> 19.73583919 | FX27: =FW27*FX26 -> 20.1322429 | FY27: =FX27*FY26 -> 20.53660857 | FZ27: =FY27*FZ26 -> 20.94909612 | GA27: =FZ27*GA26 -> 21.36986868 | GB27: =GA27*GB26 -> 21.79909265 | GC27: =GB27*GC26 -> 22.23693779 | GD27: =GC27*GD26 -> 22.68357726 | GE27: =GD27*GE26 -> 23.13918769 | GF27: =GE27*GF26 -> 23.60394928 | GG27: =GF27*GG26 -> 24.07804583
H28: GDP/head, WI based | K28: index | S28: =S27/INDEX($S$27:DD27,1,MATCH($I$17,$S$10:$DD$10)) ->  | T28: =T27/INDEX($S$27:DE27,1,MATCH($I$17,$S$10:$DD$10)) ->  | U28: =U27/INDEX($S$27:DF27,1,MATCH($I$17,$S$10:$DD$10)) ->  | V28: =V27/INDEX($S$27:DG27,1,MATCH($I$17,$S$10:$DD$10)) ->  | W28: =W27/INDEX($S$27:DH27,1,MATCH($I$17,$S$10:$DD$10)) ->  | X28: =X27/INDEX($S$27:DI27,1,MATCH($I$17,$S$10:$DD$10)) ->  | Y28: =Y27/INDEX($S$27:DJ27,1,MATCH($I$17,$S$10:$DD$10)) ->  | Z28: =Z27/INDEX($S$27:DK27,1,MATCH($I$17,$S$10:$DD$10)) ->  | AA28: =AA27/INDEX($S$27:DL27,1,MATCH($I$17,$S$10:$DD$10)) ->  | AB28: =AB27/INDEX($S$27:DM27,1,MATCH($I$17,$S$10:$DD$10)) ->  | AC28: =AC27/INDEX($S$27:DN27,1,MATCH($I$17,$S$10:$DD$10)) ->  | AD28: =AD27/INDEX($S$27:DO27,1,MATCH($I$17,$S$10:$DD$10)) ->  | AE28: =AE27/INDEX($S$27:DP27,1,MATCH($I$17,$S$10:$DD$10)) ->  | AF28: =AF27/INDEX($S$27:DQ27,1,MATCH($I$17,$S$10:$DD$10)) ->  | AG28: =AG27/INDEX($S$27:DR27,1,MATCH($I$17,$S$10:$DD$10)) ->  | AH28: =AH27/INDEX($S$27:DS27,1,MATCH($I$17,$S$10:$DD$10)) ->  | AI28: =AI27/INDEX($S$27:DT27,1,MATCH($I$17,$S$10:$DD$10)) ->  | AJ28: =AJ27/INDEX($S$27:DU27,1,MATCH($I$17,$S$10:$DD$10)) ->  | AK28: =AK27/INDEX($S$27:DV27,1,MATCH($I$17,$S$10:$DD$10)) ->  | AL28: =AL27/INDEX($S$27:DW27,1,MATCH($I$17,$S$10:$DD$10)) ->  | AM28: =AM27/INDEX($S$27:DX27,1,MATCH($I$17,$S$10:$DD$10)) ->  | AN28: =AN27/INDEX($S$27:DY27,1,MATCH($I$17,$S$10:$DD$10)) ->  | AO28: =AO27/INDEX($S$27:DZ27,1,MATCH($I$17,$S$10:$DD$10)) ->  | AP28: =AP27/INDEX($S$27:EA27,1,MATCH($I$17,$S$10:$DD$10)) ->  | AQ28: =AQ27/INDEX($S$27:EB27,1,MATCH($I$17,$S$10:$DD$10)) ->  | AR28: =AR27/INDEX($S$27:EC27,1,MATCH($I$17,$S$10:$DD$10)) ->  | AS28: =AS27/INDEX($S$27:ED27,1,MATCH($I$17,$S$10:$DD$10)) ->  | AT28: =AT27/INDEX($S$27:EE27,1,MATCH($I$17,$S$10:$DD$10)) ->  | AU28: =AU27/INDEX($S$27:EF27,1,MATCH($I$17,$S$10:$DD$10)) ->  | AV28: =AV27/INDEX($S$27:EG27,1,MATCH($I$17,$S$10:$DD$10)) ->  | AW28: =AW27/INDEX($S$27:EH27,1,MATCH($I$17,$S$10:$DD$10)) ->  | AX28: =AX27/INDEX($S$27:EI27,1,MATCH($I$17,$S$10:$DD$10)) ->  | AY28: =AY27/INDEX($S$27:EJ27,1,MATCH($I$17,$S$10:$DD$10)) ->  | AZ28: =AZ27/INDEX($S$27:EK27,1,MATCH($I$17,$S$10:$DD$10)) ->  | BA28: =BA27/INDEX($S$27:EL27,1,MATCH($I$17,$S$10:$DD$10)) ->  | BB28: =BB27/INDEX($S$27:EM27,1,MATCH($I$17,$S$10:$DD$10)) ->  | BC28: =BC27/INDEX($S$27:EN27,1,MATCH($I$17,$S$10:$DD$10)) ->  | BD28: =BD27/INDEX($S$27:EO27,1,MATCH($I$17,$S$10:$DD$10)) ->  | BE28: =BE27/INDEX($S$27:EP27,1,MATCH($I$17,$S$10:$DD$10)) ->  | BF28: =BF27/INDEX($S$27:EQ27,1,MATCH($I$17,$S$10:$DD$10)) ->  | BG28: =BG27/INDEX($S$27:ER27,1,MATCH($I$17,$S$10:$DD$10)) ->  | BH28: =BH27/INDEX($S$27:ES27,1,MATCH($I$17,$S$10:$DD$10)) ->  | BI28: =BI27/INDEX($S$27:ET27,1,MATCH($I$17,$S$10:$DD$10)) ->  | BJ28: =BJ27/INDEX($S$27:EU27,1,MATCH($I$17,$S$10:$DD$10)) ->  | BK28: =BK27/INDEX($S$27:EV27,1,MATCH($I$17,$S$10:$DD$10)) ->  | BL28: =BL27/INDEX($S$27:EW27,1,MATCH($I$17,$S$10:$DD$10)) ->  | BM28: =BM27/INDEX($S$27:EX27,1,MATCH($I$17,$S$10:$DD$10)) ->  | BN28: =BN27/INDEX($S$27:EY27,1,MATCH($I$17,$S$10:$DD$10)) ->  | BO28: =BO27/INDEX($S$27:EZ27,1,MATCH($I$17,$S$10:$DD$10)) ->  | BP28: =BP27/INDEX($S$27:FA27,1,MATCH($I$17,$S$10:$DD$10)) ->  | BQ28: =BQ27/INDEX($S$27:FB27,1,MATCH($I$17,$S$10:$DD$10)) ->  | BR28: =BR27/INDEX($S$27:FC27,1,MATCH($I$17,$S$10:$DD$10)) ->  | BS28: =BS27/INDEX($S$27:FD27,1,MATCH($I$17,$S$10:$DD$10)) ->  | BT28: =BT27/INDEX($S$27:FE27,1,MATCH($I$17,$S$10:$DD$10)) ->  | BU28: =BU27/INDEX($S$27:FF27,1,MATCH($I$17,$S$10:$DD$10)) ->  | BV28: =BV27/INDEX($S$27:FG27,1,MATCH($I$17,$S$10:$DD$10)) ->  | BW28: =BW27/INDEX($S$27:FH27,1,MATCH($I$17,$S$10:$DD$10)) ->  | BX28: =BX27/INDEX($S$27:FI27,1,MATCH($I$17,$S$10:$DD$10)) ->  | BY28: =BY27/INDEX($S$27:FJ27,1,MATCH($I$17,$S$10:$DD$10)) ->  | BZ28: =BZ27/INDEX($S$27:FK27,1,MATCH($I$17,$S$10:$DD$10)) ->  | CA28: =CA27/INDEX($S$27:FL27,1,MATCH($I$17,$S$10:$DD$10)) ->  | CB28: =CB27/INDEX($S$27:FM27,1,MATCH($I$17,$S$10:$DD$10)) ->  | CC28: =CC27/INDEX($S$27:FN27,1,MATCH($I$17,$S$10:$DD$10)) ->  | CD28: =CD27/INDEX($S$27:FO27,1,MATCH($I$17,$S$10:$DD$10)) ->  | CE28: =CE27/INDEX($S$27:FP27,1,MATCH($I$17,$S$10:$DD$10)) ->  | CF28: =CF27/INDEX($S$27:FQ27,1,MATCH($I$17,$S$10:$DD$10)) ->  | CG28: =CG27/INDEX($S$27:FR27,1,MATCH($I$17,$S$10:$DD$10)) ->  | CH28: =CH27/INDEX($S$27:FS27,1,MATCH($I$17,$S$10:$DD$10)) ->  | CI28: =CI27/INDEX($S$27:FT27,1,MATCH($I$17,$S$10:$DD$10)) ->  | CJ28: =CJ27/INDEX($S$27:FU27,1,MATCH($I$17,$S$10:$DD$10)) ->  | CK28: =CK27/INDEX($S$27:FV27,1,MATCH($I$17,$S$10:$DD$10)) ->  | CL28: =CL27/INDEX($S$27:FW27,1,MATCH($I$17,$S$10:$DD$10)) ->  | CM28: =CM27/INDEX($S$27:FX27,1,MATCH($I$17,$S$10:$DD$10)) ->  | CN28: =CN27/INDEX($S$27:FY27,1,MATCH($I$17,$S$10:$DD$10)) ->  | CO28: =CO27/INDEX($S$27:FZ27,1,MATCH($I$17,$S$10:$DD$10)) ->  | CP28: =CP27/INDEX($S$27:GA27,1,MATCH($I$17,$S$10:$DD$10)) ->  | CQ28: =CQ27/INDEX($S$27:GB27,1,MATCH($I$17,$S$10:$DD$10)) ->  | CR28: =CR27/INDEX($S$27:GC27,1,MATCH($I$17,$S$10:$DD$10)) ->  | CS28: =CS27/INDEX($S$27:GD27,1,MATCH($I$17,$S$10:$DD$10)) ->  | CT28: =CT27/INDEX($S$27:GE27,1,MATCH($I$17,$S$10:$DD$10)) ->  | CU28: =CU27/INDEX($S$27:GF27,1,MATCH($I$17,$S$10:$DD$10)) ->  | CV28: =CV27/INDEX($S$27:GG27,1,MATCH($I$17,$S$10:$DD$10)) ->  | CW28: =CW27/INDEX($S$27:GH27,1,MATCH($I$17,$S$10:$DD$10)) ->  | CX28: =CX27/INDEX($S$27:GI27,1,MATCH($I$17,$S$10:$DD$10)) ->  | CY28: =CY27/INDEX($S$27:GJ27,1,MATCH($I$17,$S$10:$DD$10)) ->  | CZ28: =CZ27/INDEX($S$27:GK27,1,MATCH($I$17,$S$10:$DD$10)) ->  | DA28: =DA27/INDEX($S$27:GL27,1,MATCH($I$17,$S$10:$DD$10)) ->  | DB28: =DB27/INDEX($S$27:GM27,1,MATCH($I$17,$S$10:$DD$10)) ->  | DC28: =DC27/INDEX($S$27:GN27,1,MATCH($I$17,$S$10:$DD$10)) ->  | DD28: =DD27/INDEX($S$27:GO27,1,MATCH($I$17,$S$10:$DD$10)) ->  | DE28: =DE27/INDEX($S$27:GP27,1,MATCH($I$17,$S$10:$DD$10)) ->  | DF28: =DF27/INDEX($S$27:GQ27,1,MATCH($I$17,$S$10:$DD$10)) ->  | DG28: =DG27/INDEX($S$27:GR27,1,MATCH($I$17,$S$10:$DD$10)) ->  | DH28: =DH27/INDEX($S$27:GS27,1,MATCH($I$17,$S$10:$DD$10)) ->  | DI28: =DI27/INDEX($S$27:GT27,1,MATCH($I$17,$S$10:$DD$10)) ->  | DJ28: =DJ27/INDEX($S$27:GU27,1,MATCH($I$17,$S$10:$DD$10)) ->  | DK28: =DK27/INDEX($S$27:GV27,1,MATCH($I$17,$S$10:$DD$10)) ->  | DL28: =DL27/INDEX($S$27:GW27,1,MATCH($I$17,$S$10:$DD$10)) ->  | DM28: =DM27/INDEX($S$27:GX27,1,MATCH($I$17,$S$10:$DD$10)) ->  | DN28: =DN27/INDEX($S$27:GY27,1,MATCH($I$17,$S$10:$DD$10)) ->  | DO28: =DO27/INDEX($S$27:GZ27,1,MATCH($I$17,$S$10:$DD$10)) ->  | DP28: =DP27/INDEX($S$27:HA27,1,MATCH($I$17,$S$10:$DD$10)) ->  | DQ28: =DQ27/INDEX($S$27:HB27,1,MATCH($I$17,$S$10:$DD$10)) ->  | DR28: =DR27/INDEX($S$27:HC27,1,MATCH($I$17,$S$10:$DD$10)) ->  | DS28: =DS27/INDEX($S$27:HD27,1,MATCH($I$17,$S$10:$DD$10)) ->  | DT28: =DT27/INDEX($S$27:HE27,1,MATCH($I$17,$S$10:$DD$10)) ->  | DU28: =DU27/INDEX($S$27:HF27,1,MATCH($I$17,$S$10:$DD$10)) ->  | DV28: =DV27/INDEX($S$27:HG27,1,MATCH($I$17,$S$10:$DD$10)) ->  | DW28: =DW27/INDEX($S$27:HH27,1,MATCH($I$17,$S$10:$DD$10)) ->  | DX28: =DX27/INDEX($S$27:HI27,1,MATCH($I$17,$S$10:$DD$10)) ->  | DY28: =DY27/INDEX($S$27:HJ27,1,MATCH($I$17,$S$10:$DD$10)) ->  | DZ28: =DZ27/INDEX($S$27:HK27,1,MATCH($I$17,$S$10:$DD$10)) ->  | EA28: =EA27/INDEX($S$27:HL27,1,MATCH($I$17,$S$10:$DD$10)) ->  | EB28: =EB27/INDEX($S$27:HM27,1,MATCH($I$17,$S$10:$DD$10)) ->  | EC28: =EC27/INDEX($S$27:HN27,1,MATCH($I$17,$S$10:$DD$10)) ->  | ED28: =ED27/INDEX($S$27:HO27,1,MATCH($I$17,$S$10:$DD$10)) ->  | EE28: =EE27/INDEX($S$27:HP27,1,MATCH($I$17,$S$10:$DD$10)) ->  | EF28: =EF27/INDEX($S$27:HQ27,1,MATCH($I$17,$S$10:$DD$10)) ->  | EG28: =EG27/INDEX($S$27:HR27,1,MATCH($I$17,$S$10:$DD$10)) ->  | EH28: =EH27/INDEX($S$27:HS27,1,MATCH($I$17,$S$10:$DD$10)) ->  | EI28: =EI27/INDEX($S$27:HT27,1,MATCH($I$17,$S$10:$DD$10)) ->  | EJ28: =EJ27/INDEX($S$27:HU27,1,MATCH($I$17,$S$10:$DD$10)) ->  | EK28: =EK27/INDEX($S$27:HV27,1,MATCH($I$17,$S$10:$DD$10)) ->  | EL28: =EL27/INDEX($S$27:HW27,1,MATCH($I$17,$S$10:$DD$10)) ->  | EM28: =EM27/INDEX($S$27:HX27,1,MATCH($I$17,$S$10:$DD$10)) ->  | EN28: =EN27/INDEX($S$27:HY27,1,MATCH($I$17,$S$10:$DD$10)) ->  | EO28: =EO27/INDEX($S$27:HZ27,1,MATCH($I$17,$S$10:$DD$10)) ->  | EP28: =EP27/INDEX($S$27:IA27,1,MATCH($I$17,$S$10:$DD$10)) ->  | EQ28: =EQ27/INDEX($S$27:IB27,1,MATCH($I$17,$S$10:$DD$10)) ->  | ER28: =ER27/INDEX($S$27:IC27,1,MATCH($I$17,$S$10:$DD$10)) ->  | ES28: =ES27/INDEX($S$27:ID27,1,MATCH($I$17,$S$10:$DD$10)) ->  | ET28: =ET27/INDEX($S$27:IE27,1,MATCH($I$17,$S$10:$DD$10)) ->  | EU28: =EU27/INDEX($S$27:IF27,1,MATCH($I$17,$S$10:$DD$10)) ->  | EV28: =EV27/INDEX($S$27:IG27,1,MATCH($I$17,$S$10:$DD$10)) ->  | EW28: =EW27/INDEX($S$27:IH27,1,MATCH($I$17,$S$10:$DD$10)) ->  | EX28: =EX27/INDEX($S$27:II27,1,MATCH($I$17,$S$10:$DD$10)) ->  | EY28: =EY27/INDEX($S$27:IJ27,1,MATCH($I$17,$S$10:$DD$10)) ->  | EZ28: =EZ27/INDEX($S$27:IK27,1,MATCH($I$17,$S$10:$DD$10)) ->  | FA28: =FA27/INDEX($S$27:IL27,1,MATCH($I$17,$S$10:$DD$10)) ->  | FB28: =FB27/INDEX($S$27:IM27,1,MATCH($I$17,$S$10:$DD$10)) ->  | FC28: =FC27/INDEX($S$27:IN27,1,MATCH($I$17,$S$10:$DD$10)) ->  | FD28: =FD27/INDEX($S$27:IO27,1,MATCH($I$17,$S$10:$DD$10)) ->  | FE28: =FE27/INDEX($S$27:IP27,1,MATCH($I$17,$S$10:$DD$10)) ->  | FF28: =FF27/INDEX($S$27:IQ27,1,MATCH($I$17,$S$10:$DD$10)) ->  | FG28: =FG27/INDEX($S$27:IR27,1,MATCH($I$17,$S$10:$DD$10)) ->  | FH28: =FH27/INDEX($S$27:IS27,1,MATCH($I$17,$S$10:$DD$10)) ->  | FI28: =FI27/INDEX($S$27:IT27,1,MATCH($I$17,$S$10:$DD$10)) ->  | FJ28: =FJ27/INDEX($S$27:IU27,1,MATCH($I$17,$S$10:$DD$10)) ->  | FK28: =FK27/INDEX($S$27:IV27,1,MATCH($I$17,$S$10:$DD$10)) ->  | FL28: =FL27/INDEX($S$27:IW27,1,MATCH($I$17,$S$10:$DD$10)) ->  | FM28: =FM27/INDEX($S$27:IX27,1,MATCH($I$17,$S$10:$DD$10)) ->  | FN28: =FN27/INDEX($S$27:IY27,1,MATCH($I$17,$S$10:$DD$10)) ->  | FO28: =FO27/INDEX($S$27:IZ27,1,MATCH($I$17,$S$10:$DD$10)) ->  | FP28: =FP27/INDEX($S$27:JA27,1,MATCH($I$17,$S$10:$DD$10)) ->  | FQ28: =FQ27/INDEX($S$27:JB27,1,MATCH($I$17,$S$10:$DD$10)) ->  | FR28: =FR27/INDEX($S$27:JC27,1,MATCH($I$17,$S$10:$DD$10)) ->  | FS28: =FS27/INDEX($S$27:JD27,1,MATCH($I$17,$S$10:$DD$10)) ->  | FT28: =FT27/INDEX($S$27:JE27,1,MATCH($I$17,$S$10:$DD$10)) ->  | FU28: =FU27/INDEX($S$27:JF27,1,MATCH($I$17,$S$10:$DD$10)) ->  | FV28: =FV27/INDEX($S$27:JG27,1,MATCH($I$17,$S$10:$DD$10)) ->  | FW28: =FW27/INDEX($S$27:JH27,1,MATCH($I$17,$S$10:$DD$10)) ->  | FX28: =FX27/INDEX($S$27:JI27,1,MATCH($I$17,$S$10:$DD$10)) ->  | FY28: =FY27/INDEX($S$27:JJ27,1,MATCH($I$17,$S$10:$DD$10)) ->  | FZ28: =FZ27/INDEX($S$27:JK27,1,MATCH($I$17,$S$10:$DD$10)) ->  | GA28: =GA27/INDEX($S$27:JL27,1,MATCH($I$17,$S$10:$DD$10)) ->  | GB28: =GB27/INDEX($S$27:JM27,1,MATCH($I$17,$S$10:$DD$10)) ->  | GC28: =GC27/INDEX($S$27:JN27,1,MATCH($I$17,$S$10:$DD$10)) ->  | GD28: =GD27/INDEX($S$27:JO27,1,MATCH($I$17,$S$10:$DD$10)) ->  | GE28: =GE27/INDEX($S$27:JP27,1,MATCH($I$17,$S$10:$DD$10)) ->  | GF28: =GF27/INDEX($S$27:JQ27,1,MATCH($I$17,$S$10:$DD$10)) ->  | GG28: =GG27/INDEX($S$27:JR27,1,MATCH($I$17,$S$10:$DD$10)) -> 
G30: Inflation
H32: GDP deflator rate | K32: % | S32: =1+'GDP&inflation rates'!S16 -> 1.0071 | T32: =1+'GDP&inflation rates'!T16 -> 1.0272 | U32: =1+'GDP&inflation rates'!U16 -> 1.0232 | V32: =1+'GDP&inflation rates'!V16 -> 1.0194 | W32: =1+'GDP&inflation rates'!W16 -> 1.0276 | X32: =1+'GDP&inflation rates'!X16 -> 1.0182 | Y32: =1+'GDP&inflation rates'!Y16 -> 1.0287 | Z32: =1+'GDP&inflation rates'!Z16 -> 1.0252 | AA32: =1+'GDP&inflation rates'!AA16 -> 1.0282 | AB32: =1+'GDP&inflation rates'!AB16 -> 1.0274 | AC32: =1+'GDP&inflation rates'!AC16 -> 1.018288626 | AD32: =1+'GDP&inflation rates'!AD16 -> 1.013886817 | AE32: =1+'GDP&inflation rates'!AE16 -> 1.020998033 | AF32: =1+'GDP&inflation rates'!AF16 -> 1.016492465 | AG32: =1+'GDP&inflation rates'!AG16 -> 1.014688274 | AH32: =1+'GDP&inflation rates'!AH16 -> 1.00685455 | AI32: =1+'GDP&inflation rates'!AI16 -> 1.02021349 | AJ32: =1+'GDP&inflation rates'!AJ16 -> 1.016289639 | AK32: =1+'GDP&inflation rates'!AK16 -> 1.015634888 | AL32: =1+'GDP&inflation rates'!AL16 -> 1.016596501 | AM32: =1+'GDP&inflation rates'!AM16 -> 1.018833 | AN32: =1+'GDP&inflation rates'!AN16 -> 1.019176583 | AO32: =1+'GDP&inflation rates'!AO16 -> 1.020132437 | AP32: =1+'GDP&inflation rates'!AP16 -> 1.021088291 | AQ32: =1+'GDP&inflation rates'!AQ16 -> 1.022044146 | AR32: =1+'GDP&inflation rates'!AR16 -> 1.023 | AS32: =1+'GDP&inflation rates'!AS16 -> 1.023 | AT32: =1+'GDP&inflation rates'!AT16 -> 1.023 | AU32: =1+'GDP&inflation rates'!AU16 -> 1.023 | AV32: =1+'GDP&inflation rates'!AV16 -> 1.023 | AW32: =1+'GDP&inflation rates'!AW16 -> 1.023 | AX32: =1+'GDP&inflation rates'!AX16 -> 1.023 | AY32: =1+'GDP&inflation rates'!AY16 -> 1.023 | AZ32: =1+'GDP&inflation rates'!AZ16 -> 1.023 | BA32: =1+'GDP&inflation rates'!BA16 -> 1.023 | BB32: =1+'GDP&inflation rates'!BB16 -> 1.023 | BC32: =1+'GDP&inflation rates'!BC16 -> 1.023 | BD32: =1+'GDP&inflation rates'!BD16 -> 1.023 | BE32: =1+'GDP&inflation rates'!BE16 -> 1.023 | BF32: =1+'GDP&inflation rates'!BF16 -> 1.023 | BG32: =1+'GDP&inflation rates'!BG16 -> 1.023 | BH32: =1+'GDP&inflation rates'!BH16 -> 1.023 | BI32: =1+'GDP&inflation rates'!BI16 -> 1.023 | BJ32: =1+'GDP&inflation rates'!BJ16 -> 1.023 | BK32: =1+'GDP&inflation rates'!BK16 -> 1.023 | BL32: =1+'GDP&inflation rates'!BL16 -> 1.023 | BM32: =1+'GDP&inflation rates'!BM16 -> 1.023 | BN32: =1+'GDP&inflation rates'!BN16 -> 1.023 | BO32: =1+'GDP&inflation rates'!BO16 -> 1.023 | BP32: =1+'GDP&inflation rates'!BP16 -> 1.023 | BQ32: =1+'GDP&inflation rates'!BQ16 -> 1.023 | BR32: =1+'GDP&inflation rates'!BR16 -> 1.023 | BS32: =1+'GDP&inflation rates'!BS16 -> 1.023 | BT32: =1+'GDP&inflation rates'!BT16 -> 1.023 | BU32: =1+'GDP&inflation rates'!BU16 -> 1.023 | BV32: =1+'GDP&inflation rates'!BV16 -> 1.023 | BW32: =1+'GDP&inflation rates'!BW16 -> 1.023 | BX32: =1+'GDP&inflation rates'!BX16 -> 1.023 | BY32: =1+'GDP&inflation rates'!BY16 -> 1.023 | BZ32: =1+'GDP&inflation rates'!BZ16 -> 1.023 | CA32: =1+'GDP&inflation rates'!CA16 -> 1.023 | CB32: =1+'GDP&inflation rates'!CB16 -> 1.023 | CC32: =1+'GDP&inflation rates'!CC16 -> 1.023 | CD32: =1+'GDP&inflation rates'!CD16 -> 1.023 | CE32: =1+'GDP&inflation rates'!CE16 -> 1.023 | CF32: =1+'GDP&inflation rates'!CF16 -> 1.023 | CG32: =1+'GDP&inflation rates'!CG16 -> 1.023 | CH32: =1+'GDP&inflation rates'!CH16 -> 1.023 | CI32: =1+'GDP&inflation rates'!CI16 -> 1.023 | CJ32: =1+'GDP&inflation rates'!CJ16 -> 1.023 | CK32: =1+'GDP&inflation rates'!CK16 -> 1.023 | CL32: =1+'GDP&inflation rates'!CL16 -> 1.023 | CM32: =1+'GDP&inflation rates'!CM16 -> 1.023 | CN32: =1+'GDP&inflation rates'!CN16 -> 1.023 | CO32: =1+'GDP&inflation rates'!CO16 -> 1.023 | CP32: =1+'GDP&inflation rates'!CP16 -> 1.023 | CQ32: =1+'GDP&inflation rates'!CQ16 -> 1.023 | CR32: =1+'GDP&inflation rates'!CR16 -> 1.023 | CS32: =1+'GDP&inflation rates'!CS16 -> 1.023 | CT32: =1+'GDP&inflation rates'!CT16 -> 1.023 | CU32: =1+'GDP&inflation rates'!CU16 -> 1.023 | CV32: =1+'GDP&inflation rates'!CV16 -> 1.023 | CW32: =1+'GDP&inflation rates'!CW16 -> 1.023 | CX32: =1+'GDP&inflation rates'!CX16 -> 1.023 | CY32: =1+'GDP&inflation rates'!CY16 -> 1.023 | CZ32: =1+'GDP&inflation rates'!CZ16 -> 1.023 | DA32: =1+'GDP&inflation rates'!DA16 -> 1.023 | DB32: =1+'GDP&inflation rates'!DB16 -> 1.023 | DC32: =1+'GDP&inflation rates'!DC16 -> 1.023 | DD32: =1+'GDP&inflation rates'!DD16 -> 1.023 | DE32: =1+'GDP&inflation rates'!DE16 -> 1.023 | DF32: =1+'GDP&inflation rates'!DF16 -> 1.023 | DG32: =1+'GDP&inflation rates'!DG16 -> 1.023 | DH32: =1+'GDP&inflation rates'!DH16 -> 1.023 | DI32: =1+'GDP&inflation rates'!DI16 -> 1.023 | DJ32: =1+'GDP&inflation rates'!DJ16 -> 1.023 | DK32: =1+'GDP&inflation rates'!DK16 -> 1.023 | DL32: =1+'GDP&inflation rates'!DL16 -> 1.023 | DM32: =1+'GDP&inflation rates'!DM16 -> 1.023 | DN32: =1+'GDP&inflation rates'!DN16 -> 1.023 | DO32: =1+'GDP&inflation rates'!DO16 -> 1.023 | DP32: =1+'GDP&inflation rates'!DP16 -> 1.023 | DQ32: =1+'GDP&inflation rates'!DQ16 -> 1.023 | DR32: =1+'GDP&inflation rates'!DR16 -> 1.023 | DS32: =1+'GDP&inflation rates'!DS16 -> 1.023 | DT32: =1+'GDP&inflation rates'!DT16 -> 1.023 | DU32: =1+'GDP&inflation rates'!DU16 -> 1.023 | DV32: =1+'GDP&inflation rates'!DV16 -> 1.023 | DW32: =1+'GDP&inflation rates'!DW16 -> 1.023 | DX32: =1+'GDP&inflation rates'!DX16 -> 1.023 | DY32: =1+'GDP&inflation rates'!DY16 -> 1.023 | DZ32: =1+'GDP&inflation rates'!DZ16 -> 1.023 | EA32: =1+'GDP&inflation rates'!EA16 -> 1.023 | EB32: =1+'GDP&inflation rates'!EB16 -> 1.023 | EC32: =1+'GDP&inflation rates'!EC16 -> 1.023 | ED32: =1+'GDP&inflation rates'!ED16 -> 1.023 | EE32: =1+'GDP&inflation rates'!EE16 -> 1.023 | EF32: =1+'GDP&inflation rates'!EF16 -> 1.023 | EG32: =1+'GDP&inflation rates'!EG16 -> 1.023 | EH32: =1+'GDP&inflation rates'!EH16 -> 1.023 | EI32: =1+'GDP&inflation rates'!EI16 -> 1.023 | EJ32: =1+'GDP&inflation rates'!EJ16 -> 1.023 | EK32: =1+'GDP&inflation rates'!EK16 -> 1.023 | EL32: =1+'GDP&inflation rates'!EL16 -> 1.023 | EM32: =1+'GDP&inflation rates'!EM16 -> 1.023 | EN32: =1+'GDP&inflation rates'!EN16 -> 1.023 | EO32: =1+'GDP&inflation rates'!EO16 -> 1.023 | EP32: =1+'GDP&inflation rates'!EP16 -> 1.023 | EQ32: =1+'GDP&inflation rates'!EQ16 -> 1.023 | ER32: =1+'GDP&inflation rates'!ER16 -> 1.023 | ES32: =1+'GDP&inflation rates'!ES16 -> 1.023 | ET32: =1+'GDP&inflation rates'!ET16 -> 1.023 | EU32: =1+'GDP&inflation rates'!EU16 -> 1.023 | EV32: =1+'GDP&inflation rates'!EV16 -> 1.023 | EW32: =1+'GDP&inflation rates'!EW16 -> 1.023 | EX32: =1+'GDP&inflation rates'!EX16 -> 1.023 | EY32: =1+'GDP&inflation rates'!EY16 -> 1.023 | EZ32: =1+'GDP&inflation rates'!EZ16 -> 1.023 | FA32: =1+'GDP&inflation rates'!FA16 -> 1.023 | FB32: =1+'GDP&inflation rates'!FB16 -> 1.023 | FC32: =1+'GDP&inflation rates'!FC16 -> 1.023 | FD32: =1+'GDP&inflation rates'!FD16 -> 1.023 | FE32: =1+'GDP&inflation rates'!FE16 -> 1.023 | FF32: =1+'GDP&inflation rates'!FF16 -> 1.023 | FG32: =1+'GDP&inflation rates'!FG16 -> 1.023 | FH32: =1+'GDP&inflation rates'!FH16 -> 1.023 | FI32: =1+'GDP&inflation rates'!FI16 -> 1.023 | FJ32: =1+'GDP&inflation rates'!FJ16 -> 1.023 | FK32: =1+'GDP&inflation rates'!FK16 -> 1.023 | FL32: =1+'GDP&inflation rates'!FL16 -> 1.023 | FM32: =1+'GDP&inflation rates'!FM16 -> 1.023 | FN32: =1+'GDP&inflation rates'!FN16 -> 1.023 | FO32: =1+'GDP&inflation rates'!FO16 -> 1.023 | FP32: =1+'GDP&inflation rates'!FP16 -> 1.023 | FQ32: =1+'GDP&inflation rates'!FQ16 -> 1.023 | FR32: =1+'GDP&inflation rates'!FR16 -> 1.023 | FS32: =1+'GDP&inflation rates'!FS16 -> 1.023 | FT32: =1+'GDP&inflation rates'!FT16 -> 1.023 | FU32: =1+'GDP&inflation rates'!FU16 -> 1.023 | FV32: =1+'GDP&inflation rates'!FV16 -> 1.023 | FW32: =1+'GDP&inflation rates'!FW16 -> 1.023 | FX32: =1+'GDP&inflation rates'!FX16 -> 1.023 | FY32: =1+'GDP&inflation rates'!FY16 -> 1.023 | FZ32: =1+'GDP&inflation rates'!FZ16 -> 1.023 | GA32: =1+'GDP&inflation rates'!GA16 -> 1.023 | GB32: =1+'GDP&inflation rates'!GB16 -> 1.023 | GC32: =1+'GDP&inflation rates'!GC16 -> 1.023 | GD32: =1+'GDP&inflation rates'!GD16 -> 1.023 | GE32: =1+'GDP&inflation rates'!GE16 -> 1.023 | GF32: =1+'GDP&inflation rates'!GF16 -> 1.023 | GG32: =1+'GDP&inflation rates'!GG16 -> 1.023
H33: GDP deflator index | K33: index | R33: 1 | S33: =R33*S32 -> 1.0071 | T33: =S33*T32 -> 1.03449312 | U33: 1.05849336 | V33: 1.079028132 | W33: 1.108809308 | X33: =W33*X32 -> 1.128989637 | Y33: 1.16139164 | Z33: 1.190658709 | AA33: 1.224235285 | AB33: 1.257779332 | AC33: 1.280782387 | AD33: 1.298568378 | AE33: 1.32583576 | AF33: 1.34770206 | AG33: 1.367497478 | AH33: 1.376871057 | AI33: 1.404702426 | AJ33: 1.427584521 | AK33: 1.449904645 | AL33: 1.47396799 | AM33: 1.501727228 | AN33: 1.530525224 | AO33: 1.561338427 | AP33: 1.594264387 | AQ33: 1.629408583 | AR33: 1.666884981 | AS33: 1.705223335 | AT33: 1.744443472 | AU33: 1.784565672 | AV33: 1.825610682 | AW33: 1.867599728 | AX33: 1.910554522 | AY33: 1.954497276 | AZ33: 1.999450713 | BA33: 2.045438079 | BB33: 2.092483155 | BC33: =BB33*BC32 -> 2.140610268 | BD33: =BC33*BD32 -> 2.189844304 | BE33: 2.240210723 | BF33: 2.291735569 | BG33: 2.344445488 | BH33: 2.398367734 | BI33: 2.453530192 | BJ33: 2.509961386 | BK33: 2.567690498 | BL33: 2.626747379 | BM33: 2.687162569 | BN33: 2.748967308 | BO33: 2.812193556 | BP33: 2.876874008 | BQ33: 2.94304211 | BR33: 3.010732079 | BS33: 3.079978917 | BT33: 3.150818432 | BU33: 3.223287256 | BV33: 3.297422862 | BW33: 3.373263588 | BX33: 3.450848651 | BY33: 3.53021817 | BZ33: 3.611413188 | CA33: 3.694475691 | CB33: 3.779448632 | CC33: 3.86637595 | CD33: 3.955302597 | CE33: 4.046274557 | CF33: 4.139338872 | CG33: 4.234543666 | CH33: 4.33193817 | CI33: 4.431572748 | CJ33: 4.533498921 | CK33: 4.637769397 | CL33: 4.744438093 | CM33: 4.853560169 | CN33: 4.965192053 | CO33: 5.07939147 | CP33: 5.196217474 | CQ33: 5.315730476 | CR33: 5.437992277 | CS33: 5.563066099 | CT33: 5.691016619 | CU33: 5.821910001 | CV33: 5.955813931 | CW33: 6.092797652 | CX33: 6.232931998 | CY33: 6.376289434 | CZ33: 6.522944091 | DA33: 6.672971805 | DB33: 6.826450156 | DC33: 6.98345851 | DD33: 7.144078056 | DE33: =DD33*DE32 -> 7.308391851 | DF33: =DE33*DF32 -> 7.476484864 | DG33: =DF33*DG32 -> 7.648444015 | DH33: =DG33*DH32 -> 7.824358228 | DI33: =DH33*DI32 -> 8.004318467 | DJ33: =DI33*DJ32 -> 8.188417792 | DK33: =DJ33*DK32 -> 8.376751401 | DL33: =DK33*DL32 -> 8.569416683 | DM33: =DL33*DM32 -> 8.766513267 | DN33: =DM33*DN32 -> 8.968143072 | DO33: =DN33*DO32 -> 9.174410363 | DP33: =DO33*DP32 -> 9.385421801 | DQ33: =DP33*DQ32 -> 9.601286502 | DR33: =DQ33*DR32 -> 9.822116092 | DS33: =DR33*DS32 -> 10.04802476 | DT33: =DS33*DT32 -> 10.27912933 | DU33: =DT33*DU32 -> 10.51554931 | DV33: =DU33*DV32 -> 10.75740694 | DW33: =DV33*DW32 -> 11.0048273 | DX33: =DW33*DX32 -> 11.25793833 | DY33: =DX33*DY32 -> 11.51687091 | DZ33: =DY33*DZ32 -> 11.78175894 | EA33: =DZ33*EA32 -> 12.0527394 | EB33: =EA33*EB32 -> 12.3299524 | EC33: =EB33*EC32 -> 12.61354131 | ED33: =EC33*ED32 -> 12.90365276 | EE33: =ED33*EE32 -> 13.20043677 | EF33: =EE33*EF32 -> 13.50404682 | EG33: =EF33*EG32 -> 13.81463989 | EH33: =EG33*EH32 -> 14.13237661 | EI33: =EH33*EI32 -> 14.45742127 | EJ33: =EI33*EJ32 -> 14.78994196 | EK33: =EJ33*EK32 -> 15.13011063 | EL33: =EK33*EL32 -> 15.47810317 | EM33: =EL33*EM32 -> 15.83409954 | EN33: =EM33*EN32 -> 16.19828383 | EO33: =EN33*EO32 -> 16.57084436 | EP33: =EO33*EP32 -> 16.95197378 | EQ33: =EP33*EQ32 -> 17.34186918 | ER33: =EQ33*ER32 -> 17.74073217 | ES33: =ER33*ES32 -> 18.14876901 | ET33: =ES33*ET32 -> 18.5661907 | EU33: =ET33*EU32 -> 18.99321308 | EV33: =EU33*EV32 -> 19.43005699 | EW33: =EV33*EW32 -> 19.8769483 | EX33: =EW33*EX32 -> 20.33411811 | EY33: =EX33*EY32 -> 20.80180282 | EZ33: =EY33*EZ32 -> 21.28024429 | FA33: =EZ33*FA32 -> 21.76968991 | FB33: =FA33*FB32 -> 22.27039277 | FC33: =FB33*FC32 -> 22.78261181 | FD33: =FC33*FD32 -> 23.30661188 | FE33: =FD33*FE32 -> 23.84266395 | FF33: =FE33*FF32 -> 24.39104522 | FG33: =FF33*FG32 -> 24.95203926 | FH33: =FG33*FH32 -> 25.52593617 | FI33: =FH33*FI32 -> 26.1130327 | FJ33: =FI33*FJ32 -> 26.71363245 | FK33: =FJ33*FK32 -> 27.328046 | FL33: =FK33*FL32 -> 27.95659106 | FM33: =FL33*FM32 -> 28.59959265 | FN33: =FM33*FN32 -> 29.25738328 | FO33: =FN33*FO32 -> 29.9303031 | FP33: =FO33*FP32 -> 30.61870007 | FQ33: =FP33*FQ32 -> 31.32293017 | FR33: =FQ33*FR32 -> 32.04335756 | FS33: =FR33*FS32 -> 32.78035479 | FT33: =FS33*FT32 -> 33.53430295 | FU33: =FT33*FU32 -> 34.30559191 | FV33: =FU33*FV32 -> 35.09462053 | FW33: =FV33*FW32 -> 35.9017968 | FX33: =FW33*FX32 -> 36.72753813 | FY33: =FX33*FY32 -> 37.5722715 | FZ33: =FY33*FZ32 -> 38.43643375 | GA33: =FZ33*GA32 -> 39.32047172 | GB33: =GA33*GB32 -> 40.22484257 | GC33: =GB33*GC32 -> 41.15001395 | GD33: =GC33*GD32 -> 42.09646427 | GE33: =GD33*GE32 -> 43.06468295 | GF33: =GE33*GF32 -> 44.05517066 | GG33: =GF33*GG32 -> 45.06843959
H34: GDP deflator index, WI based | K34: index | S34: =S33/INDEX($S$33:DD33,1,MATCH($I$17,$S$10:$DD$10)) ->  | T34: =T33/INDEX($S$33:DE33,1,MATCH($I$17,$S$10:$DD$10)) ->  | U34: =U33/INDEX($S$33:DF33,1,MATCH($I$17,$S$10:$DD$10)) ->  | V34: =V33/INDEX($S$33:DG33,1,MATCH($I$17,$S$10:$DD$10)) ->  | W34: =W33/INDEX($S$33:DH33,1,MATCH($I$17,$S$10:$DD$10)) ->  | X34: =X33/INDEX($S$33:DI33,1,MATCH($I$17,$S$10:$DD$10)) ->  | Y34: =Y33/INDEX($S$33:DJ33,1,MATCH($I$17,$S$10:$DD$10)) ->  | Z34: =Z33/INDEX($S$33:DK33,1,MATCH($I$17,$S$10:$DD$10)) ->  | AA34: =AA33/INDEX($S$33:DL33,1,MATCH($I$17,$S$10:$DD$10)) ->  | AB34: =AB33/INDEX($S$33:DM33,1,MATCH($I$17,$S$10:$DD$10)) ->  | AC34: =AC33/INDEX($S$33:DN33,1,MATCH($I$17,$S$10:$DD$10)) ->  | AD34: =AD33/INDEX($S$33:DO33,1,MATCH($I$17,$S$10:$DD$10)) ->  | AE34: =AE33/INDEX($S$33:DP33,1,MATCH($I$17,$S$10:$DD$10)) ->  | AF34: =AF33/INDEX($S$33:DQ33,1,MATCH($I$17,$S$10:$DD$10)) ->  | AG34: =AG33/INDEX($S$33:DR33,1,MATCH($I$17,$S$10:$DD$10)) ->  | AH34: =AH33/INDEX($S$33:DS33,1,MATCH($I$17,$S$10:$DD$10)) ->  | AI34: =AI33/INDEX($S$33:DT33,1,MATCH($I$17,$S$10:$DD$10)) ->  | AJ34: =AJ33/INDEX($S$33:DU33,1,MATCH($I$17,$S$10:$DD$10)) ->  | AK34: =AK33/INDEX($S$33:DV33,1,MATCH($I$17,$S$10:$DD$10)) ->  | AL34: =AL33/INDEX($S$33:DW33,1,MATCH($I$17,$S$10:$DD$10)) ->  | AM34: =AM33/INDEX($S$33:DX33,1,MATCH($I$17,$S$10:$DD$10)) ->  | AN34: =AN33/INDEX($S$33:DY33,1,MATCH($I$17,$S$10:$DD$10)) ->  | AO34: =AO33/INDEX($S$33:DZ33,1,MATCH($I$17,$S$10:$DD$10)) ->  | AP34: =AP33/INDEX($S$33:EA33,1,MATCH($I$17,$S$10:$DD$10)) ->  | AQ34: =AQ33/INDEX($S$33:EB33,1,MATCH($I$17,$S$10:$DD$10)) ->  | AR34: =AR33/INDEX($S$33:EC33,1,MATCH($I$17,$S$10:$DD$10)) ->  | AS34: =AS33/INDEX($S$33:ED33,1,MATCH($I$17,$S$10:$DD$10)) ->  | AT34: =AT33/INDEX($S$33:EE33,1,MATCH($I$17,$S$10:$DD$10)) ->  | AU34: =AU33/INDEX($S$33:EF33,1,MATCH($I$17,$S$10:$DD$10)) ->  | AV34: =AV33/INDEX($S$33:EG33,1,MATCH($I$17,$S$10:$DD$10)) ->  | AW34: =AW33/INDEX($S$33:EH33,1,MATCH($I$17,$S$10:$DD$10)) ->  | AX34: =AX33/INDEX($S$33:EI33,1,MATCH($I$17,$S$10:$DD$10)) ->  | AY34: =AY33/INDEX($S$33:EJ33,1,MATCH($I$17,$S$10:$DD$10)) ->  | AZ34: =AZ33/INDEX($S$33:EK33,1,MATCH($I$17,$S$10:$DD$10)) ->  | BA34: =BA33/INDEX($S$33:EL33,1,MATCH($I$17,$S$10:$DD$10)) ->  | BB34: =BB33/INDEX($S$33:EM33,1,MATCH($I$17,$S$10:$DD$10)) ->  | BC34: =BC33/INDEX($S$33:EN33,1,MATCH($I$17,$S$10:$DD$10)) ->  | BD34: =BD33/INDEX($S$33:EO33,1,MATCH($I$17,$S$10:$DD$10)) ->  | BE34: =BE33/INDEX($S$33:EP33,1,MATCH($I$17,$S$10:$DD$10)) ->  | BF34: =BF33/INDEX($S$33:EQ33,1,MATCH($I$17,$S$10:$DD$10)) ->  | BG34: =BG33/INDEX($S$33:ER33,1,MATCH($I$17,$S$10:$DD$10)) ->  | BH34: =BH33/INDEX($S$33:ES33,1,MATCH($I$17,$S$10:$DD$10)) ->  | BI34: =BI33/INDEX($S$33:ET33,1,MATCH($I$17,$S$10:$DD$10)) ->  | BJ34: =BJ33/INDEX($S$33:EU33,1,MATCH($I$17,$S$10:$DD$10)) ->  | BK34: =BK33/INDEX($S$33:EV33,1,MATCH($I$17,$S$10:$DD$10)) ->  | BL34: =BL33/INDEX($S$33:EW33,1,MATCH($I$17,$S$10:$DD$10)) ->  | BM34: =BM33/INDEX($S$33:EX33,1,MATCH($I$17,$S$10:$DD$10)) ->  | BN34: =BN33/INDEX($S$33:EY33,1,MATCH($I$17,$S$10:$DD$10)) ->  | BO34: =BO33/INDEX($S$33:EZ33,1,MATCH($I$17,$S$10:$DD$10)) ->  | BP34: =BP33/INDEX($S$33:FA33,1,MATCH($I$17,$S$10:$DD$10)) ->  | BQ34: =BQ33/INDEX($S$33:FB33,1,MATCH($I$17,$S$10:$DD$10)) ->  | BR34: =BR33/INDEX($S$33:FC33,1,MATCH($I$17,$S$10:$DD$10)) ->  | BS34: =BS33/INDEX($S$33:FD33,1,MATCH($I$17,$S$10:$DD$10)) ->  | BT34: =BT33/INDEX($S$33:FE33,1,MATCH($I$17,$S$10:$DD$10)) ->  | BU34: =BU33/INDEX($S$33:FF33,1,MATCH($I$17,$S$10:$DD$10)) ->  | BV34: =BV33/INDEX($S$33:FG33,1,MATCH($I$17,$S$10:$DD$10)) ->  | BW34: =BW33/INDEX($S$33:FH33,1,MATCH($I$17,$S$10:$DD$10)) ->  | BX34: =BX33/INDEX($S$33:FI33,1,MATCH($I$17,$S$10:$DD$10)) ->  | BY34: =BY33/INDEX($S$33:FJ33,1,MATCH($I$17,$S$10:$DD$10)) ->  | BZ34: =BZ33/INDEX($S$33:FK33,1,MATCH($I$17,$S$10:$DD$10)) ->  | CA34: =CA33/INDEX($S$33:FL33,1,MATCH($I$17,$S$10:$DD$10)) ->  | CB34: =CB33/INDEX($S$33:FM33,1,MATCH($I$17,$S$10:$DD$10)) ->  | CC34: =CC33/INDEX($S$33:FN33,1,MATCH($I$17,$S$10:$DD$10)) ->  | CD34: =CD33/INDEX($S$33:FO33,1,MATCH($I$17,$S$10:$DD$10)) ->  | CE34: =CE33/INDEX($S$33:FP33,1,MATCH($I$17,$S$10:$DD$10)) ->  | CF34: =CF33/INDEX($S$33:FQ33,1,MATCH($I$17,$S$10:$DD$10)) ->  | CG34: =CG33/INDEX($S$33:FR33,1,MATCH($I$17,$S$10:$DD$10)) ->  | CH34: =CH33/INDEX($S$33:FS33,1,MATCH($I$17,$S$10:$DD$10)) ->  | CI34: =CI33/INDEX($S$33:FT33,1,MATCH($I$17,$S$10:$DD$10)) ->  | CJ34: =CJ33/INDEX($S$33:FU33,1,MATCH($I$17,$S$10:$DD$10)) ->  | CK34: =CK33/INDEX($S$33:FV33,1,MATCH($I$17,$S$10:$DD$10)) ->  | CL34: =CL33/INDEX($S$33:FW33,1,MATCH($I$17,$S$10:$DD$10)) ->  | CM34: =CM33/INDEX($S$33:FX33,1,MATCH($I$17,$S$10:$DD$10)) ->  | CN34: =CN33/INDEX($S$33:FY33,1,MATCH($I$17,$S$10:$DD$10)) ->  | CO34: =CO33/INDEX($S$33:FZ33,1,MATCH($I$17,$S$10:$DD$10)) ->  | CP34: =CP33/INDEX($S$33:GA33,1,MATCH($I$17,$S$10:$DD$10)) ->  | CQ34: =CQ33/INDEX($S$33:GB33,1,MATCH($I$17,$S$10:$DD$10)) ->  | CR34: =CR33/INDEX($S$33:GC33,1,MATCH($I$17,$S$10:$DD$10)) ->  | CS34: =CS33/INDEX($S$33:GD33,1,MATCH($I$17,$S$10:$DD$10)) ->  | CT34: =CT33/INDEX($S$33:GE33,1,MATCH($I$17,$S$10:$DD$10)) ->  | CU34: =CU33/INDEX($S$33:GF33,1,MATCH($I$17,$S$10:$DD$10)) ->  | CV34: =CV33/INDEX($S$33:GG33,1,MATCH($I$17,$S$10:$DD$10)) ->  | CW34: =CW33/INDEX($S$33:GH33,1,MATCH($I$17,$S$10:$DD$10)) ->  | CX34: =CX33/INDEX($S$33:GI33,1,MATCH($I$17,$S$10:$DD$10)) ->  | CY34: =CY33/INDEX($S$33:GJ33,1,MATCH($I$17,$S$10:$DD$10)) ->  | CZ34: =CZ33/INDEX($S$33:GK33,1,MATCH($I$17,$S$10:$DD$10)) ->  | DA34: =DA33/INDEX($S$33:GL33,1,MATCH($I$17,$S$10:$DD$10)) ->  | DB34: =DB33/INDEX($S$33:GM33,1,MATCH($I$17,$S$10:$DD$10)) ->  | DC34: =DC33/INDEX($S$33:GN33,1,MATCH($I$17,$S$10:$DD$10)) ->  | DD34: =DD33/INDEX($S$33:GO33,1,MATCH($I$17,$S$10:$DD$10)) ->  | DE34: =DE33/INDEX($S$33:GP33,1,MATCH($I$17,$S$10:$DD$10)) ->  | DF34: =DF33/INDEX($S$33:GQ33,1,MATCH($I$17,$S$10:$DD$10)) ->  | DG34: =DG33/INDEX($S$33:GR33,1,MATCH($I$17,$S$10:$DD$10)) ->  | DH34: =DH33/INDEX($S$33:GS33,1,MATCH($I$17,$S$10:$DD$10)) ->  | DI34: =DI33/INDEX($S$33:GT33,1,MATCH($I$17,$S$10:$DD$10)) ->  | DJ34: =DJ33/INDEX($S$33:GU33,1,MATCH($I$17,$S$10:$DD$10)) ->  | DK34: =DK33/INDEX($S$33:GV33,1,MATCH($I$17,$S$10:$DD$10)) ->  | DL34: =DL33/INDEX($S$33:GW33,1,MATCH($I$17,$S$10:$DD$10)) ->  | DM34: =DM33/INDEX($S$33:GX33,1,MATCH($I$17,$S$10:$DD$10)) ->  | DN34: =DN33/INDEX($S$33:GY33,1,MATCH($I$17,$S$10:$DD$10)) ->  | DO34: =DO33/INDEX($S$33:GZ33,1,MATCH($I$17,$S$10:$DD$10)) ->  | DP34: =DP33/INDEX($S$33:HA33,1,MATCH($I$17,$S$10:$DD$10)) ->  | DQ34: =DQ33/INDEX($S$33:HB33,1,MATCH($I$17,$S$10:$DD$10)) ->  | DR34: =DR33/INDEX($S$33:HC33,1,MATCH($I$17,$S$10:$DD$10)) ->  | DS34: =DS33/INDEX($S$33:HD33,1,MATCH($I$17,$S$10:$DD$10)) ->  | DT34: =DT33/INDEX($S$33:HE33,1,MATCH($I$17,$S$10:$DD$10)) ->  | DU34: =DU33/INDEX($S$33:HF33,1,MATCH($I$17,$S$10:$DD$10)) ->  | DV34: =DV33/INDEX($S$33:HG33,1,MATCH($I$17,$S$10:$DD$10)) ->  | DW34: =DW33/INDEX($S$33:HH33,1,MATCH($I$17,$S$10:$DD$10)) ->  | DX34: =DX33/INDEX($S$33:HI33,1,MATCH($I$17,$S$10:$DD$10)) ->  | DY34: =DY33/INDEX($S$33:HJ33,1,MATCH($I$17,$S$10:$DD$10)) ->  | DZ34: =DZ33/INDEX($S$33:HK33,1,MATCH($I$17,$S$10:$DD$10)) ->  | EA34: =EA33/INDEX($S$33:HL33,1,MATCH($I$17,$S$10:$DD$10)) ->  | EB34: =EB33/INDEX($S$33:HM33,1,MATCH($I$17,$S$10:$DD$10)) ->  | EC34: =EC33/INDEX($S$33:HN33,1,MATCH($I$17,$S$10:$DD$10)) ->  | ED34: =ED33/INDEX($S$33:HO33,1,MATCH($I$17,$S$10:$DD$10)) ->  | EE34: =EE33/INDEX($S$33:HP33,1,MATCH($I$17,$S$10:$DD$10)) ->  | EF34: =EF33/INDEX($S$33:HQ33,1,MATCH($I$17,$S$10:$DD$10)) ->  | EG34: =EG33/INDEX($S$33:HR33,1,MATCH($I$17,$S$10:$DD$10)) ->  | EH34: =EH33/INDEX($S$33:HS33,1,MATCH($I$17,$S$10:$DD$10)) ->  | EI34: =EI33/INDEX($S$33:HT33,1,MATCH($I$17,$S$10:$DD$10)) ->  | EJ34: =EJ33/INDEX($S$33:HU33,1,MATCH($I$17,$S$10:$DD$10)) ->  | EK34: =EK33/INDEX($S$33:HV33,1,MATCH($I$17,$S$10:$DD$10)) ->  | EL34: =EL33/INDEX($S$33:HW33,1,MATCH($I$17,$S$10:$DD$10)) ->  | EM34: =EM33/INDEX($S$33:HX33,1,MATCH($I$17,$S$10:$DD$10)) ->  | EN34: =EN33/INDEX($S$33:HY33,1,MATCH($I$17,$S$10:$DD$10)) ->  | EO34: =EO33/INDEX($S$33:HZ33,1,MATCH($I$17,$S$10:$DD$10)) ->  | EP34: =EP33/INDEX($S$33:IA33,1,MATCH($I$17,$S$10:$DD$10)) ->  | EQ34: =EQ33/INDEX($S$33:IB33,1,MATCH($I$17,$S$10:$DD$10)) ->  | ER34: =ER33/INDEX($S$33:IC33,1,MATCH($I$17,$S$10:$DD$10)) ->  | ES34: =ES33/INDEX($S$33:ID33,1,MATCH($I$17,$S$10:$DD$10)) ->  | ET34: =ET33/INDEX($S$33:IE33,1,MATCH($I$17,$S$10:$DD$10)) ->  | EU34: =EU33/INDEX($S$33:IF33,1,MATCH($I$17,$S$10:$DD$10)) ->  | EV34: =EV33/INDEX($S$33:IG33,1,MATCH($I$17,$S$10:$DD$10)) ->  | EW34: =EW33/INDEX($S$33:IH33,1,MATCH($I$17,$S$10:$DD$10)) ->  | EX34: =EX33/INDEX($S$33:II33,1,MATCH($I$17,$S$10:$DD$10)) ->  | EY34: =EY33/INDEX($S$33:IJ33,1,MATCH($I$17,$S$10:$DD$10)) ->  | EZ34: =EZ33/INDEX($S$33:IK33,1,MATCH($I$17,$S$10:$DD$10)) ->  | FA34: =FA33/INDEX($S$33:IL33,1,MATCH($I$17,$S$10:$DD$10)) ->  | FB34: =FB33/INDEX($S$33:IM33,1,MATCH($I$17,$S$10:$DD$10)) ->  | FC34: =FC33/INDEX($S$33:IN33,1,MATCH($I$17,$S$10:$DD$10)) ->  | FD34: =FD33/INDEX($S$33:IO33,1,MATCH($I$17,$S$10:$DD$10)) ->  | FE34: =FE33/INDEX($S$33:IP33,1,MATCH($I$17,$S$10:$DD$10)) ->  | FF34: =FF33/INDEX($S$33:IQ33,1,MATCH($I$17,$S$10:$DD$10)) ->  | FG34: =FG33/INDEX($S$33:IR33,1,MATCH($I$17,$S$10:$DD$10)) ->  | FH34: =FH33/INDEX($S$33:IS33,1,MATCH($I$17,$S$10:$DD$10)) ->  | FI34: =FI33/INDEX($S$33:IT33,1,MATCH($I$17,$S$10:$DD$10)) ->  | FJ34: =FJ33/INDEX($S$33:IU33,1,MATCH($I$17,$S$10:$DD$10)) ->  | FK34: =FK33/INDEX($S$33:IV33,1,MATCH($I$17,$S$10:$DD$10)) ->  | FL34: =FL33/INDEX($S$33:IW33,1,MATCH($I$17,$S$10:$DD$10)) ->  | FM34: =FM33/INDEX($S$33:IX33,1,MATCH($I$17,$S$10:$DD$10)) ->  | FN34: =FN33/INDEX($S$33:IY33,1,MATCH($I$17,$S$10:$DD$10)) ->  | FO34: =FO33/INDEX($S$33:IZ33,1,MATCH($I$17,$S$10:$DD$10)) ->  | FP34: =FP33/INDEX($S$33:JA33,1,MATCH($I$17,$S$10:$DD$10)) ->  | FQ34: =FQ33/INDEX($S$33:JB33,1,MATCH($I$17,$S$10:$DD$10)) ->  | FR34: =FR33/INDEX($S$33:JC33,1,MATCH($I$17,$S$10:$DD$10)) ->  | FS34: =FS33/INDEX($S$33:JD33,1,MATCH($I$17,$S$10:$DD$10)) ->  | FT34: =FT33/INDEX($S$33:JE33,1,MATCH($I$17,$S$10:$DD$10)) ->  | FU34: =FU33/INDEX($S$33:JF33,1,MATCH($I$17,$S$10:$DD$10)) ->  | FV34: =FV33/INDEX($S$33:JG33,1,MATCH($I$17,$S$10:$DD$10)) ->  | FW34: =FW33/INDEX($S$33:JH33,1,MATCH($I$17,$S$10:$DD$10)) ->  | FX34: =FX33/INDEX($S$33:JI33,1,MATCH($I$17,$S$10:$DD$10)) ->  | FY34: =FY33/INDEX($S$33:JJ33,1,MATCH($I$17,$S$10:$DD$10)) ->  | FZ34: =FZ33/INDEX($S$33:JK33,1,MATCH($I$17,$S$10:$DD$10)) ->  | GA34: =GA33/INDEX($S$33:JL33,1,MATCH($I$17,$S$10:$DD$10)) ->  | GB34: =GB33/INDEX($S$33:JM33,1,MATCH($I$17,$S$10:$DD$10)) ->  | GC34: =GC33/INDEX($S$33:JN33,1,MATCH($I$17,$S$10:$DD$10)) ->  | GD34: =GD33/INDEX($S$33:JO33,1,MATCH($I$17,$S$10:$DD$10)) ->  | GE34: =GE33/INDEX($S$33:JP33,1,MATCH($I$17,$S$10:$DD$10)) ->  | GF34: =GF33/INDEX($S$33:JQ33,1,MATCH($I$17,$S$10:$DD$10)) ->  | GG34: =GG33/INDEX($S$33:JR33,1,MATCH($I$17,$S$10:$DD$10)) -> 
H35: GDP deflator index, results based | K35: index | S35: =S33/INDEX($S$33:DD33,1,MATCH($I$19,$S$10:$DD$10)) -> 0.7863162469 | T35: =T33/INDEX($S$33:DE33,1,MATCH($I$19,$S$10:$DD$10)) -> 0.8077040488 | U35: =U33/INDEX($S$33:DF33,1,MATCH($I$19,$S$10:$DD$10)) -> 0.8264427827 | V35: =V33/INDEX($S$33:DG33,1,MATCH($I$19,$S$10:$DD$10)) -> 0.8424757727 | W35: =W33/INDEX($S$33:DH33,1,MATCH($I$19,$S$10:$DD$10)) -> 0.865728104 | X35: =X33/INDEX($S$33:DI33,1,MATCH($I$19,$S$10:$DD$10)) -> 0.8814843555 | Y35: =Y33/INDEX($S$33:DJ33,1,MATCH($I$19,$S$10:$DD$10)) -> 0.9067829565 | Z35: =Z33/INDEX($S$33:DK33,1,MATCH($I$19,$S$10:$DD$10)) -> 0.929633887 | AA35: =AA33/INDEX($S$33:DL33,1,MATCH($I$19,$S$10:$DD$10)) -> 0.9558495626 | AB35: =AB33/INDEX($S$33:DM33,1,MATCH($I$19,$S$10:$DD$10)) -> 0.9820398407 | AC35: =AC33/INDEX($S$33:DN33,1,MATCH($I$19,$S$10:$DD$10)) -> 1 | AD35: =AD33/INDEX($S$33:DO33,1,MATCH($I$19,$S$10:$DD$10)) -> 1.013886817 | AE35: =AE33/INDEX($S$33:DP33,1,MATCH($I$19,$S$10:$DD$10)) -> 1.035176446 | AF35: =AF33/INDEX($S$33:DQ33,1,MATCH($I$19,$S$10:$DD$10)) -> 1.052249057 | AG35: =AG33/INDEX($S$33:DR33,1,MATCH($I$19,$S$10:$DD$10)) -> 1.06770478 | AH35: =AH33/INDEX($S$33:DS33,1,MATCH($I$19,$S$10:$DD$10)) -> 1.075023416 | AI35: =AI33/INDEX($S$33:DT33,1,MATCH($I$19,$S$10:$DD$10)) -> 1.096753391 | AJ35: =AJ33/INDEX($S$33:DU33,1,MATCH($I$19,$S$10:$DD$10)) -> 1.114619107 | AK35: =AK33/INDEX($S$33:DV33,1,MATCH($I$19,$S$10:$DD$10)) -> 1.132046052 | AL35: =AL33/INDEX($S$33:DW33,1,MATCH($I$19,$S$10:$DD$10)) -> 1.150834056 | AM35: =AM33/INDEX($S$33:DX33,1,MATCH($I$19,$S$10:$DD$10)) -> 1.172507713 | AN35: =AN33/INDEX($S$33:DY33,1,MATCH($I$19,$S$10:$DD$10)) -> 1.194992404 | AO35: =AO33/INDEX($S$33:DZ33,1,MATCH($I$19,$S$10:$DD$10)) -> 1.219050513 | AP35: =AP33/INDEX($S$33:EA33,1,MATCH($I$19,$S$10:$DD$10)) -> 1.244758206 | AQ35: =AQ33/INDEX($S$33:EB33,1,MATCH($I$19,$S$10:$DD$10)) -> 1.272197837 | AR35: =AR33/INDEX($S$33:EC33,1,MATCH($I$19,$S$10:$DD$10)) -> 1.301458387 | AS35: =AS33/INDEX($S$33:ED33,1,MATCH($I$19,$S$10:$DD$10)) -> 1.33139193 | AT35: =AT33/INDEX($S$33:EE33,1,MATCH($I$19,$S$10:$DD$10)) -> 1.362013945 | AU35: =AU33/INDEX($S$33:EF33,1,MATCH($I$19,$S$10:$DD$10)) -> 1.393340265 | AV35: =AV33/INDEX($S$33:EG33,1,MATCH($I$19,$S$10:$DD$10)) -> 1.425387091 | AW35: =AW33/INDEX($S$33:EH33,1,MATCH($I$19,$S$10:$DD$10)) -> 1.458170995 | AX35: =AX33/INDEX($S$33:EI33,1,MATCH($I$19,$S$10:$DD$10)) -> 1.491708927 | AY35: =AY33/INDEX($S$33:EJ33,1,MATCH($I$19,$S$10:$DD$10)) -> 1.526018233 | AZ35: =AZ33/INDEX($S$33:EK33,1,MATCH($I$19,$S$10:$DD$10)) -> 1.561116652 | BA35: =BA33/INDEX($S$33:EL33,1,MATCH($I$19,$S$10:$DD$10)) -> 1.597022335 | BB35: =BB33/INDEX($S$33:EM33,1,MATCH($I$19,$S$10:$DD$10)) -> 1.633753849 | BC35: =BC33/INDEX($S$33:EN33,1,MATCH($I$19,$S$10:$DD$10)) -> 1.671330187 | BD35: =BD33/INDEX($S$33:EO33,1,MATCH($I$19,$S$10:$DD$10)) -> 1.709770782 | BE35: =BE33/INDEX($S$33:EP33,1,MATCH($I$19,$S$10:$DD$10)) -> 1.74909551 | BF35: =BF33/INDEX($S$33:EQ33,1,MATCH($I$19,$S$10:$DD$10)) -> 1.789324706 | BG35: =BG33/INDEX($S$33:ER33,1,MATCH($I$19,$S$10:$DD$10)) -> 1.830479175 | BH35: =BH33/INDEX($S$33:ES33,1,MATCH($I$19,$S$10:$DD$10)) -> 1.872580196 | BI35: =BI33/INDEX($S$33:ET33,1,MATCH($I$19,$S$10:$DD$10)) -> 1.91564954 | BJ35: =BJ33/INDEX($S$33:EU33,1,MATCH($I$19,$S$10:$DD$10)) -> 1.95970948 | BK35: =BK33/INDEX($S$33:EV33,1,MATCH($I$19,$S$10:$DD$10)) -> 2.004782798 | BL35: =BL33/INDEX($S$33:EW33,1,MATCH($I$19,$S$10:$DD$10)) -> 2.050892802 | BM35: =BM33/INDEX($S$33:EX33,1,MATCH($I$19,$S$10:$DD$10)) -> 2.098063336 | BN35: =BN33/INDEX($S$33:EY33,1,MATCH($I$19,$S$10:$DD$10)) -> 2.146318793 | BO35: =BO33/INDEX($S$33:EZ33,1,MATCH($I$19,$S$10:$DD$10)) -> 2.195684125 | BP35: =BP33/INDEX($S$33:FA33,1,MATCH($I$19,$S$10:$DD$10)) -> 2.24618486 | BQ35: =BQ33/INDEX($S$33:FB33,1,MATCH($I$19,$S$10:$DD$10)) -> 2.297847112 | BR35: =BR33/INDEX($S$33:FC33,1,MATCH($I$19,$S$10:$DD$10)) -> 2.350697596 | BS35: =BS33/INDEX($S$33:FD33,1,MATCH($I$19,$S$10:$DD$10)) -> 2.40476364 | BT35: =BT33/INDEX($S$33:FE33,1,MATCH($I$19,$S$10:$DD$10)) -> 2.460073204 | BU35: =BU33/INDEX($S$33:FF33,1,MATCH($I$19,$S$10:$DD$10)) -> 2.516654888 | BV35: =BV33/INDEX($S$33:FG33,1,MATCH($I$19,$S$10:$DD$10)) -> 2.57453795 | BW35: =BW33/INDEX($S$33:FH33,1,MATCH($I$19,$S$10:$DD$10)) -> 2.633752323 | BX35: =BX33/INDEX($S$33:FI33,1,MATCH($I$19,$S$10:$DD$10)) -> 2.694328626 | BY35: =BY33/INDEX($S$33:FJ33,1,MATCH($I$19,$S$10:$DD$10)) -> 2.756298185 | BZ35: =BZ33/INDEX($S$33:FK33,1,MATCH($I$19,$S$10:$DD$10)) -> 2.819693043 | CA35: =CA33/INDEX($S$33:FL33,1,MATCH($I$19,$S$10:$DD$10)) -> 2.884545983 | CB35: =CB33/INDEX($S$33:FM33,1,MATCH($I$19,$S$10:$DD$10)) -> 2.950890541 | CC35: =CC33/INDEX($S$33:FN33,1,MATCH($I$19,$S$10:$DD$10)) -> 3.018761023 | CD35: =CD33/INDEX($S$33:FO33,1,MATCH($I$19,$S$10:$DD$10)) -> 3.088192527 | CE35: =CE33/INDEX($S$33:FP33,1,MATCH($I$19,$S$10:$DD$10)) -> 3.159220955 | CF35: =CF33/INDEX($S$33:FQ33,1,MATCH($I$19,$S$10:$DD$10)) -> 3.231883037 | CG35: =CG33/INDEX($S$33:FR33,1,MATCH($I$19,$S$10:$DD$10)) -> 3.306216347 | CH35: =CH33/INDEX($S$33:FS33,1,MATCH($I$19,$S$10:$DD$10)) -> 3.382259323 | CI35: =CI33/INDEX($S$33:FT33,1,MATCH($I$19,$S$10:$DD$10)) -> 3.460051287 | CJ35: =CJ33/INDEX($S$33:FU33,1,MATCH($I$19,$S$10:$DD$10)) -> 3.539632467 | CK35: =CK33/INDEX($S$33:FV33,1,MATCH($I$19,$S$10:$DD$10)) -> 3.621044013 | CL35: =CL33/INDEX($S$33:FW33,1,MATCH($I$19,$S$10:$DD$10)) -> 3.704328026 | CM35: =CM33/INDEX($S$33:FX33,1,MATCH($I$19,$S$10:$DD$10)) -> 3.78952757 | CN35: =CN33/INDEX($S$33:FY33,1,MATCH($I$19,$S$10:$DD$10)) -> 3.876686704 | CO35: =CO33/INDEX($S$33:FZ33,1,MATCH($I$19,$S$10:$DD$10)) -> 3.965850498 | CP35: =CP33/INDEX($S$33:GA33,1,MATCH($I$19,$S$10:$DD$10)) -> 4.05706506 | CQ35: =CQ33/INDEX($S$33:GB33,1,MATCH($I$19,$S$10:$DD$10)) -> 4.150377556 | CR35: =CR33/INDEX($S$33:GC33,1,MATCH($I$19,$S$10:$DD$10)) -> 4.24583624 | CS35: =CS33/INDEX($S$33:GD33,1,MATCH($I$19,$S$10:$DD$10)) -> 4.343490474 | CT35: =CT33/INDEX($S$33:GE33,1,MATCH($I$19,$S$10:$DD$10)) -> 4.443390755 | CU35: =CU33/INDEX($S$33:GF33,1,MATCH($I$19,$S$10:$DD$10)) -> 4.545588742 | CV35: =CV33/INDEX($S$33:GG33,1,MATCH($I$19,$S$10:$DD$10)) -> 4.650137283 | CW35: =CW33/INDEX($S$33:GH33,1,MATCH($I$19,$S$10:$DD$10)) -> 4.75709044 | CX35: =CX33/INDEX($S$33:GI33,1,MATCH($I$19,$S$10:$DD$10)) -> 4.866503521 | CY35: =CY33/INDEX($S$33:GJ33,1,MATCH($I$19,$S$10:$DD$10)) -> 4.978433102 | CZ35: =CZ33/INDEX($S$33:GK33,1,MATCH($I$19,$S$10:$DD$10)) -> 5.092937063 | DA35: =DA33/INDEX($S$33:GL33,1,MATCH($I$19,$S$10:$DD$10)) -> 5.210074615 | DB35: =DB33/INDEX($S$33:GM33,1,MATCH($I$19,$S$10:$DD$10)) -> 5.329906331 | DC35: =DC33/INDEX($S$33:GN33,1,MATCH($I$19,$S$10:$DD$10)) -> 5.452494177 | DD35: =DD33/INDEX($S$33:GO33,1,MATCH($I$19,$S$10:$DD$10)) -> 5.577901543 | DE35: =DE33/INDEX($S$33:GP33,1,MATCH($I$19,$S$10:$DD$10)) -> 5.706193279 | DF35: =DF33/INDEX($S$33:GQ33,1,MATCH($I$19,$S$10:$DD$10)) -> 5.837435724 | DG35: =DG33/INDEX($S$33:GR33,1,MATCH($I$19,$S$10:$DD$10)) -> 5.971696746 | DH35: =DH33/INDEX($S$33:GS33,1,MATCH($I$19,$S$10:$DD$10)) -> 6.109045771 | DI35: =DI33/INDEX($S$33:GT33,1,MATCH($I$19,$S$10:$DD$10)) -> 6.249553824 | DJ35: =DJ33/INDEX($S$33:GU33,1,MATCH($I$19,$S$10:$DD$10)) -> 6.393293562 | DK35: =DK33/INDEX($S$33:GV33,1,MATCH($I$19,$S$10:$DD$10)) -> 6.540339313 | DL35: =DL33/INDEX($S$33:GW33,1,MATCH($I$19,$S$10:$DD$10)) -> 6.690767118 | DM35: =DM33/INDEX($S$33:GX33,1,MATCH($I$19,$S$10:$DD$10)) -> 6.844654761 | DN35: =DN33/INDEX($S$33:GY33,1,MATCH($I$19,$S$10:$DD$10)) -> 7.002081821 | DO35: =DO33/INDEX($S$33:GZ33,1,MATCH($I$19,$S$10:$DD$10)) -> 7.163129703 | DP35: =DP33/INDEX($S$33:HA33,1,MATCH($I$19,$S$10:$DD$10)) -> 7.327881686 | DQ35: =DQ33/INDEX($S$33:HB33,1,MATCH($I$19,$S$10:$DD$10)) -> 7.496422965 | DR35: =DR33/INDEX($S$33:HC33,1,MATCH($I$19,$S$10:$DD$10)) -> 7.668840693 | DS35: =DS33/INDEX($S$33:HD33,1,MATCH($I$19,$S$10:$DD$10)) -> 7.845224029 | DT35: =DT33/INDEX($S$33:HE33,1,MATCH($I$19,$S$10:$DD$10)) -> 8.025664181 | DU35: =DU33/INDEX($S$33:HF33,1,MATCH($I$19,$S$10:$DD$10)) -> 8.210254458 | DV35: =DV33/INDEX($S$33:HG33,1,MATCH($I$19,$S$10:$DD$10)) -> 8.39909031 | DW35: =DW33/INDEX($S$33:HH33,1,MATCH($I$19,$S$10:$DD$10)) -> 8.592269387 | DX35: =DX33/INDEX($S$33:HI33,1,MATCH($I$19,$S$10:$DD$10)) -> 8.789891583 | DY35: =DY33/INDEX($S$33:HJ33,1,MATCH($I$19,$S$10:$DD$10)) -> 8.99205909 | DZ35: =DZ33/INDEX($S$33:HK33,1,MATCH($I$19,$S$10:$DD$10)) -> 9.198876449 | EA35: =EA33/INDEX($S$33:HL33,1,MATCH($I$19,$S$10:$DD$10)) -> 9.410450607 | EB35: =EB33/INDEX($S$33:HM33,1,MATCH($I$19,$S$10:$DD$10)) -> 9.626890971 | EC35: =EC33/INDEX($S$33:HN33,1,MATCH($I$19,$S$10:$DD$10)) -> 9.848309463 | ED35: =ED33/INDEX($S$33:HO33,1,MATCH($I$19,$S$10:$DD$10)) -> 10.07482058 | EE35: =EE33/INDEX($S$33:HP33,1,MATCH($I$19,$S$10:$DD$10)) -> 10.30654145 | EF35: =EF33/INDEX($S$33:HQ33,1,MATCH($I$19,$S$10:$DD$10)) -> 10.54359191 | EG35: =EG33/INDEX($S$33:HR33,1,MATCH($I$19,$S$10:$DD$10)) -> 10.78609452 | EH35: =EH33/INDEX($S$33:HS33,1,MATCH($I$19,$S$10:$DD$10)) -> 11.0341747 | EI35: =EI33/INDEX($S$33:HT33,1,MATCH($I$19,$S$10:$DD$10)) -> 11.28796071 | EJ35: =EJ33/INDEX($S$33:HU33,1,MATCH($I$19,$S$10:$DD$10)) -> 11.54758381 | EK35: =EK33/INDEX($S$33:HV33,1,MATCH($I$19,$S$10:$DD$10)) -> 11.81317824 | EL35: =EL33/INDEX($S$33:HW33,1,MATCH($I$19,$S$10:$DD$10)) -> 12.08488134 | EM35: =EM33/INDEX($S$33:HX33,1,MATCH($I$19,$S$10:$DD$10)) -> 12.36283361 | EN35: =EN33/INDEX($S$33:HY33,1,MATCH($I$19,$S$10:$DD$10)) -> 12.64717878 | EO35: =EO33/INDEX($S$33:HZ33,1,MATCH($I$19,$S$10:$DD$10)) -> 12.93806389 | EP35: =EP33/INDEX($S$33:IA33,1,MATCH($I$19,$S$10:$DD$10)) -> 13.23563936 | EQ35: =EQ33/INDEX($S$33:IB33,1,MATCH($I$19,$S$10:$DD$10)) -> 13.54005907 | ER35: =ER33/INDEX($S$33:IC33,1,MATCH($I$19,$S$10:$DD$10)) -> 13.85148043 | ES35: =ES33/INDEX($S$33:ID33,1,MATCH($I$19,$S$10:$DD$10)) -> 14.17006448 | ET35: =ET33/INDEX($S$33:IE33,1,MATCH($I$19,$S$10:$DD$10)) -> 14.49597596 | EU35: =EU33/INDEX($S$33:IF33,1,MATCH($I$19,$S$10:$DD$10)) -> 14.82938341 | EV35: =EV33/INDEX($S$33:IG33,1,MATCH($I$19,$S$10:$DD$10)) -> 15.17045922 | EW35: =EW33/INDEX($S$33:IH33,1,MATCH($I$19,$S$10:$DD$10)) -> 15.51937979 | EX35: =EX33/INDEX($S$33:II33,1,MATCH($I$19,$S$10:$DD$10)) -> 15.87632552 | EY35: =EY33/INDEX($S$33:IJ33,1,MATCH($I$19,$S$10:$DD$10)) -> 16.24148101 | EZ35: =EZ33/INDEX($S$33:IK33,1,MATCH($I$19,$S$10:$DD$10)) -> 16.61503507 | FA35: =FA33/INDEX($S$33:IL33,1,MATCH($I$19,$S$10:$DD$10)) -> 16.99718088 | FB35: =FB33/INDEX($S$33:IM33,1,MATCH($I$19,$S$10:$DD$10)) -> 17.38811604 | FC35: =FC33/INDEX($S$33:IN33,1,MATCH($I$19,$S$10:$DD$10)) -> 17.78804271 | FD35: =FD33/INDEX($S$33:IO33,1,MATCH($I$19,$S$10:$DD$10)) -> 18.19716769 | FE35: =FE33/INDEX($S$33:IP33,1,MATCH($I$19,$S$10:$DD$10)) -> 18.61570255 | FF35: =FF33/INDEX($S$33:IQ33,1,MATCH($I$19,$S$10:$DD$10)) -> 19.04386371 | FG35: =FG33/INDEX($S$33:IR33,1,MATCH($I$19,$S$10:$DD$10)) -> 19.48187257 | FH35: =FH33/INDEX($S$33:IS33,1,MATCH($I$19,$S$10:$DD$10)) -> 19.92995564 | FI35: =FI33/INDEX($S$33:IT33,1,MATCH($I$19,$S$10:$DD$10)) -> 20.38834462 | FJ35: =FJ33/INDEX($S$33:IU33,1,MATCH($I$19,$S$10:$DD$10)) -> 20.85727655 | FK35: =FK33/INDEX($S$33:IV33,1,MATCH($I$19,$S$10:$DD$10)) -> 21.33699391 | FL35: =FL33/INDEX($S$33:IW33,1,MATCH($I$19,$S$10:$DD$10)) -> 21.82774477 | FM35: =FM33/INDEX($S$33:IX33,1,MATCH($I$19,$S$10:$DD$10)) -> 22.3297829 | FN35: =FN33/INDEX($S$33:IY33,1,MATCH($I$19,$S$10:$DD$10)) -> 22.8433679 | FO35: =FO33/INDEX($S$33:IZ33,1,MATCH($I$19,$S$10:$DD$10)) -> 23.36876536 | FP35: =FP33/INDEX($S$33:JA33,1,MATCH($I$19,$S$10:$DD$10)) -> 23.90624697 | FQ35: =FQ33/INDEX($S$33:JB33,1,MATCH($I$19,$S$10:$DD$10)) -> 24.45609065 | FR35: =FR33/INDEX($S$33:JC33,1,MATCH($I$19,$S$10:$DD$10)) -> 25.01858073 | FS35: =FS33/INDEX($S$33:JD33,1,MATCH($I$19,$S$10:$DD$10)) -> 25.59400809 | FT35: =FT33/INDEX($S$33:JE33,1,MATCH($I$19,$S$10:$DD$10)) -> 26.18267028 | FU35: =FU33/INDEX($S$33:JF33,1,MATCH($I$19,$S$10:$DD$10)) -> 26.78487169 | FV35: =FV33/INDEX($S$33:JG33,1,MATCH($I$19,$S$10:$DD$10)) -> 27.40092374 | FW35: =FW33/INDEX($S$33:JH33,1,MATCH($I$19,$S$10:$DD$10)) -> 28.03114499 | FX35: =FX33/INDEX($S$33:JI33,1,MATCH($I$19,$S$10:$DD$10)) -> 28.67586132 | FY35: =FY33/INDEX($S$33:JJ33,1,MATCH($I$19,$S$10:$DD$10)) -> 29.33540613 | FZ35: =FZ33/INDEX($S$33:JK33,1,MATCH($I$19,$S$10:$DD$10)) -> 30.01012047 | GA35: =GA33/INDEX($S$33:JL33,1,MATCH($I$19,$S$10:$DD$10)) -> 30.70035324 | GB35: =GB33/INDEX($S$33:JM33,1,MATCH($I$19,$S$10:$DD$10)) -> 31.40646137 | GC35: =GC33/INDEX($S$33:JN33,1,MATCH($I$19,$S$10:$DD$10)) -> 32.12880998 | GD35: =GD33/INDEX($S$33:JO33,1,MATCH($I$19,$S$10:$DD$10)) -> 32.86777261 | GE35: =GE33/INDEX($S$33:JP33,1,MATCH($I$19,$S$10:$DD$10)) -> 33.62373138 | GF35: =GF33/INDEX($S$33:JQ33,1,MATCH($I$19,$S$10:$DD$10)) -> 34.3970772 | GG35: =GG33/INDEX($S$33:JR33,1,MATCH($I$19,$S$10:$DD$10)) -> 35.18820998
H37: Demand cap year | I37: =I69 -> 2038 | K37: Year
H38: Pre demand cap mask | K38: mask | S38: =S10<$I$37 -> TRUE | T38: TRUE | U38: TRUE | V38: TRUE | W38: TRUE | X38: TRUE | Y38: TRUE | Z38: TRUE | AA38: TRUE | AB38: TRUE | AC38: TRUE | AD38: TRUE | AE38: TRUE | AF38: TRUE | AG38: TRUE | AH38: TRUE | AI38: TRUE | AJ38: TRUE | AK38: TRUE | AL38: TRUE | AM38: TRUE | AN38: TRUE | AO38: TRUE | AP38: TRUE | AQ38: TRUE | AR38: TRUE | AS38: TRUE | AT38: TRUE | AU38: TRUE | AV38: TRUE | AW38: TRUE | AX38: TRUE | AY38: =AY10<$I$37 -> TRUE | AZ38: TRUE | BA38: TRUE | BB38: TRUE | BC38: TRUE | BD38: TRUE | BE38: FALSE | BF38: FALSE | BG38: FALSE | BH38: FALSE | BI38: FALSE | BJ38: FALSE | BK38: FALSE | BL38: FALSE | BM38: FALSE | BN38: FALSE | BO38: FALSE | BP38: FALSE | BQ38: FALSE | BR38: FALSE | BS38: FALSE | BT38: FALSE | BU38: FALSE | BV38: FALSE | BW38: FALSE | BX38: FALSE | BY38: FALSE | BZ38: FALSE | CA38: FALSE | CB38: FALSE | CC38: FALSE | CD38: FALSE | CE38: =CE10<$I$37 -> FALSE | CF38: FALSE | CG38: FALSE | CH38: FALSE | CI38: FALSE | CJ38: FALSE | CK38: FALSE | CL38: FALSE | CM38: FALSE | CN38: FALSE | CO38: FALSE | CP38: FALSE | CQ38: FALSE | CR38: FALSE | CS38: FALSE | CT38: FALSE | CU38: FALSE | CV38: FALSE | CW38: FALSE | CX38: FALSE | CY38: FALSE | CZ38: FALSE | DA38: FALSE | DB38: FALSE | DC38: FALSE | DD38: FALSE | DE38: FALSE | DF38: FALSE | DG38: FALSE | DH38: FALSE | DI38: FALSE | DJ38: FALSE | DK38: =DK10<$I$37 -> FALSE | DL38: FALSE | DM38: FALSE | DN38: FALSE | DO38: FALSE | DP38: FALSE | DQ38: FALSE | DR38: FALSE | DS38: FALSE | DT38: FALSE | DU38: FALSE | DV38: FALSE | DW38: FALSE | DX38: FALSE | DY38: FALSE | DZ38: FALSE | EA38: FALSE | EB38: FALSE | EC38: FALSE | ED38: FALSE | EE38: FALSE | EF38: FALSE | EG38: FALSE | EH38: FALSE | EI38: FALSE | EJ38: FALSE | EK38: FALSE | EL38: FALSE | EM38: FALSE | EN38: FALSE | EO38: FALSE | EP38: FALSE | EQ38: =EQ10<$I$37 -> FALSE | ER38: FALSE | ES38: FALSE | ET38: FALSE | EU38: FALSE | EV38: FALSE | EW38: FALSE | EX38: FALSE | EY38: FALSE | EZ38: FALSE | FA38: FALSE | FB38: FALSE | FC38: FALSE | FD38: FALSE | FE38: FALSE | FF38: FALSE | FG38: FALSE | FH38: FALSE | FI38: FALSE | FJ38: FALSE | FK38: FALSE | FL38: FALSE | FM38: FALSE | FN38: FALSE | FO38: FALSE | FP38: FALSE | FQ38: FALSE | FR38: FALSE | FS38: FALSE | FT38: FALSE | FU38: FALSE | FV38: FALSE | FW38: =FW10<$I$37 -> FALSE | FX38: FALSE | FY38: FALSE | FZ38: FALSE | GA38: FALSE | GB38: FALSE | GC38: FALSE | GD38: FALSE | GE38: FALSE | GF38: FALSE | GG38: FALSE
H39: RPI rate | K39: % | S39: =1+'GDP&inflation rates'!S14 -> 1.033 | T39: =1+'GDP&inflation rates'!T14 -> 1.017 | U39: =1+'GDP&inflation rates'!U14 -> 1.017 | V39: =1+'GDP&inflation rates'!V14 -> 1.028 | W39: =1+'GDP&inflation rates'!W14 -> 1.031 | X39: =1+'GDP&inflation rates'!X14 -> 1.027 | Y39: =1+'GDP&inflation rates'!Y14 -> 1.036 | Z39: =1+'GDP&inflation rates'!Z14 -> 1.039 | AA39: =1+'GDP&inflation rates'!AA14 -> 1.05 | AB39: =1+'GDP&inflation rates'!AB14 -> 0.986 | AC39: =1+'GDP&inflation rates'!AC14 -> 1.049629229 | AD39: =1+'GDP&inflation rates'!AD14 -> 1.047981749 | AE39: =1+'GDP&inflation rates'!AE14 -> 1.030897792 | AF39: =1+'GDP&inflation rates'!AF14 -> 1.028847791 | AG39: =1+'GDP&inflation rates'!AG14 -> 1.019597458 | AH39: =1+'GDP&inflation rates'!AH14 -> 1.010779221 | AI39: =1+'GDP&inflation rates'!AI14 -> 1.0214249 | AJ39: =1+'GDP&inflation rates'!AJ14 -> 1.039 | AK39: =1+'GDP&inflation rates'!AK14 -> 1.034 | AL39: =1+'GDP&inflation rates'!AL14 -> 1.031 | AM39: =1+'GDP&inflation rates'!AM14 -> 1.031 | AN39: =1+'GDP&inflation rates'!AN14 -> 1.032 | AO39: =1+'GDP&inflation rates'!AO14 -> 1.0315 | AP39: =1+'GDP&inflation rates'!AP14 -> 1.031 | AQ39: =1+'GDP&inflation rates'!AQ14 -> 1.0305 | AR39: =1+'GDP&inflation rates'!AR14 -> 1.03 | AS39: =1+'GDP&inflation rates'!AS14 -> 1.03 | AT39: =1+'GDP&inflation rates'!AT14 -> 1.03 | AU39: =1+'GDP&inflation rates'!AU14 -> 1.03 | AV39: =1+'GDP&inflation rates'!AV14 -> 1.03 | AW39: =1+'GDP&inflation rates'!AW14 -> 1.03 | AX39: =1+'GDP&inflation rates'!AX14 -> 1.03 | AY39: =1+'GDP&inflation rates'!AY14 -> 1.03 | AZ39: =1+'GDP&inflation rates'!AZ14 -> 1.03 | BA39: =1+'GDP&inflation rates'!BA14 -> 1.03 | BB39: =1+'GDP&inflation rates'!BB14 -> 1.03 | BC39: =1+'GDP&inflation rates'!BC14 -> 1.03 | BD39: =1+'GDP&inflation rates'!BD14 -> 1.03 | BE39: =1+'GDP&inflation rates'!BE14 -> 1.03 | BF39: =1+'GDP&inflation rates'!BF14 -> 1.03 | BG39: =1+'GDP&inflation rates'!BG14 -> 1.03 | BH39: =1+'GDP&inflation rates'!BH14 -> 1.03 | BI39: =1+'GDP&inflation rates'!BI14 -> 1.03 | BJ39: =1+'GDP&inflation rates'!BJ14 -> 1.03 | BK39: =1+'GDP&inflation rates'!BK14 -> 1.03 | BL39: =1+'GDP&inflation rates'!BL14 -> 1.03 | BM39: =1+'GDP&inflation rates'!BM14 -> 1.03 | BN39: =1+'GDP&inflation rates'!BN14 -> 1.03 | BO39: =1+'GDP&inflation rates'!BO14 -> 1.03 | BP39: =1+'GDP&inflation rates'!BP14 -> 1.03 | BQ39: =1+'GDP&inflation rates'!BQ14 -> 1.03 | BR39: =1+'GDP&inflation rates'!BR14 -> 1.03 | BS39: =1+'GDP&inflation rates'!BS14 -> 1.03 | BT39: =1+'GDP&inflation rates'!BT14 -> 1.03 | BU39: =1+'GDP&inflation rates'!BU14 -> 1.03 | BV39: =1+'GDP&inflation rates'!BV14 -> 1.03 | BW39: =1+'GDP&inflation rates'!BW14 -> 1.03 | BX39: =1+'GDP&inflation rates'!BX14 -> 1.03 | BY39: =1+'GDP&inflation rates'!BY14 -> 1.03 | BZ39: =1+'GDP&inflation rates'!BZ14 -> 1.03 | CA39: =1+'GDP&inflation rates'!CA14 -> 1.03 | CB39: =1+'GDP&inflation rates'!CB14 -> 1.03 | CC39: =1+'GDP&inflation rates'!CC14 -> 1.03 | CD39: =1+'GDP&inflation rates'!CD14 -> 1.03 | CE39: =1+'GDP&inflation rates'!CE14 -> 1.03 | CF39: =1+'GDP&inflation rates'!CF14 -> 1.03 | CG39: =1+'GDP&inflation rates'!CG14 -> 1.03 | CH39: =1+'GDP&inflation rates'!CH14 -> 1.03 | CI39: =1+'GDP&inflation rates'!CI14 -> 1.03 | CJ39: =1+'GDP&inflation rates'!CJ14 -> 1.03 | CK39: =1+'GDP&inflation rates'!CK14 -> 1.03 | CL39: =1+'GDP&inflation rates'!CL14 -> 1.03 | CM39: =1+'GDP&inflation rates'!CM14 -> 1.03 | CN39: =1+'GDP&inflation rates'!CN14 -> 1.03 | CO39: =1+'GDP&inflation rates'!CO14 -> 1.03 | CP39: =1+'GDP&inflation rates'!CP14 -> 1.03 | CQ39: =1+'GDP&inflation rates'!CQ14 -> 1.03 | CR39: =1+'GDP&inflation rates'!CR14 -> 1.03 | CS39: =1+'GDP&inflation rates'!CS14 -> 1.03 | CT39: =1+'GDP&inflation rates'!CT14 -> 1.03 | CU39: =1+'GDP&inflation rates'!CU14 -> 1.03 | CV39: =1+'GDP&inflation rates'!CV14 -> 1.03 | CW39: =1+'GDP&inflation rates'!CW14 -> 1.03 | CX39: =1+'GDP&inflation rates'!CX14 -> 1.03 | CY39: =1+'GDP&inflation rates'!CY14 -> 1.03 | CZ39: =1+'GDP&inflation rates'!CZ14 -> 1.03 | DA39: =1+'GDP&inflation rates'!DA14 -> 1.03 | DB39: =1+'GDP&inflation rates'!DB14 -> 1.03 | DC39: =1+'GDP&inflation rates'!DC14 -> 1.03 | DD39: =1+'GDP&inflation rates'!DD14 -> 1.03 | DE39: =1+'GDP&inflation rates'!DE14 -> 1.03 | DF39: =1+'GDP&inflation rates'!DF14 -> 1.03 | DG39: =1+'GDP&inflation rates'!DG14 -> 1.03 | DH39: =1+'GDP&inflation rates'!DH14 -> 1.03 | DI39: =1+'GDP&inflation rates'!DI14 -> 1.03 | DJ39: =1+'GDP&inflation rates'!DJ14 -> 1.03 | DK39: =1+'GDP&inflation rates'!DK14 -> 1.03 | DL39: =1+'GDP&inflation rates'!DL14 -> 1.03 | DM39: =1+'GDP&inflation rates'!DM14 -> 1.03 | DN39: =1+'GDP&inflation rates'!DN14 -> 1.03 | DO39: =1+'GDP&inflation rates'!DO14 -> 1.03 | DP39: =1+'GDP&inflation rates'!DP14 -> 1.03 | DQ39: =1+'GDP&inflation rates'!DQ14 -> 1.03 | DR39: =1+'GDP&inflation rates'!DR14 -> 1.03 | DS39: =1+'GDP&inflation rates'!DS14 -> 1.03 | DT39: =1+'GDP&inflation rates'!DT14 -> 1.03 | DU39: =1+'GDP&inflation rates'!DU14 -> 1.03 | DV39: =1+'GDP&inflation rates'!DV14 -> 1.03 | DW39: =1+'GDP&inflation rates'!DW14 -> 1.03 | DX39: =1+'GDP&inflation rates'!DX14 -> 1.03 | DY39: =1+'GDP&inflation rates'!DY14 -> 1.03 | DZ39: =1+'GDP&inflation rates'!DZ14 -> 1.03 | EA39: =1+'GDP&inflation rates'!EA14 -> 1.03 | EB39: =1+'GDP&inflation rates'!EB14 -> 1.03 | EC39: =1+'GDP&inflation rates'!EC14 -> 1.03 | ED39: =1+'GDP&inflation rates'!ED14 -> 1.03 | EE39: =1+'GDP&inflation rates'!EE14 -> 1.03 | EF39: =1+'GDP&inflation rates'!EF14 -> 1.03 | EG39: =1+'GDP&inflation rates'!EG14 -> 1.03 | EH39: =1+'GDP&inflation rates'!EH14 -> 1.03 | EI39: =1+'GDP&inflation rates'!EI14 -> 1.03 | EJ39: =1+'GDP&inflation rates'!EJ14 -> 1.03 | EK39: =1+'GDP&inflation rates'!EK14 -> 1.03 | EL39: =1+'GDP&inflation rates'!EL14 -> 1.03 | EM39: =1+'GDP&inflation rates'!EM14 -> 1.03 | EN39: =1+'GDP&inflation rates'!EN14 -> 1.03 | EO39: =1+'GDP&inflation rates'!EO14 -> 1.03 | EP39: =1+'GDP&inflation rates'!EP14 -> 1.03 | EQ39: =1+'GDP&inflation rates'!EQ14 -> 1.03 | ER39: =1+'GDP&inflation rates'!ER14 -> 1.03 | ES39: =1+'GDP&inflation rates'!ES14 -> 1.03 | ET39: =1+'GDP&inflation rates'!ET14 -> 1.03 | EU39: =1+'GDP&inflation rates'!EU14 -> 1.03 | EV39: =1+'GDP&inflation rates'!EV14 -> 1.03 | EW39: =1+'GDP&inflation rates'!EW14 -> 1.03 | EX39: =1+'GDP&inflation rates'!EX14 -> 1.03 | EY39: =1+'GDP&inflation rates'!EY14 -> 1.03 | EZ39: =1+'GDP&inflation rates'!EZ14 -> 1.03 | FA39: =1+'GDP&inflation rates'!FA14 -> 1.03 | FB39: =1+'GDP&inflation rates'!FB14 -> 1.03 | FC39: =1+'GDP&inflation rates'!FC14 -> 1.03 | FD39: =1+'GDP&inflation rates'!FD14 -> 1.03 | FE39: =1+'GDP&inflation rates'!FE14 -> 1.03 | FF39: =1+'GDP&inflation rates'!FF14 -> 1.03 | FG39: =1+'GDP&inflation rates'!FG14 -> 1.03 | FH39: =1+'GDP&inflation rates'!FH14 -> 1.03 | FI39: =1+'GDP&inflation rates'!FI14 -> 1.03 | FJ39: =1+'GDP&inflation rates'!FJ14 -> 1.03 | FK39: =1+'GDP&inflation rates'!FK14 -> 1.03 | FL39: =1+'GDP&inflation rates'!FL14 -> 1.03 | FM39: =1+'GDP&inflation rates'!FM14 -> 1.03 | FN39: =1+'GDP&inflation rates'!FN14 -> 1.03 | FO39: =1+'GDP&inflation rates'!FO14 -> 1.03 | FP39: =1+'GDP&inflation rates'!FP14 -> 1.03 | FQ39: =1+'GDP&inflation rates'!FQ14 -> 1.03 | FR39: =1+'GDP&inflation rates'!FR14 -> 1.03 | FS39: =1+'GDP&inflation rates'!FS14 -> 1.03 | FT39: =1+'GDP&inflation rates'!FT14 -> 1.03 | FU39: =1+'GDP&inflation rates'!FU14 -> 1.03 | FV39: =1+'GDP&inflation rates'!FV14 -> 1.03 | FW39: =1+'GDP&inflation rates'!FW14 -> 1.03 | FX39: =1+'GDP&inflation rates'!FX14 -> 1.03 | FY39: =1+'GDP&inflation rates'!FY14 -> 1.03 | FZ39: =1+'GDP&inflation rates'!FZ14 -> 1.03 | GA39: =1+'GDP&inflation rates'!GA14 -> 1.03 | GB39: =1+'GDP&inflation rates'!GB14 -> 1.03 | GC39: =1+'GDP&inflation rates'!GC14 -> 1.03 | GD39: =1+'GDP&inflation rates'!GD14 -> 1.03 | GE39: =1+'GDP&inflation rates'!GE14 -> 1.03 | GF39: =1+'GDP&inflation rates'!GF14 -> 1.03 | GG39: =1+'GDP&inflation rates'!GG14 -> 1.03
H40: RPI rate, GDP deflator post cap | K40: % | S40: =S38*S39+NOT(S38)*S32 -> 1.033 | T40: =T38*T39+NOT(T38)*T32 -> 1.017 | U40: 1.017 | V40: 1.028 | W40: 1.031 | X40: 1.027 | Y40: 1.036 | Z40: 1.039 | AA40: 1.05 | AB40: 0.986 | AC40: 1.049629229 | AD40: 1.047981749 | AE40: 1.030897792 | AF40: 1.028847791 | AG40: 1.019597458 | AH40: 1.010779221 | AI40: 1.0214249 | AJ40: 1.039 | AK40: 1.034 | AL40: 1.031 | AM40: 1.031 | AN40: 1.032 | AO40: 1.0315 | AP40: 1.031 | AQ40: 1.0305 | AR40: 1.03 | AS40: 1.03 | AT40: 1.03 | AU40: 1.03 | AV40: 1.03 | AW40: 1.03 | AX40: 1.03 | AY40: 1.03 | AZ40: 1.03 | BA40: 1.03 | BB40: 1.03 | BC40: 1.03 | BD40: =BD38*BD39+NOT(BD38)*BD32 -> 1.03 | BE40: =BE38*BE39+NOT(BE38)*BE32 -> 1.023 | BF40: 1.023 | BG40: 1.023 | BH40: 1.023 | BI40: 1.023 | BJ40: 1.023 | BK40: 1.023 | BL40: 1.023 | BM40: 1.023 | BN40: 1.023 | BO40: 1.023 | BP40: 1.023 | BQ40: 1.023 | BR40: 1.023 | BS40: 1.023 | BT40: 1.023 | BU40: 1.023 | BV40: 1.023 | BW40: 1.023 | BX40: 1.023 | BY40: 1.023 | BZ40: 1.023 | CA40: 1.023 | CB40: 1.023 | CC40: 1.023 | CD40: 1.023 | CE40: 1.023 | CF40: =CF38*CF39+NOT(CF38)*CF32 -> 1.023 | CG40: 1.023 | CH40: 1.023 | CI40: 1.023 | CJ40: 1.023 | CK40: 1.023 | CL40: 1.023 | CM40: 1.023 | CN40: 1.023 | CO40: 1.023 | CP40: 1.023 | CQ40: 1.023 | CR40: 1.023 | CS40: 1.023 | CT40: 1.023 | CU40: 1.023 | CV40: 1.023 | CW40: 1.023 | CX40: 1.023 | CY40: 1.023 | CZ40: 1.023 | DA40: 1.023 | DB40: 1.023 | DC40: 1.023 | DD40: 1.023 | DE40: =DE38*DE39+NOT(DE38)*DE32 -> 1.023 | DF40: 1.023 | DG40: 1.023 | DH40: 1.023 | DI40: 1.023 | DJ40: 1.023 | DK40: 1.023 | DL40: 1.023 | DM40: 1.023 | DN40: 1.023 | DO40: 1.023 | DP40: 1.023 | DQ40: 1.023 | DR40: 1.023 | DS40: 1.023 | DT40: 1.023 | DU40: 1.023 | DV40: 1.023 | DW40: 1.023 | DX40: 1.023 | DY40: 1.023 | DZ40: 1.023 | EA40: 1.023 | EB40: 1.023 | EC40: 1.023 | ED40: 1.023 | EE40: 1.023 | EF40: 1.023 | EG40: 1.023 | EH40: 1.023 | EI40: 1.023 | EJ40: 1.023 | EK40: 1.023 | EL40: 1.023 | EM40: 1.023 | EN40: 1.023 | EO40: 1.023 | EP40: 1.023 | EQ40: 1.023 | ER40: 1.023 | ES40: 1.023 | ET40: 1.023 | EU40: 1.023 | EV40: 1.023 | EW40: 1.023 | EX40: 1.023 | EY40: 1.023 | EZ40: 1.023 | FA40: 1.023 | FB40: 1.023 | FC40: 1.023 | FD40: 1.023 | FE40: 1.023 | FF40: 1.023 | FG40: 1.023 | FH40: 1.023 | FI40: 1.023 | FJ40: 1.023 | FK40: 1.023 | FL40: 1.023 | FM40: 1.023 | FN40: 1.023 | FO40: 1.023 | FP40: 1.023 | FQ40: =FQ38*FQ39+NOT(FQ38)*FQ32 -> 1.023 | FR40: 1.023 | FS40: 1.023 | FT40: 1.023 | FU40: 1.023 | FV40: 1.023 | FW40: 1.023 | FX40: 1.023 | FY40: 1.023 | FZ40: 1.023 | GA40: 1.023 | GB40: 1.023 | GC40: 1.023 | GD40: 1.023 | GE40: 1.023 | GF40: 1.023 | GG40: 1.023
H41: RPI rate, GDP deflator post cap index | K41: index | R41: 1 | S41: =R41*S40 -> 1.033 | T41: =S41*T40 -> 1.050561 | U41: 1.068420537 | V41: 1.098336312 | W41: 1.132384738 | X41: 1.162959126 | Y41: 1.204825654 | Z41: 1.251813855 | AA41: 1.314404547 | AB41: 1.296002884 | AC41: 1.360322508 | AD41: 1.425593161 | AE41: 1.469640842 | AF41: 1.512036734 | AG41: 1.54166881 | AH41: 1.558286798 | AI41: 1.591672938 | AJ41: 1.653748182 | AK41: 1.70997562 | AL41: 1.762984865 | AM41: 1.817637395 | AN41: 1.875801792 | AO41: 1.934889548 | AP41: 1.994871124 | AQ41: 2.055714694 | AR41: 2.117386135 | AS41: 2.180907719 | AT41: 2.24633495 | AU41: 2.313724999 | AV41: 2.383136749 | AW41: 2.454630851 | AX41: 2.528269777 | AY41: 2.60411787 | AZ41: 2.682241406 | BA41: 2.762708648 | BB41: 2.845589908 | BC41: 2.930957605 | BD41: 3.018886333 | BE41: =BD41*BE40 -> 3.088320719 | BF41: 3.159352095 | BG41: 3.232017193 | BH41: 3.306353589 | BI41: 3.382399721 | BJ41: 3.460194915 | BK41: 3.539779398 | BL41: 3.621194324 | BM41: 3.704481794 | BN41: 3.789684875 | BO41: 3.876847627 | BP41: 3.966015122 | BQ41: 4.05723347 | BR41: 4.15054984 | BS41: 4.246012486 | BT41: 4.343670774 | BU41: 4.443575201 | BV41: 4.545777431 | BW41: 4.650330312 | BX41: 4.757287909 | BY41: 4.866705531 | BZ41: 4.978639758 | CA41: 5.093148473 | CB41: 5.210290888 | CC41: 5.330127578 | CD41: 5.452720512 | CE41: 5.578133084 | CF41: =CE41*CF40 -> 5.706430145 | CG41: 5.837678038 | CH41: 5.971944633 | CI41: 6.10929936 | CJ41: 6.249813245 | CK41: 6.39355895 | CL41: 6.540610805 | CM41: 6.691044854 | CN41: 6.844938886 | CO41: 7.00237248 | CP41: 7.163427047 | CQ41: 7.328185869 | CR41: 7.496734144 | CS41: 7.669159029 | CT41: 7.845549687 | CU41: 8.02599733 | CV41: 8.210595269 | CW41: 8.39943896 | CX41: 8.592626056 | CY41: 8.790256455 | CZ41: 8.992432354 | DA41: 9.199258298 | DB41: 9.410841239 | DC41: 9.627290587 | DD41: 9.84871827 | DE41: 10.07523879 | DF41: 10.30696928 | DG41: 10.54402958 | DH41: 10.78654226 | DI41: 11.03463273 | DJ41: 11.28842928 | DK41: 11.54806315 | DL41: 11.81366861 | DM41: 12.08538299 | DN41: 12.36334679 | DO41: 12.64770377 | DP41: 12.93860096 | DQ41: 13.23618878 | DR41: 13.54062112 | DS41: 13.85205541 | DT41: 14.17065268 | DU41: 14.49657769 | DV41: 14.82999898 | DW41: 15.17108896 | DX41: 15.520024 | DY41: 15.87698455 | DZ41: 16.2421552 | EA41: 16.61572477 | EB41: 16.99788644 | EC41: 17.38883783 | ED41: 17.7887811 | EE41: 18.19792306 | EF41: 18.61647529 | EG41: 19.04465422 | EH41: 19.48268127 | EI41: 19.93078294 | EJ41: 20.38919095 | EK41: 20.85814234 | EL41: 21.33787961 | EM41: 21.82865084 | EN41: 22.33070981 | EO41: 22.84431614 | EP41: 23.36973541 | EQ41: 23.90723933 | ER41: =EQ41*ER40 -> 24.45710583 | ES41: 25.01961926 | ET41: 25.59507051 | EU41: 26.18375713 | EV41: 26.78598354 | EW41: 27.40206116 | EX41: 28.03230857 | EY41: 28.67705167 | EZ41: 29.33662386 | FA41: 30.0113662 | FB41: 30.70162763 | FC41: 31.40776506 | FD41: 32.13014366 | FE41: 32.86913696 | FF41: 33.62512711 | FG41: 34.39850504 | FH41: 35.18967065 | FI41: 35.99903308 | FJ41: 36.82701084 | FK41: 37.67403209 | FL41: 38.54053483 | FM41: 39.42696713 | FN41: 40.33378737 | FO41: 41.26146448 | FP41: 42.21047816 | FQ41: 43.18131916 | FR41: 44.1744895 | FS41: 45.19050276 | FT41: 46.22988432 | FU41: 47.29317166 | FV41: 48.38091461 | FW41: 49.49367565 | FX41: 50.63203019 | FY41: 51.79656688 | FZ41: 52.98788792 | GA41: 54.20660934 | GB41: 55.45336136 | GC41: 56.72878867 | GD41: 58.03355081 | GE41: 59.36832248 | GF41: 60.73379389 | GG41: 62.13067115
H42: RPI rate, GDP deflator post cap index WI based | K42: index | S42: =S41/INDEX($S$41:DD41,1,MATCH($I$17,$S$10:$DD$10)) ->  | T42: =T41/INDEX($S$41:DE41,1,MATCH($I$17,$S$10:$DD$10)) ->  | U42: =U41/INDEX($S$41:DF41,1,MATCH($I$17,$S$10:$DD$10)) ->  | V42: =V41/INDEX($S$41:DG41,1,MATCH($I$17,$S$10:$DD$10)) ->  | W42: =W41/INDEX($S$41:DH41,1,MATCH($I$17,$S$10:$DD$10)) ->  | X42: =X41/INDEX($S$41:DI41,1,MATCH($I$17,$S$10:$DD$10)) ->  | Y42: =Y41/INDEX($S$41:DJ41,1,MATCH($I$17,$S$10:$DD$10)) ->  | Z42: =Z41/INDEX($S$41:DK41,1,MATCH($I$17,$S$10:$DD$10)) ->  | AA42: =AA41/INDEX($S$41:DL41,1,MATCH($I$17,$S$10:$DD$10)) ->  | AB42: =AB41/INDEX($S$41:DM41,1,MATCH($I$17,$S$10:$DD$10)) ->  | AC42: =AC41/INDEX($S$41:DN41,1,MATCH($I$17,$S$10:$DD$10)) ->  | AD42: =AD41/INDEX($S$41:DO41,1,MATCH($I$17,$S$10:$DD$10)) ->  | AE42: =AE41/INDEX($S$41:DP41,1,MATCH($I$17,$S$10:$DD$10)) ->  | AF42: =AF41/INDEX($S$41:DQ41,1,MATCH($I$17,$S$10:$DD$10)) ->  | AG42: =AG41/INDEX($S$41:DR41,1,MATCH($I$17,$S$10:$DD$10)) ->  | AH42: =AH41/INDEX($S$41:DS41,1,MATCH($I$17,$S$10:$DD$10)) ->  | AI42: =AI41/INDEX($S$41:DT41,1,MATCH($I$17,$S$10:$DD$10)) ->  | AJ42: =AJ41/INDEX($S$41:DU41,1,MATCH($I$17,$S$10:$DD$10)) ->  | AK42: =AK41/INDEX($S$41:DV41,1,MATCH($I$17,$S$10:$DD$10)) ->  | AL42: =AL41/INDEX($S$41:DW41,1,MATCH($I$17,$S$10:$DD$10)) ->  | AM42: =AM41/INDEX($S$41:DX41,1,MATCH($I$17,$S$10:$DD$10)) ->  | AN42: =AN41/INDEX($S$41:DY41,1,MATCH($I$17,$S$10:$DD$10)) ->  | AO42: =AO41/INDEX($S$41:DZ41,1,MATCH($I$17,$S$10:$DD$10)) ->  | AP42: =AP41/INDEX($S$41:EA41,1,MATCH($I$17,$S$10:$DD$10)) ->  | AQ42: =AQ41/INDEX($S$41:EB41,1,MATCH($I$17,$S$10:$DD$10)) ->  | AR42: =AR41/INDEX($S$41:EC41,1,MATCH($I$17,$S$10:$DD$10)) ->  | AS42: =AS41/INDEX($S$41:ED41,1,MATCH($I$17,$S$10:$DD$10)) ->  | AT42: =AT41/INDEX($S$41:EE41,1,MATCH($I$17,$S$10:$DD$10)) ->  | AU42: =AU41/INDEX($S$41:EF41,1,MATCH($I$17,$S$10:$DD$10)) ->  | AV42: =AV41/INDEX($S$41:EG41,1,MATCH($I$17,$S$10:$DD$10)) ->  | AW42: =AW41/INDEX($S$41:EH41,1,MATCH($I$17,$S$10:$DD$10)) ->  | AX42: =AX41/INDEX($S$41:EI41,1,MATCH($I$17,$S$10:$DD$10)) ->  | AY42: =AY41/INDEX($S$41:EJ41,1,MATCH($I$17,$S$10:$DD$10)) ->  | AZ42: =AZ41/INDEX($S$41:EK41,1,MATCH($I$17,$S$10:$DD$10)) ->  | BA42: =BA41/INDEX($S$41:EL41,1,MATCH($I$17,$S$10:$DD$10)) ->  | BB42: =BB41/INDEX($S$41:EM41,1,MATCH($I$17,$S$10:$DD$10)) ->  | BC42: =BC41/INDEX($S$41:EN41,1,MATCH($I$17,$S$10:$DD$10)) ->  | BD42: =BD41/INDEX($S$41:EO41,1,MATCH($I$17,$S$10:$DD$10)) ->  | BE42: =BE41/INDEX($S$41:EP41,1,MATCH($I$17,$S$10:$DD$10)) ->  | BF42: =BF41/INDEX($S$41:EQ41,1,MATCH($I$17,$S$10:$DD$10)) ->  | BG42: =BG41/INDEX($S$41:ER41,1,MATCH($I$17,$S$10:$DD$10)) ->  | BH42: =BH41/INDEX($S$41:ES41,1,MATCH($I$17,$S$10:$DD$10)) ->  | BI42: =BI41/INDEX($S$41:ET41,1,MATCH($I$17,$S$10:$DD$10)) ->  | BJ42: =BJ41/INDEX($S$41:EU41,1,MATCH($I$17,$S$10:$DD$10)) ->  | BK42: =BK41/INDEX($S$41:EV41,1,MATCH($I$17,$S$10:$DD$10)) ->  | BL42: =BL41/INDEX($S$41:EW41,1,MATCH($I$17,$S$10:$DD$10)) ->  | BM42: =BM41/INDEX($S$41:EX41,1,MATCH($I$17,$S$10:$DD$10)) ->  | BN42: =BN41/INDEX($S$41:EY41,1,MATCH($I$17,$S$10:$DD$10)) ->  | BO42: =BO41/INDEX($S$41:EZ41,1,MATCH($I$17,$S$10:$DD$10)) ->  | BP42: =BP41/INDEX($S$41:FA41,1,MATCH($I$17,$S$10:$DD$10)) ->  | BQ42: =BQ41/INDEX($S$41:FB41,1,MATCH($I$17,$S$10:$DD$10)) ->  | BR42: =BR41/INDEX($S$41:FC41,1,MATCH($I$17,$S$10:$DD$10)) ->  | BS42: =BS41/INDEX($S$41:FD41,1,MATCH($I$17,$S$10:$DD$10)) ->  | BT42: =BT41/INDEX($S$41:FE41,1,MATCH($I$17,$S$10:$DD$10)) ->  | BU42: =BU41/INDEX($S$41:FF41,1,MATCH($I$17,$S$10:$DD$10)) ->  | BV42: =BV41/INDEX($S$41:FG41,1,MATCH($I$17,$S$10:$DD$10)) ->  | BW42: =BW41/INDEX($S$41:FH41,1,MATCH($I$17,$S$10:$DD$10)) ->  | BX42: =BX41/INDEX($S$41:FI41,1,MATCH($I$17,$S$10:$DD$10)) ->  | BY42: =BY41/INDEX($S$41:FJ41,1,MATCH($I$17,$S$10:$DD$10)) ->  | BZ42: =BZ41/INDEX($S$41:FK41,1,MATCH($I$17,$S$10:$DD$10)) ->  | CA42: =CA41/INDEX($S$41:FL41,1,MATCH($I$17,$S$10:$DD$10)) ->  | CB42: =CB41/INDEX($S$41:FM41,1,MATCH($I$17,$S$10:$DD$10)) ->  | CC42: =CC41/INDEX($S$41:FN41,1,MATCH($I$17,$S$10:$DD$10)) ->  | CD42: =CD41/INDEX($S$41:FO41,1,MATCH($I$17,$S$10:$DD$10)) ->  | CE42: =CE41/INDEX($S$41:FP41,1,MATCH($I$17,$S$10:$DD$10)) ->  | CF42: =CF41/INDEX($S$41:FQ41,1,MATCH($I$17,$S$10:$DD$10)) ->  | CG42: =CG41/INDEX($S$41:FR41,1,MATCH($I$17,$S$10:$DD$10)) ->  | CH42: =CH41/INDEX($S$41:FS41,1,MATCH($I$17,$S$10:$DD$10)) ->  | CI42: =CI41/INDEX($S$41:FT41,1,MATCH($I$17,$S$10:$DD$10)) ->  | CJ42: =CJ41/INDEX($S$41:FU41,1,MATCH($I$17,$S$10:$DD$10)) ->  | CK42: =CK41/INDEX($S$41:FV41,1,MATCH($I$17,$S$10:$DD$10)) ->  | CL42: =CL41/INDEX($S$41:FW41,1,MATCH($I$17,$S$10:$DD$10)) ->  | CM42: =CM41/INDEX($S$41:FX41,1,MATCH($I$17,$S$10:$DD$10)) ->  | CN42: =CN41/INDEX($S$41:FY41,1,MATCH($I$17,$S$10:$DD$10)) ->  | CO42: =CO41/INDEX($S$41:FZ41,1,MATCH($I$17,$S$10:$DD$10)) ->  | CP42: =CP41/INDEX($S$41:GA41,1,MATCH($I$17,$S$10:$DD$10)) ->  | CQ42: =CQ41/INDEX($S$41:GB41,1,MATCH($I$17,$S$10:$DD$10)) ->  | CR42: =CR41/INDEX($S$41:GC41,1,MATCH($I$17,$S$10:$DD$10)) ->  | CS42: =CS41/INDEX($S$41:GD41,1,MATCH($I$17,$S$10:$DD$10)) ->  | CT42: =CT41/INDEX($S$41:GE41,1,MATCH($I$17,$S$10:$DD$10)) ->  | CU42: =CU41/INDEX($S$41:GF41,1,MATCH($I$17,$S$10:$DD$10)) ->  | CV42: =CV41/INDEX($S$41:GG41,1,MATCH($I$17,$S$10:$DD$10)) ->  | CW42: =CW41/INDEX($S$41:GH41,1,MATCH($I$17,$S$10:$DD$10)) ->  | CX42: =CX41/INDEX($S$41:GI41,1,MATCH($I$17,$S$10:$DD$10)) ->  | CY42: =CY41/INDEX($S$41:GJ41,1,MATCH($I$17,$S$10:$DD$10)) ->  | CZ42: =CZ41/INDEX($S$41:GK41,1,MATCH($I$17,$S$10:$DD$10)) ->  | DA42: =DA41/INDEX($S$41:GL41,1,MATCH($I$17,$S$10:$DD$10)) ->  | DB42: =DB41/INDEX($S$41:GM41,1,MATCH($I$17,$S$10:$DD$10)) ->  | DC42: =DC41/INDEX($S$41:GN41,1,MATCH($I$17,$S$10:$DD$10)) ->  | DD42: =DD41/INDEX($S$41:GO41,1,MATCH($I$17,$S$10:$DD$10)) ->  | DE42: =DE41/INDEX($S$41:GP41,1,MATCH($I$17,$S$10:$DD$10)) ->  | DF42: =DF41/INDEX($S$41:GQ41,1,MATCH($I$17,$S$10:$DD$10)) ->  | DG42: =DG41/INDEX($S$41:GR41,1,MATCH($I$17,$S$10:$DD$10)) ->  | DH42: =DH41/INDEX($S$41:GS41,1,MATCH($I$17,$S$10:$DD$10)) ->  | DI42: =DI41/INDEX($S$41:GT41,1,MATCH($I$17,$S$10:$DD$10)) ->  | DJ42: =DJ41/INDEX($S$41:GU41,1,MATCH($I$17,$S$10:$DD$10)) ->  | DK42: =DK41/INDEX($S$41:GV41,1,MATCH($I$17,$S$10:$DD$10)) ->  | DL42: =DL41/INDEX($S$41:GW41,1,MATCH($I$17,$S$10:$DD$10)) ->  | DM42: =DM41/INDEX($S$41:GX41,1,MATCH($I$17,$S$10:$DD$10)) ->  | DN42: =DN41/INDEX($S$41:GY41,1,MATCH($I$17,$S$10:$DD$10)) ->  | DO42: =DO41/INDEX($S$41:GZ41,1,MATCH($I$17,$S$10:$DD$10)) ->  | DP42: =DP41/INDEX($S$41:HA41,1,MATCH($I$17,$S$10:$DD$10)) ->  | DQ42: =DQ41/INDEX($S$41:HB41,1,MATCH($I$17,$S$10:$DD$10)) ->  | DR42: =DR41/INDEX($S$41:HC41,1,MATCH($I$17,$S$10:$DD$10)) ->  | DS42: =DS41/INDEX($S$41:HD41,1,MATCH($I$17,$S$10:$DD$10)) ->  | DT42: =DT41/INDEX($S$41:HE41,1,MATCH($I$17,$S$10:$DD$10)) ->  | DU42: =DU41/INDEX($S$41:HF41,1,MATCH($I$17,$S$10:$DD$10)) ->  | DV42: =DV41/INDEX($S$41:HG41,1,MATCH($I$17,$S$10:$DD$10)) ->  | DW42: =DW41/INDEX($S$41:HH41,1,MATCH($I$17,$S$10:$DD$10)) ->  | DX42: =DX41/INDEX($S$41:HI41,1,MATCH($I$17,$S$10:$DD$10)) ->  | DY42: =DY41/INDEX($S$41:HJ41,1,MATCH($I$17,$S$10:$DD$10)) ->  | DZ42: =DZ41/INDEX($S$41:HK41,1,MATCH($I$17,$S$10:$DD$10)) ->  | EA42: =EA41/INDEX($S$41:HL41,1,MATCH($I$17,$S$10:$DD$10)) ->  | EB42: =EB41/INDEX($S$41:HM41,1,MATCH($I$17,$S$10:$DD$10)) ->  | EC42: =EC41/INDEX($S$41:HN41,1,MATCH($I$17,$S$10:$DD$10)) ->  | ED42: =ED41/INDEX($S$41:HO41,1,MATCH($I$17,$S$10:$DD$10)) ->  | EE42: =EE41/INDEX($S$41:HP41,1,MATCH($I$17,$S$10:$DD$10)) ->  | EF42: =EF41/INDEX($S$41:HQ41,1,MATCH($I$17,$S$10:$DD$10)) ->  | EG42: =EG41/INDEX($S$41:HR41,1,MATCH($I$17,$S$10:$DD$10)) ->  | EH42: =EH41/INDEX($S$41:HS41,1,MATCH($I$17,$S$10:$DD$10)) ->  | EI42: =EI41/INDEX($S$41:HT41,1,MATCH($I$17,$S$10:$DD$10)) ->  | EJ42: =EJ41/INDEX($S$41:HU41,1,MATCH($I$17,$S$10:$DD$10)) ->  | EK42: =EK41/INDEX($S$41:HV41,1,MATCH($I$17,$S$10:$DD$10)) ->  | EL42: =EL41/INDEX($S$41:HW41,1,MATCH($I$17,$S$10:$DD$10)) ->  | EM42: =EM41/INDEX($S$41:HX41,1,MATCH($I$17,$S$10:$DD$10)) ->  | EN42: =EN41/INDEX($S$41:HY41,1,MATCH($I$17,$S$10:$DD$10)) ->  | EO42: =EO41/INDEX($S$41:HZ41,1,MATCH($I$17,$S$10:$DD$10)) ->  | EP42: =EP41/INDEX($S$41:IA41,1,MATCH($I$17,$S$10:$DD$10)) ->  | EQ42: =EQ41/INDEX($S$41:IB41,1,MATCH($I$17,$S$10:$DD$10)) ->  | ER42: =ER41/INDEX($S$41:IC41,1,MATCH($I$17,$S$10:$DD$10)) ->  | ES42: =ES41/INDEX($S$41:ID41,1,MATCH($I$17,$S$10:$DD$10)) ->  | ET42: =ET41/INDEX($S$41:IE41,1,MATCH($I$17,$S$10:$DD$10)) ->  | EU42: =EU41/INDEX($S$41:IF41,1,MATCH($I$17,$S$10:$DD$10)) ->  | EV42: =EV41/INDEX($S$41:IG41,1,MATCH($I$17,$S$10:$DD$10)) ->  | EW42: =EW41/INDEX($S$41:IH41,1,MATCH($I$17,$S$10:$DD$10)) ->  | EX42: =EX41/INDEX($S$41:II41,1,MATCH($I$17,$S$10:$DD$10)) ->  | EY42: =EY41/INDEX($S$41:IJ41,1,MATCH($I$17,$S$10:$DD$10)) ->  | EZ42: =EZ41/INDEX($S$41:IK41,1,MATCH($I$17,$S$10:$DD$10)) ->  | FA42: =FA41/INDEX($S$41:IL41,1,MATCH($I$17,$S$10:$DD$10)) ->  | FB42: =FB41/INDEX($S$41:IM41,1,MATCH($I$17,$S$10:$DD$10)) ->  | FC42: =FC41/INDEX($S$41:IN41,1,MATCH($I$17,$S$10:$DD$10)) ->  | FD42: =FD41/INDEX($S$41:IO41,1,MATCH($I$17,$S$10:$DD$10)) ->  | FE42: =FE41/INDEX($S$41:IP41,1,MATCH($I$17,$S$10:$DD$10)) ->  | FF42: =FF41/INDEX($S$41:IQ41,1,MATCH($I$17,$S$10:$DD$10)) ->  | FG42: =FG41/INDEX($S$41:IR41,1,MATCH($I$17,$S$10:$DD$10)) ->  | FH42: =FH41/INDEX($S$41:IS41,1,MATCH($I$17,$S$10:$DD$10)) ->  | FI42: =FI41/INDEX($S$41:IT41,1,MATCH($I$17,$S$10:$DD$10)) ->  | FJ42: =FJ41/INDEX($S$41:IU41,1,MATCH($I$17,$S$10:$DD$10)) ->  | FK42: =FK41/INDEX($S$41:IV41,1,MATCH($I$17,$S$10:$DD$10)) ->  | FL42: =FL41/INDEX($S$41:IW41,1,MATCH($I$17,$S$10:$DD$10)) ->  | FM42: =FM41/INDEX($S$41:IX41,1,MATCH($I$17,$S$10:$DD$10)) ->  | FN42: =FN41/INDEX($S$41:IY41,1,MATCH($I$17,$S$10:$DD$10)) ->  | FO42: =FO41/INDEX($S$41:IZ41,1,MATCH($I$17,$S$10:$DD$10)) ->  | FP42: =FP41/INDEX($S$41:JA41,1,MATCH($I$17,$S$10:$DD$10)) ->  | FQ42: =FQ41/INDEX($S$41:JB41,1,MATCH($I$17,$S$10:$DD$10)) ->  | FR42: =FR41/INDEX($S$41:JC41,1,MATCH($I$17,$S$10:$DD$10)) ->  | FS42: =FS41/INDEX($S$41:JD41,1,MATCH($I$17,$S$10:$DD$10)) ->  | FT42: =FT41/INDEX($S$41:JE41,1,MATCH($I$17,$S$10:$DD$10)) ->  | FU42: =FU41/INDEX($S$41:JF41,1,MATCH($I$17,$S$10:$DD$10)) ->  | FV42: =FV41/INDEX($S$41:JG41,1,MATCH($I$17,$S$10:$DD$10)) ->  | FW42: =FW41/INDEX($S$41:JH41,1,MATCH($I$17,$S$10:$DD$10)) ->  | FX42: =FX41/INDEX($S$41:JI41,1,MATCH($I$17,$S$10:$DD$10)) ->  | FY42: =FY41/INDEX($S$41:JJ41,1,MATCH($I$17,$S$10:$DD$10)) ->  | FZ42: =FZ41/INDEX($S$41:JK41,1,MATCH($I$17,$S$10:$DD$10)) ->  | GA42: =GA41/INDEX($S$41:JL41,1,MATCH($I$17,$S$10:$DD$10)) ->  | GB42: =GB41/INDEX($S$41:JM41,1,MATCH($I$17,$S$10:$DD$10)) ->  | GC42: =GC41/INDEX($S$41:JN41,1,MATCH($I$17,$S$10:$DD$10)) ->  | GD42: =GD41/INDEX($S$41:JO41,1,MATCH($I$17,$S$10:$DD$10)) ->  | GE42: =GE41/INDEX($S$41:JP41,1,MATCH($I$17,$S$10:$DD$10)) ->  | GF42: =GF41/INDEX($S$41:JQ41,1,MATCH($I$17,$S$10:$DD$10)) ->  | GG42: =GG41/INDEX($S$41:JR41,1,MATCH($I$17,$S$10:$DD$10)) -> 
H44: End of current parliament | I44: ='Appraisal inputs'!H33 -> 2022 | K44: Year
H45: After current parliament mask | K45: mask | S45: =S10>$I$44 -> FALSE | T45: FALSE | U45: FALSE | V45: FALSE | W45: FALSE | X45: FALSE | Y45: FALSE | Z45: FALSE | AA45: FALSE | AB45: FALSE | AC45: FALSE | AD45: FALSE | AE45: FALSE | AF45: FALSE | AG45: FALSE | AH45: FALSE | AI45: FALSE | AJ45: FALSE | AK45: FALSE | AL45: FALSE | AM45: FALSE | AN45: FALSE | AO45: FALSE | AP45: TRUE | AQ45: TRUE | AR45: TRUE | AS45: TRUE | AT45: TRUE | AU45: TRUE | AV45: TRUE | AW45: TRUE | AX45: TRUE | AY45: =AY10>$I$44 -> TRUE | AZ45: TRUE | BA45: TRUE | BB45: TRUE | BC45: TRUE | BD45: TRUE | BE45: TRUE | BF45: TRUE | BG45: TRUE | BH45: TRUE | BI45: TRUE | BJ45: TRUE | BK45: TRUE | BL45: TRUE | BM45: TRUE | BN45: TRUE | BO45: TRUE | BP45: TRUE | BQ45: TRUE | BR45: TRUE | BS45: TRUE | BT45: TRUE | BU45: TRUE | BV45: TRUE | BW45: TRUE | BX45: TRUE | BY45: TRUE | BZ45: TRUE | CA45: TRUE | CB45: TRUE | CC45: TRUE | CD45: TRUE | CE45: =CE10>$I$44 -> TRUE | CF45: TRUE | CG45: TRUE | CH45: TRUE | CI45: TRUE | CJ45: TRUE | CK45: TRUE | CL45: TRUE | CM45: TRUE | CN45: TRUE | CO45: TRUE | CP45: TRUE | CQ45: TRUE | CR45: TRUE | CS45: TRUE | CT45: TRUE | CU45: TRUE | CV45: TRUE | CW45: TRUE | CX45: TRUE | CY45: TRUE | CZ45: TRUE | DA45: TRUE | DB45: TRUE | DC45: TRUE | DD45: TRUE | DE45: TRUE | DF45: TRUE | DG45: TRUE | DH45: TRUE | DI45: TRUE | DJ45: TRUE | DK45: =DK10>$I$44 -> TRUE | DL45: TRUE | DM45: TRUE | DN45: TRUE | DO45: TRUE | DP45: TRUE | DQ45: TRUE | DR45: TRUE | DS45: TRUE | DT45: TRUE | DU45: TRUE | DV45: TRUE | DW45: TRUE | DX45: TRUE | DY45: TRUE | DZ45: TRUE | EA45: TRUE | EB45: TRUE | EC45: TRUE | ED45: TRUE | EE45: TRUE | EF45: TRUE | EG45: TRUE | EH45: TRUE | EI45: TRUE | EJ45: TRUE | EK45: TRUE | EL45: TRUE | EM45: TRUE | EN45: TRUE | EO45: TRUE | EP45: TRUE | EQ45: =EQ10>$I$44 -> TRUE | ER45: TRUE | ES45: TRUE | ET45: TRUE | EU45: TRUE | EV45: TRUE | EW45: TRUE | EX45: TRUE | EY45: TRUE | EZ45: TRUE | FA45: TRUE | FB45: TRUE | FC45: TRUE | FD45: TRUE | FE45: TRUE | FF45: TRUE | FG45: TRUE | FH45: TRUE | FI45: TRUE | FJ45: TRUE | FK45: TRUE | FL45: TRUE | FM45: TRUE | FN45: TRUE | FO45: TRUE | FP45: TRUE | FQ45: TRUE | FR45: TRUE | FS45: TRUE | FT45: TRUE | FU45: TRUE | FV45: TRUE | FW45: =FW10>$I$44 -> TRUE | FX45: TRUE | FY45: TRUE | FZ45: TRUE | GA45: TRUE | GB45: TRUE | GC45: TRUE | GD45: TRUE | GE45: TRUE | GF45: TRUE | GG45: TRUE
H46: RPI rate, +1% after this parliament | K46: % | S46: =S39+S45*0.01 -> 1.033 | T46: =T39+T45*0.01 -> 1.017 | U46: 1.017 | V46: 1.028 | W46: 1.031 | X46: 1.027 | Y46: 1.036 | Z46: 1.039 | AA46: 1.05 | AB46: 0.986 | AC46: 1.049629229 | AD46: 1.047981749 | AE46: 1.030897792 | AF46: 1.028847791 | AG46: 1.019597458 | AH46: 1.010779221 | AI46: 1.0214249 | AJ46: 1.039 | AK46: 1.034 | AL46: 1.031 | AM46: 1.031 | AN46: 1.032 | AO46: 1.0315 | AP46: 1.041 | AQ46: 1.0405 | AR46: 1.04 | AS46: 1.04 | AT46: 1.04 | AU46: 1.04 | AV46: 1.04 | AW46: 1.04 | AX46: 1.04 | AY46: =AY39+AY45*0.01 -> 1.04 | AZ46: 1.04 | BA46: 1.04 | BB46: 1.04 | BC46: 1.04 | BD46: =BD39+BD45*0.01 -> 1.04 | BE46: 1.04 | BF46: 1.04 | BG46: 1.04 | BH46: 1.04 | BI46: 1.04 | BJ46: 1.04 | BK46: 1.04 | BL46: 1.04 | BM46: 1.04 | BN46: 1.04 | BO46: 1.04 | BP46: 1.04 | BQ46: 1.04 | BR46: 1.04 | BS46: 1.04 | BT46: 1.04 | BU46: 1.04 | BV46: 1.04 | BW46: 1.04 | BX46: 1.04 | BY46: 1.04 | BZ46: 1.04 | CA46: 1.04 | CB46: 1.04 | CC46: 1.04 | CD46: 1.04 | CE46: =CE39+CE45*0.01 -> 1.04 | CF46: 1.04 | CG46: 1.04 | CH46: 1.04 | CI46: 1.04 | CJ46: 1.04 | CK46: 1.04 | CL46: 1.04 | CM46: 1.04 | CN46: 1.04 | CO46: 1.04 | CP46: 1.04 | CQ46: 1.04 | CR46: 1.04 | CS46: 1.04 | CT46: 1.04 | CU46: 1.04 | CV46: 1.04 | CW46: 1.04 | CX46: 1.04 | CY46: 1.04 | CZ46: 1.04 | DA46: 1.04 | DB46: 1.04 | DC46: 1.04 | DD46: 1.04 | DE46: =DE39+DE45*0.01 -> 1.04 | DF46: 1.04 | DG46: 1.04 | DH46: 1.04 | DI46: 1.04 | DJ46: 1.04 | DK46: 1.04 | DL46: 1.04 | DM46: 1.04 | DN46: 1.04 | DO46: 1.04 | DP46: 1.04 | DQ46: 1.04 | DR46: 1.04 | DS46: 1.04 | DT46: 1.04 | DU46: 1.04 | DV46: 1.04 | DW46: 1.04 | DX46: 1.04 | DY46: 1.04 | DZ46: 1.04 | EA46: 1.04 | EB46: 1.04 | EC46: 1.04 | ED46: 1.04 | EE46: 1.04 | EF46: 1.04 | EG46: 1.04 | EH46: 1.04 | EI46: 1.04 | EJ46: 1.04 | EK46: 1.04 | EL46: 1.04 | EM46: 1.04 | EN46: 1.04 | EO46: 1.04 | EP46: 1.04 | EQ46: 1.04 | ER46: 1.04 | ES46: 1.04 | ET46: 1.04 | EU46: 1.04 | EV46: 1.04 | EW46: 1.04 | EX46: 1.04 | EY46: 1.04 | EZ46: 1.04 | FA46: 1.04 | FB46: 1.04 | FC46: 1.04 | FD46: 1.04 | FE46: 1.04 | FF46: 1.04 | FG46: 1.04 | FH46: 1.04 | FI46: 1.04 | FJ46: 1.04 | FK46: 1.04 | FL46: 1.04 | FM46: 1.04 | FN46: 1.04 | FO46: 1.04 | FP46: 1.04 | FQ46: =FQ39+FQ45*0.01 -> 1.04 | FR46: 1.04 | FS46: 1.04 | FT46: 1.04 | FU46: 1.04 | FV46: 1.04 | FW46: 1.04 | FX46: 1.04 | FY46: 1.04 | FZ46: 1.04 | GA46: 1.04 | GB46: 1.04 | GC46: 1.04 | GD46: 1.04 | GE46: 1.04 | GF46: 1.04 | GG46: 1.04
